Workbook

Sheet Настройки (hidden)
A1: Турнир | B1: Коэфф. | C1: Уст. За 1 матч | E1: Доп. Коэфф. | F1: Знач. | H1: День нед. | I1: День недели
A2: Коммерческие турниры | B2: =INDIRECT(ADDRESS(ROW(B2),COLUMN(B2),1,1,'Расчет усталости'!$V$2)) -> 0.5 | C2: =INDIRECT(ADDRESS(ROW(C2),COLUMN(C2),1,1,'Расчет усталости'!$V$2)) -> 0.15 | E2: Надбавка за гостевой матч | F2: =INDIRECT(ADDRESS(ROW(F2),COLUMN(F2),1,1,'Расчет усталости'!$V$2)) -> 0.1 | H2: Неделя | I2: Порядковый номер недели
A3: Коммерческие турниры сборных | B3: =INDIRECT(ADDRESS(ROW(B3),COLUMN(B3),1,1,'Расчет усталости'!$V$2)) -> 0.5 | C3: =INDIRECT(ADDRESS(ROW(C3),COLUMN(C3),1,1,'Расчет усталости'!$V$2)) -> 0.15 | E3: Восстановление на тренировке | F3: =INDIRECT(ADDRESS(ROW(F3),COLUMN(F3),1,1,'Расчет усталости'!$V$2)) -> 0.1 | H3: Трен | I3: Тренировка с указанием коэффициента (сам коэффициент нужно менять только в Настройках!)
A4: Континентальный Суперкубок | B4: =INDIRECT(ADDRESS(ROW(B4),COLUMN(B4),1,1,'Расчет усталости'!$V$2)) -> 1 | C4: =INDIRECT(ADDRESS(ROW(C4),COLUMN(C4),1,1,'Расчет усталости'!$V$2)) -> 0.3 | E4: Вечеринка | F4: =INDIRECT(ADDRESS(ROW(F4),COLUMN(F4),1,1,'Расчет усталости'!$V$2)) -> 0.25 | H4: ИД | I4: Порядковый номер ИД
A5: Кубок Банка | B5: =INDIRECT(ADDRESS(ROW(B5),COLUMN(B5),1,1,'Расчет усталости'!$V$2)) -> 0.5 | C5: =INDIRECT(ADDRESS(ROW(C5),COLUMN(C5),1,1,'Расчет усталости'!$V$2)) -> 0.15 | H5: Турнир | I5: Аббревиатура турнира
A6: Клубный Кубок | B6: =INDIRECT(ADDRESS(ROW(B6),COLUMN(B6),1,1,'Расчет усталости'!$V$2)) -> 0.5 | C6: =INDIRECT(ADDRESS(ROW(C6),COLUMN(C6),1,1,'Расчет усталости'!$V$2)) -> 0.15 | H6: Гостевой | I6: Является ли матч гостевым
A7: Кубок страны | B7: =INDIRECT(ADDRESS(ROW(B7),COLUMN(B7),1,1,'Расчет усталости'!$V$2)) -> 1 | C7: =INDIRECT(ADDRESS(ROW(C7),COLUMN(C7),1,1,'Расчет усталости'!$V$2)) -> 0.3 | H7: Пропускает матч | I7: Если игрок пропускает матч, поставьте букву П
A8: Кубок Лиги | B8: =INDIRECT(ADDRESS(ROW(B8),COLUMN(B8),1,1,'Расчет усталости'!$V$2)) -> 1.25 | C8: =INDIRECT(ADDRESS(ROW(C8),COLUMN(C8),1,1,'Расчет усталости'!$V$2)) -> 0.38 | H8: Уст. ИД | I8: Усталость за 1 ИД без учета надбавки за гостевой матч
A9: Лига Чемпионов | B9: =INDIRECT(ADDRESS(ROW(B9),COLUMN(B9),1,1,'Расчет усталости'!$V$2)) -> 1.25 | C9: =INDIRECT(ADDRESS(ROW(C9),COLUMN(C9),1,1,'Расчет усталости'!$V$2)) -> 0.38 | H9: Уст. ИД + Г | I9: Усталость за 1 ИД с учетом надбавки за гостевой матч
A10: Межконтинентальный Кубок | B10: =INDIRECT(ADDRESS(ROW(B10),COLUMN(B10),1,1,'Расчет усталости'!$V$2)) -> 1 | C10: =INDIRECT(ADDRESS(ROW(C10),COLUMN(C10),1,1,'Расчет усталости'!$V$2)) -> 0.3 | H10: Сумм. Уст. ИД | I10: Суммарная усталость на текущий день без учета надбавки за гостевой матч
A11: Отборочные Континентов | B11: =INDIRECT(ADDRESS(ROW(B11),COLUMN(B11),1,1,'Расчет усталости'!$V$2)) -> 0.75 | C11: =INDIRECT(ADDRESS(ROW(C11),COLUMN(C11),1,1,'Расчет усталости'!$V$2)) -> 0.23 | H11: Сумм. Уст. ИД + Г | I11: Суммарная усталость на текущий день с учетом надбавки за гостевой матч
A12: Отборочные ЧМ | B12: =INDIRECT(ADDRESS(ROW(B12),COLUMN(B12),1,1,'Расчет усталости'!$V$2)) -> 0.75 | C12: =INDIRECT(ADDRESS(ROW(C12),COLUMN(C12),1,1,'Расчет усталости'!$V$2)) -> 0.23
A13: Суперкубок | B13: =INDIRECT(ADDRESS(ROW(B13),COLUMN(B13),1,1,'Расчет усталости'!$V$2)) -> 0.75 | C13: =INDIRECT(ADDRESS(ROW(C13),COLUMN(C13),1,1,'Расчет усталости'!$V$2)) -> 0.23 | H13: Аббр. | I13: Аббревиатура турнира. Использовать можно только ее и только в таком виде!!!
A14: Товарищеские матчи | B14: =INDIRECT(ADDRESS(ROW(B14),COLUMN(B14),1,1,'Расчет усталости'!$V$2)) -> 0.5 | C14: =INDIRECT(ADDRESS(ROW(C14),COLUMN(C14),1,1,'Расчет усталости'!$V$2)) -> 0.15 | H14: Наимен. турнира | I14: Наименование турнира
A15: Товарищеские матчи сборных | B15: =INDIRECT(ADDRESS(ROW(B15),COLUMN(B15),1,1,'Расчет усталости'!$V$2)) -> 0.5 | C15: =INDIRECT(ADDRESS(ROW(C15),COLUMN(C15),1,1,'Расчет усталости'!$V$2)) -> 0.15 | H15: Кол-во | I15: Вычисляется автоматически после добавления аббревиатур в столбец Турнир из главной таблицы
A16: Чемпионат Континента | B16: =INDIRECT(ADDRESS(ROW(B16),COLUMN(B16),1,1,'Расчет усталости'!$V$2)) -> 1.25 | C16: =INDIRECT(ADDRESS(ROW(C16),COLUMN(C16),1,1,'Расчет усталости'!$V$2)) -> 0.38 | H16: Свои значения | I16: Здесь вы можете заполнить свои значение количества тех или иных матчей напротив каждого турнира
A17: Чемпионат Мира | B17: =INDIRECT(ADDRESS(ROW(B17),COLUMN(B17),1,1,'Расчет усталости'!$V$2)) -> 1.25 | C17: =INDIRECT(ADDRESS(ROW(C17),COLUMN(C17),1,1,'Расчет усталости'!$V$2)) -> 0.38
A18: Чемпионат страны | B18: =INDIRECT(ADDRESS(ROW(B18),COLUMN(B18),1,1,'Расчет усталости'!$V$2)) -> 1 | C18: =INDIRECT(ADDRESS(ROW(C18),COLUMN(C18),1,1,'Расчет усталости'!$V$2)) -> 0.3

Sheet Расчет усталости
A1: День нед. | B1: Неделя | C1: Трен | D1: ИД | E1: Турнир | F1: Тур Чемпа | G1: Гостевой | H1: Пропускает матч | I1: Уст. ИД | J1: Уст. ИД + Г | K1: Сумм. Уст. ИД | L1: Сумм. Уст. ИД + Г | M1: Вечеринка | O1: Аббр. | P1: Наимен. Турнира | Q1: Кол-во всего | R1: Кол-во к n-му туру | S1: Свои значения кол-ва | T1: Усталость | V1: Выбор варианта:
A2: Пн | B2: 1 | C2: 0 | F2: =COUNTIF($E$2:E2,"ЧЕМ") -> 0 | I2: =ROUND(IF(AND(M2=$O$22,H2=$O$21),0-Настройки!$F$4,IF('Расчет усталости'!M2='Расчет усталости'!$O$22,IF(E2=$O$2,Настройки!$C$2,IF(E2=$O$3,Настройки!$C$3,IF(E2=$O$4,Настройки!$C$4,IF(E2=$O$5,Настройки!$C$5,IF(E2=$O$6,Настройки!$C$6,IF(E2=$O$7,Настройки!$C$7,IF(E2=$O$8,Настройки!$C$8,IF(E2=$O$9,Настройки!$C$9,IF(E2=$O$10,Настройки!$C$10,IF(E2=$O$11,Настройки!$C$11,IF(E2=$O$12,Настройки!$C$12,IF(E2=$O$13,Настройки!$C$13,IF(E2=$O$14,Настройки!$C$14,IF(E2=$O$15,Настройки!$C$15,IF(E2=$O$16,Настройки!$C$16,IF(E2=$O$17,Настройки!$C$17,IF(E2=$O$18,Настройки!$C$18,0)))))))))))))))))-Настройки!$F$4,IF('Расчет усталости'!H2='Расчет усталости'!$O$21,0,IF(E2=$O$2,Настройки!$C$2,IF(E2=$O$3,Настройки!$C$3,IF(E2=$O$4,Настройки!$C$4,IF(E2=$O$5,Настройки!$C$5,IF(E2=$O$6,Настройки!$C$6,IF(E2=$O$7,Настройки!$C$7,IF(E2=$O$8,Настройки!$C$8,IF(E2=$O$9,Настройки!$C$9,IF(E2=$O$10,Настройки!$C$10,IF(E2=$O$11,Настройки!$C$11,IF(E2=$O$12,Настройки!$C$12,IF(E2=$O$13,Настройки!$C$13,IF(E2=$O$14,Настройки!$C$14,IF(E2=$O$15,Настройки!$C$15,IF(E2=$O$16,Настройки!$C$16,IF(E2=$O$17,Настройки!$C$17,IF(E2=$O$18,Настройки!$C$18,0)))))))))))))))))))),2) -> 0 | J2: =ROUND(IF(AND(M2=$O$22,H2=$O$21),0-Настройки!$F$4,IF('Расчет усталости'!M2='Расчет усталости'!$O$22,ROUND(IF(G2=$O$20,IF(E2=$O$2,Настройки!$C$2,IF(E2=$O$3,Настройки!$C$3,IF(E2=$O$4,Настройки!$C$4,IF(E2=$O$5,Настройки!$C$5,IF(E2=$O$6,Настройки!$C$6,IF(E2=$O$7,Настройки!$C$7,IF(E2=$O$8,Настройки!$C$8,IF(E2=$O$9,Настройки!$C$9,IF(E2=$O$10,Настройки!$C$10,IF(E2=$O$11,Настройки!$C$11,IF(E2=$O$12,Настройки!$C$12,IF(E2=$O$13,Настройки!$C$13,IF(E2=$O$14,Настройки!$C$14,IF(E2=$O$15,Настройки!$C$15,IF(E2=$O$16,Настройки!$C$16,IF(E2=$O$17,Настройки!$C$17,IF(E2=$O$18,Настройки!$C$18,0)))))))))))))))))*Настройки!$F$2+IF(E2=$O$2,Настройки!$C$2,IF(E2=$O$3,Настройки!$C$3,IF(E2=$O$4,Настройки!$C$4,IF(E2=$O$5,Настройки!$C$5,IF(E2=$O$6,Настройки!$C$6,IF(E2=$O$7,Настройки!$C$7,IF(E2=$O$8,Настройки!$C$8,IF(E2=$O$9,Настройки!$C$9,IF(E2=$O$10,Настройки!$C$10,IF(E2=$O$11,Настройки!$C$11,IF(E2=$O$12,Настройки!$C$12,IF(E2=$O$13,Настройки!$C$13,IF(E2=$O$14,Настройки!$C$14,IF(E2=$O$15,Настройки!$C$15,IF(E2=$O$16,Настройки!$C$16,IF(E2=$O$17,Настройки!$C$17,IF(E2=$O$18,Настройки!$C$18,0))))))))))))))))),IF(E2=$O$2,Настройки!$C$2,IF(E2=$O$3,Настройки!$C$3,IF(E2=$O$4,Настройки!$C$4,IF(E2=$O$5,Настройки!$C$5,IF(E2=$O$6,Настройки!$C$6,IF(E2=$O$7,Настройки!$C$7,IF(E2=$O$8,Настройки!$C$8,IF(E2=$O$9,Настройки!$C$9,IF(E2=$O$10,Настройки!$C$10,IF(E2=$O$11,Настройки!$C$11,IF(E2=$O$12,Настройки!$C$12,IF(E2=$O$13,Настройки!$C$13,IF(E2=$O$14,Настройки!$C$14,IF(E2=$O$15,Настройки!$C$15,IF(E2=$O$16,Настройки!$C$16,IF(E2=$O$17,Настройки!$C$17,IF(E2=$O$18,Настройки!$C$18,0)))))))))))))))))),2)-Настройки!$F$4,IF('Расчет усталости'!H2='Расчет усталости'!$O$21,0,IF(G2=$O$20,IF(E2=$O$2,Настройки!$C$2,IF(E2=$O$3,Настройки!$C$3,IF(E2=$O$4,Настройки!$C$4,IF(E2=$O$5,Настройки!$C$5,IF(E2=$O$6,Настройки!$C$6,IF(E2=$O$7,Настройки!$C$7,IF(E2=$O$8,Настройки!$C$8,IF(E2=$O$9,Настройки!$C$9,IF(E2=$O$10,Настройки!$C$10,IF(E2=$O$11,Настройки!$C$11,IF(E2=$O$12,Настройки!$C$12,IF(E2=$O$13,Настройки!$C$13,IF(E2=$O$14,Настройки!$C$14,IF(E2=$O$15,Настройки!$C$15,IF(E2=$O$16,Настройки!$C$16,IF(E2=$O$17,Настройки!$C$17,IF(E2=$O$18,Настройки!$C$18,0)))))))))))))))))*Настройки!$F$2+IF(E2=$O$2,Настройки!$C$2,IF(E2=$O$3,Настройки!$C$3,IF(E2=$O$4,Настройки!$C$4,IF(E2=$O$5,Настройки!$C$5,IF(E2=$O$6,Настройки!$C$6,IF(E2=$O$7,Настройки!$C$7,IF(E2=$O$8,Настройки!$C$8,IF(E2=$O$9,Настройки!$C$9,IF(E2=$O$10,Настройки!$C$10,IF(E2=$O$11,Настройки!$C$11,IF(E2=$O$12,Настройки!$C$12,IF(E2=$O$13,Настройки!$C$13,IF(E2=$O$14,Настройки!$C$14,IF(E2=$O$15,Настройки!$C$15,IF(E2=$O$16,Настройки!$C$16,IF(E2=$O$17,Настройки!$C$17,IF(E2=$O$18,Настройки!$C$18,0))))))))))))))))),IF(E2=$O$2,Настройки!$C$2,IF(E2=$O$3,Настройки!$C$3,IF(E2=$O$4,Настройки!$C$4,IF(E2=$O$5,Настройки!$C$5,IF(E2=$O$6,Настройки!$C$6,IF(E2=$O$7,Настройки!$C$7,IF(E2=$O$8,Настройки!$C$8,IF(E2=$O$9,Настройки!$C$9,IF(E2=$O$10,Настройки!$C$10,IF(E2=$O$11,Настройки!$C$11,IF(E2=$O$12,Настройки!$C$12,IF(E2=$O$13,Настройки!$C$13,IF(E2=$O$14,Настройки!$C$14,IF(E2=$O$15,Настройки!$C$15,IF(E2=$O$16,Настройки!$C$16,IF(E2=$O$17,Настройки!$C$17,IF(E2=$O$18,Настройки!$C$18,0))))))))))))))))))))),2) -> 0 | K2: =IF(SUM($I$2:I2)-SUM($C$2:C2)<0,0,ROUND(SUM($I$2:I2)-SUM($C$2:C2),2)) -> 0 | L2: =IF(SUM($J$2:J2)-SUM($C$2:C2)<0,0,ROUND(SUM($J$2:J2)-SUM($C$2:C2),2)) -> 0 | O2: КТ | P2: Коммерческие турниры | Q2: =COUNTIF($E$2:$E$127,O2) -> 27 | R2: =COUNTIF(INDIRECT(CONCATENATE("E2:E",MATCH($T$25,$F$1:$F$127,0)),1),O2) -> 23 | S2: 0 | T2: =ROUND(Настройки!C2*'Расчет усталости'!S2*(1+Настройки!$F$2/2),2) -> 0 | V2: Текущий вариант
A3: Вт | B3: 1 | C3: 0 | D3: 1 | E3: Т | F3: =COUNTIF($E$2:E3,"ЧЕМ") -> 0 | I3: =ROUND(IF(AND(M3=$O$22,H3=$O$21),0-Настройки!$F$4,IF('Расчет усталости'!M3='Расчет усталости'!$O$22,IF(E3=$O$2,Настройки!$C$2,IF(E3=$O$3,Настройки!$C$3,IF(E3=$O$4,Настройки!$C$4,IF(E3=$O$5,Настройки!$C$5,IF(E3=$O$6,Настройки!$C$6,IF(E3=$O$7,Настройки!$C$7,IF(E3=$O$8,Настройки!$C$8,IF(E3=$O$9,Настройки!$C$9,IF(E3=$O$10,Настройки!$C$10,IF(E3=$O$11,Настройки!$C$11,IF(E3=$O$12,Настройки!$C$12,IF(E3=$O$13,Настройки!$C$13,IF(E3=$O$14,Настройки!$C$14,IF(E3=$O$15,Настройки!$C$15,IF(E3=$O$16,Настройки!$C$16,IF(E3=$O$17,Настройки!$C$17,IF(E3=$O$18,Настройки!$C$18,0)))))))))))))))))-Настройки!$F$4,IF('Расчет усталости'!H3='Расчет усталости'!$O$21,0,IF(E3=$O$2,Настройки!$C$2,IF(E3=$O$3,Настройки!$C$3,IF(E3=$O$4,Настройки!$C$4,IF(E3=$O$5,Настройки!$C$5,IF(E3=$O$6,Настройки!$C$6,IF(E3=$O$7,Настройки!$C$7,IF(E3=$O$8,Настройки!$C$8,IF(E3=$O$9,Настройки!$C$9,IF(E3=$O$10,Настройки!$C$10,IF(E3=$O$11,Настройки!$C$11,IF(E3=$O$12,Настройки!$C$12,IF(E3=$O$13,Настройки!$C$13,IF(E3=$O$14,Настройки!$C$14,IF(E3=$O$15,Настройки!$C$15,IF(E3=$O$16,Настройки!$C$16,IF(E3=$O$17,Настройки!$C$17,IF(E3=$O$18,Настройки!$C$18,0)))))))))))))))))))),2) -> 0.15 | J3: =ROUND(IF(AND(M3=$O$22,H3=$O$21),0-Настройки!$F$4,IF('Расчет усталости'!M3='Расчет усталости'!$O$22,ROUND(IF(G3=$O$20,IF(E3=$O$2,Настройки!$C$2,IF(E3=$O$3,Настройки!$C$3,IF(E3=$O$4,Настройки!$C$4,IF(E3=$O$5,Настройки!$C$5,IF(E3=$O$6,Настройки!$C$6,IF(E3=$O$7,Настройки!$C$7,IF(E3=$O$8,Настройки!$C$8,IF(E3=$O$9,Настройки!$C$9,IF(E3=$O$10,Настройки!$C$10,IF(E3=$O$11,Настройки!$C$11,IF(E3=$O$12,Настройки!$C$12,IF(E3=$O$13,Настройки!$C$13,IF(E3=$O$14,Настройки!$C$14,IF(E3=$O$15,Настройки!$C$15,IF(E3=$O$16,Настройки!$C$16,IF(E3=$O$17,Настройки!$C$17,IF(E3=$O$18,Настройки!$C$18,0)))))))))))))))))*Настройки!$F$2+IF(E3=$O$2,Настройки!$C$2,IF(E3=$O$3,Настройки!$C$3,IF(E3=$O$4,Настройки!$C$4,IF(E3=$O$5,Настройки!$C$5,IF(E3=$O$6,Настройки!$C$6,IF(E3=$O$7,Настройки!$C$7,IF(E3=$O$8,Настройки!$C$8,IF(E3=$O$9,Настройки!$C$9,IF(E3=$O$10,Настройки!$C$10,IF(E3=$O$11,Настройки!$C$11,IF(E3=$O$12,Настройки!$C$12,IF(E3=$O$13,Настройки!$C$13,IF(E3=$O$14,Настройки!$C$14,IF(E3=$O$15,Настройки!$C$15,IF(E3=$O$16,Настройки!$C$16,IF(E3=$O$17,Настройки!$C$17,IF(E3=$O$18,Настройки!$C$18,0))))))))))))))))),IF(E3=$O$2,Настройки!$C$2,IF(E3=$O$3,Настройки!$C$3,IF(E3=$O$4,Настройки!$C$4,IF(E3=$O$5,Настройки!$C$5,IF(E3=$O$6,Настройки!$C$6,IF(E3=$O$7,Настройки!$C$7,IF(E3=$O$8,Настройки!$C$8,IF(E3=$O$9,Настройки!$C$9,IF(E3=$O$10,Настройки!$C$10,IF(E3=$O$11,Настройки!$C$11,IF(E3=$O$12,Настройки!$C$12,IF(E3=$O$13,Настройки!$C$13,IF(E3=$O$14,Настройки!$C$14,IF(E3=$O$15,Настройки!$C$15,IF(E3=$O$16,Настройки!$C$16,IF(E3=$O$17,Настройки!$C$17,IF(E3=$O$18,Настройки!$C$18,0)))))))))))))))))),2)-Настройки!$F$4,IF('Расчет усталости'!H3='Расчет усталости'!$O$21,0,IF(G3=$O$20,IF(E3=$O$2,Настройки!$C$2,IF(E3=$O$3,Настройки!$C$3,IF(E3=$O$4,Настройки!$C$4,IF(E3=$O$5,Настройки!$C$5,IF(E3=$O$6,Настройки!$C$6,IF(E3=$O$7,Настройки!$C$7,IF(E3=$O$8,Настройки!$C$8,IF(E3=$O$9,Настройки!$C$9,IF(E3=$O$10,Настройки!$C$10,IF(E3=$O$11,Настройки!$C$11,IF(E3=$O$12,Настройки!$C$12,IF(E3=$O$13,Настройки!$C$13,IF(E3=$O$14,Настройки!$C$14,IF(E3=$O$15,Настройки!$C$15,IF(E3=$O$16,Настройки!$C$16,IF(E3=$O$17,Настройки!$C$17,IF(E3=$O$18,Настройки!$C$18,0)))))))))))))))))*Настройки!$F$2+IF(E3=$O$2,Настройки!$C$2,IF(E3=$O$3,Настройки!$C$3,IF(E3=$O$4,Настройки!$C$4,IF(E3=$O$5,Настройки!$C$5,IF(E3=$O$6,Настройки!$C$6,IF(E3=$O$7,Настройки!$C$7,IF(E3=$O$8,Настройки!$C$8,IF(E3=$O$9,Настройки!$C$9,IF(E3=$O$10,Настройки!$C$10,IF(E3=$O$11,Настройки!$C$11,IF(E3=$O$12,Настройки!$C$12,IF(E3=$O$13,Настройки!$C$13,IF(E3=$O$14,Настройки!$C$14,IF(E3=$O$15,Настройки!$C$15,IF(E3=$O$16,Настройки!$C$16,IF(E3=$O$17,Настройки!$C$17,IF(E3=$O$18,Настройки!$C$18,0))))))))))))))))),IF(E3=$O$2,Настройки!$C$2,IF(E3=$O$3,Настройки!$C$3,IF(E3=$O$4,Настройки!$C$4,IF(E3=$O$5,Настройки!$C$5,IF(E3=$O$6,Настройки!$C$6,IF(E3=$O$7,Настройки!$C$7,IF(E3=$O$8,Настройки!$C$8,IF(E3=$O$9,Настройки!$C$9,IF(E3=$O$10,Настройки!$C$10,IF(E3=$O$11,Настройки!$C$11,IF(E3=$O$12,Настройки!$C$12,IF(E3=$O$13,Настройки!$C$13,IF(E3=$O$14,Настройки!$C$14,IF(E3=$O$15,Настройки!$C$15,IF(E3=$O$16,Настройки!$C$16,IF(E3=$O$17,Настройки!$C$17,IF(E3=$O$18,Настройки!$C$18,0))))))))))))))))))))),2) -> 0.15 | K3: =IF(SUM($I$2:I3)-SUM($C$2:C3)<0,0,ROUND(SUM($I$2:I3)-SUM($C$2:C3),2)) -> 0.15 | L3: =IF(SUM($J$2:J3)-SUM($C$2:C3)<0,0,ROUND(SUM($J$2:J3)-SUM($C$2:C3),2)) -> 0.15 | O3: КТС | P3: Коммерческие турниры сборных | Q3: =COUNTIF($E$2:$E$127,O3) -> 0 | R3: =COUNTIF(INDIRECT(CONCATENATE("E2:E",MATCH($T$25,$F$1:$F$127,0)),1),O3) -> 0 | T3: =ROUND(Настройки!C3*'Расчет усталости'!S3*(1+Настройки!$F$2/2),2) -> 0
A4: Ср | B4: 1 | C4: =Настройки!$F$3 -> 0.1 | D4: 2 | E4: ЧЕМ | F4: =COUNTIF($E$2:E4,"ЧЕМ") -> 1 | G4: Г | I4: =ROUND(IF(AND(M4=$O$22,H4=$O$21),0-Настройки!$F$4,IF('Расчет усталости'!M4='Расчет усталости'!$O$22,IF(E4=$O$2,Настройки!$C$2,IF(E4=$O$3,Настройки!$C$3,IF(E4=$O$4,Настройки!$C$4,IF(E4=$O$5,Настройки!$C$5,IF(E4=$O$6,Настройки!$C$6,IF(E4=$O$7,Настройки!$C$7,IF(E4=$O$8,Настройки!$C$8,IF(E4=$O$9,Настройки!$C$9,IF(E4=$O$10,Настройки!$C$10,IF(E4=$O$11,Настройки!$C$11,IF(E4=$O$12,Настройки!$C$12,IF(E4=$O$13,Настройки!$C$13,IF(E4=$O$14,Настройки!$C$14,IF(E4=$O$15,Настройки!$C$15,IF(E4=$O$16,Настройки!$C$16,IF(E4=$O$17,Настройки!$C$17,IF(E4=$O$18,Настройки!$C$18,0)))))))))))))))))-Настройки!$F$4,IF('Расчет усталости'!H4='Расчет усталости'!$O$21,0,IF(E4=$O$2,Настройки!$C$2,IF(E4=$O$3,Настройки!$C$3,IF(E4=$O$4,Настройки!$C$4,IF(E4=$O$5,Настройки!$C$5,IF(E4=$O$6,Настройки!$C$6,IF(E4=$O$7,Настройки!$C$7,IF(E4=$O$8,Настройки!$C$8,IF(E4=$O$9,Настройки!$C$9,IF(E4=$O$10,Настройки!$C$10,IF(E4=$O$11,Настройки!$C$11,IF(E4=$O$12,Настройки!$C$12,IF(E4=$O$13,Настройки!$C$13,IF(E4=$O$14,Настройки!$C$14,IF(E4=$O$15,Настройки!$C$15,IF(E4=$O$16,Настройки!$C$16,IF(E4=$O$17,Настройки!$C$17,IF(E4=$O$18,Настройки!$C$18,0)))))))))))))))))))),2) -> 0.3 | J4: =ROUND(IF(AND(M4=$O$22,H4=$O$21),0-Настройки!$F$4,IF('Расчет усталости'!M4='Расчет усталости'!$O$22,ROUND(IF(G4=$O$20,IF(E4=$O$2,Настройки!$C$2,IF(E4=$O$3,Настройки!$C$3,IF(E4=$O$4,Настройки!$C$4,IF(E4=$O$5,Настройки!$C$5,IF(E4=$O$6,Настройки!$C$6,IF(E4=$O$7,Настройки!$C$7,IF(E4=$O$8,Настройки!$C$8,IF(E4=$O$9,Настройки!$C$9,IF(E4=$O$10,Настройки!$C$10,IF(E4=$O$11,Настройки!$C$11,IF(E4=$O$12,Настройки!$C$12,IF(E4=$O$13,Настройки!$C$13,IF(E4=$O$14,Настройки!$C$14,IF(E4=$O$15,Настройки!$C$15,IF(E4=$O$16,Настройки!$C$16,IF(E4=$O$17,Настройки!$C$17,IF(E4=$O$18,Настройки!$C$18,0)))))))))))))))))*Настройки!$F$2+IF(E4=$O$2,Настройки!$C$2,IF(E4=$O$3,Настройки!$C$3,IF(E4=$O$4,Настройки!$C$4,IF(E4=$O$5,Настройки!$C$5,IF(E4=$O$6,Настройки!$C$6,IF(E4=$O$7,Настройки!$C$7,IF(E4=$O$8,Настройки!$C$8,IF(E4=$O$9,Настройки!$C$9,IF(E4=$O$10,Настройки!$C$10,IF(E4=$O$11,Настройки!$C$11,IF(E4=$O$12,Настройки!$C$12,IF(E4=$O$13,Настройки!$C$13,IF(E4=$O$14,Настройки!$C$14,IF(E4=$O$15,Настройки!$C$15,IF(E4=$O$16,Настройки!$C$16,IF(E4=$O$17,Настройки!$C$17,IF(E4=$O$18,Настройки!$C$18,0))))))))))))))))),IF(E4=$O$2,Настройки!$C$2,IF(E4=$O$3,Настройки!$C$3,IF(E4=$O$4,Настройки!$C$4,IF(E4=$O$5,Настройки!$C$5,IF(E4=$O$6,Настройки!$C$6,IF(E4=$O$7,Настройки!$C$7,IF(E4=$O$8,Настройки!$C$8,IF(E4=$O$9,Настройки!$C$9,IF(E4=$O$10,Настройки!$C$10,IF(E4=$O$11,Настройки!$C$11,IF(E4=$O$12,Настройки!$C$12,IF(E4=$O$13,Настройки!$C$13,IF(E4=$O$14,Настройки!$C$14,IF(E4=$O$15,Настройки!$C$15,IF(E4=$O$16,Настройки!$C$16,IF(E4=$O$17,Настройки!$C$17,IF(E4=$O$18,Настройки!$C$18,0)))))))))))))))))),2)-Настройки!$F$4,IF('Расчет усталости'!H4='Расчет усталости'!$O$21,0,IF(G4=$O$20,IF(E4=$O$2,Настройки!$C$2,IF(E4=$O$3,Настройки!$C$3,IF(E4=$O$4,Настройки!$C$4,IF(E4=$O$5,Настройки!$C$5,IF(E4=$O$6,Настройки!$C$6,IF(E4=$O$7,Настройки!$C$7,IF(E4=$O$8,Настройки!$C$8,IF(E4=$O$9,Настройки!$C$9,IF(E4=$O$10,Настройки!$C$10,IF(E4=$O$11,Настройки!$C$11,IF(E4=$O$12,Настройки!$C$12,IF(E4=$O$13,Настройки!$C$13,IF(E4=$O$14,Настройки!$C$14,IF(E4=$O$15,Настройки!$C$15,IF(E4=$O$16,Настройки!$C$16,IF(E4=$O$17,Настройки!$C$17,IF(E4=$O$18,Настройки!$C$18,0)))))))))))))))))*Настройки!$F$2+IF(E4=$O$2,Настройки!$C$2,IF(E4=$O$3,Настройки!$C$3,IF(E4=$O$4,Настройки!$C$4,IF(E4=$O$5,Настройки!$C$5,IF(E4=$O$6,Настройки!$C$6,IF(E4=$O$7,Настройки!$C$7,IF(E4=$O$8,Настройки!$C$8,IF(E4=$O$9,Настройки!$C$9,IF(E4=$O$10,Настройки!$C$10,IF(E4=$O$11,Настройки!$C$11,IF(E4=$O$12,Настройки!$C$12,IF(E4=$O$13,Настройки!$C$13,IF(E4=$O$14,Настройки!$C$14,IF(E4=$O$15,Настройки!$C$15,IF(E4=$O$16,Настройки!$C$16,IF(E4=$O$17,Настройки!$C$17,IF(E4=$O$18,Настройки!$C$18,0))))))))))))))))),IF(E4=$O$2,Настройки!$C$2,IF(E4=$O$3,Настройки!$C$3,IF(E4=$O$4,Настройки!$C$4,IF(E4=$O$5,Настройки!$C$5,IF(E4=$O$6,Настройки!$C$6,IF(E4=$O$7,Настройки!$C$7,IF(E4=$O$8,Настройки!$C$8,IF(E4=$O$9,Настройки!$C$9,IF(E4=$O$10,Настройки!$C$10,IF(E4=$O$11,Настройки!$C$11,IF(E4=$O$12,Настройки!$C$12,IF(E4=$O$13,Настройки!$C$13,IF(E4=$O$14,Настройки!$C$14,IF(E4=$O$15,Настройки!$C$15,IF(E4=$O$16,Настройки!$C$16,IF(E4=$O$17,Настройки!$C$17,IF(E4=$O$18,Настройки!$C$18,0))))))))))))))))))))),2) -> 0.33 | K4: =IF(SUM($I$2:I4)-SUM($C$2:C4)<0,0,ROUND(SUM($I$2:I4)-SUM($C$2:C4),2)) -> 0.35 | L4: =IF(SUM($J$2:J4)-SUM($C$2:C4)<0,0,ROUND(SUM($J$2:J4)-SUM($C$2:C4),2)) -> 0.38 | O4: КСК | P4: Континентальный Суперкубок | Q4: 0 | R4: 0 | T4: =ROUND(Настройки!C4*'Расчет усталости'!S4*(1+Настройки!$F$2/2),2) -> 0
A5: Чт | B5: 1 | C5: =Настройки!$F$3 -> 0.1 | D5: 3 | E5: Т | F5: =COUNTIF($E$2:E5,"ЧЕМ") -> 1 | I5: =ROUND(IF(AND(M5=$O$22,H5=$O$21),0-Настройки!$F$4,IF('Расчет усталости'!M5='Расчет усталости'!$O$22,IF(E5=$O$2,Настройки!$C$2,IF(E5=$O$3,Настройки!$C$3,IF(E5=$O$4,Настройки!$C$4,IF(E5=$O$5,Настройки!$C$5,IF(E5=$O$6,Настройки!$C$6,IF(E5=$O$7,Настройки!$C$7,IF(E5=$O$8,Настройки!$C$8,IF(E5=$O$9,Настройки!$C$9,IF(E5=$O$10,Настройки!$C$10,IF(E5=$O$11,Настройки!$C$11,IF(E5=$O$12,Настройки!$C$12,IF(E5=$O$13,Настройки!$C$13,IF(E5=$O$14,Настройки!$C$14,IF(E5=$O$15,Настройки!$C$15,IF(E5=$O$16,Настройки!$C$16,IF(E5=$O$17,Настройки!$C$17,IF(E5=$O$18,Настройки!$C$18,0)))))))))))))))))-Настройки!$F$4,IF('Расчет усталости'!H5='Расчет усталости'!$O$21,0,IF(E5=$O$2,Настройки!$C$2,IF(E5=$O$3,Настройки!$C$3,IF(E5=$O$4,Настройки!$C$4,IF(E5=$O$5,Настройки!$C$5,IF(E5=$O$6,Настройки!$C$6,IF(E5=$O$7,Настройки!$C$7,IF(E5=$O$8,Настройки!$C$8,IF(E5=$O$9,Настройки!$C$9,IF(E5=$O$10,Настройки!$C$10,IF(E5=$O$11,Настройки!$C$11,IF(E5=$O$12,Настройки!$C$12,IF(E5=$O$13,Настройки!$C$13,IF(E5=$O$14,Настройки!$C$14,IF(E5=$O$15,Настройки!$C$15,IF(E5=$O$16,Настройки!$C$16,IF(E5=$O$17,Настройки!$C$17,IF(E5=$O$18,Настройки!$C$18,0)))))))))))))))))))),2) -> 0.15 | J5: =ROUND(IF(AND(M5=$O$22,H5=$O$21),0-Настройки!$F$4,IF('Расчет усталости'!M5='Расчет усталости'!$O$22,ROUND(IF(G5=$O$20,IF(E5=$O$2,Настройки!$C$2,IF(E5=$O$3,Настройки!$C$3,IF(E5=$O$4,Настройки!$C$4,IF(E5=$O$5,Настройки!$C$5,IF(E5=$O$6,Настройки!$C$6,IF(E5=$O$7,Настройки!$C$7,IF(E5=$O$8,Настройки!$C$8,IF(E5=$O$9,Настройки!$C$9,IF(E5=$O$10,Настройки!$C$10,IF(E5=$O$11,Настройки!$C$11,IF(E5=$O$12,Настройки!$C$12,IF(E5=$O$13,Настройки!$C$13,IF(E5=$O$14,Настройки!$C$14,IF(E5=$O$15,Настройки!$C$15,IF(E5=$O$16,Настройки!$C$16,IF(E5=$O$17,Настройки!$C$17,IF(E5=$O$18,Настройки!$C$18,0)))))))))))))))))*Настройки!$F$2+IF(E5=$O$2,Настройки!$C$2,IF(E5=$O$3,Настройки!$C$3,IF(E5=$O$4,Настройки!$C$4,IF(E5=$O$5,Настройки!$C$5,IF(E5=$O$6,Настройки!$C$6,IF(E5=$O$7,Настройки!$C$7,IF(E5=$O$8,Настройки!$C$8,IF(E5=$O$9,Настройки!$C$9,IF(E5=$O$10,Настройки!$C$10,IF(E5=$O$11,Настройки!$C$11,IF(E5=$O$12,Настройки!$C$12,IF(E5=$O$13,Настройки!$C$13,IF(E5=$O$14,Настройки!$C$14,IF(E5=$O$15,Настройки!$C$15,IF(E5=$O$16,Настройки!$C$16,IF(E5=$O$17,Настройки!$C$17,IF(E5=$O$18,Настройки!$C$18,0))))))))))))))))),IF(E5=$O$2,Настройки!$C$2,IF(E5=$O$3,Настройки!$C$3,IF(E5=$O$4,Настройки!$C$4,IF(E5=$O$5,Настройки!$C$5,IF(E5=$O$6,Настройки!$C$6,IF(E5=$O$7,Настройки!$C$7,IF(E5=$O$8,Настройки!$C$8,IF(E5=$O$9,Настройки!$C$9,IF(E5=$O$10,Настройки!$C$10,IF(E5=$O$11,Настройки!$C$11,IF(E5=$O$12,Настройки!$C$12,IF(E5=$O$13,Настройки!$C$13,IF(E5=$O$14,Настройки!$C$14,IF(E5=$O$15,Настройки!$C$15,IF(E5=$O$16,Настройки!$C$16,IF(E5=$O$17,Настройки!$C$17,IF(E5=$O$18,Настройки!$C$18,0)))))))))))))))))),2)-Настройки!$F$4,IF('Расчет усталости'!H5='Расчет усталости'!$O$21,0,IF(G5=$O$20,IF(E5=$O$2,Настройки!$C$2,IF(E5=$O$3,Настройки!$C$3,IF(E5=$O$4,Настройки!$C$4,IF(E5=$O$5,Настройки!$C$5,IF(E5=$O$6,Настройки!$C$6,IF(E5=$O$7,Настройки!$C$7,IF(E5=$O$8,Настройки!$C$8,IF(E5=$O$9,Настройки!$C$9,IF(E5=$O$10,Настройки!$C$10,IF(E5=$O$11,Настройки!$C$11,IF(E5=$O$12,Настройки!$C$12,IF(E5=$O$13,Настройки!$C$13,IF(E5=$O$14,Настройки!$C$14,IF(E5=$O$15,Настройки!$C$15,IF(E5=$O$16,Настройки!$C$16,IF(E5=$O$17,Настройки!$C$17,IF(E5=$O$18,Настройки!$C$18,0)))))))))))))))))*Настройки!$F$2+IF(E5=$O$2,Настройки!$C$2,IF(E5=$O$3,Настройки!$C$3,IF(E5=$O$4,Настройки!$C$4,IF(E5=$O$5,Настройки!$C$5,IF(E5=$O$6,Настройки!$C$6,IF(E5=$O$7,Настройки!$C$7,IF(E5=$O$8,Настройки!$C$8,IF(E5=$O$9,Настройки!$C$9,IF(E5=$O$10,Настройки!$C$10,IF(E5=$O$11,Настройки!$C$11,IF(E5=$O$12,Настройки!$C$12,IF(E5=$O$13,Настройки!$C$13,IF(E5=$O$14,Настройки!$C$14,IF(E5=$O$15,Настройки!$C$15,IF(E5=$O$16,Настройки!$C$16,IF(E5=$O$17,Настройки!$C$17,IF(E5=$O$18,Настройки!$C$18,0))))))))))))))))),IF(E5=$O$2,Настройки!$C$2,IF(E5=$O$3,Настройки!$C$3,IF(E5=$O$4,Настройки!$C$4,IF(E5=$O$5,Настройки!$C$5,IF(E5=$O$6,Настройки!$C$6,IF(E5=$O$7,Настройки!$C$7,IF(E5=$O$8,Настройки!$C$8,IF(E5=$O$9,Настройки!$C$9,IF(E5=$O$10,Настройки!$C$10,IF(E5=$O$11,Настройки!$C$11,IF(E5=$O$12,Настройки!$C$12,IF(E5=$O$13,Настройки!$C$13,IF(E5=$O$14,Настройки!$C$14,IF(E5=$O$15,Настройки!$C$15,IF(E5=$O$16,Настройки!$C$16,IF(E5=$O$17,Настройки!$C$17,IF(E5=$O$18,Настройки!$C$18,0))))))))))))))))))))),2) -> 0.15 | K5: =IF(SUM($I$2:I5)-SUM($C$2:C5)<0,0,ROUND(SUM($I$2:I5)-SUM($C$2:C5),2)) -> 0.4 | L5: =IF(SUM($J$2:J5)-SUM($C$2:C5)<0,0,ROUND(SUM($J$2:J5)-SUM($C$2:C5),2)) -> 0.43 | O5: КБ | P5: Кубок Банка | Q5: 0 | R5: 0 | T5: =ROUND(Настройки!C5*'Расчет усталости'!S5*(1+Настройки!$F$2/2),2) -> 0
A6: Пт | B6: 1 | C6: =Настройки!$F$3 -> 0.1 | F6: =COUNTIF($E$2:E6,"ЧЕМ") -> 1 | I6: =ROUND(IF(AND(M6=$O$22,H6=$O$21),0-Настройки!$F$4,IF('Расчет усталости'!M6='Расчет усталости'!$O$22,IF(E6=$O$2,Настройки!$C$2,IF(E6=$O$3,Настройки!$C$3,IF(E6=$O$4,Настройки!$C$4,IF(E6=$O$5,Настройки!$C$5,IF(E6=$O$6,Настройки!$C$6,IF(E6=$O$7,Настройки!$C$7,IF(E6=$O$8,Настройки!$C$8,IF(E6=$O$9,Настройки!$C$9,IF(E6=$O$10,Настройки!$C$10,IF(E6=$O$11,Настройки!$C$11,IF(E6=$O$12,Настройки!$C$12,IF(E6=$O$13,Настройки!$C$13,IF(E6=$O$14,Настройки!$C$14,IF(E6=$O$15,Настройки!$C$15,IF(E6=$O$16,Настройки!$C$16,IF(E6=$O$17,Настройки!$C$17,IF(E6=$O$18,Настройки!$C$18,0)))))))))))))))))-Настройки!$F$4,IF('Расчет усталости'!H6='Расчет усталости'!$O$21,0,IF(E6=$O$2,Настройки!$C$2,IF(E6=$O$3,Настройки!$C$3,IF(E6=$O$4,Настройки!$C$4,IF(E6=$O$5,Настройки!$C$5,IF(E6=$O$6,Настройки!$C$6,IF(E6=$O$7,Настройки!$C$7,IF(E6=$O$8,Настройки!$C$8,IF(E6=$O$9,Настройки!$C$9,IF(E6=$O$10,Настройки!$C$10,IF(E6=$O$11,Настройки!$C$11,IF(E6=$O$12,Настройки!$C$12,IF(E6=$O$13,Настройки!$C$13,IF(E6=$O$14,Настройки!$C$14,IF(E6=$O$15,Настройки!$C$15,IF(E6=$O$16,Настройки!$C$16,IF(E6=$O$17,Настройки!$C$17,IF(E6=$O$18,Настройки!$C$18,0)))))))))))))))))))),2) -> 0 | J6: =ROUND(IF(AND(M6=$O$22,H6=$O$21),0-Настройки!$F$4,IF('Расчет усталости'!M6='Расчет усталости'!$O$22,ROUND(IF(G6=$O$20,IF(E6=$O$2,Настройки!$C$2,IF(E6=$O$3,Настройки!$C$3,IF(E6=$O$4,Настройки!$C$4,IF(E6=$O$5,Настройки!$C$5,IF(E6=$O$6,Настройки!$C$6,IF(E6=$O$7,Настройки!$C$7,IF(E6=$O$8,Настройки!$C$8,IF(E6=$O$9,Настройки!$C$9,IF(E6=$O$10,Настройки!$C$10,IF(E6=$O$11,Настройки!$C$11,IF(E6=$O$12,Настройки!$C$12,IF(E6=$O$13,Настройки!$C$13,IF(E6=$O$14,Настройки!$C$14,IF(E6=$O$15,Настройки!$C$15,IF(E6=$O$16,Настройки!$C$16,IF(E6=$O$17,Настройки!$C$17,IF(E6=$O$18,Настройки!$C$18,0)))))))))))))))))*Настройки!$F$2+IF(E6=$O$2,Настройки!$C$2,IF(E6=$O$3,Настройки!$C$3,IF(E6=$O$4,Настройки!$C$4,IF(E6=$O$5,Настройки!$C$5,IF(E6=$O$6,Настройки!$C$6,IF(E6=$O$7,Настройки!$C$7,IF(E6=$O$8,Настройки!$C$8,IF(E6=$O$9,Настройки!$C$9,IF(E6=$O$10,Настройки!$C$10,IF(E6=$O$11,Настройки!$C$11,IF(E6=$O$12,Настройки!$C$12,IF(E6=$O$13,Настройки!$C$13,IF(E6=$O$14,Настройки!$C$14,IF(E6=$O$15,Настройки!$C$15,IF(E6=$O$16,Настройки!$C$16,IF(E6=$O$17,Настройки!$C$17,IF(E6=$O$18,Настройки!$C$18,0))))))))))))))))),IF(E6=$O$2,Настройки!$C$2,IF(E6=$O$3,Настройки!$C$3,IF(E6=$O$4,Настройки!$C$4,IF(E6=$O$5,Настройки!$C$5,IF(E6=$O$6,Настройки!$C$6,IF(E6=$O$7,Настройки!$C$7,IF(E6=$O$8,Настройки!$C$8,IF(E6=$O$9,Настройки!$C$9,IF(E6=$O$10,Настройки!$C$10,IF(E6=$O$11,Настройки!$C$11,IF(E6=$O$12,Настройки!$C$12,IF(E6=$O$13,Настройки!$C$13,IF(E6=$O$14,Настройки!$C$14,IF(E6=$O$15,Настройки!$C$15,IF(E6=$O$16,Настройки!$C$16,IF(E6=$O$17,Настройки!$C$17,IF(E6=$O$18,Настройки!$C$18,0)))))))))))))))))),2)-Настройки!$F$4,IF('Расчет усталости'!H6='Расчет усталости'!$O$21,0,IF(G6=$O$20,IF(E6=$O$2,Настройки!$C$2,IF(E6=$O$3,Настройки!$C$3,IF(E6=$O$4,Настройки!$C$4,IF(E6=$O$5,Настройки!$C$5,IF(E6=$O$6,Настройки!$C$6,IF(E6=$O$7,Настройки!$C$7,IF(E6=$O$8,Настройки!$C$8,IF(E6=$O$9,Настройки!$C$9,IF(E6=$O$10,Настройки!$C$10,IF(E6=$O$11,Настройки!$C$11,IF(E6=$O$12,Настройки!$C$12,IF(E6=$O$13,Настройки!$C$13,IF(E6=$O$14,Настройки!$C$14,IF(E6=$O$15,Настройки!$C$15,IF(E6=$O$16,Настройки!$C$16,IF(E6=$O$17,Настройки!$C$17,IF(E6=$O$18,Настройки!$C$18,0)))))))))))))))))*Настройки!$F$2+IF(E6=$O$2,Настройки!$C$2,IF(E6=$O$3,Настройки!$C$3,IF(E6=$O$4,Настройки!$C$4,IF(E6=$O$5,Настройки!$C$5,IF(E6=$O$6,Настройки!$C$6,IF(E6=$O$7,Настройки!$C$7,IF(E6=$O$8,Настройки!$C$8,IF(E6=$O$9,Настройки!$C$9,IF(E6=$O$10,Настройки!$C$10,IF(E6=$O$11,Настройки!$C$11,IF(E6=$O$12,Настройки!$C$12,IF(E6=$O$13,Настройки!$C$13,IF(E6=$O$14,Настройки!$C$14,IF(E6=$O$15,Настройки!$C$15,IF(E6=$O$16,Настройки!$C$16,IF(E6=$O$17,Настройки!$C$17,IF(E6=$O$18,Настройки!$C$18,0))))))))))))))))),IF(E6=$O$2,Настройки!$C$2,IF(E6=$O$3,Настройки!$C$3,IF(E6=$O$4,Настройки!$C$4,IF(E6=$O$5,Настройки!$C$5,IF(E6=$O$6,Настройки!$C$6,IF(E6=$O$7,Настройки!$C$7,IF(E6=$O$8,Настройки!$C$8,IF(E6=$O$9,Настройки!$C$9,IF(E6=$O$10,Настройки!$C$10,IF(E6=$O$11,Настройки!$C$11,IF(E6=$O$12,Настройки!$C$12,IF(E6=$O$13,Настройки!$C$13,IF(E6=$O$14,Настройки!$C$14,IF(E6=$O$15,Настройки!$C$15,IF(E6=$O$16,Настройки!$C$16,IF(E6=$O$17,Настройки!$C$17,IF(E6=$O$18,Настройки!$C$18,0))))))))))))))))))))),2) -> 0 | K6: =IF(SUM($I$2:I6)-SUM($C$2:C6)<0,0,ROUND(SUM($I$2:I6)-SUM($C$2:C6),2)) -> 0.3 | L6: =IF(SUM($J$2:J6)-SUM($C$2:C6)<0,0,ROUND(SUM($J$2:J6)-SUM($C$2:C6),2)) -> 0.33 | O6: КК | P6: Клубный Кубок | Q6: 0 | R6: 0 | T6: =ROUND(Настройки!C6*'Расчет усталости'!S6*(1+Настройки!$F$2/2),2) -> 0
A7: Сб | B7: 1 | C7: =Настройки!$F$3 -> 0.1 | D7: 4 | E7: ЧЕМ | F7: =COUNTIF($E$2:E7,"ЧЕМ") -> 2 | I7: =ROUND(IF(AND(M7=$O$22,H7=$O$21),0-Настройки!$F$4,IF('Расчет усталости'!M7='Расчет усталости'!$O$22,IF(E7=$O$2,Настройки!$C$2,IF(E7=$O$3,Настройки!$C$3,IF(E7=$O$4,Настройки!$C$4,IF(E7=$O$5,Настройки!$C$5,IF(E7=$O$6,Настройки!$C$6,IF(E7=$O$7,Настройки!$C$7,IF(E7=$O$8,Настройки!$C$8,IF(E7=$O$9,Настройки!$C$9,IF(E7=$O$10,Настройки!$C$10,IF(E7=$O$11,Настройки!$C$11,IF(E7=$O$12,Настройки!$C$12,IF(E7=$O$13,Настройки!$C$13,IF(E7=$O$14,Настройки!$C$14,IF(E7=$O$15,Настройки!$C$15,IF(E7=$O$16,Настройки!$C$16,IF(E7=$O$17,Настройки!$C$17,IF(E7=$O$18,Настройки!$C$18,0)))))))))))))))))-Настройки!$F$4,IF('Расчет усталости'!H7='Расчет усталости'!$O$21,0,IF(E7=$O$2,Настройки!$C$2,IF(E7=$O$3,Настройки!$C$3,IF(E7=$O$4,Настройки!$C$4,IF(E7=$O$5,Настройки!$C$5,IF(E7=$O$6,Настройки!$C$6,IF(E7=$O$7,Настройки!$C$7,IF(E7=$O$8,Настройки!$C$8,IF(E7=$O$9,Настройки!$C$9,IF(E7=$O$10,Настройки!$C$10,IF(E7=$O$11,Настройки!$C$11,IF(E7=$O$12,Настройки!$C$12,IF(E7=$O$13,Настройки!$C$13,IF(E7=$O$14,Настройки!$C$14,IF(E7=$O$15,Настройки!$C$15,IF(E7=$O$16,Настройки!$C$16,IF(E7=$O$17,Настройки!$C$17,IF(E7=$O$18,Настройки!$C$18,0)))))))))))))))))))),2) -> 0.3 | J7: =ROUND(IF(AND(M7=$O$22,H7=$O$21),0-Настройки!$F$4,IF('Расчет усталости'!M7='Расчет усталости'!$O$22,ROUND(IF(G7=$O$20,IF(E7=$O$2,Настройки!$C$2,IF(E7=$O$3,Настройки!$C$3,IF(E7=$O$4,Настройки!$C$4,IF(E7=$O$5,Настройки!$C$5,IF(E7=$O$6,Настройки!$C$6,IF(E7=$O$7,Настройки!$C$7,IF(E7=$O$8,Настройки!$C$8,IF(E7=$O$9,Настройки!$C$9,IF(E7=$O$10,Настройки!$C$10,IF(E7=$O$11,Настройки!$C$11,IF(E7=$O$12,Настройки!$C$12,IF(E7=$O$13,Настройки!$C$13,IF(E7=$O$14,Настройки!$C$14,IF(E7=$O$15,Настройки!$C$15,IF(E7=$O$16,Настройки!$C$16,IF(E7=$O$17,Настройки!$C$17,IF(E7=$O$18,Настройки!$C$18,0)))))))))))))))))*Настройки!$F$2+IF(E7=$O$2,Настройки!$C$2,IF(E7=$O$3,Настройки!$C$3,IF(E7=$O$4,Настройки!$C$4,IF(E7=$O$5,Настройки!$C$5,IF(E7=$O$6,Настройки!$C$6,IF(E7=$O$7,Настройки!$C$7,IF(E7=$O$8,Настройки!$C$8,IF(E7=$O$9,Настройки!$C$9,IF(E7=$O$10,Настройки!$C$10,IF(E7=$O$11,Настройки!$C$11,IF(E7=$O$12,Настройки!$C$12,IF(E7=$O$13,Настройки!$C$13,IF(E7=$O$14,Настройки!$C$14,IF(E7=$O$15,Настройки!$C$15,IF(E7=$O$16,Настройки!$C$16,IF(E7=$O$17,Настройки!$C$17,IF(E7=$O$18,Настройки!$C$18,0))))))))))))))))),IF(E7=$O$2,Настройки!$C$2,IF(E7=$O$3,Настройки!$C$3,IF(E7=$O$4,Настройки!$C$4,IF(E7=$O$5,Настройки!$C$5,IF(E7=$O$6,Настройки!$C$6,IF(E7=$O$7,Настройки!$C$7,IF(E7=$O$8,Настройки!$C$8,IF(E7=$O$9,Настройки!$C$9,IF(E7=$O$10,Настройки!$C$10,IF(E7=$O$11,Настройки!$C$11,IF(E7=$O$12,Настройки!$C$12,IF(E7=$O$13,Настройки!$C$13,IF(E7=$O$14,Настройки!$C$14,IF(E7=$O$15,Настройки!$C$15,IF(E7=$O$16,Настройки!$C$16,IF(E7=$O$17,Настройки!$C$17,IF(E7=$O$18,Настройки!$C$18,0)))))))))))))))))),2)-Настройки!$F$4,IF('Расчет усталости'!H7='Расчет усталости'!$O$21,0,IF(G7=$O$20,IF(E7=$O$2,Настройки!$C$2,IF(E7=$O$3,Настройки!$C$3,IF(E7=$O$4,Настройки!$C$4,IF(E7=$O$5,Настройки!$C$5,IF(E7=$O$6,Настройки!$C$6,IF(E7=$O$7,Настройки!$C$7,IF(E7=$O$8,Настройки!$C$8,IF(E7=$O$9,Настройки!$C$9,IF(E7=$O$10,Настройки!$C$10,IF(E7=$O$11,Настройки!$C$11,IF(E7=$O$12,Настройки!$C$12,IF(E7=$O$13,Настройки!$C$13,IF(E7=$O$14,Настройки!$C$14,IF(E7=$O$15,Настройки!$C$15,IF(E7=$O$16,Настройки!$C$16,IF(E7=$O$17,Настройки!$C$17,IF(E7=$O$18,Настройки!$C$18,0)))))))))))))))))*Настройки!$F$2+IF(E7=$O$2,Настройки!$C$2,IF(E7=$O$3,Настройки!$C$3,IF(E7=$O$4,Настройки!$C$4,IF(E7=$O$5,Настройки!$C$5,IF(E7=$O$6,Настройки!$C$6,IF(E7=$O$7,Настройки!$C$7,IF(E7=$O$8,Настройки!$C$8,IF(E7=$O$9,Настройки!$C$9,IF(E7=$O$10,Настройки!$C$10,IF(E7=$O$11,Настройки!$C$11,IF(E7=$O$12,Настройки!$C$12,IF(E7=$O$13,Настройки!$C$13,IF(E7=$O$14,Настройки!$C$14,IF(E7=$O$15,Настройки!$C$15,IF(E7=$O$16,Настройки!$C$16,IF(E7=$O$17,Настройки!$C$17,IF(E7=$O$18,Настройки!$C$18,0))))))))))))))))),IF(E7=$O$2,Настройки!$C$2,IF(E7=$O$3,Настройки!$C$3,IF(E7=$O$4,Настройки!$C$4,IF(E7=$O$5,Настройки!$C$5,IF(E7=$O$6,Настройки!$C$6,IF(E7=$O$7,Настройки!$C$7,IF(E7=$O$8,Настройки!$C$8,IF(E7=$O$9,Настройки!$C$9,IF(E7=$O$10,Настройки!$C$10,IF(E7=$O$11,Настройки!$C$11,IF(E7=$O$12,Настройки!$C$12,IF(E7=$O$13,Настройки!$C$13,IF(E7=$O$14,Настройки!$C$14,IF(E7=$O$15,Настройки!$C$15,IF(E7=$O$16,Настройки!$C$16,IF(E7=$O$17,Настройки!$C$17,IF(E7=$O$18,Настройки!$C$18,0))))))))))))))))))))),2) -> 0.3 | K7: =IF(SUM($I$2:I7)-SUM($C$2:C7)<0,0,ROUND(SUM($I$2:I7)-SUM($C$2:C7),2)) -> 0.5 | L7: =IF(SUM($J$2:J7)-SUM($C$2:C7)<0,0,ROUND(SUM($J$2:J7)-SUM($C$2:C7),2)) -> 0.53 | O7: КС | P7: Кубок страны | Q7: 1 | R7: 1 | S7: 3 | T7: =ROUND(Настройки!C7*'Расчет усталости'!S7*(1+Настройки!$F$2/2),2) -> 0.95
A8: Пн | B8: =B2+1 -> 2 | C8: =Настройки!$F$3 -> 0.1 | F8: =COUNTIF($E$2:E8,"ЧЕМ") -> 2 | I8: =ROUND(IF(AND(M8=$O$22,H8=$O$21),0-Настройки!$F$4,IF('Расчет усталости'!M8='Расчет усталости'!$O$22,IF(E8=$O$2,Настройки!$C$2,IF(E8=$O$3,Настройки!$C$3,IF(E8=$O$4,Настройки!$C$4,IF(E8=$O$5,Настройки!$C$5,IF(E8=$O$6,Настройки!$C$6,IF(E8=$O$7,Настройки!$C$7,IF(E8=$O$8,Настройки!$C$8,IF(E8=$O$9,Настройки!$C$9,IF(E8=$O$10,Настройки!$C$10,IF(E8=$O$11,Настройки!$C$11,IF(E8=$O$12,Настройки!$C$12,IF(E8=$O$13,Настройки!$C$13,IF(E8=$O$14,Настройки!$C$14,IF(E8=$O$15,Настройки!$C$15,IF(E8=$O$16,Настройки!$C$16,IF(E8=$O$17,Настройки!$C$17,IF(E8=$O$18,Настройки!$C$18,0)))))))))))))))))-Настройки!$F$4,IF('Расчет усталости'!H8='Расчет усталости'!$O$21,0,IF(E8=$O$2,Настройки!$C$2,IF(E8=$O$3,Настройки!$C$3,IF(E8=$O$4,Настройки!$C$4,IF(E8=$O$5,Настройки!$C$5,IF(E8=$O$6,Настройки!$C$6,IF(E8=$O$7,Настройки!$C$7,IF(E8=$O$8,Настройки!$C$8,IF(E8=$O$9,Настройки!$C$9,IF(E8=$O$10,Настройки!$C$10,IF(E8=$O$11,Настройки!$C$11,IF(E8=$O$12,Настройки!$C$12,IF(E8=$O$13,Настройки!$C$13,IF(E8=$O$14,Настройки!$C$14,IF(E8=$O$15,Настройки!$C$15,IF(E8=$O$16,Настройки!$C$16,IF(E8=$O$17,Настройки!$C$17,IF(E8=$O$18,Настройки!$C$18,0)))))))))))))))))))),2) -> 0 | J8: =ROUND(IF(AND(M8=$O$22,H8=$O$21),0-Настройки!$F$4,IF('Расчет усталости'!M8='Расчет усталости'!$O$22,ROUND(IF(G8=$O$20,IF(E8=$O$2,Настройки!$C$2,IF(E8=$O$3,Настройки!$C$3,IF(E8=$O$4,Настройки!$C$4,IF(E8=$O$5,Настройки!$C$5,IF(E8=$O$6,Настройки!$C$6,IF(E8=$O$7,Настройки!$C$7,IF(E8=$O$8,Настройки!$C$8,IF(E8=$O$9,Настройки!$C$9,IF(E8=$O$10,Настройки!$C$10,IF(E8=$O$11,Настройки!$C$11,IF(E8=$O$12,Настройки!$C$12,IF(E8=$O$13,Настройки!$C$13,IF(E8=$O$14,Настройки!$C$14,IF(E8=$O$15,Настройки!$C$15,IF(E8=$O$16,Настройки!$C$16,IF(E8=$O$17,Настройки!$C$17,IF(E8=$O$18,Настройки!$C$18,0)))))))))))))))))*Настройки!$F$2+IF(E8=$O$2,Настройки!$C$2,IF(E8=$O$3,Настройки!$C$3,IF(E8=$O$4,Настройки!$C$4,IF(E8=$O$5,Настройки!$C$5,IF(E8=$O$6,Настройки!$C$6,IF(E8=$O$7,Настройки!$C$7,IF(E8=$O$8,Настройки!$C$8,IF(E8=$O$9,Настройки!$C$9,IF(E8=$O$10,Настройки!$C$10,IF(E8=$O$11,Настройки!$C$11,IF(E8=$O$12,Настройки!$C$12,IF(E8=$O$13,Настройки!$C$13,IF(E8=$O$14,Настройки!$C$14,IF(E8=$O$15,Настройки!$C$15,IF(E8=$O$16,Настройки!$C$16,IF(E8=$O$17,Настройки!$C$17,IF(E8=$O$18,Настройки!$C$18,0))))))))))))))))),IF(E8=$O$2,Настройки!$C$2,IF(E8=$O$3,Настройки!$C$3,IF(E8=$O$4,Настройки!$C$4,IF(E8=$O$5,Настройки!$C$5,IF(E8=$O$6,Настройки!$C$6,IF(E8=$O$7,Настройки!$C$7,IF(E8=$O$8,Настройки!$C$8,IF(E8=$O$9,Настройки!$C$9,IF(E8=$O$10,Настройки!$C$10,IF(E8=$O$11,Настройки!$C$11,IF(E8=$O$12,Настройки!$C$12,IF(E8=$O$13,Настройки!$C$13,IF(E8=$O$14,Настройки!$C$14,IF(E8=$O$15,Настройки!$C$15,IF(E8=$O$16,Настройки!$C$16,IF(E8=$O$17,Настройки!$C$17,IF(E8=$O$18,Настройки!$C$18,0)))))))))))))))))),2)-Настройки!$F$4,IF('Расчет усталости'!H8='Расчет усталости'!$O$21,0,IF(G8=$O$20,IF(E8=$O$2,Настройки!$C$2,IF(E8=$O$3,Настройки!$C$3,IF(E8=$O$4,Настройки!$C$4,IF(E8=$O$5,Настройки!$C$5,IF(E8=$O$6,Настройки!$C$6,IF(E8=$O$7,Настройки!$C$7,IF(E8=$O$8,Настройки!$C$8,IF(E8=$O$9,Настройки!$C$9,IF(E8=$O$10,Настройки!$C$10,IF(E8=$O$11,Настройки!$C$11,IF(E8=$O$12,Настройки!$C$12,IF(E8=$O$13,Настройки!$C$13,IF(E8=$O$14,Настройки!$C$14,IF(E8=$O$15,Настройки!$C$15,IF(E8=$O$16,Настройки!$C$16,IF(E8=$O$17,Настройки!$C$17,IF(E8=$O$18,Настройки!$C$18,0)))))))))))))))))*Настройки!$F$2+IF(E8=$O$2,Настройки!$C$2,IF(E8=$O$3,Настройки!$C$3,IF(E8=$O$4,Настройки!$C$4,IF(E8=$O$5,Настройки!$C$5,IF(E8=$O$6,Настройки!$C$6,IF(E8=$O$7,Настройки!$C$7,IF(E8=$O$8,Настройки!$C$8,IF(E8=$O$9,Настройки!$C$9,IF(E8=$O$10,Настройки!$C$10,IF(E8=$O$11,Настройки!$C$11,IF(E8=$O$12,Настройки!$C$12,IF(E8=$O$13,Настройки!$C$13,IF(E8=$O$14,Настройки!$C$14,IF(E8=$O$15,Настройки!$C$15,IF(E8=$O$16,Настройки!$C$16,IF(E8=$O$17,Настройки!$C$17,IF(E8=$O$18,Настройки!$C$18,0))))))))))))))))),IF(E8=$O$2,Настройки!$C$2,IF(E8=$O$3,Настройки!$C$3,IF(E8=$O$4,Настройки!$C$4,IF(E8=$O$5,Настройки!$C$5,IF(E8=$O$6,Настройки!$C$6,IF(E8=$O$7,Настройки!$C$7,IF(E8=$O$8,Настройки!$C$8,IF(E8=$O$9,Настройки!$C$9,IF(E8=$O$10,Настройки!$C$10,IF(E8=$O$11,Настройки!$C$11,IF(E8=$O$12,Настройки!$C$12,IF(E8=$O$13,Настройки!$C$13,IF(E8=$O$14,Настройки!$C$14,IF(E8=$O$15,Настройки!$C$15,IF(E8=$O$16,Настройки!$C$16,IF(E8=$O$17,Настройки!$C$17,IF(E8=$O$18,Настройки!$C$18,0))))))))))))))))))))),2) -> 0 | K8: =IF(SUM($I$2:I8)-SUM($C$2:C8)<0,0,ROUND(SUM($I$2:I8)-SUM($C$2:C8),2)) -> 0.4 | L8: =IF(SUM($J$2:J8)-SUM($C$2:C8)<0,0,ROUND(SUM($J$2:J8)-SUM($C$2:C8),2)) -> 0.43 | O8: КЛ | P8: Кубок Лиги | Q8: 0 | R8: 0 | T8: =ROUND(Настройки!C8*'Расчет усталости'!S8*(1+Настройки!$F$2/2),2) -> 0
A9: Вт | B9: =B3+1 -> 2 | C9: =Настройки!$F$3 -> 0.1 | D9: 5 | E9: КТ | F9: =COUNTIF($E$2:E9,"ЧЕМ") -> 2 | I9: =ROUND(IF(AND(M9=$O$22,H9=$O$21),0-Настройки!$F$4,IF('Расчет усталости'!M9='Расчет усталости'!$O$22,IF(E9=$O$2,Настройки!$C$2,IF(E9=$O$3,Настройки!$C$3,IF(E9=$O$4,Настройки!$C$4,IF(E9=$O$5,Настройки!$C$5,IF(E9=$O$6,Настройки!$C$6,IF(E9=$O$7,Настройки!$C$7,IF(E9=$O$8,Настройки!$C$8,IF(E9=$O$9,Настройки!$C$9,IF(E9=$O$10,Настройки!$C$10,IF(E9=$O$11,Настройки!$C$11,IF(E9=$O$12,Настройки!$C$12,IF(E9=$O$13,Настройки!$C$13,IF(E9=$O$14,Настройки!$C$14,IF(E9=$O$15,Настройки!$C$15,IF(E9=$O$16,Настройки!$C$16,IF(E9=$O$17,Настройки!$C$17,IF(E9=$O$18,Настройки!$C$18,0)))))))))))))))))-Настройки!$F$4,IF('Расчет усталости'!H9='Расчет усталости'!$O$21,0,IF(E9=$O$2,Настройки!$C$2,IF(E9=$O$3,Настройки!$C$3,IF(E9=$O$4,Настройки!$C$4,IF(E9=$O$5,Настройки!$C$5,IF(E9=$O$6,Настройки!$C$6,IF(E9=$O$7,Настройки!$C$7,IF(E9=$O$8,Настройки!$C$8,IF(E9=$O$9,Настройки!$C$9,IF(E9=$O$10,Настройки!$C$10,IF(E9=$O$11,Настройки!$C$11,IF(E9=$O$12,Настройки!$C$12,IF(E9=$O$13,Настройки!$C$13,IF(E9=$O$14,Настройки!$C$14,IF(E9=$O$15,Настройки!$C$15,IF(E9=$O$16,Настройки!$C$16,IF(E9=$O$17,Настройки!$C$17,IF(E9=$O$18,Настройки!$C$18,0)))))))))))))))))))),2) -> 0.15 | J9: =ROUND(IF(AND(M9=$O$22,H9=$O$21),0-Настройки!$F$4,IF('Расчет усталости'!M9='Расчет усталости'!$O$22,ROUND(IF(G9=$O$20,IF(E9=$O$2,Настройки!$C$2,IF(E9=$O$3,Настройки!$C$3,IF(E9=$O$4,Настройки!$C$4,IF(E9=$O$5,Настройки!$C$5,IF(E9=$O$6,Настройки!$C$6,IF(E9=$O$7,Настройки!$C$7,IF(E9=$O$8,Настройки!$C$8,IF(E9=$O$9,Настройки!$C$9,IF(E9=$O$10,Настройки!$C$10,IF(E9=$O$11,Настройки!$C$11,IF(E9=$O$12,Настройки!$C$12,IF(E9=$O$13,Настройки!$C$13,IF(E9=$O$14,Настройки!$C$14,IF(E9=$O$15,Настройки!$C$15,IF(E9=$O$16,Настройки!$C$16,IF(E9=$O$17,Настройки!$C$17,IF(E9=$O$18,Настройки!$C$18,0)))))))))))))))))*Настройки!$F$2+IF(E9=$O$2,Настройки!$C$2,IF(E9=$O$3,Настройки!$C$3,IF(E9=$O$4,Настройки!$C$4,IF(E9=$O$5,Настройки!$C$5,IF(E9=$O$6,Настройки!$C$6,IF(E9=$O$7,Настройки!$C$7,IF(E9=$O$8,Настройки!$C$8,IF(E9=$O$9,Настройки!$C$9,IF(E9=$O$10,Настройки!$C$10,IF(E9=$O$11,Настройки!$C$11,IF(E9=$O$12,Настройки!$C$12,IF(E9=$O$13,Настройки!$C$13,IF(E9=$O$14,Настройки!$C$14,IF(E9=$O$15,Настройки!$C$15,IF(E9=$O$16,Настройки!$C$16,IF(E9=$O$17,Настройки!$C$17,IF(E9=$O$18,Настройки!$C$18,0))))))))))))))))),IF(E9=$O$2,Настройки!$C$2,IF(E9=$O$3,Настройки!$C$3,IF(E9=$O$4,Настройки!$C$4,IF(E9=$O$5,Настройки!$C$5,IF(E9=$O$6,Настройки!$C$6,IF(E9=$O$7,Настройки!$C$7,IF(E9=$O$8,Настройки!$C$8,IF(E9=$O$9,Настройки!$C$9,IF(E9=$O$10,Настройки!$C$10,IF(E9=$O$11,Настройки!$C$11,IF(E9=$O$12,Настройки!$C$12,IF(E9=$O$13,Настройки!$C$13,IF(E9=$O$14,Настройки!$C$14,IF(E9=$O$15,Настройки!$C$15,IF(E9=$O$16,Настройки!$C$16,IF(E9=$O$17,Настройки!$C$17,IF(E9=$O$18,Настройки!$C$18,0)))))))))))))))))),2)-Настройки!$F$4,IF('Расчет усталости'!H9='Расчет усталости'!$O$21,0,IF(G9=$O$20,IF(E9=$O$2,Настройки!$C$2,IF(E9=$O$3,Настройки!$C$3,IF(E9=$O$4,Настройки!$C$4,IF(E9=$O$5,Настройки!$C$5,IF(E9=$O$6,Настройки!$C$6,IF(E9=$O$7,Настройки!$C$7,IF(E9=$O$8,Настройки!$C$8,IF(E9=$O$9,Настройки!$C$9,IF(E9=$O$10,Настройки!$C$10,IF(E9=$O$11,Настройки!$C$11,IF(E9=$O$12,Настройки!$C$12,IF(E9=$O$13,Настройки!$C$13,IF(E9=$O$14,Настройки!$C$14,IF(E9=$O$15,Настройки!$C$15,IF(E9=$O$16,Настройки!$C$16,IF(E9=$O$17,Настройки!$C$17,IF(E9=$O$18,Настройки!$C$18,0)))))))))))))))))*Настройки!$F$2+IF(E9=$O$2,Настройки!$C$2,IF(E9=$O$3,Настройки!$C$3,IF(E9=$O$4,Настройки!$C$4,IF(E9=$O$5,Настройки!$C$5,IF(E9=$O$6,Настройки!$C$6,IF(E9=$O$7,Настройки!$C$7,IF(E9=$O$8,Настройки!$C$8,IF(E9=$O$9,Настройки!$C$9,IF(E9=$O$10,Настройки!$C$10,IF(E9=$O$11,Настройки!$C$11,IF(E9=$O$12,Настройки!$C$12,IF(E9=$O$13,Настройки!$C$13,IF(E9=$O$14,Настройки!$C$14,IF(E9=$O$15,Настройки!$C$15,IF(E9=$O$16,Настройки!$C$16,IF(E9=$O$17,Настройки!$C$17,IF(E9=$O$18,Настройки!$C$18,0))))))))))))))))),IF(E9=$O$2,Настройки!$C$2,IF(E9=$O$3,Настройки!$C$3,IF(E9=$O$4,Настройки!$C$4,IF(E9=$O$5,Настройки!$C$5,IF(E9=$O$6,Настройки!$C$6,IF(E9=$O$7,Настройки!$C$7,IF(E9=$O$8,Настройки!$C$8,IF(E9=$O$9,Настройки!$C$9,IF(E9=$O$10,Настройки!$C$10,IF(E9=$O$11,Настройки!$C$11,IF(E9=$O$12,Настройки!$C$12,IF(E9=$O$13,Настройки!$C$13,IF(E9=$O$14,Настройки!$C$14,IF(E9=$O$15,Настройки!$C$15,IF(E9=$O$16,Настройки!$C$16,IF(E9=$O$17,Настройки!$C$17,IF(E9=$O$18,Настройки!$C$18,0))))))))))))))))))))),2) -> 0.15 | K9: =IF(SUM($I$2:I9)-SUM($C$2:C9)<0,0,ROUND(SUM($I$2:I9)-SUM($C$2:C9),2)) -> 0.45 | L9: =IF(SUM($J$2:J9)-SUM($C$2:C9)<0,0,ROUND(SUM($J$2:J9)-SUM($C$2:C9),2)) -> 0.48 | O9: ЛЧ | P9: Лига Чемпионов | Q9: 0 | R9: 0 | T9: =ROUND(Настройки!C9*'Расчет усталости'!S9*(1+Настройки!$F$2/2),2) -> 0
A10: Ср | B10: 2 | C10: =Настройки!$F$3 -> 0.1 | D10: 6 | E10: ЧЕМ | F10: =COUNTIF($E$2:E10,"ЧЕМ") -> 3 | G10: Г | I10: =ROUND(IF(AND(M10=$O$22,H10=$O$21),0-Настройки!$F$4,IF('Расчет усталости'!M10='Расчет усталости'!$O$22,IF(E10=$O$2,Настройки!$C$2,IF(E10=$O$3,Настройки!$C$3,IF(E10=$O$4,Настройки!$C$4,IF(E10=$O$5,Настройки!$C$5,IF(E10=$O$6,Настройки!$C$6,IF(E10=$O$7,Настройки!$C$7,IF(E10=$O$8,Настройки!$C$8,IF(E10=$O$9,Настройки!$C$9,IF(E10=$O$10,Настройки!$C$10,IF(E10=$O$11,Настройки!$C$11,IF(E10=$O$12,Настройки!$C$12,IF(E10=$O$13,Настройки!$C$13,IF(E10=$O$14,Настройки!$C$14,IF(E10=$O$15,Настройки!$C$15,IF(E10=$O$16,Настройки!$C$16,IF(E10=$O$17,Настройки!$C$17,IF(E10=$O$18,Настройки!$C$18,0)))))))))))))))))-Настройки!$F$4,IF('Расчет усталости'!H10='Расчет усталости'!$O$21,0,IF(E10=$O$2,Настройки!$C$2,IF(E10=$O$3,Настройки!$C$3,IF(E10=$O$4,Настройки!$C$4,IF(E10=$O$5,Настройки!$C$5,IF(E10=$O$6,Настройки!$C$6,IF(E10=$O$7,Настройки!$C$7,IF(E10=$O$8,Настройки!$C$8,IF(E10=$O$9,Настройки!$C$9,IF(E10=$O$10,Настройки!$C$10,IF(E10=$O$11,Настройки!$C$11,IF(E10=$O$12,Настройки!$C$12,IF(E10=$O$13,Настройки!$C$13,IF(E10=$O$14,Настройки!$C$14,IF(E10=$O$15,Настройки!$C$15,IF(E10=$O$16,Настройки!$C$16,IF(E10=$O$17,Настройки!$C$17,IF(E10=$O$18,Настройки!$C$18,0)))))))))))))))))))),2) -> 0.3 | J10: =ROUND(IF(AND(M10=$O$22,H10=$O$21),0-Настройки!$F$4,IF('Расчет усталости'!M10='Расчет усталости'!$O$22,ROUND(IF(G10=$O$20,IF(E10=$O$2,Настройки!$C$2,IF(E10=$O$3,Настройки!$C$3,IF(E10=$O$4,Настройки!$C$4,IF(E10=$O$5,Настройки!$C$5,IF(E10=$O$6,Настройки!$C$6,IF(E10=$O$7,Настройки!$C$7,IF(E10=$O$8,Настройки!$C$8,IF(E10=$O$9,Настройки!$C$9,IF(E10=$O$10,Настройки!$C$10,IF(E10=$O$11,Настройки!$C$11,IF(E10=$O$12,Настройки!$C$12,IF(E10=$O$13,Настройки!$C$13,IF(E10=$O$14,Настройки!$C$14,IF(E10=$O$15,Настройки!$C$15,IF(E10=$O$16,Настройки!$C$16,IF(E10=$O$17,Настройки!$C$17,IF(E10=$O$18,Настройки!$C$18,0)))))))))))))))))*Настройки!$F$2+IF(E10=$O$2,Настройки!$C$2,IF(E10=$O$3,Настройки!$C$3,IF(E10=$O$4,Настройки!$C$4,IF(E10=$O$5,Настройки!$C$5,IF(E10=$O$6,Настройки!$C$6,IF(E10=$O$7,Настройки!$C$7,IF(E10=$O$8,Настройки!$C$8,IF(E10=$O$9,Настройки!$C$9,IF(E10=$O$10,Настройки!$C$10,IF(E10=$O$11,Настройки!$C$11,IF(E10=$O$12,Настройки!$C$12,IF(E10=$O$13,Настройки!$C$13,IF(E10=$O$14,Настройки!$C$14,IF(E10=$O$15,Настройки!$C$15,IF(E10=$O$16,Настройки!$C$16,IF(E10=$O$17,Настройки!$C$17,IF(E10=$O$18,Настройки!$C$18,0))))))))))))))))),IF(E10=$O$2,Настройки!$C$2,IF(E10=$O$3,Настройки!$C$3,IF(E10=$O$4,Настройки!$C$4,IF(E10=$O$5,Настройки!$C$5,IF(E10=$O$6,Настройки!$C$6,IF(E10=$O$7,Настройки!$C$7,IF(E10=$O$8,Настройки!$C$8,IF(E10=$O$9,Настройки!$C$9,IF(E10=$O$10,Настройки!$C$10,IF(E10=$O$11,Настройки!$C$11,IF(E10=$O$12,Настройки!$C$12,IF(E10=$O$13,Настройки!$C$13,IF(E10=$O$14,Настройки!$C$14,IF(E10=$O$15,Настройки!$C$15,IF(E10=$O$16,Настройки!$C$16,IF(E10=$O$17,Настройки!$C$17,IF(E10=$O$18,Настройки!$C$18,0)))))))))))))))))),2)-Настройки!$F$4,IF('Расчет усталости'!H10='Расчет усталости'!$O$21,0,IF(G10=$O$20,IF(E10=$O$2,Настройки!$C$2,IF(E10=$O$3,Настройки!$C$3,IF(E10=$O$4,Настройки!$C$4,IF(E10=$O$5,Настройки!$C$5,IF(E10=$O$6,Настройки!$C$6,IF(E10=$O$7,Настройки!$C$7,IF(E10=$O$8,Настройки!$C$8,IF(E10=$O$9,Настройки!$C$9,IF(E10=$O$10,Настройки!$C$10,IF(E10=$O$11,Настройки!$C$11,IF(E10=$O$12,Настройки!$C$12,IF(E10=$O$13,Настройки!$C$13,IF(E10=$O$14,Настройки!$C$14,IF(E10=$O$15,Настройки!$C$15,IF(E10=$O$16,Настройки!$C$16,IF(E10=$O$17,Настройки!$C$17,IF(E10=$O$18,Настройки!$C$18,0)))))))))))))))))*Настройки!$F$2+IF(E10=$O$2,Настройки!$C$2,IF(E10=$O$3,Настройки!$C$3,IF(E10=$O$4,Настройки!$C$4,IF(E10=$O$5,Настройки!$C$5,IF(E10=$O$6,Настройки!$C$6,IF(E10=$O$7,Настройки!$C$7,IF(E10=$O$8,Настройки!$C$8,IF(E10=$O$9,Настройки!$C$9,IF(E10=$O$10,Настройки!$C$10,IF(E10=$O$11,Настройки!$C$11,IF(E10=$O$12,Настройки!$C$12,IF(E10=$O$13,Настройки!$C$13,IF(E10=$O$14,Настройки!$C$14,IF(E10=$O$15,Настройки!$C$15,IF(E10=$O$16,Настройки!$C$16,IF(E10=$O$17,Настройки!$C$17,IF(E10=$O$18,Настройки!$C$18,0))))))))))))))))),IF(E10=$O$2,Настройки!$C$2,IF(E10=$O$3,Настройки!$C$3,IF(E10=$O$4,Настройки!$C$4,IF(E10=$O$5,Настройки!$C$5,IF(E10=$O$6,Настройки!$C$6,IF(E10=$O$7,Настройки!$C$7,IF(E10=$O$8,Настройки!$C$8,IF(E10=$O$9,Настройки!$C$9,IF(E10=$O$10,Настройки!$C$10,IF(E10=$O$11,Настройки!$C$11,IF(E10=$O$12,Настройки!$C$12,IF(E10=$O$13,Настройки!$C$13,IF(E10=$O$14,Настройки!$C$14,IF(E10=$O$15,Настройки!$C$15,IF(E10=$O$16,Настройки!$C$16,IF(E10=$O$17,Настройки!$C$17,IF(E10=$O$18,Настройки!$C$18,0))))))))))))))))))))),2) -> 0.33 | K10: =IF(SUM($I$2:I10)-SUM($C$2:C10)<0,0,ROUND(SUM($I$2:I10)-SUM($C$2:C10),2)) -> 0.65 | L10: =IF(SUM($J$2:J10)-SUM($C$2:C10)<0,0,ROUND(SUM($J$2:J10)-SUM($C$2:C10),2)) -> 0.71 | O10: МК | P10: Межконтинентальный Кубок | Q10: 0 | R10: 0 | T10: =ROUND(Настройки!C10*'Расчет усталости'!S10*(1+Настройки!$F$2/2),2) -> 0
A11: Чт | B11: 2 | C11: =Настройки!$F$3 -> 0.1 | D11: 7 | E11: КТ | F11: =COUNTIF($E$2:E11,"ЧЕМ") -> 3 | G11: Г | I11: =ROUND(IF(AND(M11=$O$22,H11=$O$21),0-Настройки!$F$4,IF('Расчет усталости'!M11='Расчет усталости'!$O$22,IF(E11=$O$2,Настройки!$C$2,IF(E11=$O$3,Настройки!$C$3,IF(E11=$O$4,Настройки!$C$4,IF(E11=$O$5,Настройки!$C$5,IF(E11=$O$6,Настройки!$C$6,IF(E11=$O$7,Настройки!$C$7,IF(E11=$O$8,Настройки!$C$8,IF(E11=$O$9,Настройки!$C$9,IF(E11=$O$10,Настройки!$C$10,IF(E11=$O$11,Настройки!$C$11,IF(E11=$O$12,Настройки!$C$12,IF(E11=$O$13,Настройки!$C$13,IF(E11=$O$14,Настройки!$C$14,IF(E11=$O$15,Настройки!$C$15,IF(E11=$O$16,Настройки!$C$16,IF(E11=$O$17,Настройки!$C$17,IF(E11=$O$18,Настройки!$C$18,0)))))))))))))))))-Настройки!$F$4,IF('Расчет усталости'!H11='Расчет усталости'!$O$21,0,IF(E11=$O$2,Настройки!$C$2,IF(E11=$O$3,Настройки!$C$3,IF(E11=$O$4,Настройки!$C$4,IF(E11=$O$5,Настройки!$C$5,IF(E11=$O$6,Настройки!$C$6,IF(E11=$O$7,Настройки!$C$7,IF(E11=$O$8,Настройки!$C$8,IF(E11=$O$9,Настройки!$C$9,IF(E11=$O$10,Настройки!$C$10,IF(E11=$O$11,Настройки!$C$11,IF(E11=$O$12,Настройки!$C$12,IF(E11=$O$13,Настройки!$C$13,IF(E11=$O$14,Настройки!$C$14,IF(E11=$O$15,Настройки!$C$15,IF(E11=$O$16,Настройки!$C$16,IF(E11=$O$17,Настройки!$C$17,IF(E11=$O$18,Настройки!$C$18,0)))))))))))))))))))),2) -> 0.15 | J11: =ROUND(IF(AND(M11=$O$22,H11=$O$21),0-Настройки!$F$4,IF('Расчет усталости'!M11='Расчет усталости'!$O$22,ROUND(IF(G11=$O$20,IF(E11=$O$2,Настройки!$C$2,IF(E11=$O$3,Настройки!$C$3,IF(E11=$O$4,Настройки!$C$4,IF(E11=$O$5,Настройки!$C$5,IF(E11=$O$6,Настройки!$C$6,IF(E11=$O$7,Настройки!$C$7,IF(E11=$O$8,Настройки!$C$8,IF(E11=$O$9,Настройки!$C$9,IF(E11=$O$10,Настройки!$C$10,IF(E11=$O$11,Настройки!$C$11,IF(E11=$O$12,Настройки!$C$12,IF(E11=$O$13,Настройки!$C$13,IF(E11=$O$14,Настройки!$C$14,IF(E11=$O$15,Настройки!$C$15,IF(E11=$O$16,Настройки!$C$16,IF(E11=$O$17,Настройки!$C$17,IF(E11=$O$18,Настройки!$C$18,0)))))))))))))))))*Настройки!$F$2+IF(E11=$O$2,Настройки!$C$2,IF(E11=$O$3,Настройки!$C$3,IF(E11=$O$4,Настройки!$C$4,IF(E11=$O$5,Настройки!$C$5,IF(E11=$O$6,Настройки!$C$6,IF(E11=$O$7,Настройки!$C$7,IF(E11=$O$8,Настройки!$C$8,IF(E11=$O$9,Настройки!$C$9,IF(E11=$O$10,Настройки!$C$10,IF(E11=$O$11,Настройки!$C$11,IF(E11=$O$12,Настройки!$C$12,IF(E11=$O$13,Настройки!$C$13,IF(E11=$O$14,Настройки!$C$14,IF(E11=$O$15,Настройки!$C$15,IF(E11=$O$16,Настройки!$C$16,IF(E11=$O$17,Настройки!$C$17,IF(E11=$O$18,Настройки!$C$18,0))))))))))))))))),IF(E11=$O$2,Настройки!$C$2,IF(E11=$O$3,Настройки!$C$3,IF(E11=$O$4,Настройки!$C$4,IF(E11=$O$5,Настройки!$C$5,IF(E11=$O$6,Настройки!$C$6,IF(E11=$O$7,Настройки!$C$7,IF(E11=$O$8,Настройки!$C$8,IF(E11=$O$9,Настройки!$C$9,IF(E11=$O$10,Настройки!$C$10,IF(E11=$O$11,Настройки!$C$11,IF(E11=$O$12,Настройки!$C$12,IF(E11=$O$13,Настройки!$C$13,IF(E11=$O$14,Настройки!$C$14,IF(E11=$O$15,Настройки!$C$15,IF(E11=$O$16,Настройки!$C$16,IF(E11=$O$17,Настройки!$C$17,IF(E11=$O$18,Настройки!$C$18,0)))))))))))))))))),2)-Настройки!$F$4,IF('Расчет усталости'!H11='Расчет усталости'!$O$21,0,IF(G11=$O$20,IF(E11=$O$2,Настройки!$C$2,IF(E11=$O$3,Настройки!$C$3,IF(E11=$O$4,Настройки!$C$4,IF(E11=$O$5,Настройки!$C$5,IF(E11=$O$6,Настройки!$C$6,IF(E11=$O$7,Настройки!$C$7,IF(E11=$O$8,Настройки!$C$8,IF(E11=$O$9,Настройки!$C$9,IF(E11=$O$10,Настройки!$C$10,IF(E11=$O$11,Настройки!$C$11,IF(E11=$O$12,Настройки!$C$12,IF(E11=$O$13,Настройки!$C$13,IF(E11=$O$14,Настройки!$C$14,IF(E11=$O$15,Настройки!$C$15,IF(E11=$O$16,Настройки!$C$16,IF(E11=$O$17,Настройки!$C$17,IF(E11=$O$18,Настройки!$C$18,0)))))))))))))))))*Настройки!$F$2+IF(E11=$O$2,Настройки!$C$2,IF(E11=$O$3,Настройки!$C$3,IF(E11=$O$4,Настройки!$C$4,IF(E11=$O$5,Настройки!$C$5,IF(E11=$O$6,Настройки!$C$6,IF(E11=$O$7,Настройки!$C$7,IF(E11=$O$8,Настройки!$C$8,IF(E11=$O$9,Настройки!$C$9,IF(E11=$O$10,Настройки!$C$10,IF(E11=$O$11,Настройки!$C$11,IF(E11=$O$12,Настройки!$C$12,IF(E11=$O$13,Настройки!$C$13,IF(E11=$O$14,Настройки!$C$14,IF(E11=$O$15,Настройки!$C$15,IF(E11=$O$16,Настройки!$C$16,IF(E11=$O$17,Настройки!$C$17,IF(E11=$O$18,Настройки!$C$18,0))))))))))))))))),IF(E11=$O$2,Настройки!$C$2,IF(E11=$O$3,Настройки!$C$3,IF(E11=$O$4,Настройки!$C$4,IF(E11=$O$5,Настройки!$C$5,IF(E11=$O$6,Настройки!$C$6,IF(E11=$O$7,Настройки!$C$7,IF(E11=$O$8,Настройки!$C$8,IF(E11=$O$9,Настройки!$C$9,IF(E11=$O$10,Настройки!$C$10,IF(E11=$O$11,Настройки!$C$11,IF(E11=$O$12,Настройки!$C$12,IF(E11=$O$13,Настройки!$C$13,IF(E11=$O$14,Настройки!$C$14,IF(E11=$O$15,Настройки!$C$15,IF(E11=$O$16,Настройки!$C$16,IF(E11=$O$17,Настройки!$C$17,IF(E11=$O$18,Настройки!$C$18,0))))))))))))))))))))),2) -> 0.17 | K11: =IF(SUM($I$2:I11)-SUM($C$2:C11)<0,0,ROUND(SUM($I$2:I11)-SUM($C$2:C11),2)) -> 0.7 | L11: =IF(SUM($J$2:J11)-SUM($C$2:C11)<0,0,ROUND(SUM($J$2:J11)-SUM($C$2:C11),2)) -> 0.78 | O11: ОК | P11: Отборочные Континентов | Q11: 0 | R11: 0 | T11: =ROUND(Настройки!C11*'Расчет усталости'!S11*(1+Настройки!$F$2/2),2) -> 0
A12: Пт | B12: 2 | C12: =Настройки!$F$3 -> 0.1 | F12: =COUNTIF($E$2:E12,"ЧЕМ") -> 3 | I12: =ROUND(IF(AND(M12=$O$22,H12=$O$21),0-Настройки!$F$4,IF('Расчет усталости'!M12='Расчет усталости'!$O$22,IF(E12=$O$2,Настройки!$C$2,IF(E12=$O$3,Настройки!$C$3,IF(E12=$O$4,Настройки!$C$4,IF(E12=$O$5,Настройки!$C$5,IF(E12=$O$6,Настройки!$C$6,IF(E12=$O$7,Настройки!$C$7,IF(E12=$O$8,Настройки!$C$8,IF(E12=$O$9,Настройки!$C$9,IF(E12=$O$10,Настройки!$C$10,IF(E12=$O$11,Настройки!$C$11,IF(E12=$O$12,Настройки!$C$12,IF(E12=$O$13,Настройки!$C$13,IF(E12=$O$14,Настройки!$C$14,IF(E12=$O$15,Настройки!$C$15,IF(E12=$O$16,Настройки!$C$16,IF(E12=$O$17,Настройки!$C$17,IF(E12=$O$18,Настройки!$C$18,0)))))))))))))))))-Настройки!$F$4,IF('Расчет усталости'!H12='Расчет усталости'!$O$21,0,IF(E12=$O$2,Настройки!$C$2,IF(E12=$O$3,Настройки!$C$3,IF(E12=$O$4,Настройки!$C$4,IF(E12=$O$5,Настройки!$C$5,IF(E12=$O$6,Настройки!$C$6,IF(E12=$O$7,Настройки!$C$7,IF(E12=$O$8,Настройки!$C$8,IF(E12=$O$9,Настройки!$C$9,IF(E12=$O$10,Настройки!$C$10,IF(E12=$O$11,Настройки!$C$11,IF(E12=$O$12,Настройки!$C$12,IF(E12=$O$13,Настройки!$C$13,IF(E12=$O$14,Настройки!$C$14,IF(E12=$O$15,Настройки!$C$15,IF(E12=$O$16,Настройки!$C$16,IF(E12=$O$17,Настройки!$C$17,IF(E12=$O$18,Настройки!$C$18,0)))))))))))))))))))),2) -> 0 | J12: =ROUND(IF(AND(M12=$O$22,H12=$O$21),0-Настройки!$F$4,IF('Расчет усталости'!M12='Расчет усталости'!$O$22,ROUND(IF(G12=$O$20,IF(E12=$O$2,Настройки!$C$2,IF(E12=$O$3,Настройки!$C$3,IF(E12=$O$4,Настройки!$C$4,IF(E12=$O$5,Настройки!$C$5,IF(E12=$O$6,Настройки!$C$6,IF(E12=$O$7,Настройки!$C$7,IF(E12=$O$8,Настройки!$C$8,IF(E12=$O$9,Настройки!$C$9,IF(E12=$O$10,Настройки!$C$10,IF(E12=$O$11,Настройки!$C$11,IF(E12=$O$12,Настройки!$C$12,IF(E12=$O$13,Настройки!$C$13,IF(E12=$O$14,Настройки!$C$14,IF(E12=$O$15,Настройки!$C$15,IF(E12=$O$16,Настройки!$C$16,IF(E12=$O$17,Настройки!$C$17,IF(E12=$O$18,Настройки!$C$18,0)))))))))))))))))*Настройки!$F$2+IF(E12=$O$2,Настройки!$C$2,IF(E12=$O$3,Настройки!$C$3,IF(E12=$O$4,Настройки!$C$4,IF(E12=$O$5,Настройки!$C$5,IF(E12=$O$6,Настройки!$C$6,IF(E12=$O$7,Настройки!$C$7,IF(E12=$O$8,Настройки!$C$8,IF(E12=$O$9,Настройки!$C$9,IF(E12=$O$10,Настройки!$C$10,IF(E12=$O$11,Настройки!$C$11,IF(E12=$O$12,Настройки!$C$12,IF(E12=$O$13,Настройки!$C$13,IF(E12=$O$14,Настройки!$C$14,IF(E12=$O$15,Настройки!$C$15,IF(E12=$O$16,Настройки!$C$16,IF(E12=$O$17,Настройки!$C$17,IF(E12=$O$18,Настройки!$C$18,0))))))))))))))))),IF(E12=$O$2,Настройки!$C$2,IF(E12=$O$3,Настройки!$C$3,IF(E12=$O$4,Настройки!$C$4,IF(E12=$O$5,Настройки!$C$5,IF(E12=$O$6,Настройки!$C$6,IF(E12=$O$7,Настройки!$C$7,IF(E12=$O$8,Настройки!$C$8,IF(E12=$O$9,Настройки!$C$9,IF(E12=$O$10,Настройки!$C$10,IF(E12=$O$11,Настройки!$C$11,IF(E12=$O$12,Настройки!$C$12,IF(E12=$O$13,Настройки!$C$13,IF(E12=$O$14,Настройки!$C$14,IF(E12=$O$15,Настройки!$C$15,IF(E12=$O$16,Настройки!$C$16,IF(E12=$O$17,Настройки!$C$17,IF(E12=$O$18,Настройки!$C$18,0)))))))))))))))))),2)-Настройки!$F$4,IF('Расчет усталости'!H12='Расчет усталости'!$O$21,0,IF(G12=$O$20,IF(E12=$O$2,Настройки!$C$2,IF(E12=$O$3,Настройки!$C$3,IF(E12=$O$4,Настройки!$C$4,IF(E12=$O$5,Настройки!$C$5,IF(E12=$O$6,Настройки!$C$6,IF(E12=$O$7,Настройки!$C$7,IF(E12=$O$8,Настройки!$C$8,IF(E12=$O$9,Настройки!$C$9,IF(E12=$O$10,Настройки!$C$10,IF(E12=$O$11,Настройки!$C$11,IF(E12=$O$12,Настройки!$C$12,IF(E12=$O$13,Настройки!$C$13,IF(E12=$O$14,Настройки!$C$14,IF(E12=$O$15,Настройки!$C$15,IF(E12=$O$16,Настройки!$C$16,IF(E12=$O$17,Настройки!$C$17,IF(E12=$O$18,Настройки!$C$18,0)))))))))))))))))*Настройки!$F$2+IF(E12=$O$2,Настройки!$C$2,IF(E12=$O$3,Настройки!$C$3,IF(E12=$O$4,Настройки!$C$4,IF(E12=$O$5,Настройки!$C$5,IF(E12=$O$6,Настройки!$C$6,IF(E12=$O$7,Настройки!$C$7,IF(E12=$O$8,Настройки!$C$8,IF(E12=$O$9,Настройки!$C$9,IF(E12=$O$10,Настройки!$C$10,IF(E12=$O$11,Настройки!$C$11,IF(E12=$O$12,Настройки!$C$12,IF(E12=$O$13,Настройки!$C$13,IF(E12=$O$14,Настройки!$C$14,IF(E12=$O$15,Настройки!$C$15,IF(E12=$O$16,Настройки!$C$16,IF(E12=$O$17,Настройки!$C$17,IF(E12=$O$18,Настройки!$C$18,0))))))))))))))))),IF(E12=$O$2,Настройки!$C$2,IF(E12=$O$3,Настройки!$C$3,IF(E12=$O$4,Настройки!$C$4,IF(E12=$O$5,Настройки!$C$5,IF(E12=$O$6,Настройки!$C$6,IF(E12=$O$7,Настройки!$C$7,IF(E12=$O$8,Настройки!$C$8,IF(E12=$O$9,Настройки!$C$9,IF(E12=$O$10,Настройки!$C$10,IF(E12=$O$11,Настройки!$C$11,IF(E12=$O$12,Настройки!$C$12,IF(E12=$O$13,Настройки!$C$13,IF(E12=$O$14,Настройки!$C$14,IF(E12=$O$15,Настройки!$C$15,IF(E12=$O$16,Настройки!$C$16,IF(E12=$O$17,Настройки!$C$17,IF(E12=$O$18,Настройки!$C$18,0))))))))))))))))))))),2) -> 0 | K12: =IF(SUM($I$2:I12)-SUM($C$2:C12)<0,0,ROUND(SUM($I$2:I12)-SUM($C$2:C12),2)) -> 0.6 | L12: =IF(SUM($J$2:J12)-SUM($C$2:C12)<0,0,ROUND(SUM($J$2:J12)-SUM($C$2:C12),2)) -> 0.68 | O12: ОЧМ | P12: Отборочные ЧМ | Q12: 0 | R12: 0 | T12: =ROUND(Настройки!C12*'Расчет усталости'!S12*(1+Настройки!$F$2/2),2) -> 0
A13: Сб | B13: 2 | C13: =Настройки!$F$3 -> 0.1 | D13: 8 | E13: ЧЕМ | F13: =COUNTIF($E$2:E13,"ЧЕМ") -> 4 | I13: =ROUND(IF(AND(M13=$O$22,H13=$O$21),0-Настройки!$F$4,IF('Расчет усталости'!M13='Расчет усталости'!$O$22,IF(E13=$O$2,Настройки!$C$2,IF(E13=$O$3,Настройки!$C$3,IF(E13=$O$4,Настройки!$C$4,IF(E13=$O$5,Настройки!$C$5,IF(E13=$O$6,Настройки!$C$6,IF(E13=$O$7,Настройки!$C$7,IF(E13=$O$8,Настройки!$C$8,IF(E13=$O$9,Настройки!$C$9,IF(E13=$O$10,Настройки!$C$10,IF(E13=$O$11,Настройки!$C$11,IF(E13=$O$12,Настройки!$C$12,IF(E13=$O$13,Настройки!$C$13,IF(E13=$O$14,Настройки!$C$14,IF(E13=$O$15,Настройки!$C$15,IF(E13=$O$16,Настройки!$C$16,IF(E13=$O$17,Настройки!$C$17,IF(E13=$O$18,Настройки!$C$18,0)))))))))))))))))-Настройки!$F$4,IF('Расчет усталости'!H13='Расчет усталости'!$O$21,0,IF(E13=$O$2,Настройки!$C$2,IF(E13=$O$3,Настройки!$C$3,IF(E13=$O$4,Настройки!$C$4,IF(E13=$O$5,Настройки!$C$5,IF(E13=$O$6,Настройки!$C$6,IF(E13=$O$7,Настройки!$C$7,IF(E13=$O$8,Настройки!$C$8,IF(E13=$O$9,Настройки!$C$9,IF(E13=$O$10,Настройки!$C$10,IF(E13=$O$11,Настройки!$C$11,IF(E13=$O$12,Настройки!$C$12,IF(E13=$O$13,Настройки!$C$13,IF(E13=$O$14,Настройки!$C$14,IF(E13=$O$15,Настройки!$C$15,IF(E13=$O$16,Настройки!$C$16,IF(E13=$O$17,Настройки!$C$17,IF(E13=$O$18,Настройки!$C$18,0)))))))))))))))))))),2) -> 0.3 | J13: =ROUND(IF(AND(M13=$O$22,H13=$O$21),0-Настройки!$F$4,IF('Расчет усталости'!M13='Расчет усталости'!$O$22,ROUND(IF(G13=$O$20,IF(E13=$O$2,Настройки!$C$2,IF(E13=$O$3,Настройки!$C$3,IF(E13=$O$4,Настройки!$C$4,IF(E13=$O$5,Настройки!$C$5,IF(E13=$O$6,Настройки!$C$6,IF(E13=$O$7,Настройки!$C$7,IF(E13=$O$8,Настройки!$C$8,IF(E13=$O$9,Настройки!$C$9,IF(E13=$O$10,Настройки!$C$10,IF(E13=$O$11,Настройки!$C$11,IF(E13=$O$12,Настройки!$C$12,IF(E13=$O$13,Настройки!$C$13,IF(E13=$O$14,Настройки!$C$14,IF(E13=$O$15,Настройки!$C$15,IF(E13=$O$16,Настройки!$C$16,IF(E13=$O$17,Настройки!$C$17,IF(E13=$O$18,Настройки!$C$18,0)))))))))))))))))*Настройки!$F$2+IF(E13=$O$2,Настройки!$C$2,IF(E13=$O$3,Настройки!$C$3,IF(E13=$O$4,Настройки!$C$4,IF(E13=$O$5,Настройки!$C$5,IF(E13=$O$6,Настройки!$C$6,IF(E13=$O$7,Настройки!$C$7,IF(E13=$O$8,Настройки!$C$8,IF(E13=$O$9,Настройки!$C$9,IF(E13=$O$10,Настройки!$C$10,IF(E13=$O$11,Настройки!$C$11,IF(E13=$O$12,Настройки!$C$12,IF(E13=$O$13,Настройки!$C$13,IF(E13=$O$14,Настройки!$C$14,IF(E13=$O$15,Настройки!$C$15,IF(E13=$O$16,Настройки!$C$16,IF(E13=$O$17,Настройки!$C$17,IF(E13=$O$18,Настройки!$C$18,0))))))))))))))))),IF(E13=$O$2,Настройки!$C$2,IF(E13=$O$3,Настройки!$C$3,IF(E13=$O$4,Настройки!$C$4,IF(E13=$O$5,Настройки!$C$5,IF(E13=$O$6,Настройки!$C$6,IF(E13=$O$7,Настройки!$C$7,IF(E13=$O$8,Настройки!$C$8,IF(E13=$O$9,Настройки!$C$9,IF(E13=$O$10,Настройки!$C$10,IF(E13=$O$11,Настройки!$C$11,IF(E13=$O$12,Настройки!$C$12,IF(E13=$O$13,Настройки!$C$13,IF(E13=$O$14,Настройки!$C$14,IF(E13=$O$15,Настройки!$C$15,IF(E13=$O$16,Настройки!$C$16,IF(E13=$O$17,Настройки!$C$17,IF(E13=$O$18,Настройки!$C$18,0)))))))))))))))))),2)-Настройки!$F$4,IF('Расчет усталости'!H13='Расчет усталости'!$O$21,0,IF(G13=$O$20,IF(E13=$O$2,Настройки!$C$2,IF(E13=$O$3,Настройки!$C$3,IF(E13=$O$4,Настройки!$C$4,IF(E13=$O$5,Настройки!$C$5,IF(E13=$O$6,Настройки!$C$6,IF(E13=$O$7,Настройки!$C$7,IF(E13=$O$8,Настройки!$C$8,IF(E13=$O$9,Настройки!$C$9,IF(E13=$O$10,Настройки!$C$10,IF(E13=$O$11,Настройки!$C$11,IF(E13=$O$12,Настройки!$C$12,IF(E13=$O$13,Настройки!$C$13,IF(E13=$O$14,Настройки!$C$14,IF(E13=$O$15,Настройки!$C$15,IF(E13=$O$16,Настройки!$C$16,IF(E13=$O$17,Настройки!$C$17,IF(E13=$O$18,Настройки!$C$18,0)))))))))))))))))*Настройки!$F$2+IF(E13=$O$2,Настройки!$C$2,IF(E13=$O$3,Настройки!$C$3,IF(E13=$O$4,Настройки!$C$4,IF(E13=$O$5,Настройки!$C$5,IF(E13=$O$6,Настройки!$C$6,IF(E13=$O$7,Настройки!$C$7,IF(E13=$O$8,Настройки!$C$8,IF(E13=$O$9,Настройки!$C$9,IF(E13=$O$10,Настройки!$C$10,IF(E13=$O$11,Настройки!$C$11,IF(E13=$O$12,Настройки!$C$12,IF(E13=$O$13,Настройки!$C$13,IF(E13=$O$14,Настройки!$C$14,IF(E13=$O$15,Настройки!$C$15,IF(E13=$O$16,Настройки!$C$16,IF(E13=$O$17,Настройки!$C$17,IF(E13=$O$18,Настройки!$C$18,0))))))))))))))))),IF(E13=$O$2,Настройки!$C$2,IF(E13=$O$3,Настройки!$C$3,IF(E13=$O$4,Настройки!$C$4,IF(E13=$O$5,Настройки!$C$5,IF(E13=$O$6,Настройки!$C$6,IF(E13=$O$7,Настройки!$C$7,IF(E13=$O$8,Настройки!$C$8,IF(E13=$O$9,Настройки!$C$9,IF(E13=$O$10,Настройки!$C$10,IF(E13=$O$11,Настройки!$C$11,IF(E13=$O$12,Настройки!$C$12,IF(E13=$O$13,Настройки!$C$13,IF(E13=$O$14,Настройки!$C$14,IF(E13=$O$15,Настройки!$C$15,IF(E13=$O$16,Настройки!$C$16,IF(E13=$O$17,Настройки!$C$17,IF(E13=$O$18,Настройки!$C$18,0))))))))))))))))))))),2) -> 0.3 | K13: =IF(SUM($I$2:I13)-SUM($C$2:C13)<0,0,ROUND(SUM($I$2:I13)-SUM($C$2:C13),2)) -> 0.8 | L13: =IF(SUM($J$2:J13)-SUM($C$2:C13)<0,0,ROUND(SUM($J$2:J13)-SUM($C$2:C13),2)) -> 0.88 | O13: С | P13: Суперкубок | Q13: 0 | R13: 0 | T13: =ROUND(Настройки!C13*'Расчет усталости'!S13*(1+Настройки!$F$2/2),2) -> 0
A14: Пн | B14: 3 | C14: =Настройки!$F$3 -> 0.1 | F14: =COUNTIF($E$2:E14,"ЧЕМ") -> 4 | I14: =ROUND(IF(AND(M14=$O$22,H14=$O$21),0-Настройки!$F$4,IF('Расчет усталости'!M14='Расчет усталости'!$O$22,IF(E14=$O$2,Настройки!$C$2,IF(E14=$O$3,Настройки!$C$3,IF(E14=$O$4,Настройки!$C$4,IF(E14=$O$5,Настройки!$C$5,IF(E14=$O$6,Настройки!$C$6,IF(E14=$O$7,Настройки!$C$7,IF(E14=$O$8,Настройки!$C$8,IF(E14=$O$9,Настройки!$C$9,IF(E14=$O$10,Настройки!$C$10,IF(E14=$O$11,Настройки!$C$11,IF(E14=$O$12,Настройки!$C$12,IF(E14=$O$13,Настройки!$C$13,IF(E14=$O$14,Настройки!$C$14,IF(E14=$O$15,Настройки!$C$15,IF(E14=$O$16,Настройки!$C$16,IF(E14=$O$17,Настройки!$C$17,IF(E14=$O$18,Настройки!$C$18,0)))))))))))))))))-Настройки!$F$4,IF('Расчет усталости'!H14='Расчет усталости'!$O$21,0,IF(E14=$O$2,Настройки!$C$2,IF(E14=$O$3,Настройки!$C$3,IF(E14=$O$4,Настройки!$C$4,IF(E14=$O$5,Настройки!$C$5,IF(E14=$O$6,Настройки!$C$6,IF(E14=$O$7,Настройки!$C$7,IF(E14=$O$8,Настройки!$C$8,IF(E14=$O$9,Настройки!$C$9,IF(E14=$O$10,Настройки!$C$10,IF(E14=$O$11,Настройки!$C$11,IF(E14=$O$12,Настройки!$C$12,IF(E14=$O$13,Настройки!$C$13,IF(E14=$O$14,Настройки!$C$14,IF(E14=$O$15,Настройки!$C$15,IF(E14=$O$16,Настройки!$C$16,IF(E14=$O$17,Настройки!$C$17,IF(E14=$O$18,Настройки!$C$18,0)))))))))))))))))))),2) -> 0 | J14: =ROUND(IF(AND(M14=$O$22,H14=$O$21),0-Настройки!$F$4,IF('Расчет усталости'!M14='Расчет усталости'!$O$22,ROUND(IF(G14=$O$20,IF(E14=$O$2,Настройки!$C$2,IF(E14=$O$3,Настройки!$C$3,IF(E14=$O$4,Настройки!$C$4,IF(E14=$O$5,Настройки!$C$5,IF(E14=$O$6,Настройки!$C$6,IF(E14=$O$7,Настройки!$C$7,IF(E14=$O$8,Настройки!$C$8,IF(E14=$O$9,Настройки!$C$9,IF(E14=$O$10,Настройки!$C$10,IF(E14=$O$11,Настройки!$C$11,IF(E14=$O$12,Настройки!$C$12,IF(E14=$O$13,Настройки!$C$13,IF(E14=$O$14,Настройки!$C$14,IF(E14=$O$15,Настройки!$C$15,IF(E14=$O$16,Настройки!$C$16,IF(E14=$O$17,Настройки!$C$17,IF(E14=$O$18,Настройки!$C$18,0)))))))))))))))))*Настройки!$F$2+IF(E14=$O$2,Настройки!$C$2,IF(E14=$O$3,Настройки!$C$3,IF(E14=$O$4,Настройки!$C$4,IF(E14=$O$5,Настройки!$C$5,IF(E14=$O$6,Настройки!$C$6,IF(E14=$O$7,Настройки!$C$7,IF(E14=$O$8,Настройки!$C$8,IF(E14=$O$9,Настройки!$C$9,IF(E14=$O$10,Настройки!$C$10,IF(E14=$O$11,Настройки!$C$11,IF(E14=$O$12,Настройки!$C$12,IF(E14=$O$13,Настройки!$C$13,IF(E14=$O$14,Настройки!$C$14,IF(E14=$O$15,Настройки!$C$15,IF(E14=$O$16,Настройки!$C$16,IF(E14=$O$17,Настройки!$C$17,IF(E14=$O$18,Настройки!$C$18,0))))))))))))))))),IF(E14=$O$2,Настройки!$C$2,IF(E14=$O$3,Настройки!$C$3,IF(E14=$O$4,Настройки!$C$4,IF(E14=$O$5,Настройки!$C$5,IF(E14=$O$6,Настройки!$C$6,IF(E14=$O$7,Настройки!$C$7,IF(E14=$O$8,Настройки!$C$8,IF(E14=$O$9,Настройки!$C$9,IF(E14=$O$10,Настройки!$C$10,IF(E14=$O$11,Настройки!$C$11,IF(E14=$O$12,Настройки!$C$12,IF(E14=$O$13,Настройки!$C$13,IF(E14=$O$14,Настройки!$C$14,IF(E14=$O$15,Настройки!$C$15,IF(E14=$O$16,Настройки!$C$16,IF(E14=$O$17,Настройки!$C$17,IF(E14=$O$18,Настройки!$C$18,0)))))))))))))))))),2)-Настройки!$F$4,IF('Расчет усталости'!H14='Расчет усталости'!$O$21,0,IF(G14=$O$20,IF(E14=$O$2,Настройки!$C$2,IF(E14=$O$3,Настройки!$C$3,IF(E14=$O$4,Настройки!$C$4,IF(E14=$O$5,Настройки!$C$5,IF(E14=$O$6,Настройки!$C$6,IF(E14=$O$7,Настройки!$C$7,IF(E14=$O$8,Настройки!$C$8,IF(E14=$O$9,Настройки!$C$9,IF(E14=$O$10,Настройки!$C$10,IF(E14=$O$11,Настройки!$C$11,IF(E14=$O$12,Настройки!$C$12,IF(E14=$O$13,Настройки!$C$13,IF(E14=$O$14,Настройки!$C$14,IF(E14=$O$15,Настройки!$C$15,IF(E14=$O$16,Настройки!$C$16,IF(E14=$O$17,Настройки!$C$17,IF(E14=$O$18,Настройки!$C$18,0)))))))))))))))))*Настройки!$F$2+IF(E14=$O$2,Настройки!$C$2,IF(E14=$O$3,Настройки!$C$3,IF(E14=$O$4,Настройки!$C$4,IF(E14=$O$5,Настройки!$C$5,IF(E14=$O$6,Настройки!$C$6,IF(E14=$O$7,Настройки!$C$7,IF(E14=$O$8,Настройки!$C$8,IF(E14=$O$9,Настройки!$C$9,IF(E14=$O$10,Настройки!$C$10,IF(E14=$O$11,Настройки!$C$11,IF(E14=$O$12,Настройки!$C$12,IF(E14=$O$13,Настройки!$C$13,IF(E14=$O$14,Настройки!$C$14,IF(E14=$O$15,Настройки!$C$15,IF(E14=$O$16,Настройки!$C$16,IF(E14=$O$17,Настройки!$C$17,IF(E14=$O$18,Настройки!$C$18,0))))))))))))))))),IF(E14=$O$2,Настройки!$C$2,IF(E14=$O$3,Настройки!$C$3,IF(E14=$O$4,Настройки!$C$4,IF(E14=$O$5,Настройки!$C$5,IF(E14=$O$6,Настройки!$C$6,IF(E14=$O$7,Настройки!$C$7,IF(E14=$O$8,Настройки!$C$8,IF(E14=$O$9,Настройки!$C$9,IF(E14=$O$10,Настройки!$C$10,IF(E14=$O$11,Настройки!$C$11,IF(E14=$O$12,Настройки!$C$12,IF(E14=$O$13,Настройки!$C$13,IF(E14=$O$14,Настройки!$C$14,IF(E14=$O$15,Настройки!$C$15,IF(E14=$O$16,Настройки!$C$16,IF(E14=$O$17,Настройки!$C$17,IF(E14=$O$18,Настройки!$C$18,0))))))))))))))))))))),2) -> 0 | K14: =IF(SUM($I$2:I14)-SUM($C$2:C14)<0,0,ROUND(SUM($I$2:I14)-SUM($C$2:C14),2)) -> 0.7 | L14: =IF(SUM($J$2:J14)-SUM($C$2:C14)<0,0,ROUND(SUM($J$2:J14)-SUM($C$2:C14),2)) -> 0.78 | O14: Т | P14: Товарищеские матчи | Q14: 26 | R14: =COUNTIF(INDIRECT(CONCATENATE("E2:E",MATCH($T$25,$F$1:$F$127,0)),1),O14) -> 9 | S14: 0 | T14: =ROUND(Настройки!C14*'Расчет усталости'!S14*(1+Настройки!$F$2/2),2) -> 0
A15: Вт | B15: 3 | C15: =Настройки!$F$3 -> 0.1 | D15: 9 | E15: Т | F15: =COUNTIF($E$2:E15,"ЧЕМ") -> 4 | G15: Г | I15: =ROUND(IF(AND(M15=$O$22,H15=$O$21),0-Настройки!$F$4,IF('Расчет усталости'!M15='Расчет усталости'!$O$22,IF(E15=$O$2,Настройки!$C$2,IF(E15=$O$3,Настройки!$C$3,IF(E15=$O$4,Настройки!$C$4,IF(E15=$O$5,Настройки!$C$5,IF(E15=$O$6,Настройки!$C$6,IF(E15=$O$7,Настройки!$C$7,IF(E15=$O$8,Настройки!$C$8,IF(E15=$O$9,Настройки!$C$9,IF(E15=$O$10,Настройки!$C$10,IF(E15=$O$11,Настройки!$C$11,IF(E15=$O$12,Настройки!$C$12,IF(E15=$O$13,Настройки!$C$13,IF(E15=$O$14,Настройки!$C$14,IF(E15=$O$15,Настройки!$C$15,IF(E15=$O$16,Настройки!$C$16,IF(E15=$O$17,Настройки!$C$17,IF(E15=$O$18,Настройки!$C$18,0)))))))))))))))))-Настройки!$F$4,IF('Расчет усталости'!H15='Расчет усталости'!$O$21,0,IF(E15=$O$2,Настройки!$C$2,IF(E15=$O$3,Настройки!$C$3,IF(E15=$O$4,Настройки!$C$4,IF(E15=$O$5,Настройки!$C$5,IF(E15=$O$6,Настройки!$C$6,IF(E15=$O$7,Настройки!$C$7,IF(E15=$O$8,Настройки!$C$8,IF(E15=$O$9,Настройки!$C$9,IF(E15=$O$10,Настройки!$C$10,IF(E15=$O$11,Настройки!$C$11,IF(E15=$O$12,Настройки!$C$12,IF(E15=$O$13,Настройки!$C$13,IF(E15=$O$14,Настройки!$C$14,IF(E15=$O$15,Настройки!$C$15,IF(E15=$O$16,Настройки!$C$16,IF(E15=$O$17,Настройки!$C$17,IF(E15=$O$18,Настройки!$C$18,0)))))))))))))))))))),2) -> 0.15 | J15: =ROUND(IF(AND(M15=$O$22,H15=$O$21),0-Настройки!$F$4,IF('Расчет усталости'!M15='Расчет усталости'!$O$22,ROUND(IF(G15=$O$20,IF(E15=$O$2,Настройки!$C$2,IF(E15=$O$3,Настройки!$C$3,IF(E15=$O$4,Настройки!$C$4,IF(E15=$O$5,Настройки!$C$5,IF(E15=$O$6,Настройки!$C$6,IF(E15=$O$7,Настройки!$C$7,IF(E15=$O$8,Настройки!$C$8,IF(E15=$O$9,Настройки!$C$9,IF(E15=$O$10,Настройки!$C$10,IF(E15=$O$11,Настройки!$C$11,IF(E15=$O$12,Настройки!$C$12,IF(E15=$O$13,Настройки!$C$13,IF(E15=$O$14,Настройки!$C$14,IF(E15=$O$15,Настройки!$C$15,IF(E15=$O$16,Настройки!$C$16,IF(E15=$O$17,Настройки!$C$17,IF(E15=$O$18,Настройки!$C$18,0)))))))))))))))))*Настройки!$F$2+IF(E15=$O$2,Настройки!$C$2,IF(E15=$O$3,Настройки!$C$3,IF(E15=$O$4,Настройки!$C$4,IF(E15=$O$5,Настройки!$C$5,IF(E15=$O$6,Настройки!$C$6,IF(E15=$O$7,Настройки!$C$7,IF(E15=$O$8,Настройки!$C$8,IF(E15=$O$9,Настройки!$C$9,IF(E15=$O$10,Настройки!$C$10,IF(E15=$O$11,Настройки!$C$11,IF(E15=$O$12,Настройки!$C$12,IF(E15=$O$13,Настройки!$C$13,IF(E15=$O$14,Настройки!$C$14,IF(E15=$O$15,Настройки!$C$15,IF(E15=$O$16,Настройки!$C$16,IF(E15=$O$17,Настройки!$C$17,IF(E15=$O$18,Настройки!$C$18,0))))))))))))))))),IF(E15=$O$2,Настройки!$C$2,IF(E15=$O$3,Настройки!$C$3,IF(E15=$O$4,Настройки!$C$4,IF(E15=$O$5,Настройки!$C$5,IF(E15=$O$6,Настройки!$C$6,IF(E15=$O$7,Настройки!$C$7,IF(E15=$O$8,Настройки!$C$8,IF(E15=$O$9,Настройки!$C$9,IF(E15=$O$10,Настройки!$C$10,IF(E15=$O$11,Настройки!$C$11,IF(E15=$O$12,Настройки!$C$12,IF(E15=$O$13,Настройки!$C$13,IF(E15=$O$14,Настройки!$C$14,IF(E15=$O$15,Настройки!$C$15,IF(E15=$O$16,Настройки!$C$16,IF(E15=$O$17,Настройки!$C$17,IF(E15=$O$18,Настройки!$C$18,0)))))))))))))))))),2)-Настройки!$F$4,IF('Расчет усталости'!H15='Расчет усталости'!$O$21,0,IF(G15=$O$20,IF(E15=$O$2,Настройки!$C$2,IF(E15=$O$3,Настройки!$C$3,IF(E15=$O$4,Настройки!$C$4,IF(E15=$O$5,Настройки!$C$5,IF(E15=$O$6,Настройки!$C$6,IF(E15=$O$7,Настройки!$C$7,IF(E15=$O$8,Настройки!$C$8,IF(E15=$O$9,Настройки!$C$9,IF(E15=$O$10,Настройки!$C$10,IF(E15=$O$11,Настройки!$C$11,IF(E15=$O$12,Настройки!$C$12,IF(E15=$O$13,Настройки!$C$13,IF(E15=$O$14,Настройки!$C$14,IF(E15=$O$15,Настройки!$C$15,IF(E15=$O$16,Настройки!$C$16,IF(E15=$O$17,Настройки!$C$17,IF(E15=$O$18,Настройки!$C$18,0)))))))))))))))))*Настройки!$F$2+IF(E15=$O$2,Настройки!$C$2,IF(E15=$O$3,Настройки!$C$3,IF(E15=$O$4,Настройки!$C$4,IF(E15=$O$5,Настройки!$C$5,IF(E15=$O$6,Настройки!$C$6,IF(E15=$O$7,Настройки!$C$7,IF(E15=$O$8,Настройки!$C$8,IF(E15=$O$9,Настройки!$C$9,IF(E15=$O$10,Настройки!$C$10,IF(E15=$O$11,Настройки!$C$11,IF(E15=$O$12,Настройки!$C$12,IF(E15=$O$13,Настройки!$C$13,IF(E15=$O$14,Настройки!$C$14,IF(E15=$O$15,Настройки!$C$15,IF(E15=$O$16,Настройки!$C$16,IF(E15=$O$17,Настройки!$C$17,IF(E15=$O$18,Настройки!$C$18,0))))))))))))))))),IF(E15=$O$2,Настройки!$C$2,IF(E15=$O$3,Настройки!$C$3,IF(E15=$O$4,Настройки!$C$4,IF(E15=$O$5,Настройки!$C$5,IF(E15=$O$6,Настройки!$C$6,IF(E15=$O$7,Настройки!$C$7,IF(E15=$O$8,Настройки!$C$8,IF(E15=$O$9,Настройки!$C$9,IF(E15=$O$10,Настройки!$C$10,IF(E15=$O$11,Настройки!$C$11,IF(E15=$O$12,Настройки!$C$12,IF(E15=$O$13,Настройки!$C$13,IF(E15=$O$14,Настройки!$C$14,IF(E15=$O$15,Настройки!$C$15,IF(E15=$O$16,Настройки!$C$16,IF(E15=$O$17,Настройки!$C$17,IF(E15=$O$18,Настройки!$C$18,0))))))))))))))))))))),2) -> 0.17 | K15: =IF(SUM($I$2:I15)-SUM($C$2:C15)<0,0,ROUND(SUM($I$2:I15)-SUM($C$2:C15),2)) -> 0.75 | L15: =IF(SUM($J$2:J15)-SUM($C$2:C15)<0,0,ROUND(SUM($J$2:J15)-SUM($C$2:C15),2)) -> 0.85 | O15: ТС | P15: Товарищеские матчи сборных | Q15: 0 | R15: 0 | T15: =ROUND(Настройки!C15*'Расчет усталости'!S15*(1+Настройки!$F$2/2),2) -> 0
A16: Ср | B16: 3 | C16: =Настройки!$F$3 -> 0.1 | D16: 10 | E16: Т | F16: =COUNTIF($E$2:E16,"ЧЕМ") -> 4 | G16: Г | I16: =ROUND(IF(AND(M16=$O$22,H16=$O$21),0-Настройки!$F$4,IF('Расчет усталости'!M16='Расчет усталости'!$O$22,IF(E16=$O$2,Настройки!$C$2,IF(E16=$O$3,Настройки!$C$3,IF(E16=$O$4,Настройки!$C$4,IF(E16=$O$5,Настройки!$C$5,IF(E16=$O$6,Настройки!$C$6,IF(E16=$O$7,Настройки!$C$7,IF(E16=$O$8,Настройки!$C$8,IF(E16=$O$9,Настройки!$C$9,IF(E16=$O$10,Настройки!$C$10,IF(E16=$O$11,Настройки!$C$11,IF(E16=$O$12,Настройки!$C$12,IF(E16=$O$13,Настройки!$C$13,IF(E16=$O$14,Настройки!$C$14,IF(E16=$O$15,Настройки!$C$15,IF(E16=$O$16,Настройки!$C$16,IF(E16=$O$17,Настройки!$C$17,IF(E16=$O$18,Настройки!$C$18,0)))))))))))))))))-Настройки!$F$4,IF('Расчет усталости'!H16='Расчет усталости'!$O$21,0,IF(E16=$O$2,Настройки!$C$2,IF(E16=$O$3,Настройки!$C$3,IF(E16=$O$4,Настройки!$C$4,IF(E16=$O$5,Настройки!$C$5,IF(E16=$O$6,Настройки!$C$6,IF(E16=$O$7,Настройки!$C$7,IF(E16=$O$8,Настройки!$C$8,IF(E16=$O$9,Настройки!$C$9,IF(E16=$O$10,Настройки!$C$10,IF(E16=$O$11,Настройки!$C$11,IF(E16=$O$12,Настройки!$C$12,IF(E16=$O$13,Настройки!$C$13,IF(E16=$O$14,Настройки!$C$14,IF(E16=$O$15,Настройки!$C$15,IF(E16=$O$16,Настройки!$C$16,IF(E16=$O$17,Настройки!$C$17,IF(E16=$O$18,Настройки!$C$18,0)))))))))))))))))))),2) -> 0.15 | J16: =ROUND(IF(AND(M16=$O$22,H16=$O$21),0-Настройки!$F$4,IF('Расчет усталости'!M16='Расчет усталости'!$O$22,ROUND(IF(G16=$O$20,IF(E16=$O$2,Настройки!$C$2,IF(E16=$O$3,Настройки!$C$3,IF(E16=$O$4,Настройки!$C$4,IF(E16=$O$5,Настройки!$C$5,IF(E16=$O$6,Настройки!$C$6,IF(E16=$O$7,Настройки!$C$7,IF(E16=$O$8,Настройки!$C$8,IF(E16=$O$9,Настройки!$C$9,IF(E16=$O$10,Настройки!$C$10,IF(E16=$O$11,Настройки!$C$11,IF(E16=$O$12,Настройки!$C$12,IF(E16=$O$13,Настройки!$C$13,IF(E16=$O$14,Настройки!$C$14,IF(E16=$O$15,Настройки!$C$15,IF(E16=$O$16,Настройки!$C$16,IF(E16=$O$17,Настройки!$C$17,IF(E16=$O$18,Настройки!$C$18,0)))))))))))))))))*Настройки!$F$2+IF(E16=$O$2,Настройки!$C$2,IF(E16=$O$3,Настройки!$C$3,IF(E16=$O$4,Настройки!$C$4,IF(E16=$O$5,Настройки!$C$5,IF(E16=$O$6,Настройки!$C$6,IF(E16=$O$7,Настройки!$C$7,IF(E16=$O$8,Настройки!$C$8,IF(E16=$O$9,Настройки!$C$9,IF(E16=$O$10,Настройки!$C$10,IF(E16=$O$11,Настройки!$C$11,IF(E16=$O$12,Настройки!$C$12,IF(E16=$O$13,Настройки!$C$13,IF(E16=$O$14,Настройки!$C$14,IF(E16=$O$15,Настройки!$C$15,IF(E16=$O$16,Настройки!$C$16,IF(E16=$O$17,Настройки!$C$17,IF(E16=$O$18,Настройки!$C$18,0))))))))))))))))),IF(E16=$O$2,Настройки!$C$2,IF(E16=$O$3,Настройки!$C$3,IF(E16=$O$4,Настройки!$C$4,IF(E16=$O$5,Настройки!$C$5,IF(E16=$O$6,Настройки!$C$6,IF(E16=$O$7,Настройки!$C$7,IF(E16=$O$8,Настройки!$C$8,IF(E16=$O$9,Настройки!$C$9,IF(E16=$O$10,Настройки!$C$10,IF(E16=$O$11,Настройки!$C$11,IF(E16=$O$12,Настройки!$C$12,IF(E16=$O$13,Настройки!$C$13,IF(E16=$O$14,Настройки!$C$14,IF(E16=$O$15,Настройки!$C$15,IF(E16=$O$16,Настройки!$C$16,IF(E16=$O$17,Настройки!$C$17,IF(E16=$O$18,Настройки!$C$18,0)))))))))))))))))),2)-Настройки!$F$4,IF('Расчет усталости'!H16='Расчет усталости'!$O$21,0,IF(G16=$O$20,IF(E16=$O$2,Настройки!$C$2,IF(E16=$O$3,Настройки!$C$3,IF(E16=$O$4,Настройки!$C$4,IF(E16=$O$5,Настройки!$C$5,IF(E16=$O$6,Настройки!$C$6,IF(E16=$O$7,Настройки!$C$7,IF(E16=$O$8,Настройки!$C$8,IF(E16=$O$9,Настройки!$C$9,IF(E16=$O$10,Настройки!$C$10,IF(E16=$O$11,Настройки!$C$11,IF(E16=$O$12,Настройки!$C$12,IF(E16=$O$13,Настройки!$C$13,IF(E16=$O$14,Настройки!$C$14,IF(E16=$O$15,Настройки!$C$15,IF(E16=$O$16,Настройки!$C$16,IF(E16=$O$17,Настройки!$C$17,IF(E16=$O$18,Настройки!$C$18,0)))))))))))))))))*Настройки!$F$2+IF(E16=$O$2,Настройки!$C$2,IF(E16=$O$3,Настройки!$C$3,IF(E16=$O$4,Настройки!$C$4,IF(E16=$O$5,Настройки!$C$5,IF(E16=$O$6,Настройки!$C$6,IF(E16=$O$7,Настройки!$C$7,IF(E16=$O$8,Настройки!$C$8,IF(E16=$O$9,Настройки!$C$9,IF(E16=$O$10,Настройки!$C$10,IF(E16=$O$11,Настройки!$C$11,IF(E16=$O$12,Настройки!$C$12,IF(E16=$O$13,Настройки!$C$13,IF(E16=$O$14,Настройки!$C$14,IF(E16=$O$15,Настройки!$C$15,IF(E16=$O$16,Настройки!$C$16,IF(E16=$O$17,Настройки!$C$17,IF(E16=$O$18,Настройки!$C$18,0))))))))))))))))),IF(E16=$O$2,Настройки!$C$2,IF(E16=$O$3,Настройки!$C$3,IF(E16=$O$4,Настройки!$C$4,IF(E16=$O$5,Настройки!$C$5,IF(E16=$O$6,Настройки!$C$6,IF(E16=$O$7,Настройки!$C$7,IF(E16=$O$8,Настройки!$C$8,IF(E16=$O$9,Настройки!$C$9,IF(E16=$O$10,Настройки!$C$10,IF(E16=$O$11,Настройки!$C$11,IF(E16=$O$12,Настройки!$C$12,IF(E16=$O$13,Настройки!$C$13,IF(E16=$O$14,Настройки!$C$14,IF(E16=$O$15,Настройки!$C$15,IF(E16=$O$16,Настройки!$C$16,IF(E16=$O$17,Настройки!$C$17,IF(E16=$O$18,Настройки!$C$18,0))))))))))))))))))))),2) -> 0.17 | K16: =IF(SUM($I$2:I16)-SUM($C$2:C16)<0,0,ROUND(SUM($I$2:I16)-SUM($C$2:C16),2)) -> 0.8 | L16: =IF(SUM($J$2:J16)-SUM($C$2:C16)<0,0,ROUND(SUM($J$2:J16)-SUM($C$2:C16),2)) -> 0.92 | O16: ЧК | P16: Чемпионат Континента | Q16: 0 | R16: 0 | T16: =ROUND(Настройки!C16*'Расчет усталости'!S16*(1+Настройки!$F$2/2),2) -> 0
A17: Чт | B17: 3 | C17: =Настройки!$F$3 -> 0.1 | D17: 11 | E17: КТ | F17: =COUNTIF($E$2:E17,"ЧЕМ") -> 4 | I17: =ROUND(IF(AND(M17=$O$22,H17=$O$21),0-Настройки!$F$4,IF('Расчет усталости'!M17='Расчет усталости'!$O$22,IF(E17=$O$2,Настройки!$C$2,IF(E17=$O$3,Настройки!$C$3,IF(E17=$O$4,Настройки!$C$4,IF(E17=$O$5,Настройки!$C$5,IF(E17=$O$6,Настройки!$C$6,IF(E17=$O$7,Настройки!$C$7,IF(E17=$O$8,Настройки!$C$8,IF(E17=$O$9,Настройки!$C$9,IF(E17=$O$10,Настройки!$C$10,IF(E17=$O$11,Настройки!$C$11,IF(E17=$O$12,Настройки!$C$12,IF(E17=$O$13,Настройки!$C$13,IF(E17=$O$14,Настройки!$C$14,IF(E17=$O$15,Настройки!$C$15,IF(E17=$O$16,Настройки!$C$16,IF(E17=$O$17,Настройки!$C$17,IF(E17=$O$18,Настройки!$C$18,0)))))))))))))))))-Настройки!$F$4,IF('Расчет усталости'!H17='Расчет усталости'!$O$21,0,IF(E17=$O$2,Настройки!$C$2,IF(E17=$O$3,Настройки!$C$3,IF(E17=$O$4,Настройки!$C$4,IF(E17=$O$5,Настройки!$C$5,IF(E17=$O$6,Настройки!$C$6,IF(E17=$O$7,Настройки!$C$7,IF(E17=$O$8,Настройки!$C$8,IF(E17=$O$9,Настройки!$C$9,IF(E17=$O$10,Настройки!$C$10,IF(E17=$O$11,Настройки!$C$11,IF(E17=$O$12,Настройки!$C$12,IF(E17=$O$13,Настройки!$C$13,IF(E17=$O$14,Настройки!$C$14,IF(E17=$O$15,Настройки!$C$15,IF(E17=$O$16,Настройки!$C$16,IF(E17=$O$17,Настройки!$C$17,IF(E17=$O$18,Настройки!$C$18,0)))))))))))))))))))),2) -> 0.15 | J17: =ROUND(IF(AND(M17=$O$22,H17=$O$21),0-Настройки!$F$4,IF('Расчет усталости'!M17='Расчет усталости'!$O$22,ROUND(IF(G17=$O$20,IF(E17=$O$2,Настройки!$C$2,IF(E17=$O$3,Настройки!$C$3,IF(E17=$O$4,Настройки!$C$4,IF(E17=$O$5,Настройки!$C$5,IF(E17=$O$6,Настройки!$C$6,IF(E17=$O$7,Настройки!$C$7,IF(E17=$O$8,Настройки!$C$8,IF(E17=$O$9,Настройки!$C$9,IF(E17=$O$10,Настройки!$C$10,IF(E17=$O$11,Настройки!$C$11,IF(E17=$O$12,Настройки!$C$12,IF(E17=$O$13,Настройки!$C$13,IF(E17=$O$14,Настройки!$C$14,IF(E17=$O$15,Настройки!$C$15,IF(E17=$O$16,Настройки!$C$16,IF(E17=$O$17,Настройки!$C$17,IF(E17=$O$18,Настройки!$C$18,0)))))))))))))))))*Настройки!$F$2+IF(E17=$O$2,Настройки!$C$2,IF(E17=$O$3,Настройки!$C$3,IF(E17=$O$4,Настройки!$C$4,IF(E17=$O$5,Настройки!$C$5,IF(E17=$O$6,Настройки!$C$6,IF(E17=$O$7,Настройки!$C$7,IF(E17=$O$8,Настройки!$C$8,IF(E17=$O$9,Настройки!$C$9,IF(E17=$O$10,Настройки!$C$10,IF(E17=$O$11,Настройки!$C$11,IF(E17=$O$12,Настройки!$C$12,IF(E17=$O$13,Настройки!$C$13,IF(E17=$O$14,Настройки!$C$14,IF(E17=$O$15,Настройки!$C$15,IF(E17=$O$16,Настройки!$C$16,IF(E17=$O$17,Настройки!$C$17,IF(E17=$O$18,Настройки!$C$18,0))))))))))))))))),IF(E17=$O$2,Настройки!$C$2,IF(E17=$O$3,Настройки!$C$3,IF(E17=$O$4,Настройки!$C$4,IF(E17=$O$5,Настройки!$C$5,IF(E17=$O$6,Настройки!$C$6,IF(E17=$O$7,Настройки!$C$7,IF(E17=$O$8,Настройки!$C$8,IF(E17=$O$9,Настройки!$C$9,IF(E17=$O$10,Настройки!$C$10,IF(E17=$O$11,Настройки!$C$11,IF(E17=$O$12,Настройки!$C$12,IF(E17=$O$13,Настройки!$C$13,IF(E17=$O$14,Настройки!$C$14,IF(E17=$O$15,Настройки!$C$15,IF(E17=$O$16,Настройки!$C$16,IF(E17=$O$17,Настройки!$C$17,IF(E17=$O$18,Настройки!$C$18,0)))))))))))))))))),2)-Настройки!$F$4,IF('Расчет усталости'!H17='Расчет усталости'!$O$21,0,IF(G17=$O$20,IF(E17=$O$2,Настройки!$C$2,IF(E17=$O$3,Настройки!$C$3,IF(E17=$O$4,Настройки!$C$4,IF(E17=$O$5,Настройки!$C$5,IF(E17=$O$6,Настройки!$C$6,IF(E17=$O$7,Настройки!$C$7,IF(E17=$O$8,Настройки!$C$8,IF(E17=$O$9,Настройки!$C$9,IF(E17=$O$10,Настройки!$C$10,IF(E17=$O$11,Настройки!$C$11,IF(E17=$O$12,Настройки!$C$12,IF(E17=$O$13,Настройки!$C$13,IF(E17=$O$14,Настройки!$C$14,IF(E17=$O$15,Настройки!$C$15,IF(E17=$O$16,Настройки!$C$16,IF(E17=$O$17,Настройки!$C$17,IF(E17=$O$18,Настройки!$C$18,0)))))))))))))))))*Настройки!$F$2+IF(E17=$O$2,Настройки!$C$2,IF(E17=$O$3,Настройки!$C$3,IF(E17=$O$4,Настройки!$C$4,IF(E17=$O$5,Настройки!$C$5,IF(E17=$O$6,Настройки!$C$6,IF(E17=$O$7,Настройки!$C$7,IF(E17=$O$8,Настройки!$C$8,IF(E17=$O$9,Настройки!$C$9,IF(E17=$O$10,Настройки!$C$10,IF(E17=$O$11,Настройки!$C$11,IF(E17=$O$12,Настройки!$C$12,IF(E17=$O$13,Настройки!$C$13,IF(E17=$O$14,Настройки!$C$14,IF(E17=$O$15,Настройки!$C$15,IF(E17=$O$16,Настройки!$C$16,IF(E17=$O$17,Настройки!$C$17,IF(E17=$O$18,Настройки!$C$18,0))))))))))))))))),IF(E17=$O$2,Настройки!$C$2,IF(E17=$O$3,Настройки!$C$3,IF(E17=$O$4,Настройки!$C$4,IF(E17=$O$5,Настройки!$C$5,IF(E17=$O$6,Настройки!$C$6,IF(E17=$O$7,Настройки!$C$7,IF(E17=$O$8,Настройки!$C$8,IF(E17=$O$9,Настройки!$C$9,IF(E17=$O$10,Настройки!$C$10,IF(E17=$O$11,Настройки!$C$11,IF(E17=$O$12,Настройки!$C$12,IF(E17=$O$13,Настройки!$C$13,IF(E17=$O$14,Настройки!$C$14,IF(E17=$O$15,Настройки!$C$15,IF(E17=$O$16,Настройки!$C$16,IF(E17=$O$17,Настройки!$C$17,IF(E17=$O$18,Настройки!$C$18,0))))))))))))))))))))),2) -> 0.15 | K17: =IF(SUM($I$2:I17)-SUM($C$2:C17)<0,0,ROUND(SUM($I$2:I17)-SUM($C$2:C17),2)) -> 0.85 | L17: =IF(SUM($J$2:J17)-SUM($C$2:C17)<0,0,ROUND(SUM($J$2:J17)-SUM($C$2:C17),2)) -> 0.97 | O17: ЧМ | P17: Чемпионат Мира | Q17: 0 | R17: 0 | T17: =ROUND(Настройки!C17*'Расчет усталости'!S17*(1+Настройки!$F$2/2),2) -> 0
A18: Пт | B18: 3 | C18: =Настройки!$F$3 -> 0.1 | F18: =COUNTIF($E$2:E18,"ЧЕМ") -> 4 | I18: =ROUND(IF(AND(M18=$O$22,H18=$O$21),0-Настройки!$F$4,IF('Расчет усталости'!M18='Расчет усталости'!$O$22,IF(E18=$O$2,Настройки!$C$2,IF(E18=$O$3,Настройки!$C$3,IF(E18=$O$4,Настройки!$C$4,IF(E18=$O$5,Настройки!$C$5,IF(E18=$O$6,Настройки!$C$6,IF(E18=$O$7,Настройки!$C$7,IF(E18=$O$8,Настройки!$C$8,IF(E18=$O$9,Настройки!$C$9,IF(E18=$O$10,Настройки!$C$10,IF(E18=$O$11,Настройки!$C$11,IF(E18=$O$12,Настройки!$C$12,IF(E18=$O$13,Настройки!$C$13,IF(E18=$O$14,Настройки!$C$14,IF(E18=$O$15,Настройки!$C$15,IF(E18=$O$16,Настройки!$C$16,IF(E18=$O$17,Настройки!$C$17,IF(E18=$O$18,Настройки!$C$18,0)))))))))))))))))-Настройки!$F$4,IF('Расчет усталости'!H18='Расчет усталости'!$O$21,0,IF(E18=$O$2,Настройки!$C$2,IF(E18=$O$3,Настройки!$C$3,IF(E18=$O$4,Настройки!$C$4,IF(E18=$O$5,Настройки!$C$5,IF(E18=$O$6,Настройки!$C$6,IF(E18=$O$7,Настройки!$C$7,IF(E18=$O$8,Настройки!$C$8,IF(E18=$O$9,Настройки!$C$9,IF(E18=$O$10,Настройки!$C$10,IF(E18=$O$11,Настройки!$C$11,IF(E18=$O$12,Настройки!$C$12,IF(E18=$O$13,Настройки!$C$13,IF(E18=$O$14,Настройки!$C$14,IF(E18=$O$15,Настройки!$C$15,IF(E18=$O$16,Настройки!$C$16,IF(E18=$O$17,Настройки!$C$17,IF(E18=$O$18,Настройки!$C$18,0)))))))))))))))))))),2) -> 0 | J18: =ROUND(IF(AND(M18=$O$22,H18=$O$21),0-Настройки!$F$4,IF('Расчет усталости'!M18='Расчет усталости'!$O$22,ROUND(IF(G18=$O$20,IF(E18=$O$2,Настройки!$C$2,IF(E18=$O$3,Настройки!$C$3,IF(E18=$O$4,Настройки!$C$4,IF(E18=$O$5,Настройки!$C$5,IF(E18=$O$6,Настройки!$C$6,IF(E18=$O$7,Настройки!$C$7,IF(E18=$O$8,Настройки!$C$8,IF(E18=$O$9,Настройки!$C$9,IF(E18=$O$10,Настройки!$C$10,IF(E18=$O$11,Настройки!$C$11,IF(E18=$O$12,Настройки!$C$12,IF(E18=$O$13,Настройки!$C$13,IF(E18=$O$14,Настройки!$C$14,IF(E18=$O$15,Настройки!$C$15,IF(E18=$O$16,Настройки!$C$16,IF(E18=$O$17,Настройки!$C$17,IF(E18=$O$18,Настройки!$C$18,0)))))))))))))))))*Настройки!$F$2+IF(E18=$O$2,Настройки!$C$2,IF(E18=$O$3,Настройки!$C$3,IF(E18=$O$4,Настройки!$C$4,IF(E18=$O$5,Настройки!$C$5,IF(E18=$O$6,Настройки!$C$6,IF(E18=$O$7,Настройки!$C$7,IF(E18=$O$8,Настройки!$C$8,IF(E18=$O$9,Настройки!$C$9,IF(E18=$O$10,Настройки!$C$10,IF(E18=$O$11,Настройки!$C$11,IF(E18=$O$12,Настройки!$C$12,IF(E18=$O$13,Настройки!$C$13,IF(E18=$O$14,Настройки!$C$14,IF(E18=$O$15,Настройки!$C$15,IF(E18=$O$16,Настройки!$C$16,IF(E18=$O$17,Настройки!$C$17,IF(E18=$O$18,Настройки!$C$18,0))))))))))))))))),IF(E18=$O$2,Настройки!$C$2,IF(E18=$O$3,Настройки!$C$3,IF(E18=$O$4,Настройки!$C$4,IF(E18=$O$5,Настройки!$C$5,IF(E18=$O$6,Настройки!$C$6,IF(E18=$O$7,Настройки!$C$7,IF(E18=$O$8,Настройки!$C$8,IF(E18=$O$9,Настройки!$C$9,IF(E18=$O$10,Настройки!$C$10,IF(E18=$O$11,Настройки!$C$11,IF(E18=$O$12,Настройки!$C$12,IF(E18=$O$13,Настройки!$C$13,IF(E18=$O$14,Настройки!$C$14,IF(E18=$O$15,Настройки!$C$15,IF(E18=$O$16,Настройки!$C$16,IF(E18=$O$17,Настройки!$C$17,IF(E18=$O$18,Настройки!$C$18,0)))))))))))))))))),2)-Настройки!$F$4,IF('Расчет усталости'!H18='Расчет усталости'!$O$21,0,IF(G18=$O$20,IF(E18=$O$2,Настройки!$C$2,IF(E18=$O$3,Настройки!$C$3,IF(E18=$O$4,Настройки!$C$4,IF(E18=$O$5,Настройки!$C$5,IF(E18=$O$6,Настройки!$C$6,IF(E18=$O$7,Настройки!$C$7,IF(E18=$O$8,Настройки!$C$8,IF(E18=$O$9,Настройки!$C$9,IF(E18=$O$10,Настройки!$C$10,IF(E18=$O$11,Настройки!$C$11,IF(E18=$O$12,Настройки!$C$12,IF(E18=$O$13,Настройки!$C$13,IF(E18=$O$14,Настройки!$C$14,IF(E18=$O$15,Настройки!$C$15,IF(E18=$O$16,Настройки!$C$16,IF(E18=$O$17,Настройки!$C$17,IF(E18=$O$18,Настройки!$C$18,0)))))))))))))))))*Настройки!$F$2+IF(E18=$O$2,Настройки!$C$2,IF(E18=$O$3,Настройки!$C$3,IF(E18=$O$4,Настройки!$C$4,IF(E18=$O$5,Настройки!$C$5,IF(E18=$O$6,Настройки!$C$6,IF(E18=$O$7,Настройки!$C$7,IF(E18=$O$8,Настройки!$C$8,IF(E18=$O$9,Настройки!$C$9,IF(E18=$O$10,Настройки!$C$10,IF(E18=$O$11,Настройки!$C$11,IF(E18=$O$12,Настройки!$C$12,IF(E18=$O$13,Настройки!$C$13,IF(E18=$O$14,Настройки!$C$14,IF(E18=$O$15,Настройки!$C$15,IF(E18=$O$16,Настройки!$C$16,IF(E18=$O$17,Настройки!$C$17,IF(E18=$O$18,Настройки!$C$18,0))))))))))))))))),IF(E18=$O$2,Настройки!$C$2,IF(E18=$O$3,Настройки!$C$3,IF(E18=$O$4,Настройки!$C$4,IF(E18=$O$5,Настройки!$C$5,IF(E18=$O$6,Настройки!$C$6,IF(E18=$O$7,Настройки!$C$7,IF(E18=$O$8,Настройки!$C$8,IF(E18=$O$9,Настройки!$C$9,IF(E18=$O$10,Настройки!$C$10,IF(E18=$O$11,Настройки!$C$11,IF(E18=$O$12,Настройки!$C$12,IF(E18=$O$13,Настройки!$C$13,IF(E18=$O$14,Настройки!$C$14,IF(E18=$O$15,Настройки!$C$15,IF(E18=$O$16,Настройки!$C$16,IF(E18=$O$17,Настройки!$C$17,IF(E18=$O$18,Настройки!$C$18,0))))))))))))))))))))),2) -> 0 | K18: =IF(SUM($I$2:I18)-SUM($C$2:C18)<0,0,ROUND(SUM($I$2:I18)-SUM($C$2:C18),2)) -> 0.75 | L18: =IF(SUM($J$2:J18)-SUM($C$2:C18)<0,0,ROUND(SUM($J$2:J18)-SUM($C$2:C18),2)) -> 0.87 | O18: ЧЕМ | P18: Чемпионат страны | Q18: 30 | R18: 25 | S18: =R18 -> 25 | T18: =ROUND(Настройки!C18*'Расчет усталости'!S18*(1+Настройки!$F$2/2),2) -> 7.88
A19: Сб | B19: 3 | C19: =Настройки!$F$3 -> 0.1 | D19: 12 | E19: ЧЕМ | F19: =COUNTIF($E$2:E19,"ЧЕМ") -> 5 | G19: Г | I19: =ROUND(IF(AND(M19=$O$22,H19=$O$21),0-Настройки!$F$4,IF('Расчет усталости'!M19='Расчет усталости'!$O$22,IF(E19=$O$2,Настройки!$C$2,IF(E19=$O$3,Настройки!$C$3,IF(E19=$O$4,Настройки!$C$4,IF(E19=$O$5,Настройки!$C$5,IF(E19=$O$6,Настройки!$C$6,IF(E19=$O$7,Настройки!$C$7,IF(E19=$O$8,Настройки!$C$8,IF(E19=$O$9,Настройки!$C$9,IF(E19=$O$10,Настройки!$C$10,IF(E19=$O$11,Настройки!$C$11,IF(E19=$O$12,Настройки!$C$12,IF(E19=$O$13,Настройки!$C$13,IF(E19=$O$14,Настройки!$C$14,IF(E19=$O$15,Настройки!$C$15,IF(E19=$O$16,Настройки!$C$16,IF(E19=$O$17,Настройки!$C$17,IF(E19=$O$18,Настройки!$C$18,0)))))))))))))))))-Настройки!$F$4,IF('Расчет усталости'!H19='Расчет усталости'!$O$21,0,IF(E19=$O$2,Настройки!$C$2,IF(E19=$O$3,Настройки!$C$3,IF(E19=$O$4,Настройки!$C$4,IF(E19=$O$5,Настройки!$C$5,IF(E19=$O$6,Настройки!$C$6,IF(E19=$O$7,Настройки!$C$7,IF(E19=$O$8,Настройки!$C$8,IF(E19=$O$9,Настройки!$C$9,IF(E19=$O$10,Настройки!$C$10,IF(E19=$O$11,Настройки!$C$11,IF(E19=$O$12,Настройки!$C$12,IF(E19=$O$13,Настройки!$C$13,IF(E19=$O$14,Настройки!$C$14,IF(E19=$O$15,Настройки!$C$15,IF(E19=$O$16,Настройки!$C$16,IF(E19=$O$17,Настройки!$C$17,IF(E19=$O$18,Настройки!$C$18,0)))))))))))))))))))),2) -> 0.05 | J19: =ROUND(IF(AND(M19=$O$22,H19=$O$21),0-Настройки!$F$4,IF('Расчет усталости'!M19='Расчет усталости'!$O$22,ROUND(IF(G19=$O$20,IF(E19=$O$2,Настройки!$C$2,IF(E19=$O$3,Настройки!$C$3,IF(E19=$O$4,Настройки!$C$4,IF(E19=$O$5,Настройки!$C$5,IF(E19=$O$6,Настройки!$C$6,IF(E19=$O$7,Настройки!$C$7,IF(E19=$O$8,Настройки!$C$8,IF(E19=$O$9,Настройки!$C$9,IF(E19=$O$10,Настройки!$C$10,IF(E19=$O$11,Настройки!$C$11,IF(E19=$O$12,Настройки!$C$12,IF(E19=$O$13,Настройки!$C$13,IF(E19=$O$14,Настройки!$C$14,IF(E19=$O$15,Настройки!$C$15,IF(E19=$O$16,Настройки!$C$16,IF(E19=$O$17,Настройки!$C$17,IF(E19=$O$18,Настройки!$C$18,0)))))))))))))))))*Настройки!$F$2+IF(E19=$O$2,Настройки!$C$2,IF(E19=$O$3,Настройки!$C$3,IF(E19=$O$4,Настройки!$C$4,IF(E19=$O$5,Настройки!$C$5,IF(E19=$O$6,Настройки!$C$6,IF(E19=$O$7,Настройки!$C$7,IF(E19=$O$8,Настройки!$C$8,IF(E19=$O$9,Настройки!$C$9,IF(E19=$O$10,Настройки!$C$10,IF(E19=$O$11,Настройки!$C$11,IF(E19=$O$12,Настройки!$C$12,IF(E19=$O$13,Настройки!$C$13,IF(E19=$O$14,Настройки!$C$14,IF(E19=$O$15,Настройки!$C$15,IF(E19=$O$16,Настройки!$C$16,IF(E19=$O$17,Настройки!$C$17,IF(E19=$O$18,Настройки!$C$18,0))))))))))))))))),IF(E19=$O$2,Настройки!$C$2,IF(E19=$O$3,Настройки!$C$3,IF(E19=$O$4,Настройки!$C$4,IF(E19=$O$5,Настройки!$C$5,IF(E19=$O$6,Настройки!$C$6,IF(E19=$O$7,Настройки!$C$7,IF(E19=$O$8,Настройки!$C$8,IF(E19=$O$9,Настройки!$C$9,IF(E19=$O$10,Настройки!$C$10,IF(E19=$O$11,Настройки!$C$11,IF(E19=$O$12,Настройки!$C$12,IF(E19=$O$13,Настройки!$C$13,IF(E19=$O$14,Настройки!$C$14,IF(E19=$O$15,Настройки!$C$15,IF(E19=$O$16,Настройки!$C$16,IF(E19=$O$17,Настройки!$C$17,IF(E19=$O$18,Настройки!$C$18,0)))))))))))))))))),2)-Настройки!$F$4,IF('Расчет усталости'!H19='Расчет усталости'!$O$21,0,IF(G19=$O$20,IF(E19=$O$2,Настройки!$C$2,IF(E19=$O$3,Настройки!$C$3,IF(E19=$O$4,Настройки!$C$4,IF(E19=$O$5,Настройки!$C$5,IF(E19=$O$6,Настройки!$C$6,IF(E19=$O$7,Настройки!$C$7,IF(E19=$O$8,Настройки!$C$8,IF(E19=$O$9,Настройки!$C$9,IF(E19=$O$10,Настройки!$C$10,IF(E19=$O$11,Настройки!$C$11,IF(E19=$O$12,Настройки!$C$12,IF(E19=$O$13,Настройки!$C$13,IF(E19=$O$14,Настройки!$C$14,IF(E19=$O$15,Настройки!$C$15,IF(E19=$O$16,Настройки!$C$16,IF(E19=$O$17,Настройки!$C$17,IF(E19=$O$18,Настройки!$C$18,0)))))))))))))))))*Настройки!$F$2+IF(E19=$O$2,Настройки!$C$2,IF(E19=$O$3,Настройки!$C$3,IF(E19=$O$4,Настройки!$C$4,IF(E19=$O$5,Настройки!$C$5,IF(E19=$O$6,Настройки!$C$6,IF(E19=$O$7,Настройки!$C$7,IF(E19=$O$8,Настройки!$C$8,IF(E19=$O$9,Настройки!$C$9,IF(E19=$O$10,Настройки!$C$10,IF(E19=$O$11,Настройки!$C$11,IF(E19=$O$12,Настройки!$C$12,IF(E19=$O$13,Настройки!$C$13,IF(E19=$O$14,Настройки!$C$14,IF(E19=$O$15,Настройки!$C$15,IF(E19=$O$16,Настройки!$C$16,IF(E19=$O$17,Настройки!$C$17,IF(E19=$O$18,Настройки!$C$18,0))))))))))))))))),IF(E19=$O$2,Настройки!$C$2,IF(E19=$O$3,Настройки!$C$3,IF(E19=$O$4,Настройки!$C$4,IF(E19=$O$5,Настройки!$C$5,IF(E19=$O$6,Настройки!$C$6,IF(E19=$O$7,Настройки!$C$7,IF(E19=$O$8,Настройки!$C$8,IF(E19=$O$9,Настройки!$C$9,IF(E19=$O$10,Настройки!$C$10,IF(E19=$O$11,Настройки!$C$11,IF(E19=$O$12,Настройки!$C$12,IF(E19=$O$13,Настройки!$C$13,IF(E19=$O$14,Настройки!$C$14,IF(E19=$O$15,Настройки!$C$15,IF(E19=$O$16,Настройки!$C$16,IF(E19=$O$17,Настройки!$C$17,IF(E19=$O$18,Настройки!$C$18,0))))))))))))))))))))),2) -> 0.08 | K19: =IF(SUM($I$2:I19)-SUM($C$2:C19)<0,0,ROUND(SUM($I$2:I19)-SUM($C$2:C19),2)) -> 0.7 | L19: =IF(SUM($J$2:J19)-SUM($C$2:C19)<0,0,ROUND(SUM($J$2:J19)-SUM($C$2:C19),2)) -> 0.85 | M19: В
A20: Пн | B20: 4 | C20: =Настройки!$F$3 -> 0.1 | F20: =COUNTIF($E$2:E20,"ЧЕМ") -> 5 | I20: =ROUND(IF(AND(M20=$O$22,H20=$O$21),0-Настройки!$F$4,IF('Расчет усталости'!M20='Расчет усталости'!$O$22,IF(E20=$O$2,Настройки!$C$2,IF(E20=$O$3,Настройки!$C$3,IF(E20=$O$4,Настройки!$C$4,IF(E20=$O$5,Настройки!$C$5,IF(E20=$O$6,Настройки!$C$6,IF(E20=$O$7,Настройки!$C$7,IF(E20=$O$8,Настройки!$C$8,IF(E20=$O$9,Настройки!$C$9,IF(E20=$O$10,Настройки!$C$10,IF(E20=$O$11,Настройки!$C$11,IF(E20=$O$12,Настройки!$C$12,IF(E20=$O$13,Настройки!$C$13,IF(E20=$O$14,Настройки!$C$14,IF(E20=$O$15,Настройки!$C$15,IF(E20=$O$16,Настройки!$C$16,IF(E20=$O$17,Настройки!$C$17,IF(E20=$O$18,Настройки!$C$18,0)))))))))))))))))-Настройки!$F$4,IF('Расчет усталости'!H20='Расчет усталости'!$O$21,0,IF(E20=$O$2,Настройки!$C$2,IF(E20=$O$3,Настройки!$C$3,IF(E20=$O$4,Настройки!$C$4,IF(E20=$O$5,Настройки!$C$5,IF(E20=$O$6,Настройки!$C$6,IF(E20=$O$7,Настройки!$C$7,IF(E20=$O$8,Настройки!$C$8,IF(E20=$O$9,Настройки!$C$9,IF(E20=$O$10,Настройки!$C$10,IF(E20=$O$11,Настройки!$C$11,IF(E20=$O$12,Настройки!$C$12,IF(E20=$O$13,Настройки!$C$13,IF(E20=$O$14,Настройки!$C$14,IF(E20=$O$15,Настройки!$C$15,IF(E20=$O$16,Настройки!$C$16,IF(E20=$O$17,Настройки!$C$17,IF(E20=$O$18,Настройки!$C$18,0)))))))))))))))))))),2) -> 0 | J20: =ROUND(IF(AND(M20=$O$22,H20=$O$21),0-Настройки!$F$4,IF('Расчет усталости'!M20='Расчет усталости'!$O$22,ROUND(IF(G20=$O$20,IF(E20=$O$2,Настройки!$C$2,IF(E20=$O$3,Настройки!$C$3,IF(E20=$O$4,Настройки!$C$4,IF(E20=$O$5,Настройки!$C$5,IF(E20=$O$6,Настройки!$C$6,IF(E20=$O$7,Настройки!$C$7,IF(E20=$O$8,Настройки!$C$8,IF(E20=$O$9,Настройки!$C$9,IF(E20=$O$10,Настройки!$C$10,IF(E20=$O$11,Настройки!$C$11,IF(E20=$O$12,Настройки!$C$12,IF(E20=$O$13,Настройки!$C$13,IF(E20=$O$14,Настройки!$C$14,IF(E20=$O$15,Настройки!$C$15,IF(E20=$O$16,Настройки!$C$16,IF(E20=$O$17,Настройки!$C$17,IF(E20=$O$18,Настройки!$C$18,0)))))))))))))))))*Настройки!$F$2+IF(E20=$O$2,Настройки!$C$2,IF(E20=$O$3,Настройки!$C$3,IF(E20=$O$4,Настройки!$C$4,IF(E20=$O$5,Настройки!$C$5,IF(E20=$O$6,Настройки!$C$6,IF(E20=$O$7,Настройки!$C$7,IF(E20=$O$8,Настройки!$C$8,IF(E20=$O$9,Настройки!$C$9,IF(E20=$O$10,Настройки!$C$10,IF(E20=$O$11,Настройки!$C$11,IF(E20=$O$12,Настройки!$C$12,IF(E20=$O$13,Настройки!$C$13,IF(E20=$O$14,Настройки!$C$14,IF(E20=$O$15,Настройки!$C$15,IF(E20=$O$16,Настройки!$C$16,IF(E20=$O$17,Настройки!$C$17,IF(E20=$O$18,Настройки!$C$18,0))))))))))))))))),IF(E20=$O$2,Настройки!$C$2,IF(E20=$O$3,Настройки!$C$3,IF(E20=$O$4,Настройки!$C$4,IF(E20=$O$5,Настройки!$C$5,IF(E20=$O$6,Настройки!$C$6,IF(E20=$O$7,Настройки!$C$7,IF(E20=$O$8,Настройки!$C$8,IF(E20=$O$9,Настройки!$C$9,IF(E20=$O$10,Настройки!$C$10,IF(E20=$O$11,Настройки!$C$11,IF(E20=$O$12,Настройки!$C$12,IF(E20=$O$13,Настройки!$C$13,IF(E20=$O$14,Настройки!$C$14,IF(E20=$O$15,Настройки!$C$15,IF(E20=$O$16,Настройки!$C$16,IF(E20=$O$17,Настройки!$C$17,IF(E20=$O$18,Настройки!$C$18,0)))))))))))))))))),2)-Настройки!$F$4,IF('Расчет усталости'!H20='Расчет усталости'!$O$21,0,IF(G20=$O$20,IF(E20=$O$2,Настройки!$C$2,IF(E20=$O$3,Настройки!$C$3,IF(E20=$O$4,Настройки!$C$4,IF(E20=$O$5,Настройки!$C$5,IF(E20=$O$6,Настройки!$C$6,IF(E20=$O$7,Настройки!$C$7,IF(E20=$O$8,Настройки!$C$8,IF(E20=$O$9,Настройки!$C$9,IF(E20=$O$10,Настройки!$C$10,IF(E20=$O$11,Настройки!$C$11,IF(E20=$O$12,Настройки!$C$12,IF(E20=$O$13,Настройки!$C$13,IF(E20=$O$14,Настройки!$C$14,IF(E20=$O$15,Настройки!$C$15,IF(E20=$O$16,Настройки!$C$16,IF(E20=$O$17,Настройки!$C$17,IF(E20=$O$18,Настройки!$C$18,0)))))))))))))))))*Настройки!$F$2+IF(E20=$O$2,Настройки!$C$2,IF(E20=$O$3,Настройки!$C$3,IF(E20=$O$4,Настройки!$C$4,IF(E20=$O$5,Настройки!$C$5,IF(E20=$O$6,Настройки!$C$6,IF(E20=$O$7,Настройки!$C$7,IF(E20=$O$8,Настройки!$C$8,IF(E20=$O$9,Настройки!$C$9,IF(E20=$O$10,Настройки!$C$10,IF(E20=$O$11,Настройки!$C$11,IF(E20=$O$12,Настройки!$C$12,IF(E20=$O$13,Настройки!$C$13,IF(E20=$O$14,Настройки!$C$14,IF(E20=$O$15,Настройки!$C$15,IF(E20=$O$16,Настройки!$C$16,IF(E20=$O$17,Настройки!$C$17,IF(E20=$O$18,Настройки!$C$18,0))))))))))))))))),IF(E20=$O$2,Настройки!$C$2,IF(E20=$O$3,Настройки!$C$3,IF(E20=$O$4,Настройки!$C$4,IF(E20=$O$5,Настройки!$C$5,IF(E20=$O$6,Настройки!$C$6,IF(E20=$O$7,Настройки!$C$7,IF(E20=$O$8,Настройки!$C$8,IF(E20=$O$9,Настройки!$C$9,IF(E20=$O$10,Настройки!$C$10,IF(E20=$O$11,Настройки!$C$11,IF(E20=$O$12,Настройки!$C$12,IF(E20=$O$13,Настройки!$C$13,IF(E20=$O$14,Настройки!$C$14,IF(E20=$O$15,Настройки!$C$15,IF(E20=$O$16,Настройки!$C$16,IF(E20=$O$17,Настройки!$C$17,IF(E20=$O$18,Настройки!$C$18,0))))))))))))))))))))),2) -> 0 | K20: =IF(SUM($I$2:I20)-SUM($C$2:C20)<0,0,ROUND(SUM($I$2:I20)-SUM($C$2:C20),2)) -> 0.6 | L20: =IF(SUM($J$2:J20)-SUM($C$2:C20)<0,0,ROUND(SUM($J$2:J20)-SUM($C$2:C20),2)) -> 0.75 | O20: Г | P20: Гостевой матч | Q20: =COUNTIF($G$2:$G$127,O20) -> 51 | R20: =COUNTIF(INDIRECT(CONCATENATE("G2:G",MATCH($T$25,$F$1:$F$127,0)),1),O20) -> 30
A21: Вт | B21: 4 | C21: =Настройки!$F$3 -> 0.1 | D21: 13 | E21: КТ | F21: =COUNTIF($E$2:E21,"ЧЕМ") -> 5 | G21: Г | I21: =ROUND(IF(AND(M21=$O$22,H21=$O$21),0-Настройки!$F$4,IF('Расчет усталости'!M21='Расчет усталости'!$O$22,IF(E21=$O$2,Настройки!$C$2,IF(E21=$O$3,Настройки!$C$3,IF(E21=$O$4,Настройки!$C$4,IF(E21=$O$5,Настройки!$C$5,IF(E21=$O$6,Настройки!$C$6,IF(E21=$O$7,Настройки!$C$7,IF(E21=$O$8,Настройки!$C$8,IF(E21=$O$9,Настройки!$C$9,IF(E21=$O$10,Настройки!$C$10,IF(E21=$O$11,Настройки!$C$11,IF(E21=$O$12,Настройки!$C$12,IF(E21=$O$13,Настройки!$C$13,IF(E21=$O$14,Настройки!$C$14,IF(E21=$O$15,Настройки!$C$15,IF(E21=$O$16,Настройки!$C$16,IF(E21=$O$17,Настройки!$C$17,IF(E21=$O$18,Настройки!$C$18,0)))))))))))))))))-Настройки!$F$4,IF('Расчет усталости'!H21='Расчет усталости'!$O$21,0,IF(E21=$O$2,Настройки!$C$2,IF(E21=$O$3,Настройки!$C$3,IF(E21=$O$4,Настройки!$C$4,IF(E21=$O$5,Настройки!$C$5,IF(E21=$O$6,Настройки!$C$6,IF(E21=$O$7,Настройки!$C$7,IF(E21=$O$8,Настройки!$C$8,IF(E21=$O$9,Настройки!$C$9,IF(E21=$O$10,Настройки!$C$10,IF(E21=$O$11,Настройки!$C$11,IF(E21=$O$12,Настройки!$C$12,IF(E21=$O$13,Настройки!$C$13,IF(E21=$O$14,Настройки!$C$14,IF(E21=$O$15,Настройки!$C$15,IF(E21=$O$16,Настройки!$C$16,IF(E21=$O$17,Настройки!$C$17,IF(E21=$O$18,Настройки!$C$18,0)))))))))))))))))))),2) -> 0.15 | J21: =ROUND(IF(AND(M21=$O$22,H21=$O$21),0-Настройки!$F$4,IF('Расчет усталости'!M21='Расчет усталости'!$O$22,ROUND(IF(G21=$O$20,IF(E21=$O$2,Настройки!$C$2,IF(E21=$O$3,Настройки!$C$3,IF(E21=$O$4,Настройки!$C$4,IF(E21=$O$5,Настройки!$C$5,IF(E21=$O$6,Настройки!$C$6,IF(E21=$O$7,Настройки!$C$7,IF(E21=$O$8,Настройки!$C$8,IF(E21=$O$9,Настройки!$C$9,IF(E21=$O$10,Настройки!$C$10,IF(E21=$O$11,Настройки!$C$11,IF(E21=$O$12,Настройки!$C$12,IF(E21=$O$13,Настройки!$C$13,IF(E21=$O$14,Настройки!$C$14,IF(E21=$O$15,Настройки!$C$15,IF(E21=$O$16,Настройки!$C$16,IF(E21=$O$17,Настройки!$C$17,IF(E21=$O$18,Настройки!$C$18,0)))))))))))))))))*Настройки!$F$2+IF(E21=$O$2,Настройки!$C$2,IF(E21=$O$3,Настройки!$C$3,IF(E21=$O$4,Настройки!$C$4,IF(E21=$O$5,Настройки!$C$5,IF(E21=$O$6,Настройки!$C$6,IF(E21=$O$7,Настройки!$C$7,IF(E21=$O$8,Настройки!$C$8,IF(E21=$O$9,Настройки!$C$9,IF(E21=$O$10,Настройки!$C$10,IF(E21=$O$11,Настройки!$C$11,IF(E21=$O$12,Настройки!$C$12,IF(E21=$O$13,Настройки!$C$13,IF(E21=$O$14,Настройки!$C$14,IF(E21=$O$15,Настройки!$C$15,IF(E21=$O$16,Настройки!$C$16,IF(E21=$O$17,Настройки!$C$17,IF(E21=$O$18,Настройки!$C$18,0))))))))))))))))),IF(E21=$O$2,Настройки!$C$2,IF(E21=$O$3,Настройки!$C$3,IF(E21=$O$4,Настройки!$C$4,IF(E21=$O$5,Настройки!$C$5,IF(E21=$O$6,Настройки!$C$6,IF(E21=$O$7,Настройки!$C$7,IF(E21=$O$8,Настройки!$C$8,IF(E21=$O$9,Настройки!$C$9,IF(E21=$O$10,Настройки!$C$10,IF(E21=$O$11,Настройки!$C$11,IF(E21=$O$12,Настройки!$C$12,IF(E21=$O$13,Настройки!$C$13,IF(E21=$O$14,Настройки!$C$14,IF(E21=$O$15,Настройки!$C$15,IF(E21=$O$16,Настройки!$C$16,IF(E21=$O$17,Настройки!$C$17,IF(E21=$O$18,Настройки!$C$18,0)))))))))))))))))),2)-Настройки!$F$4,IF('Расчет усталости'!H21='Расчет усталости'!$O$21,0,IF(G21=$O$20,IF(E21=$O$2,Настройки!$C$2,IF(E21=$O$3,Настройки!$C$3,IF(E21=$O$4,Настройки!$C$4,IF(E21=$O$5,Настройки!$C$5,IF(E21=$O$6,Настройки!$C$6,IF(E21=$O$7,Настройки!$C$7,IF(E21=$O$8,Настройки!$C$8,IF(E21=$O$9,Настройки!$C$9,IF(E21=$O$10,Настройки!$C$10,IF(E21=$O$11,Настройки!$C$11,IF(E21=$O$12,Настройки!$C$12,IF(E21=$O$13,Настройки!$C$13,IF(E21=$O$14,Настройки!$C$14,IF(E21=$O$15,Настройки!$C$15,IF(E21=$O$16,Настройки!$C$16,IF(E21=$O$17,Настройки!$C$17,IF(E21=$O$18,Настройки!$C$18,0)))))))))))))))))*Настройки!$F$2+IF(E21=$O$2,Настройки!$C$2,IF(E21=$O$3,Настройки!$C$3,IF(E21=$O$4,Настройки!$C$4,IF(E21=$O$5,Настройки!$C$5,IF(E21=$O$6,Настройки!$C$6,IF(E21=$O$7,Настройки!$C$7,IF(E21=$O$8,Настройки!$C$8,IF(E21=$O$9,Настройки!$C$9,IF(E21=$O$10,Настройки!$C$10,IF(E21=$O$11,Настройки!$C$11,IF(E21=$O$12,Настройки!$C$12,IF(E21=$O$13,Настройки!$C$13,IF(E21=$O$14,Настройки!$C$14,IF(E21=$O$15,Настройки!$C$15,IF(E21=$O$16,Настройки!$C$16,IF(E21=$O$17,Настройки!$C$17,IF(E21=$O$18,Настройки!$C$18,0))))))))))))))))),IF(E21=$O$2,Настройки!$C$2,IF(E21=$O$3,Настройки!$C$3,IF(E21=$O$4,Настройки!$C$4,IF(E21=$O$5,Настройки!$C$5,IF(E21=$O$6,Настройки!$C$6,IF(E21=$O$7,Настройки!$C$7,IF(E21=$O$8,Настройки!$C$8,IF(E21=$O$9,Настройки!$C$9,IF(E21=$O$10,Настройки!$C$10,IF(E21=$O$11,Настройки!$C$11,IF(E21=$O$12,Настройки!$C$12,IF(E21=$O$13,Настройки!$C$13,IF(E21=$O$14,Настройки!$C$14,IF(E21=$O$15,Настройки!$C$15,IF(E21=$O$16,Настройки!$C$16,IF(E21=$O$17,Настройки!$C$17,IF(E21=$O$18,Настройки!$C$18,0))))))))))))))))))))),2) -> 0.17 | K21: =IF(SUM($I$2:I21)-SUM($C$2:C21)<0,0,ROUND(SUM($I$2:I21)-SUM($C$2:C21),2)) -> 0.65 | L21: =IF(SUM($J$2:J21)-SUM($C$2:C21)<0,0,ROUND(SUM($J$2:J21)-SUM($C$2:C21),2)) -> 0.82 | O21: П | P21: Пропускает матч | Q21: =COUNTIF($H$2:$H$127,O21) -> 0 | R21: =COUNTIF(INDIRECT(CONCATENATE("H2:H",MATCH($T$25,$F$1:$F$127,0)),1),O21) -> 0
A22: Ср | B22: 4 | C22: =Настройки!$F$3 -> 0.1 | D22: 14 | E22: ЧЕМ | F22: =COUNTIF($E$2:E22,"ЧЕМ") -> 6 | I22: =ROUND(IF(AND(M22=$O$22,H22=$O$21),0-Настройки!$F$4,IF('Расчет усталости'!M22='Расчет усталости'!$O$22,IF(E22=$O$2,Настройки!$C$2,IF(E22=$O$3,Настройки!$C$3,IF(E22=$O$4,Настройки!$C$4,IF(E22=$O$5,Настройки!$C$5,IF(E22=$O$6,Настройки!$C$6,IF(E22=$O$7,Настройки!$C$7,IF(E22=$O$8,Настройки!$C$8,IF(E22=$O$9,Настройки!$C$9,IF(E22=$O$10,Настройки!$C$10,IF(E22=$O$11,Настройки!$C$11,IF(E22=$O$12,Настройки!$C$12,IF(E22=$O$13,Настройки!$C$13,IF(E22=$O$14,Настройки!$C$14,IF(E22=$O$15,Настройки!$C$15,IF(E22=$O$16,Настройки!$C$16,IF(E22=$O$17,Настройки!$C$17,IF(E22=$O$18,Настройки!$C$18,0)))))))))))))))))-Настройки!$F$4,IF('Расчет усталости'!H22='Расчет усталости'!$O$21,0,IF(E22=$O$2,Настройки!$C$2,IF(E22=$O$3,Настройки!$C$3,IF(E22=$O$4,Настройки!$C$4,IF(E22=$O$5,Настройки!$C$5,IF(E22=$O$6,Настройки!$C$6,IF(E22=$O$7,Настройки!$C$7,IF(E22=$O$8,Настройки!$C$8,IF(E22=$O$9,Настройки!$C$9,IF(E22=$O$10,Настройки!$C$10,IF(E22=$O$11,Настройки!$C$11,IF(E22=$O$12,Настройки!$C$12,IF(E22=$O$13,Настройки!$C$13,IF(E22=$O$14,Настройки!$C$14,IF(E22=$O$15,Настройки!$C$15,IF(E22=$O$16,Настройки!$C$16,IF(E22=$O$17,Настройки!$C$17,IF(E22=$O$18,Настройки!$C$18,0)))))))))))))))))))),2) -> 0.3 | J22: =ROUND(IF(AND(M22=$O$22,H22=$O$21),0-Настройки!$F$4,IF('Расчет усталости'!M22='Расчет усталости'!$O$22,ROUND(IF(G22=$O$20,IF(E22=$O$2,Настройки!$C$2,IF(E22=$O$3,Настройки!$C$3,IF(E22=$O$4,Настройки!$C$4,IF(E22=$O$5,Настройки!$C$5,IF(E22=$O$6,Настройки!$C$6,IF(E22=$O$7,Настройки!$C$7,IF(E22=$O$8,Настройки!$C$8,IF(E22=$O$9,Настройки!$C$9,IF(E22=$O$10,Настройки!$C$10,IF(E22=$O$11,Настройки!$C$11,IF(E22=$O$12,Настройки!$C$12,IF(E22=$O$13,Настройки!$C$13,IF(E22=$O$14,Настройки!$C$14,IF(E22=$O$15,Настройки!$C$15,IF(E22=$O$16,Настройки!$C$16,IF(E22=$O$17,Настройки!$C$17,IF(E22=$O$18,Настройки!$C$18,0)))))))))))))))))*Настройки!$F$2+IF(E22=$O$2,Настройки!$C$2,IF(E22=$O$3,Настройки!$C$3,IF(E22=$O$4,Настройки!$C$4,IF(E22=$O$5,Настройки!$C$5,IF(E22=$O$6,Настройки!$C$6,IF(E22=$O$7,Настройки!$C$7,IF(E22=$O$8,Настройки!$C$8,IF(E22=$O$9,Настройки!$C$9,IF(E22=$O$10,Настройки!$C$10,IF(E22=$O$11,Настройки!$C$11,IF(E22=$O$12,Настройки!$C$12,IF(E22=$O$13,Настройки!$C$13,IF(E22=$O$14,Настройки!$C$14,IF(E22=$O$15,Настройки!$C$15,IF(E22=$O$16,Настройки!$C$16,IF(E22=$O$17,Настройки!$C$17,IF(E22=$O$18,Настройки!$C$18,0))))))))))))))))),IF(E22=$O$2,Настройки!$C$2,IF(E22=$O$3,Настройки!$C$3,IF(E22=$O$4,Настройки!$C$4,IF(E22=$O$5,Настройки!$C$5,IF(E22=$O$6,Настройки!$C$6,IF(E22=$O$7,Настройки!$C$7,IF(E22=$O$8,Настройки!$C$8,IF(E22=$O$9,Настройки!$C$9,IF(E22=$O$10,Настройки!$C$10,IF(E22=$O$11,Настройки!$C$11,IF(E22=$O$12,Настройки!$C$12,IF(E22=$O$13,Настройки!$C$13,IF(E22=$O$14,Настройки!$C$14,IF(E22=$O$15,Настройки!$C$15,IF(E22=$O$16,Настройки!$C$16,IF(E22=$O$17,Настройки!$C$17,IF(E22=$O$18,Настройки!$C$18,0)))))))))))))))))),2)-Настройки!$F$4,IF('Расчет усталости'!H22='Расчет усталости'!$O$21,0,IF(G22=$O$20,IF(E22=$O$2,Настройки!$C$2,IF(E22=$O$3,Настройки!$C$3,IF(E22=$O$4,Настройки!$C$4,IF(E22=$O$5,Настройки!$C$5,IF(E22=$O$6,Настройки!$C$6,IF(E22=$O$7,Настройки!$C$7,IF(E22=$O$8,Настройки!$C$8,IF(E22=$O$9,Настройки!$C$9,IF(E22=$O$10,Настройки!$C$10,IF(E22=$O$11,Настройки!$C$11,IF(E22=$O$12,Настройки!$C$12,IF(E22=$O$13,Настройки!$C$13,IF(E22=$O$14,Настройки!$C$14,IF(E22=$O$15,Настройки!$C$15,IF(E22=$O$16,Настройки!$C$16,IF(E22=$O$17,Настройки!$C$17,IF(E22=$O$18,Настройки!$C$18,0)))))))))))))))))*Настройки!$F$2+IF(E22=$O$2,Настройки!$C$2,IF(E22=$O$3,Настройки!$C$3,IF(E22=$O$4,Настройки!$C$4,IF(E22=$O$5,Настройки!$C$5,IF(E22=$O$6,Настройки!$C$6,IF(E22=$O$7,Настройки!$C$7,IF(E22=$O$8,Настройки!$C$8,IF(E22=$O$9,Настройки!$C$9,IF(E22=$O$10,Настройки!$C$10,IF(E22=$O$11,Настройки!$C$11,IF(E22=$O$12,Настройки!$C$12,IF(E22=$O$13,Настройки!$C$13,IF(E22=$O$14,Настройки!$C$14,IF(E22=$O$15,Настройки!$C$15,IF(E22=$O$16,Настройки!$C$16,IF(E22=$O$17,Настройки!$C$17,IF(E22=$O$18,Настройки!$C$18,0))))))))))))))))),IF(E22=$O$2,Настройки!$C$2,IF(E22=$O$3,Настройки!$C$3,IF(E22=$O$4,Настройки!$C$4,IF(E22=$O$5,Настройки!$C$5,IF(E22=$O$6,Настройки!$C$6,IF(E22=$O$7,Настройки!$C$7,IF(E22=$O$8,Настройки!$C$8,IF(E22=$O$9,Настройки!$C$9,IF(E22=$O$10,Настройки!$C$10,IF(E22=$O$11,Настройки!$C$11,IF(E22=$O$12,Настройки!$C$12,IF(E22=$O$13,Настройки!$C$13,IF(E22=$O$14,Настройки!$C$14,IF(E22=$O$15,Настройки!$C$15,IF(E22=$O$16,Настройки!$C$16,IF(E22=$O$17,Настройки!$C$17,IF(E22=$O$18,Настройки!$C$18,0))))))))))))))))))))),2) -> 0.3 | K22: =IF(SUM($I$2:I22)-SUM($C$2:C22)<0,0,ROUND(SUM($I$2:I22)-SUM($C$2:C22),2)) -> 0.85 | L22: =IF(SUM($J$2:J22)-SUM($C$2:C22)<0,0,ROUND(SUM($J$2:J22)-SUM($C$2:C22),2)) -> 1.02 | O22: В | P22: Вечеринка | Q22: =COUNTIF($M$2:$M$127,O22) -> 6 | R22: =COUNTIF(INDIRECT(CONCATENATE("M2:M",MATCH($T$25,$F$1:$F$127,0)),1),O22) -> 5
A23: Чт | B23: 4 | C23: =Настройки!$F$3 -> 0.1 | D23: 15 | E23: КТ | F23: =COUNTIF($E$2:E23,"ЧЕМ") -> 6 | I23: =ROUND(IF(AND(M23=$O$22,H23=$O$21),0-Настройки!$F$4,IF('Расчет усталости'!M23='Расчет усталости'!$O$22,IF(E23=$O$2,Настройки!$C$2,IF(E23=$O$3,Настройки!$C$3,IF(E23=$O$4,Настройки!$C$4,IF(E23=$O$5,Настройки!$C$5,IF(E23=$O$6,Настройки!$C$6,IF(E23=$O$7,Настройки!$C$7,IF(E23=$O$8,Настройки!$C$8,IF(E23=$O$9,Настройки!$C$9,IF(E23=$O$10,Настройки!$C$10,IF(E23=$O$11,Настройки!$C$11,IF(E23=$O$12,Настройки!$C$12,IF(E23=$O$13,Настройки!$C$13,IF(E23=$O$14,Настройки!$C$14,IF(E23=$O$15,Настройки!$C$15,IF(E23=$O$16,Настройки!$C$16,IF(E23=$O$17,Настройки!$C$17,IF(E23=$O$18,Настройки!$C$18,0)))))))))))))))))-Настройки!$F$4,IF('Расчет усталости'!H23='Расчет усталости'!$O$21,0,IF(E23=$O$2,Настройки!$C$2,IF(E23=$O$3,Настройки!$C$3,IF(E23=$O$4,Настройки!$C$4,IF(E23=$O$5,Настройки!$C$5,IF(E23=$O$6,Настройки!$C$6,IF(E23=$O$7,Настройки!$C$7,IF(E23=$O$8,Настройки!$C$8,IF(E23=$O$9,Настройки!$C$9,IF(E23=$O$10,Настройки!$C$10,IF(E23=$O$11,Настройки!$C$11,IF(E23=$O$12,Настройки!$C$12,IF(E23=$O$13,Настройки!$C$13,IF(E23=$O$14,Настройки!$C$14,IF(E23=$O$15,Настройки!$C$15,IF(E23=$O$16,Настройки!$C$16,IF(E23=$O$17,Настройки!$C$17,IF(E23=$O$18,Настройки!$C$18,0)))))))))))))))))))),2) -> 0.15 | J23: =ROUND(IF(AND(M23=$O$22,H23=$O$21),0-Настройки!$F$4,IF('Расчет усталости'!M23='Расчет усталости'!$O$22,ROUND(IF(G23=$O$20,IF(E23=$O$2,Настройки!$C$2,IF(E23=$O$3,Настройки!$C$3,IF(E23=$O$4,Настройки!$C$4,IF(E23=$O$5,Настройки!$C$5,IF(E23=$O$6,Настройки!$C$6,IF(E23=$O$7,Настройки!$C$7,IF(E23=$O$8,Настройки!$C$8,IF(E23=$O$9,Настройки!$C$9,IF(E23=$O$10,Настройки!$C$10,IF(E23=$O$11,Настройки!$C$11,IF(E23=$O$12,Настройки!$C$12,IF(E23=$O$13,Настройки!$C$13,IF(E23=$O$14,Настройки!$C$14,IF(E23=$O$15,Настройки!$C$15,IF(E23=$O$16,Настройки!$C$16,IF(E23=$O$17,Настройки!$C$17,IF(E23=$O$18,Настройки!$C$18,0)))))))))))))))))*Настройки!$F$2+IF(E23=$O$2,Настройки!$C$2,IF(E23=$O$3,Настройки!$C$3,IF(E23=$O$4,Настройки!$C$4,IF(E23=$O$5,Настройки!$C$5,IF(E23=$O$6,Настройки!$C$6,IF(E23=$O$7,Настройки!$C$7,IF(E23=$O$8,Настройки!$C$8,IF(E23=$O$9,Настройки!$C$9,IF(E23=$O$10,Настройки!$C$10,IF(E23=$O$11,Настройки!$C$11,IF(E23=$O$12,Настройки!$C$12,IF(E23=$O$13,Настройки!$C$13,IF(E23=$O$14,Настройки!$C$14,IF(E23=$O$15,Настройки!$C$15,IF(E23=$O$16,Настройки!$C$16,IF(E23=$O$17,Настройки!$C$17,IF(E23=$O$18,Настройки!$C$18,0))))))))))))))))),IF(E23=$O$2,Настройки!$C$2,IF(E23=$O$3,Настройки!$C$3,IF(E23=$O$4,Настройки!$C$4,IF(E23=$O$5,Настройки!$C$5,IF(E23=$O$6,Настройки!$C$6,IF(E23=$O$7,Настройки!$C$7,IF(E23=$O$8,Настройки!$C$8,IF(E23=$O$9,Настройки!$C$9,IF(E23=$O$10,Настройки!$C$10,IF(E23=$O$11,Настройки!$C$11,IF(E23=$O$12,Настройки!$C$12,IF(E23=$O$13,Настройки!$C$13,IF(E23=$O$14,Настройки!$C$14,IF(E23=$O$15,Настройки!$C$15,IF(E23=$O$16,Настройки!$C$16,IF(E23=$O$17,Настройки!$C$17,IF(E23=$O$18,Настройки!$C$18,0)))))))))))))))))),2)-Настройки!$F$4,IF('Расчет усталости'!H23='Расчет усталости'!$O$21,0,IF(G23=$O$20,IF(E23=$O$2,Настройки!$C$2,IF(E23=$O$3,Настройки!$C$3,IF(E23=$O$4,Настройки!$C$4,IF(E23=$O$5,Настройки!$C$5,IF(E23=$O$6,Настройки!$C$6,IF(E23=$O$7,Настройки!$C$7,IF(E23=$O$8,Настройки!$C$8,IF(E23=$O$9,Настройки!$C$9,IF(E23=$O$10,Настройки!$C$10,IF(E23=$O$11,Настройки!$C$11,IF(E23=$O$12,Настройки!$C$12,IF(E23=$O$13,Настройки!$C$13,IF(E23=$O$14,Настройки!$C$14,IF(E23=$O$15,Настройки!$C$15,IF(E23=$O$16,Настройки!$C$16,IF(E23=$O$17,Настройки!$C$17,IF(E23=$O$18,Настройки!$C$18,0)))))))))))))))))*Настройки!$F$2+IF(E23=$O$2,Настройки!$C$2,IF(E23=$O$3,Настройки!$C$3,IF(E23=$O$4,Настройки!$C$4,IF(E23=$O$5,Настройки!$C$5,IF(E23=$O$6,Настройки!$C$6,IF(E23=$O$7,Настройки!$C$7,IF(E23=$O$8,Настройки!$C$8,IF(E23=$O$9,Настройки!$C$9,IF(E23=$O$10,Настройки!$C$10,IF(E23=$O$11,Настройки!$C$11,IF(E23=$O$12,Настройки!$C$12,IF(E23=$O$13,Настройки!$C$13,IF(E23=$O$14,Настройки!$C$14,IF(E23=$O$15,Настройки!$C$15,IF(E23=$O$16,Настройки!$C$16,IF(E23=$O$17,Настройки!$C$17,IF(E23=$O$18,Настройки!$C$18,0))))))))))))))))),IF(E23=$O$2,Настройки!$C$2,IF(E23=$O$3,Настройки!$C$3,IF(E23=$O$4,Настройки!$C$4,IF(E23=$O$5,Настройки!$C$5,IF(E23=$O$6,Настройки!$C$6,IF(E23=$O$7,Настройки!$C$7,IF(E23=$O$8,Настройки!$C$8,IF(E23=$O$9,Настройки!$C$9,IF(E23=$O$10,Настройки!$C$10,IF(E23=$O$11,Настройки!$C$11,IF(E23=$O$12,Настройки!$C$12,IF(E23=$O$13,Настройки!$C$13,IF(E23=$O$14,Настройки!$C$14,IF(E23=$O$15,Настройки!$C$15,IF(E23=$O$16,Настройки!$C$16,IF(E23=$O$17,Настройки!$C$17,IF(E23=$O$18,Настройки!$C$18,0))))))))))))))))))))),2) -> 0.15 | K23: =IF(SUM($I$2:I23)-SUM($C$2:C23)<0,0,ROUND(SUM($I$2:I23)-SUM($C$2:C23),2)) -> 0.9 | L23: =IF(SUM($J$2:J23)-SUM($C$2:C23)<0,0,ROUND(SUM($J$2:J23)-SUM($C$2:C23),2)) -> 1.07 | S23: Кол-во тренировок | T23: =IF(AND($T$25>0,$T$25<=30),MATCH($T$25,$F$1:$F$127,0)-3,124) -> 85
A24: Пт | B24: 4 | C24: =Настройки!$F$3 -> 0.1 | F24: =COUNTIF($E$2:E24,"ЧЕМ") -> 6 | I24: =ROUND(IF(AND(M24=$O$22,H24=$O$21),0-Настройки!$F$4,IF('Расчет усталости'!M24='Расчет усталости'!$O$22,IF(E24=$O$2,Настройки!$C$2,IF(E24=$O$3,Настройки!$C$3,IF(E24=$O$4,Настройки!$C$4,IF(E24=$O$5,Настройки!$C$5,IF(E24=$O$6,Настройки!$C$6,IF(E24=$O$7,Настройки!$C$7,IF(E24=$O$8,Настройки!$C$8,IF(E24=$O$9,Настройки!$C$9,IF(E24=$O$10,Настройки!$C$10,IF(E24=$O$11,Настройки!$C$11,IF(E24=$O$12,Настройки!$C$12,IF(E24=$O$13,Настройки!$C$13,IF(E24=$O$14,Настройки!$C$14,IF(E24=$O$15,Настройки!$C$15,IF(E24=$O$16,Настройки!$C$16,IF(E24=$O$17,Настройки!$C$17,IF(E24=$O$18,Настройки!$C$18,0)))))))))))))))))-Настройки!$F$4,IF('Расчет усталости'!H24='Расчет усталости'!$O$21,0,IF(E24=$O$2,Настройки!$C$2,IF(E24=$O$3,Настройки!$C$3,IF(E24=$O$4,Настройки!$C$4,IF(E24=$O$5,Настройки!$C$5,IF(E24=$O$6,Настройки!$C$6,IF(E24=$O$7,Настройки!$C$7,IF(E24=$O$8,Настройки!$C$8,IF(E24=$O$9,Настройки!$C$9,IF(E24=$O$10,Настройки!$C$10,IF(E24=$O$11,Настройки!$C$11,IF(E24=$O$12,Настройки!$C$12,IF(E24=$O$13,Настройки!$C$13,IF(E24=$O$14,Настройки!$C$14,IF(E24=$O$15,Настройки!$C$15,IF(E24=$O$16,Настройки!$C$16,IF(E24=$O$17,Настройки!$C$17,IF(E24=$O$18,Настройки!$C$18,0)))))))))))))))))))),2) -> 0 | J24: =ROUND(IF(AND(M24=$O$22,H24=$O$21),0-Настройки!$F$4,IF('Расчет усталости'!M24='Расчет усталости'!$O$22,ROUND(IF(G24=$O$20,IF(E24=$O$2,Настройки!$C$2,IF(E24=$O$3,Настройки!$C$3,IF(E24=$O$4,Настройки!$C$4,IF(E24=$O$5,Настройки!$C$5,IF(E24=$O$6,Настройки!$C$6,IF(E24=$O$7,Настройки!$C$7,IF(E24=$O$8,Настройки!$C$8,IF(E24=$O$9,Настройки!$C$9,IF(E24=$O$10,Настройки!$C$10,IF(E24=$O$11,Настройки!$C$11,IF(E24=$O$12,Настройки!$C$12,IF(E24=$O$13,Настройки!$C$13,IF(E24=$O$14,Настройки!$C$14,IF(E24=$O$15,Настройки!$C$15,IF(E24=$O$16,Настройки!$C$16,IF(E24=$O$17,Настройки!$C$17,IF(E24=$O$18,Настройки!$C$18,0)))))))))))))))))*Настройки!$F$2+IF(E24=$O$2,Настройки!$C$2,IF(E24=$O$3,Настройки!$C$3,IF(E24=$O$4,Настройки!$C$4,IF(E24=$O$5,Настройки!$C$5,IF(E24=$O$6,Настройки!$C$6,IF(E24=$O$7,Настройки!$C$7,IF(E24=$O$8,Настройки!$C$8,IF(E24=$O$9,Настройки!$C$9,IF(E24=$O$10,Настройки!$C$10,IF(E24=$O$11,Настройки!$C$11,IF(E24=$O$12,Настройки!$C$12,IF(E24=$O$13,Настройки!$C$13,IF(E24=$O$14,Настройки!$C$14,IF(E24=$O$15,Настройки!$C$15,IF(E24=$O$16,Настройки!$C$16,IF(E24=$O$17,Настройки!$C$17,IF(E24=$O$18,Настройки!$C$18,0))))))))))))))))),IF(E24=$O$2,Настройки!$C$2,IF(E24=$O$3,Настройки!$C$3,IF(E24=$O$4,Настройки!$C$4,IF(E24=$O$5,Настройки!$C$5,IF(E24=$O$6,Настройки!$C$6,IF(E24=$O$7,Настройки!$C$7,IF(E24=$O$8,Настройки!$C$8,IF(E24=$O$9,Настройки!$C$9,IF(E24=$O$10,Настройки!$C$10,IF(E24=$O$11,Настройки!$C$11,IF(E24=$O$12,Настройки!$C$12,IF(E24=$O$13,Настройки!$C$13,IF(E24=$O$14,Настройки!$C$14,IF(E24=$O$15,Настройки!$C$15,IF(E24=$O$16,Настройки!$C$16,IF(E24=$O$17,Настройки!$C$17,IF(E24=$O$18,Настройки!$C$18,0)))))))))))))))))),2)-Настройки!$F$4,IF('Расчет усталости'!H24='Расчет усталости'!$O$21,0,IF(G24=$O$20,IF(E24=$O$2,Настройки!$C$2,IF(E24=$O$3,Настройки!$C$3,IF(E24=$O$4,Настройки!$C$4,IF(E24=$O$5,Настройки!$C$5,IF(E24=$O$6,Настройки!$C$6,IF(E24=$O$7,Настройки!$C$7,IF(E24=$O$8,Настройки!$C$8,IF(E24=$O$9,Настройки!$C$9,IF(E24=$O$10,Настройки!$C$10,IF(E24=$O$11,Настройки!$C$11,IF(E24=$O$12,Настройки!$C$12,IF(E24=$O$13,Настройки!$C$13,IF(E24=$O$14,Настройки!$C$14,IF(E24=$O$15,Настройки!$C$15,IF(E24=$O$16,Настройки!$C$16,IF(E24=$O$17,Настройки!$C$17,IF(E24=$O$18,Настройки!$C$18,0)))))))))))))))))*Настройки!$F$2+IF(E24=$O$2,Настройки!$C$2,IF(E24=$O$3,Настройки!$C$3,IF(E24=$O$4,Настройки!$C$4,IF(E24=$O$5,Настройки!$C$5,IF(E24=$O$6,Настройки!$C$6,IF(E24=$O$7,Настройки!$C$7,IF(E24=$O$8,Настройки!$C$8,IF(E24=$O$9,Настройки!$C$9,IF(E24=$O$10,Настройки!$C$10,IF(E24=$O$11,Настройки!$C$11,IF(E24=$O$12,Настройки!$C$12,IF(E24=$O$13,Настройки!$C$13,IF(E24=$O$14,Настройки!$C$14,IF(E24=$O$15,Настройки!$C$15,IF(E24=$O$16,Настройки!$C$16,IF(E24=$O$17,Настройки!$C$17,IF(E24=$O$18,Настройки!$C$18,0))))))))))))))))),IF(E24=$O$2,Настройки!$C$2,IF(E24=$O$3,Настройки!$C$3,IF(E24=$O$4,Настройки!$C$4,IF(E24=$O$5,Настройки!$C$5,IF(E24=$O$6,Настройки!$C$6,IF(E24=$O$7,Настройки!$C$7,IF(E24=$O$8,Настройки!$C$8,IF(E24=$O$9,Настройки!$C$9,IF(E24=$O$10,Настройки!$C$10,IF(E24=$O$11,Настройки!$C$11,IF(E24=$O$12,Настройки!$C$12,IF(E24=$O$13,Настройки!$C$13,IF(E24=$O$14,Настройки!$C$14,IF(E24=$O$15,Настройки!$C$15,IF(E24=$O$16,Настройки!$C$16,IF(E24=$O$17,Настройки!$C$17,IF(E24=$O$18,Настройки!$C$18,0))))))))))))))))))))),2) -> 0 | K24: =IF(SUM($I$2:I24)-SUM($C$2:C24)<0,0,ROUND(SUM($I$2:I24)-SUM($C$2:C24),2)) -> 0.8 | L24: =IF(SUM($J$2:J24)-SUM($C$2:C24)<0,0,ROUND(SUM($J$2:J24)-SUM($C$2:C24),2)) -> 0.97 | S24: Кол-во вечеринок | T24: 4
A25: Сб | B25: 4 | C25: =Настройки!$F$3 -> 0.1 | D25: 16 | E25: ЧЕМ | F25: =COUNTIF($E$2:E25,"ЧЕМ") -> 7 | G25: Г | I25: =ROUND(IF(AND(M25=$O$22,H25=$O$21),0-Настройки!$F$4,IF('Расчет усталости'!M25='Расчет усталости'!$O$22,IF(E25=$O$2,Настройки!$C$2,IF(E25=$O$3,Настройки!$C$3,IF(E25=$O$4,Настройки!$C$4,IF(E25=$O$5,Настройки!$C$5,IF(E25=$O$6,Настройки!$C$6,IF(E25=$O$7,Настройки!$C$7,IF(E25=$O$8,Настройки!$C$8,IF(E25=$O$9,Настройки!$C$9,IF(E25=$O$10,Настройки!$C$10,IF(E25=$O$11,Настройки!$C$11,IF(E25=$O$12,Настройки!$C$12,IF(E25=$O$13,Настройки!$C$13,IF(E25=$O$14,Настройки!$C$14,IF(E25=$O$15,Настройки!$C$15,IF(E25=$O$16,Настройки!$C$16,IF(E25=$O$17,Настройки!$C$17,IF(E25=$O$18,Настройки!$C$18,0)))))))))))))))))-Настройки!$F$4,IF('Расчет усталости'!H25='Расчет усталости'!$O$21,0,IF(E25=$O$2,Настройки!$C$2,IF(E25=$O$3,Настройки!$C$3,IF(E25=$O$4,Настройки!$C$4,IF(E25=$O$5,Настройки!$C$5,IF(E25=$O$6,Настройки!$C$6,IF(E25=$O$7,Настройки!$C$7,IF(E25=$O$8,Настройки!$C$8,IF(E25=$O$9,Настройки!$C$9,IF(E25=$O$10,Настройки!$C$10,IF(E25=$O$11,Настройки!$C$11,IF(E25=$O$12,Настройки!$C$12,IF(E25=$O$13,Настройки!$C$13,IF(E25=$O$14,Настройки!$C$14,IF(E25=$O$15,Настройки!$C$15,IF(E25=$O$16,Настройки!$C$16,IF(E25=$O$17,Настройки!$C$17,IF(E25=$O$18,Настройки!$C$18,0)))))))))))))))))))),2) -> 0.3 | J25: =ROUND(IF(AND(M25=$O$22,H25=$O$21),0-Настройки!$F$4,IF('Расчет усталости'!M25='Расчет усталости'!$O$22,ROUND(IF(G25=$O$20,IF(E25=$O$2,Настройки!$C$2,IF(E25=$O$3,Настройки!$C$3,IF(E25=$O$4,Настройки!$C$4,IF(E25=$O$5,Настройки!$C$5,IF(E25=$O$6,Настройки!$C$6,IF(E25=$O$7,Настройки!$C$7,IF(E25=$O$8,Настройки!$C$8,IF(E25=$O$9,Настройки!$C$9,IF(E25=$O$10,Настройки!$C$10,IF(E25=$O$11,Настройки!$C$11,IF(E25=$O$12,Настройки!$C$12,IF(E25=$O$13,Настройки!$C$13,IF(E25=$O$14,Настройки!$C$14,IF(E25=$O$15,Настройки!$C$15,IF(E25=$O$16,Настройки!$C$16,IF(E25=$O$17,Настройки!$C$17,IF(E25=$O$18,Настройки!$C$18,0)))))))))))))))))*Настройки!$F$2+IF(E25=$O$2,Настройки!$C$2,IF(E25=$O$3,Настройки!$C$3,IF(E25=$O$4,Настройки!$C$4,IF(E25=$O$5,Настройки!$C$5,IF(E25=$O$6,Настройки!$C$6,IF(E25=$O$7,Настройки!$C$7,IF(E25=$O$8,Настройки!$C$8,IF(E25=$O$9,Настройки!$C$9,IF(E25=$O$10,Настройки!$C$10,IF(E25=$O$11,Настройки!$C$11,IF(E25=$O$12,Настройки!$C$12,IF(E25=$O$13,Настройки!$C$13,IF(E25=$O$14,Настройки!$C$14,IF(E25=$O$15,Настройки!$C$15,IF(E25=$O$16,Настройки!$C$16,IF(E25=$O$17,Настройки!$C$17,IF(E25=$O$18,Настройки!$C$18,0))))))))))))))))),IF(E25=$O$2,Настройки!$C$2,IF(E25=$O$3,Настройки!$C$3,IF(E25=$O$4,Настройки!$C$4,IF(E25=$O$5,Настройки!$C$5,IF(E25=$O$6,Настройки!$C$6,IF(E25=$O$7,Настройки!$C$7,IF(E25=$O$8,Настройки!$C$8,IF(E25=$O$9,Настройки!$C$9,IF(E25=$O$10,Настройки!$C$10,IF(E25=$O$11,Настройки!$C$11,IF(E25=$O$12,Настройки!$C$12,IF(E25=$O$13,Настройки!$C$13,IF(E25=$O$14,Настройки!$C$14,IF(E25=$O$15,Настройки!$C$15,IF(E25=$O$16,Настройки!$C$16,IF(E25=$O$17,Настройки!$C$17,IF(E25=$O$18,Настройки!$C$18,0)))))))))))))))))),2)-Настройки!$F$4,IF('Расчет усталости'!H25='Расчет усталости'!$O$21,0,IF(G25=$O$20,IF(E25=$O$2,Настройки!$C$2,IF(E25=$O$3,Настройки!$C$3,IF(E25=$O$4,Настройки!$C$4,IF(E25=$O$5,Настройки!$C$5,IF(E25=$O$6,Настройки!$C$6,IF(E25=$O$7,Настройки!$C$7,IF(E25=$O$8,Настройки!$C$8,IF(E25=$O$9,Настройки!$C$9,IF(E25=$O$10,Настройки!$C$10,IF(E25=$O$11,Настройки!$C$11,IF(E25=$O$12,Настройки!$C$12,IF(E25=$O$13,Настройки!$C$13,IF(E25=$O$14,Настройки!$C$14,IF(E25=$O$15,Настройки!$C$15,IF(E25=$O$16,Настройки!$C$16,IF(E25=$O$17,Настройки!$C$17,IF(E25=$O$18,Настройки!$C$18,0)))))))))))))))))*Настройки!$F$2+IF(E25=$O$2,Настройки!$C$2,IF(E25=$O$3,Настройки!$C$3,IF(E25=$O$4,Настройки!$C$4,IF(E25=$O$5,Настройки!$C$5,IF(E25=$O$6,Настройки!$C$6,IF(E25=$O$7,Настройки!$C$7,IF(E25=$O$8,Настройки!$C$8,IF(E25=$O$9,Настройки!$C$9,IF(E25=$O$10,Настройки!$C$10,IF(E25=$O$11,Настройки!$C$11,IF(E25=$O$12,Настройки!$C$12,IF(E25=$O$13,Настройки!$C$13,IF(E25=$O$14,Настройки!$C$14,IF(E25=$O$15,Настройки!$C$15,IF(E25=$O$16,Настройки!$C$16,IF(E25=$O$17,Настройки!$C$17,IF(E25=$O$18,Настройки!$C$18,0))))))))))))))))),IF(E25=$O$2,Настройки!$C$2,IF(E25=$O$3,Настройки!$C$3,IF(E25=$O$4,Настройки!$C$4,IF(E25=$O$5,Настройки!$C$5,IF(E25=$O$6,Настройки!$C$6,IF(E25=$O$7,Настройки!$C$7,IF(E25=$O$8,Настройки!$C$8,IF(E25=$O$9,Настройки!$C$9,IF(E25=$O$10,Настройки!$C$10,IF(E25=$O$11,Настройки!$C$11,IF(E25=$O$12,Настройки!$C$12,IF(E25=$O$13,Настройки!$C$13,IF(E25=$O$14,Настройки!$C$14,IF(E25=$O$15,Настройки!$C$15,IF(E25=$O$16,Настройки!$C$16,IF(E25=$O$17,Настройки!$C$17,IF(E25=$O$18,Настройки!$C$18,0))))))))))))))))))))),2) -> 0.33 | K25: =IF(SUM($I$2:I25)-SUM($C$2:C25)<0,0,ROUND(SUM($I$2:I25)-SUM($C$2:C25),2)) -> 1 | L25: =IF(SUM($J$2:J25)-SUM($C$2:C25)<0,0,ROUND(SUM($J$2:J25)-SUM($C$2:C25),2)) -> 1.2 | S25: Считать к | T25: 25 | U25: туру чемпионата
A26: Пн | B26: 5 | C26: =Настройки!$F$3 -> 0.1 | F26: =COUNTIF($E$2:E26,"ЧЕМ") -> 7 | I26: =ROUND(IF(AND(M26=$O$22,H26=$O$21),0-Настройки!$F$4,IF('Расчет усталости'!M26='Расчет усталости'!$O$22,IF(E26=$O$2,Настройки!$C$2,IF(E26=$O$3,Настройки!$C$3,IF(E26=$O$4,Настройки!$C$4,IF(E26=$O$5,Настройки!$C$5,IF(E26=$O$6,Настройки!$C$6,IF(E26=$O$7,Настройки!$C$7,IF(E26=$O$8,Настройки!$C$8,IF(E26=$O$9,Настройки!$C$9,IF(E26=$O$10,Настройки!$C$10,IF(E26=$O$11,Настройки!$C$11,IF(E26=$O$12,Настройки!$C$12,IF(E26=$O$13,Настройки!$C$13,IF(E26=$O$14,Настройки!$C$14,IF(E26=$O$15,Настройки!$C$15,IF(E26=$O$16,Настройки!$C$16,IF(E26=$O$17,Настройки!$C$17,IF(E26=$O$18,Настройки!$C$18,0)))))))))))))))))-Настройки!$F$4,IF('Расчет усталости'!H26='Расчет усталости'!$O$21,0,IF(E26=$O$2,Настройки!$C$2,IF(E26=$O$3,Настройки!$C$3,IF(E26=$O$4,Настройки!$C$4,IF(E26=$O$5,Настройки!$C$5,IF(E26=$O$6,Настройки!$C$6,IF(E26=$O$7,Настройки!$C$7,IF(E26=$O$8,Настройки!$C$8,IF(E26=$O$9,Настройки!$C$9,IF(E26=$O$10,Настройки!$C$10,IF(E26=$O$11,Настройки!$C$11,IF(E26=$O$12,Настройки!$C$12,IF(E26=$O$13,Настройки!$C$13,IF(E26=$O$14,Настройки!$C$14,IF(E26=$O$15,Настройки!$C$15,IF(E26=$O$16,Настройки!$C$16,IF(E26=$O$17,Настройки!$C$17,IF(E26=$O$18,Настройки!$C$18,0)))))))))))))))))))),2) -> 0 | J26: =ROUND(IF(AND(M26=$O$22,H26=$O$21),0-Настройки!$F$4,IF('Расчет усталости'!M26='Расчет усталости'!$O$22,ROUND(IF(G26=$O$20,IF(E26=$O$2,Настройки!$C$2,IF(E26=$O$3,Настройки!$C$3,IF(E26=$O$4,Настройки!$C$4,IF(E26=$O$5,Настройки!$C$5,IF(E26=$O$6,Настройки!$C$6,IF(E26=$O$7,Настройки!$C$7,IF(E26=$O$8,Настройки!$C$8,IF(E26=$O$9,Настройки!$C$9,IF(E26=$O$10,Настройки!$C$10,IF(E26=$O$11,Настройки!$C$11,IF(E26=$O$12,Настройки!$C$12,IF(E26=$O$13,Настройки!$C$13,IF(E26=$O$14,Настройки!$C$14,IF(E26=$O$15,Настройки!$C$15,IF(E26=$O$16,Настройки!$C$16,IF(E26=$O$17,Настройки!$C$17,IF(E26=$O$18,Настройки!$C$18,0)))))))))))))))))*Настройки!$F$2+IF(E26=$O$2,Настройки!$C$2,IF(E26=$O$3,Настройки!$C$3,IF(E26=$O$4,Настройки!$C$4,IF(E26=$O$5,Настройки!$C$5,IF(E26=$O$6,Настройки!$C$6,IF(E26=$O$7,Настройки!$C$7,IF(E26=$O$8,Настройки!$C$8,IF(E26=$O$9,Настройки!$C$9,IF(E26=$O$10,Настройки!$C$10,IF(E26=$O$11,Настройки!$C$11,IF(E26=$O$12,Настройки!$C$12,IF(E26=$O$13,Настройки!$C$13,IF(E26=$O$14,Настройки!$C$14,IF(E26=$O$15,Настройки!$C$15,IF(E26=$O$16,Настройки!$C$16,IF(E26=$O$17,Настройки!$C$17,IF(E26=$O$18,Настройки!$C$18,0))))))))))))))))),IF(E26=$O$2,Настройки!$C$2,IF(E26=$O$3,Настройки!$C$3,IF(E26=$O$4,Настройки!$C$4,IF(E26=$O$5,Настройки!$C$5,IF(E26=$O$6,Настройки!$C$6,IF(E26=$O$7,Настройки!$C$7,IF(E26=$O$8,Настройки!$C$8,IF(E26=$O$9,Настройки!$C$9,IF(E26=$O$10,Настройки!$C$10,IF(E26=$O$11,Настройки!$C$11,IF(E26=$O$12,Настройки!$C$12,IF(E26=$O$13,Настройки!$C$13,IF(E26=$O$14,Настройки!$C$14,IF(E26=$O$15,Настройки!$C$15,IF(E26=$O$16,Настройки!$C$16,IF(E26=$O$17,Настройки!$C$17,IF(E26=$O$18,Настройки!$C$18,0)))))))))))))))))),2)-Настройки!$F$4,IF('Расчет усталости'!H26='Расчет усталости'!$O$21,0,IF(G26=$O$20,IF(E26=$O$2,Настройки!$C$2,IF(E26=$O$3,Настройки!$C$3,IF(E26=$O$4,Настройки!$C$4,IF(E26=$O$5,Настройки!$C$5,IF(E26=$O$6,Настройки!$C$6,IF(E26=$O$7,Настройки!$C$7,IF(E26=$O$8,Настройки!$C$8,IF(E26=$O$9,Настройки!$C$9,IF(E26=$O$10,Настройки!$C$10,IF(E26=$O$11,Настройки!$C$11,IF(E26=$O$12,Настройки!$C$12,IF(E26=$O$13,Настройки!$C$13,IF(E26=$O$14,Настройки!$C$14,IF(E26=$O$15,Настройки!$C$15,IF(E26=$O$16,Настройки!$C$16,IF(E26=$O$17,Настройки!$C$17,IF(E26=$O$18,Настройки!$C$18,0)))))))))))))))))*Настройки!$F$2+IF(E26=$O$2,Настройки!$C$2,IF(E26=$O$3,Настройки!$C$3,IF(E26=$O$4,Настройки!$C$4,IF(E26=$O$5,Настройки!$C$5,IF(E26=$O$6,Настройки!$C$6,IF(E26=$O$7,Настройки!$C$7,IF(E26=$O$8,Настройки!$C$8,IF(E26=$O$9,Настройки!$C$9,IF(E26=$O$10,Настройки!$C$10,IF(E26=$O$11,Настройки!$C$11,IF(E26=$O$12,Настройки!$C$12,IF(E26=$O$13,Настройки!$C$13,IF(E26=$O$14,Настройки!$C$14,IF(E26=$O$15,Настройки!$C$15,IF(E26=$O$16,Настройки!$C$16,IF(E26=$O$17,Настройки!$C$17,IF(E26=$O$18,Настройки!$C$18,0))))))))))))))))),IF(E26=$O$2,Настройки!$C$2,IF(E26=$O$3,Настройки!$C$3,IF(E26=$O$4,Настройки!$C$4,IF(E26=$O$5,Настройки!$C$5,IF(E26=$O$6,Настройки!$C$6,IF(E26=$O$7,Настройки!$C$7,IF(E26=$O$8,Настройки!$C$8,IF(E26=$O$9,Настройки!$C$9,IF(E26=$O$10,Настройки!$C$10,IF(E26=$O$11,Настройки!$C$11,IF(E26=$O$12,Настройки!$C$12,IF(E26=$O$13,Настройки!$C$13,IF(E26=$O$14,Настройки!$C$14,IF(E26=$O$15,Настройки!$C$15,IF(E26=$O$16,Настройки!$C$16,IF(E26=$O$17,Настройки!$C$17,IF(E26=$O$18,Настройки!$C$18,0))))))))))))))))))))),2) -> 0 | K26: =IF(SUM($I$2:I26)-SUM($C$2:C26)<0,0,ROUND(SUM($I$2:I26)-SUM($C$2:C26),2)) -> 0.9 | L26: =IF(SUM($J$2:J26)-SUM($C$2:C26)<0,0,ROUND(SUM($J$2:J26)-SUM($C$2:C26),2)) -> 1.1 | S26: Итоговая усталость | T26: =MAX(ROUND(SUM($T$2:$T$18)-$T$23*Настройки!$F$3-T24*Настройки!$F$4,2),0) -> 0
A27: Вт | B27: 5 | C27: =Настройки!$F$3 -> 0.1 | D27: 17 | E27: КТ | F27: =COUNTIF($E$2:E27,"ЧЕМ") -> 7 | G27: Г | I27: =ROUND(IF(AND(M27=$O$22,H27=$O$21),0-Настройки!$F$4,IF('Расчет усталости'!M27='Расчет усталости'!$O$22,IF(E27=$O$2,Настройки!$C$2,IF(E27=$O$3,Настройки!$C$3,IF(E27=$O$4,Настройки!$C$4,IF(E27=$O$5,Настройки!$C$5,IF(E27=$O$6,Настройки!$C$6,IF(E27=$O$7,Настройки!$C$7,IF(E27=$O$8,Настройки!$C$8,IF(E27=$O$9,Настройки!$C$9,IF(E27=$O$10,Настройки!$C$10,IF(E27=$O$11,Настройки!$C$11,IF(E27=$O$12,Настройки!$C$12,IF(E27=$O$13,Настройки!$C$13,IF(E27=$O$14,Настройки!$C$14,IF(E27=$O$15,Настройки!$C$15,IF(E27=$O$16,Настройки!$C$16,IF(E27=$O$17,Настройки!$C$17,IF(E27=$O$18,Настройки!$C$18,0)))))))))))))))))-Настройки!$F$4,IF('Расчет усталости'!H27='Расчет усталости'!$O$21,0,IF(E27=$O$2,Настройки!$C$2,IF(E27=$O$3,Настройки!$C$3,IF(E27=$O$4,Настройки!$C$4,IF(E27=$O$5,Настройки!$C$5,IF(E27=$O$6,Настройки!$C$6,IF(E27=$O$7,Настройки!$C$7,IF(E27=$O$8,Настройки!$C$8,IF(E27=$O$9,Настройки!$C$9,IF(E27=$O$10,Настройки!$C$10,IF(E27=$O$11,Настройки!$C$11,IF(E27=$O$12,Настройки!$C$12,IF(E27=$O$13,Настройки!$C$13,IF(E27=$O$14,Настройки!$C$14,IF(E27=$O$15,Настройки!$C$15,IF(E27=$O$16,Настройки!$C$16,IF(E27=$O$17,Настройки!$C$17,IF(E27=$O$18,Настройки!$C$18,0)))))))))))))))))))),2) -> 0.15 | J27: =ROUND(IF(AND(M27=$O$22,H27=$O$21),0-Настройки!$F$4,IF('Расчет усталости'!M27='Расчет усталости'!$O$22,ROUND(IF(G27=$O$20,IF(E27=$O$2,Настройки!$C$2,IF(E27=$O$3,Настройки!$C$3,IF(E27=$O$4,Настройки!$C$4,IF(E27=$O$5,Настройки!$C$5,IF(E27=$O$6,Настройки!$C$6,IF(E27=$O$7,Настройки!$C$7,IF(E27=$O$8,Настройки!$C$8,IF(E27=$O$9,Настройки!$C$9,IF(E27=$O$10,Настройки!$C$10,IF(E27=$O$11,Настройки!$C$11,IF(E27=$O$12,Настройки!$C$12,IF(E27=$O$13,Настройки!$C$13,IF(E27=$O$14,Настройки!$C$14,IF(E27=$O$15,Настройки!$C$15,IF(E27=$O$16,Настройки!$C$16,IF(E27=$O$17,Настройки!$C$17,IF(E27=$O$18,Настройки!$C$18,0)))))))))))))))))*Настройки!$F$2+IF(E27=$O$2,Настройки!$C$2,IF(E27=$O$3,Настройки!$C$3,IF(E27=$O$4,Настройки!$C$4,IF(E27=$O$5,Настройки!$C$5,IF(E27=$O$6,Настройки!$C$6,IF(E27=$O$7,Настройки!$C$7,IF(E27=$O$8,Настройки!$C$8,IF(E27=$O$9,Настройки!$C$9,IF(E27=$O$10,Настройки!$C$10,IF(E27=$O$11,Настройки!$C$11,IF(E27=$O$12,Настройки!$C$12,IF(E27=$O$13,Настройки!$C$13,IF(E27=$O$14,Настройки!$C$14,IF(E27=$O$15,Настройки!$C$15,IF(E27=$O$16,Настройки!$C$16,IF(E27=$O$17,Настройки!$C$17,IF(E27=$O$18,Настройки!$C$18,0))))))))))))))))),IF(E27=$O$2,Настройки!$C$2,IF(E27=$O$3,Настройки!$C$3,IF(E27=$O$4,Настройки!$C$4,IF(E27=$O$5,Настройки!$C$5,IF(E27=$O$6,Настройки!$C$6,IF(E27=$O$7,Настройки!$C$7,IF(E27=$O$8,Настройки!$C$8,IF(E27=$O$9,Настройки!$C$9,IF(E27=$O$10,Настройки!$C$10,IF(E27=$O$11,Настройки!$C$11,IF(E27=$O$12,Настройки!$C$12,IF(E27=$O$13,Настройки!$C$13,IF(E27=$O$14,Настройки!$C$14,IF(E27=$O$15,Настройки!$C$15,IF(E27=$O$16,Настройки!$C$16,IF(E27=$O$17,Настройки!$C$17,IF(E27=$O$18,Настройки!$C$18,0)))))))))))))))))),2)-Настройки!$F$4,IF('Расчет усталости'!H27='Расчет усталости'!$O$21,0,IF(G27=$O$20,IF(E27=$O$2,Настройки!$C$2,IF(E27=$O$3,Настройки!$C$3,IF(E27=$O$4,Настройки!$C$4,IF(E27=$O$5,Настройки!$C$5,IF(E27=$O$6,Настройки!$C$6,IF(E27=$O$7,Настройки!$C$7,IF(E27=$O$8,Настройки!$C$8,IF(E27=$O$9,Настройки!$C$9,IF(E27=$O$10,Настройки!$C$10,IF(E27=$O$11,Настройки!$C$11,IF(E27=$O$12,Настройки!$C$12,IF(E27=$O$13,Настройки!$C$13,IF(E27=$O$14,Настройки!$C$14,IF(E27=$O$15,Настройки!$C$15,IF(E27=$O$16,Настройки!$C$16,IF(E27=$O$17,Настройки!$C$17,IF(E27=$O$18,Настройки!$C$18,0)))))))))))))))))*Настройки!$F$2+IF(E27=$O$2,Настройки!$C$2,IF(E27=$O$3,Настройки!$C$3,IF(E27=$O$4,Настройки!$C$4,IF(E27=$O$5,Настройки!$C$5,IF(E27=$O$6,Настройки!$C$6,IF(E27=$O$7,Настройки!$C$7,IF(E27=$O$8,Настройки!$C$8,IF(E27=$O$9,Настройки!$C$9,IF(E27=$O$10,Настройки!$C$10,IF(E27=$O$11,Настройки!$C$11,IF(E27=$O$12,Настройки!$C$12,IF(E27=$O$13,Настройки!$C$13,IF(E27=$O$14,Настройки!$C$14,IF(E27=$O$15,Настройки!$C$15,IF(E27=$O$16,Настройки!$C$16,IF(E27=$O$17,Настройки!$C$17,IF(E27=$O$18,Настройки!$C$18,0))))))))))))))))),IF(E27=$O$2,Настройки!$C$2,IF(E27=$O$3,Настройки!$C$3,IF(E27=$O$4,Настройки!$C$4,IF(E27=$O$5,Настройки!$C$5,IF(E27=$O$6,Настройки!$C$6,IF(E27=$O$7,Настройки!$C$7,IF(E27=$O$8,Настройки!$C$8,IF(E27=$O$9,Настройки!$C$9,IF(E27=$O$10,Настройки!$C$10,IF(E27=$O$11,Настройки!$C$11,IF(E27=$O$12,Настройки!$C$12,IF(E27=$O$13,Настройки!$C$13,IF(E27=$O$14,Настройки!$C$14,IF(E27=$O$15,Настройки!$C$15,IF(E27=$O$16,Настройки!$C$16,IF(E27=$O$17,Настройки!$C$17,IF(E27=$O$18,Настройки!$C$18,0))))))))))))))))))))),2) -> 0.17 | K27: =IF(SUM($I$2:I27)-SUM($C$2:C27)<0,0,ROUND(SUM($I$2:I27)-SUM($C$2:C27),2)) -> 0.95 | L27: =IF(SUM($J$2:J27)-SUM($C$2:C27)<0,0,ROUND(SUM($J$2:J27)-SUM($C$2:C27),2)) -> 1.17
A28: Ср | B28: 5 | C28: =Настройки!$F$3 -> 0.1 | D28: 18 | E28: Т | F28: =COUNTIF($E$2:E28,"ЧЕМ") -> 7 | I28: =ROUND(IF(AND(M28=$O$22,H28=$O$21),0-Настройки!$F$4,IF('Расчет усталости'!M28='Расчет усталости'!$O$22,IF(E28=$O$2,Настройки!$C$2,IF(E28=$O$3,Настройки!$C$3,IF(E28=$O$4,Настройки!$C$4,IF(E28=$O$5,Настройки!$C$5,IF(E28=$O$6,Настройки!$C$6,IF(E28=$O$7,Настройки!$C$7,IF(E28=$O$8,Настройки!$C$8,IF(E28=$O$9,Настройки!$C$9,IF(E28=$O$10,Настройки!$C$10,IF(E28=$O$11,Настройки!$C$11,IF(E28=$O$12,Настройки!$C$12,IF(E28=$O$13,Настройки!$C$13,IF(E28=$O$14,Настройки!$C$14,IF(E28=$O$15,Настройки!$C$15,IF(E28=$O$16,Настройки!$C$16,IF(E28=$O$17,Настройки!$C$17,IF(E28=$O$18,Настройки!$C$18,0)))))))))))))))))-Настройки!$F$4,IF('Расчет усталости'!H28='Расчет усталости'!$O$21,0,IF(E28=$O$2,Настройки!$C$2,IF(E28=$O$3,Настройки!$C$3,IF(E28=$O$4,Настройки!$C$4,IF(E28=$O$5,Настройки!$C$5,IF(E28=$O$6,Настройки!$C$6,IF(E28=$O$7,Настройки!$C$7,IF(E28=$O$8,Настройки!$C$8,IF(E28=$O$9,Настройки!$C$9,IF(E28=$O$10,Настройки!$C$10,IF(E28=$O$11,Настройки!$C$11,IF(E28=$O$12,Настройки!$C$12,IF(E28=$O$13,Настройки!$C$13,IF(E28=$O$14,Настройки!$C$14,IF(E28=$O$15,Настройки!$C$15,IF(E28=$O$16,Настройки!$C$16,IF(E28=$O$17,Настройки!$C$17,IF(E28=$O$18,Настройки!$C$18,0)))))))))))))))))))),2) -> 0.15 | J28: =ROUND(IF(AND(M28=$O$22,H28=$O$21),0-Настройки!$F$4,IF('Расчет усталости'!M28='Расчет усталости'!$O$22,ROUND(IF(G28=$O$20,IF(E28=$O$2,Настройки!$C$2,IF(E28=$O$3,Настройки!$C$3,IF(E28=$O$4,Настройки!$C$4,IF(E28=$O$5,Настройки!$C$5,IF(E28=$O$6,Настройки!$C$6,IF(E28=$O$7,Настройки!$C$7,IF(E28=$O$8,Настройки!$C$8,IF(E28=$O$9,Настройки!$C$9,IF(E28=$O$10,Настройки!$C$10,IF(E28=$O$11,Настройки!$C$11,IF(E28=$O$12,Настройки!$C$12,IF(E28=$O$13,Настройки!$C$13,IF(E28=$O$14,Настройки!$C$14,IF(E28=$O$15,Настройки!$C$15,IF(E28=$O$16,Настройки!$C$16,IF(E28=$O$17,Настройки!$C$17,IF(E28=$O$18,Настройки!$C$18,0)))))))))))))))))*Настройки!$F$2+IF(E28=$O$2,Настройки!$C$2,IF(E28=$O$3,Настройки!$C$3,IF(E28=$O$4,Настройки!$C$4,IF(E28=$O$5,Настройки!$C$5,IF(E28=$O$6,Настройки!$C$6,IF(E28=$O$7,Настройки!$C$7,IF(E28=$O$8,Настройки!$C$8,IF(E28=$O$9,Настройки!$C$9,IF(E28=$O$10,Настройки!$C$10,IF(E28=$O$11,Настройки!$C$11,IF(E28=$O$12,Настройки!$C$12,IF(E28=$O$13,Настройки!$C$13,IF(E28=$O$14,Настройки!$C$14,IF(E28=$O$15,Настройки!$C$15,IF(E28=$O$16,Настройки!$C$16,IF(E28=$O$17,Настройки!$C$17,IF(E28=$O$18,Настройки!$C$18,0))))))))))))))))),IF(E28=$O$2,Настройки!$C$2,IF(E28=$O$3,Настройки!$C$3,IF(E28=$O$4,Настройки!$C$4,IF(E28=$O$5,Настройки!$C$5,IF(E28=$O$6,Настройки!$C$6,IF(E28=$O$7,Настройки!$C$7,IF(E28=$O$8,Настройки!$C$8,IF(E28=$O$9,Настройки!$C$9,IF(E28=$O$10,Настройки!$C$10,IF(E28=$O$11,Настройки!$C$11,IF(E28=$O$12,Настройки!$C$12,IF(E28=$O$13,Настройки!$C$13,IF(E28=$O$14,Настройки!$C$14,IF(E28=$O$15,Настройки!$C$15,IF(E28=$O$16,Настройки!$C$16,IF(E28=$O$17,Настройки!$C$17,IF(E28=$O$18,Настройки!$C$18,0)))))))))))))))))),2)-Настройки!$F$4,IF('Расчет усталости'!H28='Расчет усталости'!$O$21,0,IF(G28=$O$20,IF(E28=$O$2,Настройки!$C$2,IF(E28=$O$3,Настройки!$C$3,IF(E28=$O$4,Настройки!$C$4,IF(E28=$O$5,Настройки!$C$5,IF(E28=$O$6,Настройки!$C$6,IF(E28=$O$7,Настройки!$C$7,IF(E28=$O$8,Настройки!$C$8,IF(E28=$O$9,Настройки!$C$9,IF(E28=$O$10,Настройки!$C$10,IF(E28=$O$11,Настройки!$C$11,IF(E28=$O$12,Настройки!$C$12,IF(E28=$O$13,Настройки!$C$13,IF(E28=$O$14,Настройки!$C$14,IF(E28=$O$15,Настройки!$C$15,IF(E28=$O$16,Настройки!$C$16,IF(E28=$O$17,Настройки!$C$17,IF(E28=$O$18,Настройки!$C$18,0)))))))))))))))))*Настройки!$F$2+IF(E28=$O$2,Настройки!$C$2,IF(E28=$O$3,Настройки!$C$3,IF(E28=$O$4,Настройки!$C$4,IF(E28=$O$5,Настройки!$C$5,IF(E28=$O$6,Настройки!$C$6,IF(E28=$O$7,Настройки!$C$7,IF(E28=$O$8,Настройки!$C$8,IF(E28=$O$9,Настройки!$C$9,IF(E28=$O$10,Настройки!$C$10,IF(E28=$O$11,Настройки!$C$11,IF(E28=$O$12,Настройки!$C$12,IF(E28=$O$13,Настройки!$C$13,IF(E28=$O$14,Настройки!$C$14,IF(E28=$O$15,Настройки!$C$15,IF(E28=$O$16,Настройки!$C$16,IF(E28=$O$17,Настройки!$C$17,IF(E28=$O$18,Настройки!$C$18,0))))))))))))))))),IF(E28=$O$2,Настройки!$C$2,IF(E28=$O$3,Настройки!$C$3,IF(E28=$O$4,Настройки!$C$4,IF(E28=$O$5,Настройки!$C$5,IF(E28=$O$6,Настройки!$C$6,IF(E28=$O$7,Настройки!$C$7,IF(E28=$O$8,Настройки!$C$8,IF(E28=$O$9,Настройки!$C$9,IF(E28=$O$10,Настройки!$C$10,IF(E28=$O$11,Настройки!$C$11,IF(E28=$O$12,Настройки!$C$12,IF(E28=$O$13,Настройки!$C$13,IF(E28=$O$14,Настройки!$C$14,IF(E28=$O$15,Настройки!$C$15,IF(E28=$O$16,Настройки!$C$16,IF(E28=$O$17,Настройки!$C$17,IF(E28=$O$18,Настройки!$C$18,0))))))))))))))))))))),2) -> 0.15 | K28: =IF(SUM($I$2:I28)-SUM($C$2:C28)<0,0,ROUND(SUM($I$2:I28)-SUM($C$2:C28),2)) -> 1 | L28: =IF(SUM($J$2:J28)-SUM($C$2:C28)<0,0,ROUND(SUM($J$2:J28)-SUM($C$2:C28),2)) -> 1.22
A29: Чт | B29: 5 | C29: =Настройки!$F$3 -> 0.1 | D29: 19 | E29: КТ | F29: =COUNTIF($E$2:E29,"ЧЕМ") -> 7 | I29: =ROUND(IF(AND(M29=$O$22,H29=$O$21),0-Настройки!$F$4,IF('Расчет усталости'!M29='Расчет усталости'!$O$22,IF(E29=$O$2,Настройки!$C$2,IF(E29=$O$3,Настройки!$C$3,IF(E29=$O$4,Настройки!$C$4,IF(E29=$O$5,Настройки!$C$5,IF(E29=$O$6,Настройки!$C$6,IF(E29=$O$7,Настройки!$C$7,IF(E29=$O$8,Настройки!$C$8,IF(E29=$O$9,Настройки!$C$9,IF(E29=$O$10,Настройки!$C$10,IF(E29=$O$11,Настройки!$C$11,IF(E29=$O$12,Настройки!$C$12,IF(E29=$O$13,Настройки!$C$13,IF(E29=$O$14,Настройки!$C$14,IF(E29=$O$15,Настройки!$C$15,IF(E29=$O$16,Настройки!$C$16,IF(E29=$O$17,Настройки!$C$17,IF(E29=$O$18,Настройки!$C$18,0)))))))))))))))))-Настройки!$F$4,IF('Расчет усталости'!H29='Расчет усталости'!$O$21,0,IF(E29=$O$2,Настройки!$C$2,IF(E29=$O$3,Настройки!$C$3,IF(E29=$O$4,Настройки!$C$4,IF(E29=$O$5,Настройки!$C$5,IF(E29=$O$6,Настройки!$C$6,IF(E29=$O$7,Настройки!$C$7,IF(E29=$O$8,Настройки!$C$8,IF(E29=$O$9,Настройки!$C$9,IF(E29=$O$10,Настройки!$C$10,IF(E29=$O$11,Настройки!$C$11,IF(E29=$O$12,Настройки!$C$12,IF(E29=$O$13,Настройки!$C$13,IF(E29=$O$14,Настройки!$C$14,IF(E29=$O$15,Настройки!$C$15,IF(E29=$O$16,Настройки!$C$16,IF(E29=$O$17,Настройки!$C$17,IF(E29=$O$18,Настройки!$C$18,0)))))))))))))))))))),2) -> -0.1 | J29: =ROUND(IF(AND(M29=$O$22,H29=$O$21),0-Настройки!$F$4,IF('Расчет усталости'!M29='Расчет усталости'!$O$22,ROUND(IF(G29=$O$20,IF(E29=$O$2,Настройки!$C$2,IF(E29=$O$3,Настройки!$C$3,IF(E29=$O$4,Настройки!$C$4,IF(E29=$O$5,Настройки!$C$5,IF(E29=$O$6,Настройки!$C$6,IF(E29=$O$7,Настройки!$C$7,IF(E29=$O$8,Настройки!$C$8,IF(E29=$O$9,Настройки!$C$9,IF(E29=$O$10,Настройки!$C$10,IF(E29=$O$11,Настройки!$C$11,IF(E29=$O$12,Настройки!$C$12,IF(E29=$O$13,Настройки!$C$13,IF(E29=$O$14,Настройки!$C$14,IF(E29=$O$15,Настройки!$C$15,IF(E29=$O$16,Настройки!$C$16,IF(E29=$O$17,Настройки!$C$17,IF(E29=$O$18,Настройки!$C$18,0)))))))))))))))))*Настройки!$F$2+IF(E29=$O$2,Настройки!$C$2,IF(E29=$O$3,Настройки!$C$3,IF(E29=$O$4,Настройки!$C$4,IF(E29=$O$5,Настройки!$C$5,IF(E29=$O$6,Настройки!$C$6,IF(E29=$O$7,Настройки!$C$7,IF(E29=$O$8,Настройки!$C$8,IF(E29=$O$9,Настройки!$C$9,IF(E29=$O$10,Настройки!$C$10,IF(E29=$O$11,Настройки!$C$11,IF(E29=$O$12,Настройки!$C$12,IF(E29=$O$13,Настройки!$C$13,IF(E29=$O$14,Настройки!$C$14,IF(E29=$O$15,Настройки!$C$15,IF(E29=$O$16,Настройки!$C$16,IF(E29=$O$17,Настройки!$C$17,IF(E29=$O$18,Настройки!$C$18,0))))))))))))))))),IF(E29=$O$2,Настройки!$C$2,IF(E29=$O$3,Настройки!$C$3,IF(E29=$O$4,Настройки!$C$4,IF(E29=$O$5,Настройки!$C$5,IF(E29=$O$6,Настройки!$C$6,IF(E29=$O$7,Настройки!$C$7,IF(E29=$O$8,Настройки!$C$8,IF(E29=$O$9,Настройки!$C$9,IF(E29=$O$10,Настройки!$C$10,IF(E29=$O$11,Настройки!$C$11,IF(E29=$O$12,Настройки!$C$12,IF(E29=$O$13,Настройки!$C$13,IF(E29=$O$14,Настройки!$C$14,IF(E29=$O$15,Настройки!$C$15,IF(E29=$O$16,Настройки!$C$16,IF(E29=$O$17,Настройки!$C$17,IF(E29=$O$18,Настройки!$C$18,0)))))))))))))))))),2)-Настройки!$F$4,IF('Расчет усталости'!H29='Расчет усталости'!$O$21,0,IF(G29=$O$20,IF(E29=$O$2,Настройки!$C$2,IF(E29=$O$3,Настройки!$C$3,IF(E29=$O$4,Настройки!$C$4,IF(E29=$O$5,Настройки!$C$5,IF(E29=$O$6,Настройки!$C$6,IF(E29=$O$7,Настройки!$C$7,IF(E29=$O$8,Настройки!$C$8,IF(E29=$O$9,Настройки!$C$9,IF(E29=$O$10,Настройки!$C$10,IF(E29=$O$11,Настройки!$C$11,IF(E29=$O$12,Настройки!$C$12,IF(E29=$O$13,Настройки!$C$13,IF(E29=$O$14,Настройки!$C$14,IF(E29=$O$15,Настройки!$C$15,IF(E29=$O$16,Настройки!$C$16,IF(E29=$O$17,Настройки!$C$17,IF(E29=$O$18,Настройки!$C$18,0)))))))))))))))))*Настройки!$F$2+IF(E29=$O$2,Настройки!$C$2,IF(E29=$O$3,Настройки!$C$3,IF(E29=$O$4,Настройки!$C$4,IF(E29=$O$5,Настройки!$C$5,IF(E29=$O$6,Настройки!$C$6,IF(E29=$O$7,Настройки!$C$7,IF(E29=$O$8,Настройки!$C$8,IF(E29=$O$9,Настройки!$C$9,IF(E29=$O$10,Настройки!$C$10,IF(E29=$O$11,Настройки!$C$11,IF(E29=$O$12,Настройки!$C$12,IF(E29=$O$13,Настройки!$C$13,IF(E29=$O$14,Настройки!$C$14,IF(E29=$O$15,Настройки!$C$15,IF(E29=$O$16,Настройки!$C$16,IF(E29=$O$17,Настройки!$C$17,IF(E29=$O$18,Настройки!$C$18,0))))))))))))))))),IF(E29=$O$2,Настройки!$C$2,IF(E29=$O$3,Настройки!$C$3,IF(E29=$O$4,Настройки!$C$4,IF(E29=$O$5,Настройки!$C$5,IF(E29=$O$6,Настройки!$C$6,IF(E29=$O$7,Настройки!$C$7,IF(E29=$O$8,Настройки!$C$8,IF(E29=$O$9,Настройки!$C$9,IF(E29=$O$10,Настройки!$C$10,IF(E29=$O$11,Настройки!$C$11,IF(E29=$O$12,Настройки!$C$12,IF(E29=$O$13,Настройки!$C$13,IF(E29=$O$14,Настройки!$C$14,IF(E29=$O$15,Настройки!$C$15,IF(E29=$O$16,Настройки!$C$16,IF(E29=$O$17,Настройки!$C$17,IF(E29=$O$18,Настройки!$C$18,0))))))))))))))))))))),2) -> -0.1 | K29: =IF(SUM($I$2:I29)-SUM($C$2:C29)<0,0,ROUND(SUM($I$2:I29)-SUM($C$2:C29),2)) -> 0.8 | L29: =IF(SUM($J$2:J29)-SUM($C$2:C29)<0,0,ROUND(SUM($J$2:J29)-SUM($C$2:C29),2)) -> 1.02 | M29: В | P29: =MID(CELL("filename",'Текущий вариант'!$A$1),FIND("]",CELL("filename",'Текущий вариант'!$A$1))+1,99) -> Текущий вариант
A30: Пт | B30: 5 | C30: =Настройки!$F$3 -> 0.1 | F30: =COUNTIF($E$2:E30,"ЧЕМ") -> 7 | I30: =ROUND(IF(AND(M30=$O$22,H30=$O$21),0-Настройки!$F$4,IF('Расчет усталости'!M30='Расчет усталости'!$O$22,IF(E30=$O$2,Настройки!$C$2,IF(E30=$O$3,Настройки!$C$3,IF(E30=$O$4,Настройки!$C$4,IF(E30=$O$5,Настройки!$C$5,IF(E30=$O$6,Настройки!$C$6,IF(E30=$O$7,Настройки!$C$7,IF(E30=$O$8,Настройки!$C$8,IF(E30=$O$9,Настройки!$C$9,IF(E30=$O$10,Настройки!$C$10,IF(E30=$O$11,Настройки!$C$11,IF(E30=$O$12,Настройки!$C$12,IF(E30=$O$13,Настройки!$C$13,IF(E30=$O$14,Настройки!$C$14,IF(E30=$O$15,Настройки!$C$15,IF(E30=$O$16,Настройки!$C$16,IF(E30=$O$17,Настройки!$C$17,IF(E30=$O$18,Настройки!$C$18,0)))))))))))))))))-Настройки!$F$4,IF('Расчет усталости'!H30='Расчет усталости'!$O$21,0,IF(E30=$O$2,Настройки!$C$2,IF(E30=$O$3,Настройки!$C$3,IF(E30=$O$4,Настройки!$C$4,IF(E30=$O$5,Настройки!$C$5,IF(E30=$O$6,Настройки!$C$6,IF(E30=$O$7,Настройки!$C$7,IF(E30=$O$8,Настройки!$C$8,IF(E30=$O$9,Настройки!$C$9,IF(E30=$O$10,Настройки!$C$10,IF(E30=$O$11,Настройки!$C$11,IF(E30=$O$12,Настройки!$C$12,IF(E30=$O$13,Настройки!$C$13,IF(E30=$O$14,Настройки!$C$14,IF(E30=$O$15,Настройки!$C$15,IF(E30=$O$16,Настройки!$C$16,IF(E30=$O$17,Настройки!$C$17,IF(E30=$O$18,Настройки!$C$18,0)))))))))))))))))))),2) -> 0 | J30: =ROUND(IF(AND(M30=$O$22,H30=$O$21),0-Настройки!$F$4,IF('Расчет усталости'!M30='Расчет усталости'!$O$22,ROUND(IF(G30=$O$20,IF(E30=$O$2,Настройки!$C$2,IF(E30=$O$3,Настройки!$C$3,IF(E30=$O$4,Настройки!$C$4,IF(E30=$O$5,Настройки!$C$5,IF(E30=$O$6,Настройки!$C$6,IF(E30=$O$7,Настройки!$C$7,IF(E30=$O$8,Настройки!$C$8,IF(E30=$O$9,Настройки!$C$9,IF(E30=$O$10,Настройки!$C$10,IF(E30=$O$11,Настройки!$C$11,IF(E30=$O$12,Настройки!$C$12,IF(E30=$O$13,Настройки!$C$13,IF(E30=$O$14,Настройки!$C$14,IF(E30=$O$15,Настройки!$C$15,IF(E30=$O$16,Настройки!$C$16,IF(E30=$O$17,Настройки!$C$17,IF(E30=$O$18,Настройки!$C$18,0)))))))))))))))))*Настройки!$F$2+IF(E30=$O$2,Настройки!$C$2,IF(E30=$O$3,Настройки!$C$3,IF(E30=$O$4,Настройки!$C$4,IF(E30=$O$5,Настройки!$C$5,IF(E30=$O$6,Настройки!$C$6,IF(E30=$O$7,Настройки!$C$7,IF(E30=$O$8,Настройки!$C$8,IF(E30=$O$9,Настройки!$C$9,IF(E30=$O$10,Настройки!$C$10,IF(E30=$O$11,Настройки!$C$11,IF(E30=$O$12,Настройки!$C$12,IF(E30=$O$13,Настройки!$C$13,IF(E30=$O$14,Настройки!$C$14,IF(E30=$O$15,Настройки!$C$15,IF(E30=$O$16,Настройки!$C$16,IF(E30=$O$17,Настройки!$C$17,IF(E30=$O$18,Настройки!$C$18,0))))))))))))))))),IF(E30=$O$2,Настройки!$C$2,IF(E30=$O$3,Настройки!$C$3,IF(E30=$O$4,Настройки!$C$4,IF(E30=$O$5,Настройки!$C$5,IF(E30=$O$6,Настройки!$C$6,IF(E30=$O$7,Настройки!$C$7,IF(E30=$O$8,Настройки!$C$8,IF(E30=$O$9,Настройки!$C$9,IF(E30=$O$10,Настройки!$C$10,IF(E30=$O$11,Настройки!$C$11,IF(E30=$O$12,Настройки!$C$12,IF(E30=$O$13,Настройки!$C$13,IF(E30=$O$14,Настройки!$C$14,IF(E30=$O$15,Настройки!$C$15,IF(E30=$O$16,Настройки!$C$16,IF(E30=$O$17,Настройки!$C$17,IF(E30=$O$18,Настройки!$C$18,0)))))))))))))))))),2)-Настройки!$F$4,IF('Расчет усталости'!H30='Расчет усталости'!$O$21,0,IF(G30=$O$20,IF(E30=$O$2,Настройки!$C$2,IF(E30=$O$3,Настройки!$C$3,IF(E30=$O$4,Настройки!$C$4,IF(E30=$O$5,Настройки!$C$5,IF(E30=$O$6,Настройки!$C$6,IF(E30=$O$7,Настройки!$C$7,IF(E30=$O$8,Настройки!$C$8,IF(E30=$O$9,Настройки!$C$9,IF(E30=$O$10,Настройки!$C$10,IF(E30=$O$11,Настройки!$C$11,IF(E30=$O$12,Настройки!$C$12,IF(E30=$O$13,Настройки!$C$13,IF(E30=$O$14,Настройки!$C$14,IF(E30=$O$15,Настройки!$C$15,IF(E30=$O$16,Настройки!$C$16,IF(E30=$O$17,Настройки!$C$17,IF(E30=$O$18,Настройки!$C$18,0)))))))))))))))))*Настройки!$F$2+IF(E30=$O$2,Настройки!$C$2,IF(E30=$O$3,Настройки!$C$3,IF(E30=$O$4,Настройки!$C$4,IF(E30=$O$5,Настройки!$C$5,IF(E30=$O$6,Настройки!$C$6,IF(E30=$O$7,Настройки!$C$7,IF(E30=$O$8,Настройки!$C$8,IF(E30=$O$9,Настройки!$C$9,IF(E30=$O$10,Настройки!$C$10,IF(E30=$O$11,Настройки!$C$11,IF(E30=$O$12,Настройки!$C$12,IF(E30=$O$13,Настройки!$C$13,IF(E30=$O$14,Настройки!$C$14,IF(E30=$O$15,Настройки!$C$15,IF(E30=$O$16,Настройки!$C$16,IF(E30=$O$17,Настройки!$C$17,IF(E30=$O$18,Настройки!$C$18,0))))))))))))))))),IF(E30=$O$2,Настройки!$C$2,IF(E30=$O$3,Настройки!$C$3,IF(E30=$O$4,Настройки!$C$4,IF(E30=$O$5,Настройки!$C$5,IF(E30=$O$6,Настройки!$C$6,IF(E30=$O$7,Настройки!$C$7,IF(E30=$O$8,Настройки!$C$8,IF(E30=$O$9,Настройки!$C$9,IF(E30=$O$10,Настройки!$C$10,IF(E30=$O$11,Настройки!$C$11,IF(E30=$O$12,Настройки!$C$12,IF(E30=$O$13,Настройки!$C$13,IF(E30=$O$14,Настройки!$C$14,IF(E30=$O$15,Настройки!$C$15,IF(E30=$O$16,Настройки!$C$16,IF(E30=$O$17,Настройки!$C$17,IF(E30=$O$18,Настройки!$C$18,0))))))))))))))))))))),2) -> 0 | K30: =IF(SUM($I$2:I30)-SUM($C$2:C30)<0,0,ROUND(SUM($I$2:I30)-SUM($C$2:C30),2)) -> 0.7 | L30: =IF(SUM($J$2:J30)-SUM($C$2:C30)<0,0,ROUND(SUM($J$2:J30)-SUM($C$2:C30),2)) -> 0.92 | P30: =MID(CELL("filename",'Предлагаемый вариант'!$A$1),FIND("]",CELL("filename",'Предлагаемый вариант'!$A$1))+1,99) -> Предлагаемый вариант
A31: Сб | B31: 5 | C31: =Настройки!$F$3 -> 0.1 | D31: 20 | E31: ЧЕМ | F31: =COUNTIF($E$2:E31,"ЧЕМ") -> 8 | I31: =ROUND(IF(AND(M31=$O$22,H31=$O$21),0-Настройки!$F$4,IF('Расчет усталости'!M31='Расчет усталости'!$O$22,IF(E31=$O$2,Настройки!$C$2,IF(E31=$O$3,Настройки!$C$3,IF(E31=$O$4,Настройки!$C$4,IF(E31=$O$5,Настройки!$C$5,IF(E31=$O$6,Настройки!$C$6,IF(E31=$O$7,Настройки!$C$7,IF(E31=$O$8,Настройки!$C$8,IF(E31=$O$9,Настройки!$C$9,IF(E31=$O$10,Настройки!$C$10,IF(E31=$O$11,Настройки!$C$11,IF(E31=$O$12,Настройки!$C$12,IF(E31=$O$13,Настройки!$C$13,IF(E31=$O$14,Настройки!$C$14,IF(E31=$O$15,Настройки!$C$15,IF(E31=$O$16,Настройки!$C$16,IF(E31=$O$17,Настройки!$C$17,IF(E31=$O$18,Настройки!$C$18,0)))))))))))))))))-Настройки!$F$4,IF('Расчет усталости'!H31='Расчет усталости'!$O$21,0,IF(E31=$O$2,Настройки!$C$2,IF(E31=$O$3,Настройки!$C$3,IF(E31=$O$4,Настройки!$C$4,IF(E31=$O$5,Настройки!$C$5,IF(E31=$O$6,Настройки!$C$6,IF(E31=$O$7,Настройки!$C$7,IF(E31=$O$8,Настройки!$C$8,IF(E31=$O$9,Настройки!$C$9,IF(E31=$O$10,Настройки!$C$10,IF(E31=$O$11,Настройки!$C$11,IF(E31=$O$12,Настройки!$C$12,IF(E31=$O$13,Настройки!$C$13,IF(E31=$O$14,Настройки!$C$14,IF(E31=$O$15,Настройки!$C$15,IF(E31=$O$16,Настройки!$C$16,IF(E31=$O$17,Настройки!$C$17,IF(E31=$O$18,Настройки!$C$18,0)))))))))))))))))))),2) -> 0.3 | J31: =ROUND(IF(AND(M31=$O$22,H31=$O$21),0-Настройки!$F$4,IF('Расчет усталости'!M31='Расчет усталости'!$O$22,ROUND(IF(G31=$O$20,IF(E31=$O$2,Настройки!$C$2,IF(E31=$O$3,Настройки!$C$3,IF(E31=$O$4,Настройки!$C$4,IF(E31=$O$5,Настройки!$C$5,IF(E31=$O$6,Настройки!$C$6,IF(E31=$O$7,Настройки!$C$7,IF(E31=$O$8,Настройки!$C$8,IF(E31=$O$9,Настройки!$C$9,IF(E31=$O$10,Настройки!$C$10,IF(E31=$O$11,Настройки!$C$11,IF(E31=$O$12,Настройки!$C$12,IF(E31=$O$13,Настройки!$C$13,IF(E31=$O$14,Настройки!$C$14,IF(E31=$O$15,Настройки!$C$15,IF(E31=$O$16,Настройки!$C$16,IF(E31=$O$17,Настройки!$C$17,IF(E31=$O$18,Настройки!$C$18,0)))))))))))))))))*Настройки!$F$2+IF(E31=$O$2,Настройки!$C$2,IF(E31=$O$3,Настройки!$C$3,IF(E31=$O$4,Настройки!$C$4,IF(E31=$O$5,Настройки!$C$5,IF(E31=$O$6,Настройки!$C$6,IF(E31=$O$7,Настройки!$C$7,IF(E31=$O$8,Настройки!$C$8,IF(E31=$O$9,Настройки!$C$9,IF(E31=$O$10,Настройки!$C$10,IF(E31=$O$11,Настройки!$C$11,IF(E31=$O$12,Настройки!$C$12,IF(E31=$O$13,Настройки!$C$13,IF(E31=$O$14,Настройки!$C$14,IF(E31=$O$15,Настройки!$C$15,IF(E31=$O$16,Настройки!$C$16,IF(E31=$O$17,Настройки!$C$17,IF(E31=$O$18,Настройки!$C$18,0))))))))))))))))),IF(E31=$O$2,Настройки!$C$2,IF(E31=$O$3,Настройки!$C$3,IF(E31=$O$4,Настройки!$C$4,IF(E31=$O$5,Настройки!$C$5,IF(E31=$O$6,Настройки!$C$6,IF(E31=$O$7,Настройки!$C$7,IF(E31=$O$8,Настройки!$C$8,IF(E31=$O$9,Настройки!$C$9,IF(E31=$O$10,Настройки!$C$10,IF(E31=$O$11,Настройки!$C$11,IF(E31=$O$12,Настройки!$C$12,IF(E31=$O$13,Настройки!$C$13,IF(E31=$O$14,Настройки!$C$14,IF(E31=$O$15,Настройки!$C$15,IF(E31=$O$16,Настройки!$C$16,IF(E31=$O$17,Настройки!$C$17,IF(E31=$O$18,Настройки!$C$18,0)))))))))))))))))),2)-Настройки!$F$4,IF('Расчет усталости'!H31='Расчет усталости'!$O$21,0,IF(G31=$O$20,IF(E31=$O$2,Настройки!$C$2,IF(E31=$O$3,Настройки!$C$3,IF(E31=$O$4,Настройки!$C$4,IF(E31=$O$5,Настройки!$C$5,IF(E31=$O$6,Настройки!$C$6,IF(E31=$O$7,Настройки!$C$7,IF(E31=$O$8,Настройки!$C$8,IF(E31=$O$9,Настройки!$C$9,IF(E31=$O$10,Настройки!$C$10,IF(E31=$O$11,Настройки!$C$11,IF(E31=$O$12,Настройки!$C$12,IF(E31=$O$13,Настройки!$C$13,IF(E31=$O$14,Настройки!$C$14,IF(E31=$O$15,Настройки!$C$15,IF(E31=$O$16,Настройки!$C$16,IF(E31=$O$17,Настройки!$C$17,IF(E31=$O$18,Настройки!$C$18,0)))))))))))))))))*Настройки!$F$2+IF(E31=$O$2,Настройки!$C$2,IF(E31=$O$3,Настройки!$C$3,IF(E31=$O$4,Настройки!$C$4,IF(E31=$O$5,Настройки!$C$5,IF(E31=$O$6,Настройки!$C$6,IF(E31=$O$7,Настройки!$C$7,IF(E31=$O$8,Настройки!$C$8,IF(E31=$O$9,Настройки!$C$9,IF(E31=$O$10,Настройки!$C$10,IF(E31=$O$11,Настройки!$C$11,IF(E31=$O$12,Настройки!$C$12,IF(E31=$O$13,Настройки!$C$13,IF(E31=$O$14,Настройки!$C$14,IF(E31=$O$15,Настройки!$C$15,IF(E31=$O$16,Настройки!$C$16,IF(E31=$O$17,Настройки!$C$17,IF(E31=$O$18,Настройки!$C$18,0))))))))))))))))),IF(E31=$O$2,Настройки!$C$2,IF(E31=$O$3,Настройки!$C$3,IF(E31=$O$4,Настройки!$C$4,IF(E31=$O$5,Настройки!$C$5,IF(E31=$O$6,Настройки!$C$6,IF(E31=$O$7,Настройки!$C$7,IF(E31=$O$8,Настройки!$C$8,IF(E31=$O$9,Настройки!$C$9,IF(E31=$O$10,Настройки!$C$10,IF(E31=$O$11,Настройки!$C$11,IF(E31=$O$12,Настройки!$C$12,IF(E31=$O$13,Настройки!$C$13,IF(E31=$O$14,Настройки!$C$14,IF(E31=$O$15,Настройки!$C$15,IF(E31=$O$16,Настройки!$C$16,IF(E31=$O$17,Настройки!$C$17,IF(E31=$O$18,Настройки!$C$18,0))))))))))))))))))))),2) -> 0.3 | K31: =IF(SUM($I$2:I31)-SUM($C$2:C31)<0,0,ROUND(SUM($I$2:I31)-SUM($C$2:C31),2)) -> 0.9 | L31: =IF(SUM($J$2:J31)-SUM($C$2:C31)<0,0,ROUND(SUM($J$2:J31)-SUM($C$2:C31),2)) -> 1.12 | P31: =MID(CELL("filename",'Пользовательский вариант'!$A$1),FIND("]",CELL("filename",'Пользовательский вариант'!$A$1))+1,99) -> Пользовательский вариант
A32: Пн | B32: 6 | C32: =Настройки!$F$3 -> 0.1 | F32: =COUNTIF($E$2:E32,"ЧЕМ") -> 8 | I32: =ROUND(IF(AND(M32=$O$22,H32=$O$21),0-Настройки!$F$4,IF('Расчет усталости'!M32='Расчет усталости'!$O$22,IF(E32=$O$2,Настройки!$C$2,IF(E32=$O$3,Настройки!$C$3,IF(E32=$O$4,Настройки!$C$4,IF(E32=$O$5,Настройки!$C$5,IF(E32=$O$6,Настройки!$C$6,IF(E32=$O$7,Настройки!$C$7,IF(E32=$O$8,Настройки!$C$8,IF(E32=$O$9,Настройки!$C$9,IF(E32=$O$10,Настройки!$C$10,IF(E32=$O$11,Настройки!$C$11,IF(E32=$O$12,Настройки!$C$12,IF(E32=$O$13,Настройки!$C$13,IF(E32=$O$14,Настройки!$C$14,IF(E32=$O$15,Настройки!$C$15,IF(E32=$O$16,Настройки!$C$16,IF(E32=$O$17,Настройки!$C$17,IF(E32=$O$18,Настройки!$C$18,0)))))))))))))))))-Настройки!$F$4,IF('Расчет усталости'!H32='Расчет усталости'!$O$21,0,IF(E32=$O$2,Настройки!$C$2,IF(E32=$O$3,Настройки!$C$3,IF(E32=$O$4,Настройки!$C$4,IF(E32=$O$5,Настройки!$C$5,IF(E32=$O$6,Настройки!$C$6,IF(E32=$O$7,Настройки!$C$7,IF(E32=$O$8,Настройки!$C$8,IF(E32=$O$9,Настройки!$C$9,IF(E32=$O$10,Настройки!$C$10,IF(E32=$O$11,Настройки!$C$11,IF(E32=$O$12,Настройки!$C$12,IF(E32=$O$13,Настройки!$C$13,IF(E32=$O$14,Настройки!$C$14,IF(E32=$O$15,Настройки!$C$15,IF(E32=$O$16,Настройки!$C$16,IF(E32=$O$17,Настройки!$C$17,IF(E32=$O$18,Настройки!$C$18,0)))))))))))))))))))),2) -> 0 | J32: =ROUND(IF(AND(M32=$O$22,H32=$O$21),0-Настройки!$F$4,IF('Расчет усталости'!M32='Расчет усталости'!$O$22,ROUND(IF(G32=$O$20,IF(E32=$O$2,Настройки!$C$2,IF(E32=$O$3,Настройки!$C$3,IF(E32=$O$4,Настройки!$C$4,IF(E32=$O$5,Настройки!$C$5,IF(E32=$O$6,Настройки!$C$6,IF(E32=$O$7,Настройки!$C$7,IF(E32=$O$8,Настройки!$C$8,IF(E32=$O$9,Настройки!$C$9,IF(E32=$O$10,Настройки!$C$10,IF(E32=$O$11,Настройки!$C$11,IF(E32=$O$12,Настройки!$C$12,IF(E32=$O$13,Настройки!$C$13,IF(E32=$O$14,Настройки!$C$14,IF(E32=$O$15,Настройки!$C$15,IF(E32=$O$16,Настройки!$C$16,IF(E32=$O$17,Настройки!$C$17,IF(E32=$O$18,Настройки!$C$18,0)))))))))))))))))*Настройки!$F$2+IF(E32=$O$2,Настройки!$C$2,IF(E32=$O$3,Настройки!$C$3,IF(E32=$O$4,Настройки!$C$4,IF(E32=$O$5,Настройки!$C$5,IF(E32=$O$6,Настройки!$C$6,IF(E32=$O$7,Настройки!$C$7,IF(E32=$O$8,Настройки!$C$8,IF(E32=$O$9,Настройки!$C$9,IF(E32=$O$10,Настройки!$C$10,IF(E32=$O$11,Настройки!$C$11,IF(E32=$O$12,Настройки!$C$12,IF(E32=$O$13,Настройки!$C$13,IF(E32=$O$14,Настройки!$C$14,IF(E32=$O$15,Настройки!$C$15,IF(E32=$O$16,Настройки!$C$16,IF(E32=$O$17,Настройки!$C$17,IF(E32=$O$18,Настройки!$C$18,0))))))))))))))))),IF(E32=$O$2,Настройки!$C$2,IF(E32=$O$3,Настройки!$C$3,IF(E32=$O$4,Настройки!$C$4,IF(E32=$O$5,Настройки!$C$5,IF(E32=$O$6,Настройки!$C$6,IF(E32=$O$7,Настройки!$C$7,IF(E32=$O$8,Настройки!$C$8,IF(E32=$O$9,Настройки!$C$9,IF(E32=$O$10,Настройки!$C$10,IF(E32=$O$11,Настройки!$C$11,IF(E32=$O$12,Настройки!$C$12,IF(E32=$O$13,Настройки!$C$13,IF(E32=$O$14,Настройки!$C$14,IF(E32=$O$15,Настройки!$C$15,IF(E32=$O$16,Настройки!$C$16,IF(E32=$O$17,Настройки!$C$17,IF(E32=$O$18,Настройки!$C$18,0)))))))))))))))))),2)-Настройки!$F$4,IF('Расчет усталости'!H32='Расчет усталости'!$O$21,0,IF(G32=$O$20,IF(E32=$O$2,Настройки!$C$2,IF(E32=$O$3,Настройки!$C$3,IF(E32=$O$4,Настройки!$C$4,IF(E32=$O$5,Настройки!$C$5,IF(E32=$O$6,Настройки!$C$6,IF(E32=$O$7,Настройки!$C$7,IF(E32=$O$8,Настройки!$C$8,IF(E32=$O$9,Настройки!$C$9,IF(E32=$O$10,Настройки!$C$10,IF(E32=$O$11,Настройки!$C$11,IF(E32=$O$12,Настройки!$C$12,IF(E32=$O$13,Настройки!$C$13,IF(E32=$O$14,Настройки!$C$14,IF(E32=$O$15,Настройки!$C$15,IF(E32=$O$16,Настройки!$C$16,IF(E32=$O$17,Настройки!$C$17,IF(E32=$O$18,Настройки!$C$18,0)))))))))))))))))*Настройки!$F$2+IF(E32=$O$2,Настройки!$C$2,IF(E32=$O$3,Настройки!$C$3,IF(E32=$O$4,Настройки!$C$4,IF(E32=$O$5,Настройки!$C$5,IF(E32=$O$6,Настройки!$C$6,IF(E32=$O$7,Настройки!$C$7,IF(E32=$O$8,Настройки!$C$8,IF(E32=$O$9,Настройки!$C$9,IF(E32=$O$10,Настройки!$C$10,IF(E32=$O$11,Настройки!$C$11,IF(E32=$O$12,Настройки!$C$12,IF(E32=$O$13,Настройки!$C$13,IF(E32=$O$14,Настройки!$C$14,IF(E32=$O$15,Настройки!$C$15,IF(E32=$O$16,Настройки!$C$16,IF(E32=$O$17,Настройки!$C$17,IF(E32=$O$18,Настройки!$C$18,0))))))))))))))))),IF(E32=$O$2,Настройки!$C$2,IF(E32=$O$3,Настройки!$C$3,IF(E32=$O$4,Настройки!$C$4,IF(E32=$O$5,Настройки!$C$5,IF(E32=$O$6,Настройки!$C$6,IF(E32=$O$7,Настройки!$C$7,IF(E32=$O$8,Настройки!$C$8,IF(E32=$O$9,Настройки!$C$9,IF(E32=$O$10,Настройки!$C$10,IF(E32=$O$11,Настройки!$C$11,IF(E32=$O$12,Настройки!$C$12,IF(E32=$O$13,Настройки!$C$13,IF(E32=$O$14,Настройки!$C$14,IF(E32=$O$15,Настройки!$C$15,IF(E32=$O$16,Настройки!$C$16,IF(E32=$O$17,Настройки!$C$17,IF(E32=$O$18,Настройки!$C$18,0))))))))))))))))))))),2) -> 0 | K32: =IF(SUM($I$2:I32)-SUM($C$2:C32)<0,0,ROUND(SUM($I$2:I32)-SUM($C$2:C32),2)) -> 0.8 | L32: =IF(SUM($J$2:J32)-SUM($C$2:C32)<0,0,ROUND(SUM($J$2:J32)-SUM($C$2:C32),2)) -> 1.02
A33: Вт | B33: 6 | C33: =Настройки!$F$3 -> 0.1 | D33: 21 | E33: КТ | F33: =COUNTIF($E$2:E33,"ЧЕМ") -> 8 | G33: Г | I33: =ROUND(IF(AND(M33=$O$22,H33=$O$21),0-Настройки!$F$4,IF('Расчет усталости'!M33='Расчет усталости'!$O$22,IF(E33=$O$2,Настройки!$C$2,IF(E33=$O$3,Настройки!$C$3,IF(E33=$O$4,Настройки!$C$4,IF(E33=$O$5,Настройки!$C$5,IF(E33=$O$6,Настройки!$C$6,IF(E33=$O$7,Настройки!$C$7,IF(E33=$O$8,Настройки!$C$8,IF(E33=$O$9,Настройки!$C$9,IF(E33=$O$10,Настройки!$C$10,IF(E33=$O$11,Настройки!$C$11,IF(E33=$O$12,Настройки!$C$12,IF(E33=$O$13,Настройки!$C$13,IF(E33=$O$14,Настройки!$C$14,IF(E33=$O$15,Настройки!$C$15,IF(E33=$O$16,Настройки!$C$16,IF(E33=$O$17,Настройки!$C$17,IF(E33=$O$18,Настройки!$C$18,0)))))))))))))))))-Настройки!$F$4,IF('Расчет усталости'!H33='Расчет усталости'!$O$21,0,IF(E33=$O$2,Настройки!$C$2,IF(E33=$O$3,Настройки!$C$3,IF(E33=$O$4,Настройки!$C$4,IF(E33=$O$5,Настройки!$C$5,IF(E33=$O$6,Настройки!$C$6,IF(E33=$O$7,Настройки!$C$7,IF(E33=$O$8,Настройки!$C$8,IF(E33=$O$9,Настройки!$C$9,IF(E33=$O$10,Настройки!$C$10,IF(E33=$O$11,Настройки!$C$11,IF(E33=$O$12,Настройки!$C$12,IF(E33=$O$13,Настройки!$C$13,IF(E33=$O$14,Настройки!$C$14,IF(E33=$O$15,Настройки!$C$15,IF(E33=$O$16,Настройки!$C$16,IF(E33=$O$17,Настройки!$C$17,IF(E33=$O$18,Настройки!$C$18,0)))))))))))))))))))),2) -> 0.15 | J33: =ROUND(IF(AND(M33=$O$22,H33=$O$21),0-Настройки!$F$4,IF('Расчет усталости'!M33='Расчет усталости'!$O$22,ROUND(IF(G33=$O$20,IF(E33=$O$2,Настройки!$C$2,IF(E33=$O$3,Настройки!$C$3,IF(E33=$O$4,Настройки!$C$4,IF(E33=$O$5,Настройки!$C$5,IF(E33=$O$6,Настройки!$C$6,IF(E33=$O$7,Настройки!$C$7,IF(E33=$O$8,Настройки!$C$8,IF(E33=$O$9,Настройки!$C$9,IF(E33=$O$10,Настройки!$C$10,IF(E33=$O$11,Настройки!$C$11,IF(E33=$O$12,Настройки!$C$12,IF(E33=$O$13,Настройки!$C$13,IF(E33=$O$14,Настройки!$C$14,IF(E33=$O$15,Настройки!$C$15,IF(E33=$O$16,Настройки!$C$16,IF(E33=$O$17,Настройки!$C$17,IF(E33=$O$18,Настройки!$C$18,0)))))))))))))))))*Настройки!$F$2+IF(E33=$O$2,Настройки!$C$2,IF(E33=$O$3,Настройки!$C$3,IF(E33=$O$4,Настройки!$C$4,IF(E33=$O$5,Настройки!$C$5,IF(E33=$O$6,Настройки!$C$6,IF(E33=$O$7,Настройки!$C$7,IF(E33=$O$8,Настройки!$C$8,IF(E33=$O$9,Настройки!$C$9,IF(E33=$O$10,Настройки!$C$10,IF(E33=$O$11,Настройки!$C$11,IF(E33=$O$12,Настройки!$C$12,IF(E33=$O$13,Настройки!$C$13,IF(E33=$O$14,Настройки!$C$14,IF(E33=$O$15,Настройки!$C$15,IF(E33=$O$16,Настройки!$C$16,IF(E33=$O$17,Настройки!$C$17,IF(E33=$O$18,Настройки!$C$18,0))))))))))))))))),IF(E33=$O$2,Настройки!$C$2,IF(E33=$O$3,Настройки!$C$3,IF(E33=$O$4,Настройки!$C$4,IF(E33=$O$5,Настройки!$C$5,IF(E33=$O$6,Настройки!$C$6,IF(E33=$O$7,Настройки!$C$7,IF(E33=$O$8,Настройки!$C$8,IF(E33=$O$9,Настройки!$C$9,IF(E33=$O$10,Настройки!$C$10,IF(E33=$O$11,Настройки!$C$11,IF(E33=$O$12,Настройки!$C$12,IF(E33=$O$13,Настройки!$C$13,IF(E33=$O$14,Настройки!$C$14,IF(E33=$O$15,Настройки!$C$15,IF(E33=$O$16,Настройки!$C$16,IF(E33=$O$17,Настройки!$C$17,IF(E33=$O$18,Настройки!$C$18,0)))))))))))))))))),2)-Настройки!$F$4,IF('Расчет усталости'!H33='Расчет усталости'!$O$21,0,IF(G33=$O$20,IF(E33=$O$2,Настройки!$C$2,IF(E33=$O$3,Настройки!$C$3,IF(E33=$O$4,Настройки!$C$4,IF(E33=$O$5,Настройки!$C$5,IF(E33=$O$6,Настройки!$C$6,IF(E33=$O$7,Настройки!$C$7,IF(E33=$O$8,Настройки!$C$8,IF(E33=$O$9,Настройки!$C$9,IF(E33=$O$10,Настройки!$C$10,IF(E33=$O$11,Настройки!$C$11,IF(E33=$O$12,Настройки!$C$12,IF(E33=$O$13,Настройки!$C$13,IF(E33=$O$14,Настройки!$C$14,IF(E33=$O$15,Настройки!$C$15,IF(E33=$O$16,Настройки!$C$16,IF(E33=$O$17,Настройки!$C$17,IF(E33=$O$18,Настройки!$C$18,0)))))))))))))))))*Настройки!$F$2+IF(E33=$O$2,Настройки!$C$2,IF(E33=$O$3,Настройки!$C$3,IF(E33=$O$4,Настройки!$C$4,IF(E33=$O$5,Настройки!$C$5,IF(E33=$O$6,Настройки!$C$6,IF(E33=$O$7,Настройки!$C$7,IF(E33=$O$8,Настройки!$C$8,IF(E33=$O$9,Настройки!$C$9,IF(E33=$O$10,Настройки!$C$10,IF(E33=$O$11,Настройки!$C$11,IF(E33=$O$12,Настройки!$C$12,IF(E33=$O$13,Настройки!$C$13,IF(E33=$O$14,Настройки!$C$14,IF(E33=$O$15,Настройки!$C$15,IF(E33=$O$16,Настройки!$C$16,IF(E33=$O$17,Настройки!$C$17,IF(E33=$O$18,Настройки!$C$18,0))))))))))))))))),IF(E33=$O$2,Настройки!$C$2,IF(E33=$O$3,Настройки!$C$3,IF(E33=$O$4,Настройки!$C$4,IF(E33=$O$5,Настройки!$C$5,IF(E33=$O$6,Настройки!$C$6,IF(E33=$O$7,Настройки!$C$7,IF(E33=$O$8,Настройки!$C$8,IF(E33=$O$9,Настройки!$C$9,IF(E33=$O$10,Настройки!$C$10,IF(E33=$O$11,Настройки!$C$11,IF(E33=$O$12,Настройки!$C$12,IF(E33=$O$13,Настройки!$C$13,IF(E33=$O$14,Настройки!$C$14,IF(E33=$O$15,Настройки!$C$15,IF(E33=$O$16,Настройки!$C$16,IF(E33=$O$17,Настройки!$C$17,IF(E33=$O$18,Настройки!$C$18,0))))))))))))))))))))),2) -> 0.17 | K33: =IF(SUM($I$2:I33)-SUM($C$2:C33)<0,0,ROUND(SUM($I$2:I33)-SUM($C$2:C33),2)) -> 0.85 | L33: =IF(SUM($J$2:J33)-SUM($C$2:C33)<0,0,ROUND(SUM($J$2:J33)-SUM($C$2:C33),2)) -> 1.09
A34: Ср | B34: 6 | C34: =Настройки!$F$3 -> 0.1 | D34: 22 | E34: ЧЕМ | F34: =COUNTIF($E$2:E34,"ЧЕМ") -> 9 | G34: Г | I34: =ROUND(IF(AND(M34=$O$22,H34=$O$21),0-Настройки!$F$4,IF('Расчет усталости'!M34='Расчет усталости'!$O$22,IF(E34=$O$2,Настройки!$C$2,IF(E34=$O$3,Настройки!$C$3,IF(E34=$O$4,Настройки!$C$4,IF(E34=$O$5,Настройки!$C$5,IF(E34=$O$6,Настройки!$C$6,IF(E34=$O$7,Настройки!$C$7,IF(E34=$O$8,Настройки!$C$8,IF(E34=$O$9,Настройки!$C$9,IF(E34=$O$10,Настройки!$C$10,IF(E34=$O$11,Настройки!$C$11,IF(E34=$O$12,Настройки!$C$12,IF(E34=$O$13,Настройки!$C$13,IF(E34=$O$14,Настройки!$C$14,IF(E34=$O$15,Настройки!$C$15,IF(E34=$O$16,Настройки!$C$16,IF(E34=$O$17,Настройки!$C$17,IF(E34=$O$18,Настройки!$C$18,0)))))))))))))))))-Настройки!$F$4,IF('Расчет усталости'!H34='Расчет усталости'!$O$21,0,IF(E34=$O$2,Настройки!$C$2,IF(E34=$O$3,Настройки!$C$3,IF(E34=$O$4,Настройки!$C$4,IF(E34=$O$5,Настройки!$C$5,IF(E34=$O$6,Настройки!$C$6,IF(E34=$O$7,Настройки!$C$7,IF(E34=$O$8,Настройки!$C$8,IF(E34=$O$9,Настройки!$C$9,IF(E34=$O$10,Настройки!$C$10,IF(E34=$O$11,Настройки!$C$11,IF(E34=$O$12,Настройки!$C$12,IF(E34=$O$13,Настройки!$C$13,IF(E34=$O$14,Настройки!$C$14,IF(E34=$O$15,Настройки!$C$15,IF(E34=$O$16,Настройки!$C$16,IF(E34=$O$17,Настройки!$C$17,IF(E34=$O$18,Настройки!$C$18,0)))))))))))))))))))),2) -> 0.3 | J34: =ROUND(IF(AND(M34=$O$22,H34=$O$21),0-Настройки!$F$4,IF('Расчет усталости'!M34='Расчет усталости'!$O$22,ROUND(IF(G34=$O$20,IF(E34=$O$2,Настройки!$C$2,IF(E34=$O$3,Настройки!$C$3,IF(E34=$O$4,Настройки!$C$4,IF(E34=$O$5,Настройки!$C$5,IF(E34=$O$6,Настройки!$C$6,IF(E34=$O$7,Настройки!$C$7,IF(E34=$O$8,Настройки!$C$8,IF(E34=$O$9,Настройки!$C$9,IF(E34=$O$10,Настройки!$C$10,IF(E34=$O$11,Настройки!$C$11,IF(E34=$O$12,Настройки!$C$12,IF(E34=$O$13,Настройки!$C$13,IF(E34=$O$14,Настройки!$C$14,IF(E34=$O$15,Настройки!$C$15,IF(E34=$O$16,Настройки!$C$16,IF(E34=$O$17,Настройки!$C$17,IF(E34=$O$18,Настройки!$C$18,0)))))))))))))))))*Настройки!$F$2+IF(E34=$O$2,Настройки!$C$2,IF(E34=$O$3,Настройки!$C$3,IF(E34=$O$4,Настройки!$C$4,IF(E34=$O$5,Настройки!$C$5,IF(E34=$O$6,Настройки!$C$6,IF(E34=$O$7,Настройки!$C$7,IF(E34=$O$8,Настройки!$C$8,IF(E34=$O$9,Настройки!$C$9,IF(E34=$O$10,Настройки!$C$10,IF(E34=$O$11,Настройки!$C$11,IF(E34=$O$12,Настройки!$C$12,IF(E34=$O$13,Настройки!$C$13,IF(E34=$O$14,Настройки!$C$14,IF(E34=$O$15,Настройки!$C$15,IF(E34=$O$16,Настройки!$C$16,IF(E34=$O$17,Настройки!$C$17,IF(E34=$O$18,Настройки!$C$18,0))))))))))))))))),IF(E34=$O$2,Настройки!$C$2,IF(E34=$O$3,Настройки!$C$3,IF(E34=$O$4,Настройки!$C$4,IF(E34=$O$5,Настройки!$C$5,IF(E34=$O$6,Настройки!$C$6,IF(E34=$O$7,Настройки!$C$7,IF(E34=$O$8,Настройки!$C$8,IF(E34=$O$9,Настройки!$C$9,IF(E34=$O$10,Настройки!$C$10,IF(E34=$O$11,Настройки!$C$11,IF(E34=$O$12,Настройки!$C$12,IF(E34=$O$13,Настройки!$C$13,IF(E34=$O$14,Настройки!$C$14,IF(E34=$O$15,Настройки!$C$15,IF(E34=$O$16,Настройки!$C$16,IF(E34=$O$17,Настройки!$C$17,IF(E34=$O$18,Настройки!$C$18,0)))))))))))))))))),2)-Настройки!$F$4,IF('Расчет усталости'!H34='Расчет усталости'!$O$21,0,IF(G34=$O$20,IF(E34=$O$2,Настройки!$C$2,IF(E34=$O$3,Настройки!$C$3,IF(E34=$O$4,Настройки!$C$4,IF(E34=$O$5,Настройки!$C$5,IF(E34=$O$6,Настройки!$C$6,IF(E34=$O$7,Настройки!$C$7,IF(E34=$O$8,Настройки!$C$8,IF(E34=$O$9,Настройки!$C$9,IF(E34=$O$10,Настройки!$C$10,IF(E34=$O$11,Настройки!$C$11,IF(E34=$O$12,Настройки!$C$12,IF(E34=$O$13,Настройки!$C$13,IF(E34=$O$14,Настройки!$C$14,IF(E34=$O$15,Настройки!$C$15,IF(E34=$O$16,Настройки!$C$16,IF(E34=$O$17,Настройки!$C$17,IF(E34=$O$18,Настройки!$C$18,0)))))))))))))))))*Настройки!$F$2+IF(E34=$O$2,Настройки!$C$2,IF(E34=$O$3,Настройки!$C$3,IF(E34=$O$4,Настройки!$C$4,IF(E34=$O$5,Настройки!$C$5,IF(E34=$O$6,Настройки!$C$6,IF(E34=$O$7,Настройки!$C$7,IF(E34=$O$8,Настройки!$C$8,IF(E34=$O$9,Настройки!$C$9,IF(E34=$O$10,Настройки!$C$10,IF(E34=$O$11,Настройки!$C$11,IF(E34=$O$12,Настройки!$C$12,IF(E34=$O$13,Настройки!$C$13,IF(E34=$O$14,Настройки!$C$14,IF(E34=$O$15,Настройки!$C$15,IF(E34=$O$16,Настройки!$C$16,IF(E34=$O$17,Настройки!$C$17,IF(E34=$O$18,Настройки!$C$18,0))))))))))))))))),IF(E34=$O$2,Настройки!$C$2,IF(E34=$O$3,Настройки!$C$3,IF(E34=$O$4,Настройки!$C$4,IF(E34=$O$5,Настройки!$C$5,IF(E34=$O$6,Настройки!$C$6,IF(E34=$O$7,Настройки!$C$7,IF(E34=$O$8,Настройки!$C$8,IF(E34=$O$9,Настройки!$C$9,IF(E34=$O$10,Настройки!$C$10,IF(E34=$O$11,Настройки!$C$11,IF(E34=$O$12,Настройки!$C$12,IF(E34=$O$13,Настройки!$C$13,IF(E34=$O$14,Настройки!$C$14,IF(E34=$O$15,Настройки!$C$15,IF(E34=$O$16,Настройки!$C$16,IF(E34=$O$17,Настройки!$C$17,IF(E34=$O$18,Настройки!$C$18,0))))))))))))))))))))),2) -> 0.33 | K34: =IF(SUM($I$2:I34)-SUM($C$2:C34)<0,0,ROUND(SUM($I$2:I34)-SUM($C$2:C34),2)) -> 1.05 | L34: =IF(SUM($J$2:J34)-SUM($C$2:C34)<0,0,ROUND(SUM($J$2:J34)-SUM($C$2:C34),2)) -> 1.32
A35: Чт | B35: 6 | C35: =Настройки!$F$3 -> 0.1 | D35: 23 | E35: КТ | F35: =COUNTIF($E$2:E35,"ЧЕМ") -> 9 | I35: =ROUND(IF(AND(M35=$O$22,H35=$O$21),0-Настройки!$F$4,IF('Расчет усталости'!M35='Расчет усталости'!$O$22,IF(E35=$O$2,Настройки!$C$2,IF(E35=$O$3,Настройки!$C$3,IF(E35=$O$4,Настройки!$C$4,IF(E35=$O$5,Настройки!$C$5,IF(E35=$O$6,Настройки!$C$6,IF(E35=$O$7,Настройки!$C$7,IF(E35=$O$8,Настройки!$C$8,IF(E35=$O$9,Настройки!$C$9,IF(E35=$O$10,Настройки!$C$10,IF(E35=$O$11,Настройки!$C$11,IF(E35=$O$12,Настройки!$C$12,IF(E35=$O$13,Настройки!$C$13,IF(E35=$O$14,Настройки!$C$14,IF(E35=$O$15,Настройки!$C$15,IF(E35=$O$16,Настройки!$C$16,IF(E35=$O$17,Настройки!$C$17,IF(E35=$O$18,Настройки!$C$18,0)))))))))))))))))-Настройки!$F$4,IF('Расчет усталости'!H35='Расчет усталости'!$O$21,0,IF(E35=$O$2,Настройки!$C$2,IF(E35=$O$3,Настройки!$C$3,IF(E35=$O$4,Настройки!$C$4,IF(E35=$O$5,Настройки!$C$5,IF(E35=$O$6,Настройки!$C$6,IF(E35=$O$7,Настройки!$C$7,IF(E35=$O$8,Настройки!$C$8,IF(E35=$O$9,Настройки!$C$9,IF(E35=$O$10,Настройки!$C$10,IF(E35=$O$11,Настройки!$C$11,IF(E35=$O$12,Настройки!$C$12,IF(E35=$O$13,Настройки!$C$13,IF(E35=$O$14,Настройки!$C$14,IF(E35=$O$15,Настройки!$C$15,IF(E35=$O$16,Настройки!$C$16,IF(E35=$O$17,Настройки!$C$17,IF(E35=$O$18,Настройки!$C$18,0)))))))))))))))))))),2) -> 0.15 | J35: =ROUND(IF(AND(M35=$O$22,H35=$O$21),0-Настройки!$F$4,IF('Расчет усталости'!M35='Расчет усталости'!$O$22,ROUND(IF(G35=$O$20,IF(E35=$O$2,Настройки!$C$2,IF(E35=$O$3,Настройки!$C$3,IF(E35=$O$4,Настройки!$C$4,IF(E35=$O$5,Настройки!$C$5,IF(E35=$O$6,Настройки!$C$6,IF(E35=$O$7,Настройки!$C$7,IF(E35=$O$8,Настройки!$C$8,IF(E35=$O$9,Настройки!$C$9,IF(E35=$O$10,Настройки!$C$10,IF(E35=$O$11,Настройки!$C$11,IF(E35=$O$12,Настройки!$C$12,IF(E35=$O$13,Настройки!$C$13,IF(E35=$O$14,Настройки!$C$14,IF(E35=$O$15,Настройки!$C$15,IF(E35=$O$16,Настройки!$C$16,IF(E35=$O$17,Настройки!$C$17,IF(E35=$O$18,Настройки!$C$18,0)))))))))))))))))*Настройки!$F$2+IF(E35=$O$2,Настройки!$C$2,IF(E35=$O$3,Настройки!$C$3,IF(E35=$O$4,Настройки!$C$4,IF(E35=$O$5,Настройки!$C$5,IF(E35=$O$6,Настройки!$C$6,IF(E35=$O$7,Настройки!$C$7,IF(E35=$O$8,Настройки!$C$8,IF(E35=$O$9,Настройки!$C$9,IF(E35=$O$10,Настройки!$C$10,IF(E35=$O$11,Настройки!$C$11,IF(E35=$O$12,Настройки!$C$12,IF(E35=$O$13,Настройки!$C$13,IF(E35=$O$14,Настройки!$C$14,IF(E35=$O$15,Настройки!$C$15,IF(E35=$O$16,Настройки!$C$16,IF(E35=$O$17,Настройки!$C$17,IF(E35=$O$18,Настройки!$C$18,0))))))))))))))))),IF(E35=$O$2,Настройки!$C$2,IF(E35=$O$3,Настройки!$C$3,IF(E35=$O$4,Настройки!$C$4,IF(E35=$O$5,Настройки!$C$5,IF(E35=$O$6,Настройки!$C$6,IF(E35=$O$7,Настройки!$C$7,IF(E35=$O$8,Настройки!$C$8,IF(E35=$O$9,Настройки!$C$9,IF(E35=$O$10,Настройки!$C$10,IF(E35=$O$11,Настройки!$C$11,IF(E35=$O$12,Настройки!$C$12,IF(E35=$O$13,Настройки!$C$13,IF(E35=$O$14,Настройки!$C$14,IF(E35=$O$15,Настройки!$C$15,IF(E35=$O$16,Настройки!$C$16,IF(E35=$O$17,Настройки!$C$17,IF(E35=$O$18,Настройки!$C$18,0)))))))))))))))))),2)-Настройки!$F$4,IF('Расчет усталости'!H35='Расчет усталости'!$O$21,0,IF(G35=$O$20,IF(E35=$O$2,Настройки!$C$2,IF(E35=$O$3,Настройки!$C$3,IF(E35=$O$4,Настройки!$C$4,IF(E35=$O$5,Настройки!$C$5,IF(E35=$O$6,Настройки!$C$6,IF(E35=$O$7,Настройки!$C$7,IF(E35=$O$8,Настройки!$C$8,IF(E35=$O$9,Настройки!$C$9,IF(E35=$O$10,Настройки!$C$10,IF(E35=$O$11,Настройки!$C$11,IF(E35=$O$12,Настройки!$C$12,IF(E35=$O$13,Настройки!$C$13,IF(E35=$O$14,Настройки!$C$14,IF(E35=$O$15,Настройки!$C$15,IF(E35=$O$16,Настройки!$C$16,IF(E35=$O$17,Настройки!$C$17,IF(E35=$O$18,Настройки!$C$18,0)))))))))))))))))*Настройки!$F$2+IF(E35=$O$2,Настройки!$C$2,IF(E35=$O$3,Настройки!$C$3,IF(E35=$O$4,Настройки!$C$4,IF(E35=$O$5,Настройки!$C$5,IF(E35=$O$6,Настройки!$C$6,IF(E35=$O$7,Настройки!$C$7,IF(E35=$O$8,Настройки!$C$8,IF(E35=$O$9,Настройки!$C$9,IF(E35=$O$10,Настройки!$C$10,IF(E35=$O$11,Настройки!$C$11,IF(E35=$O$12,Настройки!$C$12,IF(E35=$O$13,Настройки!$C$13,IF(E35=$O$14,Настройки!$C$14,IF(E35=$O$15,Настройки!$C$15,IF(E35=$O$16,Настройки!$C$16,IF(E35=$O$17,Настройки!$C$17,IF(E35=$O$18,Настройки!$C$18,0))))))))))))))))),IF(E35=$O$2,Настройки!$C$2,IF(E35=$O$3,Настройки!$C$3,IF(E35=$O$4,Настройки!$C$4,IF(E35=$O$5,Настройки!$C$5,IF(E35=$O$6,Настройки!$C$6,IF(E35=$O$7,Настройки!$C$7,IF(E35=$O$8,Настройки!$C$8,IF(E35=$O$9,Настройки!$C$9,IF(E35=$O$10,Настройки!$C$10,IF(E35=$O$11,Настройки!$C$11,IF(E35=$O$12,Настройки!$C$12,IF(E35=$O$13,Настройки!$C$13,IF(E35=$O$14,Настройки!$C$14,IF(E35=$O$15,Настройки!$C$15,IF(E35=$O$16,Настройки!$C$16,IF(E35=$O$17,Настройки!$C$17,IF(E35=$O$18,Настройки!$C$18,0))))))))))))))))))))),2) -> 0.15 | K35: =IF(SUM($I$2:I35)-SUM($C$2:C35)<0,0,ROUND(SUM($I$2:I35)-SUM($C$2:C35),2)) -> 1.1 | L35: =IF(SUM($J$2:J35)-SUM($C$2:C35)<0,0,ROUND(SUM($J$2:J35)-SUM($C$2:C35),2)) -> 1.37
A36: Пт | B36: 6 | C36: =Настройки!$F$3 -> 0.1 | F36: =COUNTIF($E$2:E36,"ЧЕМ") -> 9 | I36: =ROUND(IF(AND(M36=$O$22,H36=$O$21),0-Настройки!$F$4,IF('Расчет усталости'!M36='Расчет усталости'!$O$22,IF(E36=$O$2,Настройки!$C$2,IF(E36=$O$3,Настройки!$C$3,IF(E36=$O$4,Настройки!$C$4,IF(E36=$O$5,Настройки!$C$5,IF(E36=$O$6,Настройки!$C$6,IF(E36=$O$7,Настройки!$C$7,IF(E36=$O$8,Настройки!$C$8,IF(E36=$O$9,Настройки!$C$9,IF(E36=$O$10,Настройки!$C$10,IF(E36=$O$11,Настройки!$C$11,IF(E36=$O$12,Настройки!$C$12,IF(E36=$O$13,Настройки!$C$13,IF(E36=$O$14,Настройки!$C$14,IF(E36=$O$15,Настройки!$C$15,IF(E36=$O$16,Настройки!$C$16,IF(E36=$O$17,Настройки!$C$17,IF(E36=$O$18,Настройки!$C$18,0)))))))))))))))))-Настройки!$F$4,IF('Расчет усталости'!H36='Расчет усталости'!$O$21,0,IF(E36=$O$2,Настройки!$C$2,IF(E36=$O$3,Настройки!$C$3,IF(E36=$O$4,Настройки!$C$4,IF(E36=$O$5,Настройки!$C$5,IF(E36=$O$6,Настройки!$C$6,IF(E36=$O$7,Настройки!$C$7,IF(E36=$O$8,Настройки!$C$8,IF(E36=$O$9,Настройки!$C$9,IF(E36=$O$10,Настройки!$C$10,IF(E36=$O$11,Настройки!$C$11,IF(E36=$O$12,Настройки!$C$12,IF(E36=$O$13,Настройки!$C$13,IF(E36=$O$14,Настройки!$C$14,IF(E36=$O$15,Настройки!$C$15,IF(E36=$O$16,Настройки!$C$16,IF(E36=$O$17,Настройки!$C$17,IF(E36=$O$18,Настройки!$C$18,0)))))))))))))))))))),2) -> 0 | J36: =ROUND(IF(AND(M36=$O$22,H36=$O$21),0-Настройки!$F$4,IF('Расчет усталости'!M36='Расчет усталости'!$O$22,ROUND(IF(G36=$O$20,IF(E36=$O$2,Настройки!$C$2,IF(E36=$O$3,Настройки!$C$3,IF(E36=$O$4,Настройки!$C$4,IF(E36=$O$5,Настройки!$C$5,IF(E36=$O$6,Настройки!$C$6,IF(E36=$O$7,Настройки!$C$7,IF(E36=$O$8,Настройки!$C$8,IF(E36=$O$9,Настройки!$C$9,IF(E36=$O$10,Настройки!$C$10,IF(E36=$O$11,Настройки!$C$11,IF(E36=$O$12,Настройки!$C$12,IF(E36=$O$13,Настройки!$C$13,IF(E36=$O$14,Настройки!$C$14,IF(E36=$O$15,Настройки!$C$15,IF(E36=$O$16,Настройки!$C$16,IF(E36=$O$17,Настройки!$C$17,IF(E36=$O$18,Настройки!$C$18,0)))))))))))))))))*Настройки!$F$2+IF(E36=$O$2,Настройки!$C$2,IF(E36=$O$3,Настройки!$C$3,IF(E36=$O$4,Настройки!$C$4,IF(E36=$O$5,Настройки!$C$5,IF(E36=$O$6,Настройки!$C$6,IF(E36=$O$7,Настройки!$C$7,IF(E36=$O$8,Настройки!$C$8,IF(E36=$O$9,Настройки!$C$9,IF(E36=$O$10,Настройки!$C$10,IF(E36=$O$11,Настройки!$C$11,IF(E36=$O$12,Настройки!$C$12,IF(E36=$O$13,Настройки!$C$13,IF(E36=$O$14,Настройки!$C$14,IF(E36=$O$15,Настройки!$C$15,IF(E36=$O$16,Настройки!$C$16,IF(E36=$O$17,Настройки!$C$17,IF(E36=$O$18,Настройки!$C$18,0))))))))))))))))),IF(E36=$O$2,Настройки!$C$2,IF(E36=$O$3,Настройки!$C$3,IF(E36=$O$4,Настройки!$C$4,IF(E36=$O$5,Настройки!$C$5,IF(E36=$O$6,Настройки!$C$6,IF(E36=$O$7,Настройки!$C$7,IF(E36=$O$8,Настройки!$C$8,IF(E36=$O$9,Настройки!$C$9,IF(E36=$O$10,Настройки!$C$10,IF(E36=$O$11,Настройки!$C$11,IF(E36=$O$12,Настройки!$C$12,IF(E36=$O$13,Настройки!$C$13,IF(E36=$O$14,Настройки!$C$14,IF(E36=$O$15,Настройки!$C$15,IF(E36=$O$16,Настройки!$C$16,IF(E36=$O$17,Настройки!$C$17,IF(E36=$O$18,Настройки!$C$18,0)))))))))))))))))),2)-Настройки!$F$4,IF('Расчет усталости'!H36='Расчет усталости'!$O$21,0,IF(G36=$O$20,IF(E36=$O$2,Настройки!$C$2,IF(E36=$O$3,Настройки!$C$3,IF(E36=$O$4,Настройки!$C$4,IF(E36=$O$5,Настройки!$C$5,IF(E36=$O$6,Настройки!$C$6,IF(E36=$O$7,Настройки!$C$7,IF(E36=$O$8,Настройки!$C$8,IF(E36=$O$9,Настройки!$C$9,IF(E36=$O$10,Настройки!$C$10,IF(E36=$O$11,Настройки!$C$11,IF(E36=$O$12,Настройки!$C$12,IF(E36=$O$13,Настройки!$C$13,IF(E36=$O$14,Настройки!$C$14,IF(E36=$O$15,Настройки!$C$15,IF(E36=$O$16,Настройки!$C$16,IF(E36=$O$17,Настройки!$C$17,IF(E36=$O$18,Настройки!$C$18,0)))))))))))))))))*Настройки!$F$2+IF(E36=$O$2,Настройки!$C$2,IF(E36=$O$3,Настройки!$C$3,IF(E36=$O$4,Настройки!$C$4,IF(E36=$O$5,Настройки!$C$5,IF(E36=$O$6,Настройки!$C$6,IF(E36=$O$7,Настройки!$C$7,IF(E36=$O$8,Настройки!$C$8,IF(E36=$O$9,Настройки!$C$9,IF(E36=$O$10,Настройки!$C$10,IF(E36=$O$11,Настройки!$C$11,IF(E36=$O$12,Настройки!$C$12,IF(E36=$O$13,Настройки!$C$13,IF(E36=$O$14,Настройки!$C$14,IF(E36=$O$15,Настройки!$C$15,IF(E36=$O$16,Настройки!$C$16,IF(E36=$O$17,Настройки!$C$17,IF(E36=$O$18,Настройки!$C$18,0))))))))))))))))),IF(E36=$O$2,Настройки!$C$2,IF(E36=$O$3,Настройки!$C$3,IF(E36=$O$4,Настройки!$C$4,IF(E36=$O$5,Настройки!$C$5,IF(E36=$O$6,Настройки!$C$6,IF(E36=$O$7,Настройки!$C$7,IF(E36=$O$8,Настройки!$C$8,IF(E36=$O$9,Настройки!$C$9,IF(E36=$O$10,Настройки!$C$10,IF(E36=$O$11,Настройки!$C$11,IF(E36=$O$12,Настройки!$C$12,IF(E36=$O$13,Настройки!$C$13,IF(E36=$O$14,Настройки!$C$14,IF(E36=$O$15,Настройки!$C$15,IF(E36=$O$16,Настройки!$C$16,IF(E36=$O$17,Настройки!$C$17,IF(E36=$O$18,Настройки!$C$18,0))))))))))))))))))))),2) -> 0 | K36: =IF(SUM($I$2:I36)-SUM($C$2:C36)<0,0,ROUND(SUM($I$2:I36)-SUM($C$2:C36),2)) -> 1 | L36: =IF(SUM($J$2:J36)-SUM($C$2:C36)<0,0,ROUND(SUM($J$2:J36)-SUM($C$2:C36),2)) -> 1.27
A37: Сб | B37: 6 | C37: =Настройки!$F$3 -> 0.1 | D37: 24 | E37: ЧЕМ | F37: =COUNTIF($E$2:E37,"ЧЕМ") -> 10 | I37: =ROUND(IF(AND(M37=$O$22,H37=$O$21),0-Настройки!$F$4,IF('Расчет усталости'!M37='Расчет усталости'!$O$22,IF(E37=$O$2,Настройки!$C$2,IF(E37=$O$3,Настройки!$C$3,IF(E37=$O$4,Настройки!$C$4,IF(E37=$O$5,Настройки!$C$5,IF(E37=$O$6,Настройки!$C$6,IF(E37=$O$7,Настройки!$C$7,IF(E37=$O$8,Настройки!$C$8,IF(E37=$O$9,Настройки!$C$9,IF(E37=$O$10,Настройки!$C$10,IF(E37=$O$11,Настройки!$C$11,IF(E37=$O$12,Настройки!$C$12,IF(E37=$O$13,Настройки!$C$13,IF(E37=$O$14,Настройки!$C$14,IF(E37=$O$15,Настройки!$C$15,IF(E37=$O$16,Настройки!$C$16,IF(E37=$O$17,Настройки!$C$17,IF(E37=$O$18,Настройки!$C$18,0)))))))))))))))))-Настройки!$F$4,IF('Расчет усталости'!H37='Расчет усталости'!$O$21,0,IF(E37=$O$2,Настройки!$C$2,IF(E37=$O$3,Настройки!$C$3,IF(E37=$O$4,Настройки!$C$4,IF(E37=$O$5,Настройки!$C$5,IF(E37=$O$6,Настройки!$C$6,IF(E37=$O$7,Настройки!$C$7,IF(E37=$O$8,Настройки!$C$8,IF(E37=$O$9,Настройки!$C$9,IF(E37=$O$10,Настройки!$C$10,IF(E37=$O$11,Настройки!$C$11,IF(E37=$O$12,Настройки!$C$12,IF(E37=$O$13,Настройки!$C$13,IF(E37=$O$14,Настройки!$C$14,IF(E37=$O$15,Настройки!$C$15,IF(E37=$O$16,Настройки!$C$16,IF(E37=$O$17,Настройки!$C$17,IF(E37=$O$18,Настройки!$C$18,0)))))))))))))))))))),2) -> 0.3 | J37: =ROUND(IF(AND(M37=$O$22,H37=$O$21),0-Настройки!$F$4,IF('Расчет усталости'!M37='Расчет усталости'!$O$22,ROUND(IF(G37=$O$20,IF(E37=$O$2,Настройки!$C$2,IF(E37=$O$3,Настройки!$C$3,IF(E37=$O$4,Настройки!$C$4,IF(E37=$O$5,Настройки!$C$5,IF(E37=$O$6,Настройки!$C$6,IF(E37=$O$7,Настройки!$C$7,IF(E37=$O$8,Настройки!$C$8,IF(E37=$O$9,Настройки!$C$9,IF(E37=$O$10,Настройки!$C$10,IF(E37=$O$11,Настройки!$C$11,IF(E37=$O$12,Настройки!$C$12,IF(E37=$O$13,Настройки!$C$13,IF(E37=$O$14,Настройки!$C$14,IF(E37=$O$15,Настройки!$C$15,IF(E37=$O$16,Настройки!$C$16,IF(E37=$O$17,Настройки!$C$17,IF(E37=$O$18,Настройки!$C$18,0)))))))))))))))))*Настройки!$F$2+IF(E37=$O$2,Настройки!$C$2,IF(E37=$O$3,Настройки!$C$3,IF(E37=$O$4,Настройки!$C$4,IF(E37=$O$5,Настройки!$C$5,IF(E37=$O$6,Настройки!$C$6,IF(E37=$O$7,Настройки!$C$7,IF(E37=$O$8,Настройки!$C$8,IF(E37=$O$9,Настройки!$C$9,IF(E37=$O$10,Настройки!$C$10,IF(E37=$O$11,Настройки!$C$11,IF(E37=$O$12,Настройки!$C$12,IF(E37=$O$13,Настройки!$C$13,IF(E37=$O$14,Настройки!$C$14,IF(E37=$O$15,Настройки!$C$15,IF(E37=$O$16,Настройки!$C$16,IF(E37=$O$17,Настройки!$C$17,IF(E37=$O$18,Настройки!$C$18,0))))))))))))))))),IF(E37=$O$2,Настройки!$C$2,IF(E37=$O$3,Настройки!$C$3,IF(E37=$O$4,Настройки!$C$4,IF(E37=$O$5,Настройки!$C$5,IF(E37=$O$6,Настройки!$C$6,IF(E37=$O$7,Настройки!$C$7,IF(E37=$O$8,Настройки!$C$8,IF(E37=$O$9,Настройки!$C$9,IF(E37=$O$10,Настройки!$C$10,IF(E37=$O$11,Настройки!$C$11,IF(E37=$O$12,Настройки!$C$12,IF(E37=$O$13,Настройки!$C$13,IF(E37=$O$14,Настройки!$C$14,IF(E37=$O$15,Настройки!$C$15,IF(E37=$O$16,Настройки!$C$16,IF(E37=$O$17,Настройки!$C$17,IF(E37=$O$18,Настройки!$C$18,0)))))))))))))))))),2)-Настройки!$F$4,IF('Расчет усталости'!H37='Расчет усталости'!$O$21,0,IF(G37=$O$20,IF(E37=$O$2,Настройки!$C$2,IF(E37=$O$3,Настройки!$C$3,IF(E37=$O$4,Настройки!$C$4,IF(E37=$O$5,Настройки!$C$5,IF(E37=$O$6,Настройки!$C$6,IF(E37=$O$7,Настройки!$C$7,IF(E37=$O$8,Настройки!$C$8,IF(E37=$O$9,Настройки!$C$9,IF(E37=$O$10,Настройки!$C$10,IF(E37=$O$11,Настройки!$C$11,IF(E37=$O$12,Настройки!$C$12,IF(E37=$O$13,Настройки!$C$13,IF(E37=$O$14,Настройки!$C$14,IF(E37=$O$15,Настройки!$C$15,IF(E37=$O$16,Настройки!$C$16,IF(E37=$O$17,Настройки!$C$17,IF(E37=$O$18,Настройки!$C$18,0)))))))))))))))))*Настройки!$F$2+IF(E37=$O$2,Настройки!$C$2,IF(E37=$O$3,Настройки!$C$3,IF(E37=$O$4,Настройки!$C$4,IF(E37=$O$5,Настройки!$C$5,IF(E37=$O$6,Настройки!$C$6,IF(E37=$O$7,Настройки!$C$7,IF(E37=$O$8,Настройки!$C$8,IF(E37=$O$9,Настройки!$C$9,IF(E37=$O$10,Настройки!$C$10,IF(E37=$O$11,Настройки!$C$11,IF(E37=$O$12,Настройки!$C$12,IF(E37=$O$13,Настройки!$C$13,IF(E37=$O$14,Настройки!$C$14,IF(E37=$O$15,Настройки!$C$15,IF(E37=$O$16,Настройки!$C$16,IF(E37=$O$17,Настройки!$C$17,IF(E37=$O$18,Настройки!$C$18,0))))))))))))))))),IF(E37=$O$2,Настройки!$C$2,IF(E37=$O$3,Настройки!$C$3,IF(E37=$O$4,Настройки!$C$4,IF(E37=$O$5,Настройки!$C$5,IF(E37=$O$6,Настройки!$C$6,IF(E37=$O$7,Настройки!$C$7,IF(E37=$O$8,Настройки!$C$8,IF(E37=$O$9,Настройки!$C$9,IF(E37=$O$10,Настройки!$C$10,IF(E37=$O$11,Настройки!$C$11,IF(E37=$O$12,Настройки!$C$12,IF(E37=$O$13,Настройки!$C$13,IF(E37=$O$14,Настройки!$C$14,IF(E37=$O$15,Настройки!$C$15,IF(E37=$O$16,Настройки!$C$16,IF(E37=$O$17,Настройки!$C$17,IF(E37=$O$18,Настройки!$C$18,0))))))))))))))))))))),2) -> 0.3 | K37: =IF(SUM($I$2:I37)-SUM($C$2:C37)<0,0,ROUND(SUM($I$2:I37)-SUM($C$2:C37),2)) -> 1.2 | L37: =IF(SUM($J$2:J37)-SUM($C$2:C37)<0,0,ROUND(SUM($J$2:J37)-SUM($C$2:C37),2)) -> 1.47
A38: Пн | B38: 7 | C38: =Настройки!$F$3 -> 0.1 | F38: =COUNTIF($E$2:E38,"ЧЕМ") -> 10 | I38: =ROUND(IF(AND(M38=$O$22,H38=$O$21),0-Настройки!$F$4,IF('Расчет усталости'!M38='Расчет усталости'!$O$22,IF(E38=$O$2,Настройки!$C$2,IF(E38=$O$3,Настройки!$C$3,IF(E38=$O$4,Настройки!$C$4,IF(E38=$O$5,Настройки!$C$5,IF(E38=$O$6,Настройки!$C$6,IF(E38=$O$7,Настройки!$C$7,IF(E38=$O$8,Настройки!$C$8,IF(E38=$O$9,Настройки!$C$9,IF(E38=$O$10,Настройки!$C$10,IF(E38=$O$11,Настройки!$C$11,IF(E38=$O$12,Настройки!$C$12,IF(E38=$O$13,Настройки!$C$13,IF(E38=$O$14,Настройки!$C$14,IF(E38=$O$15,Настройки!$C$15,IF(E38=$O$16,Настройки!$C$16,IF(E38=$O$17,Настройки!$C$17,IF(E38=$O$18,Настройки!$C$18,0)))))))))))))))))-Настройки!$F$4,IF('Расчет усталости'!H38='Расчет усталости'!$O$21,0,IF(E38=$O$2,Настройки!$C$2,IF(E38=$O$3,Настройки!$C$3,IF(E38=$O$4,Настройки!$C$4,IF(E38=$O$5,Настройки!$C$5,IF(E38=$O$6,Настройки!$C$6,IF(E38=$O$7,Настройки!$C$7,IF(E38=$O$8,Настройки!$C$8,IF(E38=$O$9,Настройки!$C$9,IF(E38=$O$10,Настройки!$C$10,IF(E38=$O$11,Настройки!$C$11,IF(E38=$O$12,Настройки!$C$12,IF(E38=$O$13,Настройки!$C$13,IF(E38=$O$14,Настройки!$C$14,IF(E38=$O$15,Настройки!$C$15,IF(E38=$O$16,Настройки!$C$16,IF(E38=$O$17,Настройки!$C$17,IF(E38=$O$18,Настройки!$C$18,0)))))))))))))))))))),2) -> 0 | J38: =ROUND(IF(AND(M38=$O$22,H38=$O$21),0-Настройки!$F$4,IF('Расчет усталости'!M38='Расчет усталости'!$O$22,ROUND(IF(G38=$O$20,IF(E38=$O$2,Настройки!$C$2,IF(E38=$O$3,Настройки!$C$3,IF(E38=$O$4,Настройки!$C$4,IF(E38=$O$5,Настройки!$C$5,IF(E38=$O$6,Настройки!$C$6,IF(E38=$O$7,Настройки!$C$7,IF(E38=$O$8,Настройки!$C$8,IF(E38=$O$9,Настройки!$C$9,IF(E38=$O$10,Настройки!$C$10,IF(E38=$O$11,Настройки!$C$11,IF(E38=$O$12,Настройки!$C$12,IF(E38=$O$13,Настройки!$C$13,IF(E38=$O$14,Настройки!$C$14,IF(E38=$O$15,Настройки!$C$15,IF(E38=$O$16,Настройки!$C$16,IF(E38=$O$17,Настройки!$C$17,IF(E38=$O$18,Настройки!$C$18,0)))))))))))))))))*Настройки!$F$2+IF(E38=$O$2,Настройки!$C$2,IF(E38=$O$3,Настройки!$C$3,IF(E38=$O$4,Настройки!$C$4,IF(E38=$O$5,Настройки!$C$5,IF(E38=$O$6,Настройки!$C$6,IF(E38=$O$7,Настройки!$C$7,IF(E38=$O$8,Настройки!$C$8,IF(E38=$O$9,Настройки!$C$9,IF(E38=$O$10,Настройки!$C$10,IF(E38=$O$11,Настройки!$C$11,IF(E38=$O$12,Настройки!$C$12,IF(E38=$O$13,Настройки!$C$13,IF(E38=$O$14,Настройки!$C$14,IF(E38=$O$15,Настройки!$C$15,IF(E38=$O$16,Настройки!$C$16,IF(E38=$O$17,Настройки!$C$17,IF(E38=$O$18,Настройки!$C$18,0))))))))))))))))),IF(E38=$O$2,Настройки!$C$2,IF(E38=$O$3,Настройки!$C$3,IF(E38=$O$4,Настройки!$C$4,IF(E38=$O$5,Настройки!$C$5,IF(E38=$O$6,Настройки!$C$6,IF(E38=$O$7,Настройки!$C$7,IF(E38=$O$8,Настройки!$C$8,IF(E38=$O$9,Настройки!$C$9,IF(E38=$O$10,Настройки!$C$10,IF(E38=$O$11,Настройки!$C$11,IF(E38=$O$12,Настройки!$C$12,IF(E38=$O$13,Настройки!$C$13,IF(E38=$O$14,Настройки!$C$14,IF(E38=$O$15,Настройки!$C$15,IF(E38=$O$16,Настройки!$C$16,IF(E38=$O$17,Настройки!$C$17,IF(E38=$O$18,Настройки!$C$18,0)))))))))))))))))),2)-Настройки!$F$4,IF('Расчет усталости'!H38='Расчет усталости'!$O$21,0,IF(G38=$O$20,IF(E38=$O$2,Настройки!$C$2,IF(E38=$O$3,Настройки!$C$3,IF(E38=$O$4,Настройки!$C$4,IF(E38=$O$5,Настройки!$C$5,IF(E38=$O$6,Настройки!$C$6,IF(E38=$O$7,Настройки!$C$7,IF(E38=$O$8,Настройки!$C$8,IF(E38=$O$9,Настройки!$C$9,IF(E38=$O$10,Настройки!$C$10,IF(E38=$O$11,Настройки!$C$11,IF(E38=$O$12,Настройки!$C$12,IF(E38=$O$13,Настройки!$C$13,IF(E38=$O$14,Настройки!$C$14,IF(E38=$O$15,Настройки!$C$15,IF(E38=$O$16,Настройки!$C$16,IF(E38=$O$17,Настройки!$C$17,IF(E38=$O$18,Настройки!$C$18,0)))))))))))))))))*Настройки!$F$2+IF(E38=$O$2,Настройки!$C$2,IF(E38=$O$3,Настройки!$C$3,IF(E38=$O$4,Настройки!$C$4,IF(E38=$O$5,Настройки!$C$5,IF(E38=$O$6,Настройки!$C$6,IF(E38=$O$7,Настройки!$C$7,IF(E38=$O$8,Настройки!$C$8,IF(E38=$O$9,Настройки!$C$9,IF(E38=$O$10,Настройки!$C$10,IF(E38=$O$11,Настройки!$C$11,IF(E38=$O$12,Настройки!$C$12,IF(E38=$O$13,Настройки!$C$13,IF(E38=$O$14,Настройки!$C$14,IF(E38=$O$15,Настройки!$C$15,IF(E38=$O$16,Настройки!$C$16,IF(E38=$O$17,Настройки!$C$17,IF(E38=$O$18,Настройки!$C$18,0))))))))))))))))),IF(E38=$O$2,Настройки!$C$2,IF(E38=$O$3,Настройки!$C$3,IF(E38=$O$4,Настройки!$C$4,IF(E38=$O$5,Настройки!$C$5,IF(E38=$O$6,Настройки!$C$6,IF(E38=$O$7,Настройки!$C$7,IF(E38=$O$8,Настройки!$C$8,IF(E38=$O$9,Настройки!$C$9,IF(E38=$O$10,Настройки!$C$10,IF(E38=$O$11,Настройки!$C$11,IF(E38=$O$12,Настройки!$C$12,IF(E38=$O$13,Настройки!$C$13,IF(E38=$O$14,Настройки!$C$14,IF(E38=$O$15,Настройки!$C$15,IF(E38=$O$16,Настройки!$C$16,IF(E38=$O$17,Настройки!$C$17,IF(E38=$O$18,Настройки!$C$18,0))))))))))))))))))))),2) -> 0 | K38: =IF(SUM($I$2:I38)-SUM($C$2:C38)<0,0,ROUND(SUM($I$2:I38)-SUM($C$2:C38),2)) -> 1.1 | L38: =IF(SUM($J$2:J38)-SUM($C$2:C38)<0,0,ROUND(SUM($J$2:J38)-SUM($C$2:C38),2)) -> 1.37
A39: Вт | B39: 7 | C39: =Настройки!$F$3 -> 0.1 | D39: 25 | E39: КТ | F39: =COUNTIF($E$2:E39,"ЧЕМ") -> 10 | G39: Г | I39: =ROUND(IF(AND(M39=$O$22,H39=$O$21),0-Настройки!$F$4,IF('Расчет усталости'!M39='Расчет усталости'!$O$22,IF(E39=$O$2,Настройки!$C$2,IF(E39=$O$3,Настройки!$C$3,IF(E39=$O$4,Настройки!$C$4,IF(E39=$O$5,Настройки!$C$5,IF(E39=$O$6,Настройки!$C$6,IF(E39=$O$7,Настройки!$C$7,IF(E39=$O$8,Настройки!$C$8,IF(E39=$O$9,Настройки!$C$9,IF(E39=$O$10,Настройки!$C$10,IF(E39=$O$11,Настройки!$C$11,IF(E39=$O$12,Настройки!$C$12,IF(E39=$O$13,Настройки!$C$13,IF(E39=$O$14,Настройки!$C$14,IF(E39=$O$15,Настройки!$C$15,IF(E39=$O$16,Настройки!$C$16,IF(E39=$O$17,Настройки!$C$17,IF(E39=$O$18,Настройки!$C$18,0)))))))))))))))))-Настройки!$F$4,IF('Расчет усталости'!H39='Расчет усталости'!$O$21,0,IF(E39=$O$2,Настройки!$C$2,IF(E39=$O$3,Настройки!$C$3,IF(E39=$O$4,Настройки!$C$4,IF(E39=$O$5,Настройки!$C$5,IF(E39=$O$6,Настройки!$C$6,IF(E39=$O$7,Настройки!$C$7,IF(E39=$O$8,Настройки!$C$8,IF(E39=$O$9,Настройки!$C$9,IF(E39=$O$10,Настройки!$C$10,IF(E39=$O$11,Настройки!$C$11,IF(E39=$O$12,Настройки!$C$12,IF(E39=$O$13,Настройки!$C$13,IF(E39=$O$14,Настройки!$C$14,IF(E39=$O$15,Настройки!$C$15,IF(E39=$O$16,Настройки!$C$16,IF(E39=$O$17,Настройки!$C$17,IF(E39=$O$18,Настройки!$C$18,0)))))))))))))))))))),2) -> 0.15 | J39: =ROUND(IF(AND(M39=$O$22,H39=$O$21),0-Настройки!$F$4,IF('Расчет усталости'!M39='Расчет усталости'!$O$22,ROUND(IF(G39=$O$20,IF(E39=$O$2,Настройки!$C$2,IF(E39=$O$3,Настройки!$C$3,IF(E39=$O$4,Настройки!$C$4,IF(E39=$O$5,Настройки!$C$5,IF(E39=$O$6,Настройки!$C$6,IF(E39=$O$7,Настройки!$C$7,IF(E39=$O$8,Настройки!$C$8,IF(E39=$O$9,Настройки!$C$9,IF(E39=$O$10,Настройки!$C$10,IF(E39=$O$11,Настройки!$C$11,IF(E39=$O$12,Настройки!$C$12,IF(E39=$O$13,Настройки!$C$13,IF(E39=$O$14,Настройки!$C$14,IF(E39=$O$15,Настройки!$C$15,IF(E39=$O$16,Настройки!$C$16,IF(E39=$O$17,Настройки!$C$17,IF(E39=$O$18,Настройки!$C$18,0)))))))))))))))))*Настройки!$F$2+IF(E39=$O$2,Настройки!$C$2,IF(E39=$O$3,Настройки!$C$3,IF(E39=$O$4,Настройки!$C$4,IF(E39=$O$5,Настройки!$C$5,IF(E39=$O$6,Настройки!$C$6,IF(E39=$O$7,Настройки!$C$7,IF(E39=$O$8,Настройки!$C$8,IF(E39=$O$9,Настройки!$C$9,IF(E39=$O$10,Настройки!$C$10,IF(E39=$O$11,Настройки!$C$11,IF(E39=$O$12,Настройки!$C$12,IF(E39=$O$13,Настройки!$C$13,IF(E39=$O$14,Настройки!$C$14,IF(E39=$O$15,Настройки!$C$15,IF(E39=$O$16,Настройки!$C$16,IF(E39=$O$17,Настройки!$C$17,IF(E39=$O$18,Настройки!$C$18,0))))))))))))))))),IF(E39=$O$2,Настройки!$C$2,IF(E39=$O$3,Настройки!$C$3,IF(E39=$O$4,Настройки!$C$4,IF(E39=$O$5,Настройки!$C$5,IF(E39=$O$6,Настройки!$C$6,IF(E39=$O$7,Настройки!$C$7,IF(E39=$O$8,Настройки!$C$8,IF(E39=$O$9,Настройки!$C$9,IF(E39=$O$10,Настройки!$C$10,IF(E39=$O$11,Настройки!$C$11,IF(E39=$O$12,Настройки!$C$12,IF(E39=$O$13,Настройки!$C$13,IF(E39=$O$14,Настройки!$C$14,IF(E39=$O$15,Настройки!$C$15,IF(E39=$O$16,Настройки!$C$16,IF(E39=$O$17,Настройки!$C$17,IF(E39=$O$18,Настройки!$C$18,0)))))))))))))))))),2)-Настройки!$F$4,IF('Расчет усталости'!H39='Расчет усталости'!$O$21,0,IF(G39=$O$20,IF(E39=$O$2,Настройки!$C$2,IF(E39=$O$3,Настройки!$C$3,IF(E39=$O$4,Настройки!$C$4,IF(E39=$O$5,Настройки!$C$5,IF(E39=$O$6,Настройки!$C$6,IF(E39=$O$7,Настройки!$C$7,IF(E39=$O$8,Настройки!$C$8,IF(E39=$O$9,Настройки!$C$9,IF(E39=$O$10,Настройки!$C$10,IF(E39=$O$11,Настройки!$C$11,IF(E39=$O$12,Настройки!$C$12,IF(E39=$O$13,Настройки!$C$13,IF(E39=$O$14,Настройки!$C$14,IF(E39=$O$15,Настройки!$C$15,IF(E39=$O$16,Настройки!$C$16,IF(E39=$O$17,Настройки!$C$17,IF(E39=$O$18,Настройки!$C$18,0)))))))))))))))))*Настройки!$F$2+IF(E39=$O$2,Настройки!$C$2,IF(E39=$O$3,Настройки!$C$3,IF(E39=$O$4,Настройки!$C$4,IF(E39=$O$5,Настройки!$C$5,IF(E39=$O$6,Настройки!$C$6,IF(E39=$O$7,Настройки!$C$7,IF(E39=$O$8,Настройки!$C$8,IF(E39=$O$9,Настройки!$C$9,IF(E39=$O$10,Настройки!$C$10,IF(E39=$O$11,Настройки!$C$11,IF(E39=$O$12,Настройки!$C$12,IF(E39=$O$13,Настройки!$C$13,IF(E39=$O$14,Настройки!$C$14,IF(E39=$O$15,Настройки!$C$15,IF(E39=$O$16,Настройки!$C$16,IF(E39=$O$17,Настройки!$C$17,IF(E39=$O$18,Настройки!$C$18,0))))))))))))))))),IF(E39=$O$2,Настройки!$C$2,IF(E39=$O$3,Настройки!$C$3,IF(E39=$O$4,Настройки!$C$4,IF(E39=$O$5,Настройки!$C$5,IF(E39=$O$6,Настройки!$C$6,IF(E39=$O$7,Настройки!$C$7,IF(E39=$O$8,Настройки!$C$8,IF(E39=$O$9,Настройки!$C$9,IF(E39=$O$10,Настройки!$C$10,IF(E39=$O$11,Настройки!$C$11,IF(E39=$O$12,Настройки!$C$12,IF(E39=$O$13,Настройки!$C$13,IF(E39=$O$14,Настройки!$C$14,IF(E39=$O$15,Настройки!$C$15,IF(E39=$O$16,Настройки!$C$16,IF(E39=$O$17,Настройки!$C$17,IF(E39=$O$18,Настройки!$C$18,0))))))))))))))))))))),2) -> 0.17 | K39: =IF(SUM($I$2:I39)-SUM($C$2:C39)<0,0,ROUND(SUM($I$2:I39)-SUM($C$2:C39),2)) -> 1.15 | L39: =IF(SUM($J$2:J39)-SUM($C$2:C39)<0,0,ROUND(SUM($J$2:J39)-SUM($C$2:C39),2)) -> 1.44
A40: Ср | B40: 7 | C40: =Настройки!$F$3 -> 0.1 | D40: 26 | E40: ЧЕМ | F40: =COUNTIF($E$2:E40,"ЧЕМ") -> 11 | G40: Г | I40: =ROUND(IF(AND(M40=$O$22,H40=$O$21),0-Настройки!$F$4,IF('Расчет усталости'!M40='Расчет усталости'!$O$22,IF(E40=$O$2,Настройки!$C$2,IF(E40=$O$3,Настройки!$C$3,IF(E40=$O$4,Настройки!$C$4,IF(E40=$O$5,Настройки!$C$5,IF(E40=$O$6,Настройки!$C$6,IF(E40=$O$7,Настройки!$C$7,IF(E40=$O$8,Настройки!$C$8,IF(E40=$O$9,Настройки!$C$9,IF(E40=$O$10,Настройки!$C$10,IF(E40=$O$11,Настройки!$C$11,IF(E40=$O$12,Настройки!$C$12,IF(E40=$O$13,Настройки!$C$13,IF(E40=$O$14,Настройки!$C$14,IF(E40=$O$15,Настройки!$C$15,IF(E40=$O$16,Настройки!$C$16,IF(E40=$O$17,Настройки!$C$17,IF(E40=$O$18,Настройки!$C$18,0)))))))))))))))))-Настройки!$F$4,IF('Расчет усталости'!H40='Расчет усталости'!$O$21,0,IF(E40=$O$2,Настройки!$C$2,IF(E40=$O$3,Настройки!$C$3,IF(E40=$O$4,Настройки!$C$4,IF(E40=$O$5,Настройки!$C$5,IF(E40=$O$6,Настройки!$C$6,IF(E40=$O$7,Настройки!$C$7,IF(E40=$O$8,Настройки!$C$8,IF(E40=$O$9,Настройки!$C$9,IF(E40=$O$10,Настройки!$C$10,IF(E40=$O$11,Настройки!$C$11,IF(E40=$O$12,Настройки!$C$12,IF(E40=$O$13,Настройки!$C$13,IF(E40=$O$14,Настройки!$C$14,IF(E40=$O$15,Настройки!$C$15,IF(E40=$O$16,Настройки!$C$16,IF(E40=$O$17,Настройки!$C$17,IF(E40=$O$18,Настройки!$C$18,0)))))))))))))))))))),2) -> 0.05 | J40: =ROUND(IF(AND(M40=$O$22,H40=$O$21),0-Настройки!$F$4,IF('Расчет усталости'!M40='Расчет усталости'!$O$22,ROUND(IF(G40=$O$20,IF(E40=$O$2,Настройки!$C$2,IF(E40=$O$3,Настройки!$C$3,IF(E40=$O$4,Настройки!$C$4,IF(E40=$O$5,Настройки!$C$5,IF(E40=$O$6,Настройки!$C$6,IF(E40=$O$7,Настройки!$C$7,IF(E40=$O$8,Настройки!$C$8,IF(E40=$O$9,Настройки!$C$9,IF(E40=$O$10,Настройки!$C$10,IF(E40=$O$11,Настройки!$C$11,IF(E40=$O$12,Настройки!$C$12,IF(E40=$O$13,Настройки!$C$13,IF(E40=$O$14,Настройки!$C$14,IF(E40=$O$15,Настройки!$C$15,IF(E40=$O$16,Настройки!$C$16,IF(E40=$O$17,Настройки!$C$17,IF(E40=$O$18,Настройки!$C$18,0)))))))))))))))))*Настройки!$F$2+IF(E40=$O$2,Настройки!$C$2,IF(E40=$O$3,Настройки!$C$3,IF(E40=$O$4,Настройки!$C$4,IF(E40=$O$5,Настройки!$C$5,IF(E40=$O$6,Настройки!$C$6,IF(E40=$O$7,Настройки!$C$7,IF(E40=$O$8,Настройки!$C$8,IF(E40=$O$9,Настройки!$C$9,IF(E40=$O$10,Настройки!$C$10,IF(E40=$O$11,Настройки!$C$11,IF(E40=$O$12,Настройки!$C$12,IF(E40=$O$13,Настройки!$C$13,IF(E40=$O$14,Настройки!$C$14,IF(E40=$O$15,Настройки!$C$15,IF(E40=$O$16,Настройки!$C$16,IF(E40=$O$17,Настройки!$C$17,IF(E40=$O$18,Настройки!$C$18,0))))))))))))))))),IF(E40=$O$2,Настройки!$C$2,IF(E40=$O$3,Настройки!$C$3,IF(E40=$O$4,Настройки!$C$4,IF(E40=$O$5,Настройки!$C$5,IF(E40=$O$6,Настройки!$C$6,IF(E40=$O$7,Настройки!$C$7,IF(E40=$O$8,Настройки!$C$8,IF(E40=$O$9,Настройки!$C$9,IF(E40=$O$10,Настройки!$C$10,IF(E40=$O$11,Настройки!$C$11,IF(E40=$O$12,Настройки!$C$12,IF(E40=$O$13,Настройки!$C$13,IF(E40=$O$14,Настройки!$C$14,IF(E40=$O$15,Настройки!$C$15,IF(E40=$O$16,Настройки!$C$16,IF(E40=$O$17,Настройки!$C$17,IF(E40=$O$18,Настройки!$C$18,0)))))))))))))))))),2)-Настройки!$F$4,IF('Расчет усталости'!H40='Расчет усталости'!$O$21,0,IF(G40=$O$20,IF(E40=$O$2,Настройки!$C$2,IF(E40=$O$3,Настройки!$C$3,IF(E40=$O$4,Настройки!$C$4,IF(E40=$O$5,Настройки!$C$5,IF(E40=$O$6,Настройки!$C$6,IF(E40=$O$7,Настройки!$C$7,IF(E40=$O$8,Настройки!$C$8,IF(E40=$O$9,Настройки!$C$9,IF(E40=$O$10,Настройки!$C$10,IF(E40=$O$11,Настройки!$C$11,IF(E40=$O$12,Настройки!$C$12,IF(E40=$O$13,Настройки!$C$13,IF(E40=$O$14,Настройки!$C$14,IF(E40=$O$15,Настройки!$C$15,IF(E40=$O$16,Настройки!$C$16,IF(E40=$O$17,Настройки!$C$17,IF(E40=$O$18,Настройки!$C$18,0)))))))))))))))))*Настройки!$F$2+IF(E40=$O$2,Настройки!$C$2,IF(E40=$O$3,Настройки!$C$3,IF(E40=$O$4,Настройки!$C$4,IF(E40=$O$5,Настройки!$C$5,IF(E40=$O$6,Настройки!$C$6,IF(E40=$O$7,Настройки!$C$7,IF(E40=$O$8,Настройки!$C$8,IF(E40=$O$9,Настройки!$C$9,IF(E40=$O$10,Настройки!$C$10,IF(E40=$O$11,Настройки!$C$11,IF(E40=$O$12,Настройки!$C$12,IF(E40=$O$13,Настройки!$C$13,IF(E40=$O$14,Настройки!$C$14,IF(E40=$O$15,Настройки!$C$15,IF(E40=$O$16,Настройки!$C$16,IF(E40=$O$17,Настройки!$C$17,IF(E40=$O$18,Настройки!$C$18,0))))))))))))))))),IF(E40=$O$2,Настройки!$C$2,IF(E40=$O$3,Настройки!$C$3,IF(E40=$O$4,Настройки!$C$4,IF(E40=$O$5,Настройки!$C$5,IF(E40=$O$6,Настройки!$C$6,IF(E40=$O$7,Настройки!$C$7,IF(E40=$O$8,Настройки!$C$8,IF(E40=$O$9,Настройки!$C$9,IF(E40=$O$10,Настройки!$C$10,IF(E40=$O$11,Настройки!$C$11,IF(E40=$O$12,Настройки!$C$12,IF(E40=$O$13,Настройки!$C$13,IF(E40=$O$14,Настройки!$C$14,IF(E40=$O$15,Настройки!$C$15,IF(E40=$O$16,Настройки!$C$16,IF(E40=$O$17,Настройки!$C$17,IF(E40=$O$18,Настройки!$C$18,0))))))))))))))))))))),2) -> 0.08 | K40: =IF(SUM($I$2:I40)-SUM($C$2:C40)<0,0,ROUND(SUM($I$2:I40)-SUM($C$2:C40),2)) -> 1.1 | L40: =IF(SUM($J$2:J40)-SUM($C$2:C40)<0,0,ROUND(SUM($J$2:J40)-SUM($C$2:C40),2)) -> 1.42 | M40: В
A41: Чт | B41: 7 | C41: =Настройки!$F$3 -> 0.1 | D41: 27 | E41: КТ | F41: =COUNTIF($E$2:E41,"ЧЕМ") -> 11 | I41: =ROUND(IF(AND(M41=$O$22,H41=$O$21),0-Настройки!$F$4,IF('Расчет усталости'!M41='Расчет усталости'!$O$22,IF(E41=$O$2,Настройки!$C$2,IF(E41=$O$3,Настройки!$C$3,IF(E41=$O$4,Настройки!$C$4,IF(E41=$O$5,Настройки!$C$5,IF(E41=$O$6,Настройки!$C$6,IF(E41=$O$7,Настройки!$C$7,IF(E41=$O$8,Настройки!$C$8,IF(E41=$O$9,Настройки!$C$9,IF(E41=$O$10,Настройки!$C$10,IF(E41=$O$11,Настройки!$C$11,IF(E41=$O$12,Настройки!$C$12,IF(E41=$O$13,Настройки!$C$13,IF(E41=$O$14,Настройки!$C$14,IF(E41=$O$15,Настройки!$C$15,IF(E41=$O$16,Настройки!$C$16,IF(E41=$O$17,Настройки!$C$17,IF(E41=$O$18,Настройки!$C$18,0)))))))))))))))))-Настройки!$F$4,IF('Расчет усталости'!H41='Расчет усталости'!$O$21,0,IF(E41=$O$2,Настройки!$C$2,IF(E41=$O$3,Настройки!$C$3,IF(E41=$O$4,Настройки!$C$4,IF(E41=$O$5,Настройки!$C$5,IF(E41=$O$6,Настройки!$C$6,IF(E41=$O$7,Настройки!$C$7,IF(E41=$O$8,Настройки!$C$8,IF(E41=$O$9,Настройки!$C$9,IF(E41=$O$10,Настройки!$C$10,IF(E41=$O$11,Настройки!$C$11,IF(E41=$O$12,Настройки!$C$12,IF(E41=$O$13,Настройки!$C$13,IF(E41=$O$14,Настройки!$C$14,IF(E41=$O$15,Настройки!$C$15,IF(E41=$O$16,Настройки!$C$16,IF(E41=$O$17,Настройки!$C$17,IF(E41=$O$18,Настройки!$C$18,0)))))))))))))))))))),2) -> 0.15 | J41: =ROUND(IF(AND(M41=$O$22,H41=$O$21),0-Настройки!$F$4,IF('Расчет усталости'!M41='Расчет усталости'!$O$22,ROUND(IF(G41=$O$20,IF(E41=$O$2,Настройки!$C$2,IF(E41=$O$3,Настройки!$C$3,IF(E41=$O$4,Настройки!$C$4,IF(E41=$O$5,Настройки!$C$5,IF(E41=$O$6,Настройки!$C$6,IF(E41=$O$7,Настройки!$C$7,IF(E41=$O$8,Настройки!$C$8,IF(E41=$O$9,Настройки!$C$9,IF(E41=$O$10,Настройки!$C$10,IF(E41=$O$11,Настройки!$C$11,IF(E41=$O$12,Настройки!$C$12,IF(E41=$O$13,Настройки!$C$13,IF(E41=$O$14,Настройки!$C$14,IF(E41=$O$15,Настройки!$C$15,IF(E41=$O$16,Настройки!$C$16,IF(E41=$O$17,Настройки!$C$17,IF(E41=$O$18,Настройки!$C$18,0)))))))))))))))))*Настройки!$F$2+IF(E41=$O$2,Настройки!$C$2,IF(E41=$O$3,Настройки!$C$3,IF(E41=$O$4,Настройки!$C$4,IF(E41=$O$5,Настройки!$C$5,IF(E41=$O$6,Настройки!$C$6,IF(E41=$O$7,Настройки!$C$7,IF(E41=$O$8,Настройки!$C$8,IF(E41=$O$9,Настройки!$C$9,IF(E41=$O$10,Настройки!$C$10,IF(E41=$O$11,Настройки!$C$11,IF(E41=$O$12,Настройки!$C$12,IF(E41=$O$13,Настройки!$C$13,IF(E41=$O$14,Настройки!$C$14,IF(E41=$O$15,Настройки!$C$15,IF(E41=$O$16,Настройки!$C$16,IF(E41=$O$17,Настройки!$C$17,IF(E41=$O$18,Настройки!$C$18,0))))))))))))))))),IF(E41=$O$2,Настройки!$C$2,IF(E41=$O$3,Настройки!$C$3,IF(E41=$O$4,Настройки!$C$4,IF(E41=$O$5,Настройки!$C$5,IF(E41=$O$6,Настройки!$C$6,IF(E41=$O$7,Настройки!$C$7,IF(E41=$O$8,Настройки!$C$8,IF(E41=$O$9,Настройки!$C$9,IF(E41=$O$10,Настройки!$C$10,IF(E41=$O$11,Настройки!$C$11,IF(E41=$O$12,Настройки!$C$12,IF(E41=$O$13,Настройки!$C$13,IF(E41=$O$14,Настройки!$C$14,IF(E41=$O$15,Настройки!$C$15,IF(E41=$O$16,Настройки!$C$16,IF(E41=$O$17,Настройки!$C$17,IF(E41=$O$18,Настройки!$C$18,0)))))))))))))))))),2)-Настройки!$F$4,IF('Расчет усталости'!H41='Расчет усталости'!$O$21,0,IF(G41=$O$20,IF(E41=$O$2,Настройки!$C$2,IF(E41=$O$3,Настройки!$C$3,IF(E41=$O$4,Настройки!$C$4,IF(E41=$O$5,Настройки!$C$5,IF(E41=$O$6,Настройки!$C$6,IF(E41=$O$7,Настройки!$C$7,IF(E41=$O$8,Настройки!$C$8,IF(E41=$O$9,Настройки!$C$9,IF(E41=$O$10,Настройки!$C$10,IF(E41=$O$11,Настройки!$C$11,IF(E41=$O$12,Настройки!$C$12,IF(E41=$O$13,Настройки!$C$13,IF(E41=$O$14,Настройки!$C$14,IF(E41=$O$15,Настройки!$C$15,IF(E41=$O$16,Настройки!$C$16,IF(E41=$O$17,Настройки!$C$17,IF(E41=$O$18,Настройки!$C$18,0)))))))))))))))))*Настройки!$F$2+IF(E41=$O$2,Настройки!$C$2,IF(E41=$O$3,Настройки!$C$3,IF(E41=$O$4,Настройки!$C$4,IF(E41=$O$5,Настройки!$C$5,IF(E41=$O$6,Настройки!$C$6,IF(E41=$O$7,Настройки!$C$7,IF(E41=$O$8,Настройки!$C$8,IF(E41=$O$9,Настройки!$C$9,IF(E41=$O$10,Настройки!$C$10,IF(E41=$O$11,Настройки!$C$11,IF(E41=$O$12,Настройки!$C$12,IF(E41=$O$13,Настройки!$C$13,IF(E41=$O$14,Настройки!$C$14,IF(E41=$O$15,Настройки!$C$15,IF(E41=$O$16,Настройки!$C$16,IF(E41=$O$17,Настройки!$C$17,IF(E41=$O$18,Настройки!$C$18,0))))))))))))))))),IF(E41=$O$2,Настройки!$C$2,IF(E41=$O$3,Настройки!$C$3,IF(E41=$O$4,Настройки!$C$4,IF(E41=$O$5,Настройки!$C$5,IF(E41=$O$6,Настройки!$C$6,IF(E41=$O$7,Настройки!$C$7,IF(E41=$O$8,Настройки!$C$8,IF(E41=$O$9,Настройки!$C$9,IF(E41=$O$10,Настройки!$C$10,IF(E41=$O$11,Настройки!$C$11,IF(E41=$O$12,Настройки!$C$12,IF(E41=$O$13,Настройки!$C$13,IF(E41=$O$14,Настройки!$C$14,IF(E41=$O$15,Настройки!$C$15,IF(E41=$O$16,Настройки!$C$16,IF(E41=$O$17,Настройки!$C$17,IF(E41=$O$18,Настройки!$C$18,0))))))))))))))))))))),2) -> 0.15 | K41: =IF(SUM($I$2:I41)-SUM($C$2:C41)<0,0,ROUND(SUM($I$2:I41)-SUM($C$2:C41),2)) -> 1.15 | L41: =IF(SUM($J$2:J41)-SUM($C$2:C41)<0,0,ROUND(SUM($J$2:J41)-SUM($C$2:C41),2)) -> 1.47
A42: Пт | B42: 7 | C42: =Настройки!$F$3 -> 0.1 | F42: =COUNTIF($E$2:E42,"ЧЕМ") -> 11 | I42: =ROUND(IF(AND(M42=$O$22,H42=$O$21),0-Настройки!$F$4,IF('Расчет усталости'!M42='Расчет усталости'!$O$22,IF(E42=$O$2,Настройки!$C$2,IF(E42=$O$3,Настройки!$C$3,IF(E42=$O$4,Настройки!$C$4,IF(E42=$O$5,Настройки!$C$5,IF(E42=$O$6,Настройки!$C$6,IF(E42=$O$7,Настройки!$C$7,IF(E42=$O$8,Настройки!$C$8,IF(E42=$O$9,Настройки!$C$9,IF(E42=$O$10,Настройки!$C$10,IF(E42=$O$11,Настройки!$C$11,IF(E42=$O$12,Настройки!$C$12,IF(E42=$O$13,Настройки!$C$13,IF(E42=$O$14,Настройки!$C$14,IF(E42=$O$15,Настройки!$C$15,IF(E42=$O$16,Настройки!$C$16,IF(E42=$O$17,Настройки!$C$17,IF(E42=$O$18,Настройки!$C$18,0)))))))))))))))))-Настройки!$F$4,IF('Расчет усталости'!H42='Расчет усталости'!$O$21,0,IF(E42=$O$2,Настройки!$C$2,IF(E42=$O$3,Настройки!$C$3,IF(E42=$O$4,Настройки!$C$4,IF(E42=$O$5,Настройки!$C$5,IF(E42=$O$6,Настройки!$C$6,IF(E42=$O$7,Настройки!$C$7,IF(E42=$O$8,Настройки!$C$8,IF(E42=$O$9,Настройки!$C$9,IF(E42=$O$10,Настройки!$C$10,IF(E42=$O$11,Настройки!$C$11,IF(E42=$O$12,Настройки!$C$12,IF(E42=$O$13,Настройки!$C$13,IF(E42=$O$14,Настройки!$C$14,IF(E42=$O$15,Настройки!$C$15,IF(E42=$O$16,Настройки!$C$16,IF(E42=$O$17,Настройки!$C$17,IF(E42=$O$18,Настройки!$C$18,0)))))))))))))))))))),2) -> 0 | J42: =ROUND(IF(AND(M42=$O$22,H42=$O$21),0-Настройки!$F$4,IF('Расчет усталости'!M42='Расчет усталости'!$O$22,ROUND(IF(G42=$O$20,IF(E42=$O$2,Настройки!$C$2,IF(E42=$O$3,Настройки!$C$3,IF(E42=$O$4,Настройки!$C$4,IF(E42=$O$5,Настройки!$C$5,IF(E42=$O$6,Настройки!$C$6,IF(E42=$O$7,Настройки!$C$7,IF(E42=$O$8,Настройки!$C$8,IF(E42=$O$9,Настройки!$C$9,IF(E42=$O$10,Настройки!$C$10,IF(E42=$O$11,Настройки!$C$11,IF(E42=$O$12,Настройки!$C$12,IF(E42=$O$13,Настройки!$C$13,IF(E42=$O$14,Настройки!$C$14,IF(E42=$O$15,Настройки!$C$15,IF(E42=$O$16,Настройки!$C$16,IF(E42=$O$17,Настройки!$C$17,IF(E42=$O$18,Настройки!$C$18,0)))))))))))))))))*Настройки!$F$2+IF(E42=$O$2,Настройки!$C$2,IF(E42=$O$3,Настройки!$C$3,IF(E42=$O$4,Настройки!$C$4,IF(E42=$O$5,Настройки!$C$5,IF(E42=$O$6,Настройки!$C$6,IF(E42=$O$7,Настройки!$C$7,IF(E42=$O$8,Настройки!$C$8,IF(E42=$O$9,Настройки!$C$9,IF(E42=$O$10,Настройки!$C$10,IF(E42=$O$11,Настройки!$C$11,IF(E42=$O$12,Настройки!$C$12,IF(E42=$O$13,Настройки!$C$13,IF(E42=$O$14,Настройки!$C$14,IF(E42=$O$15,Настройки!$C$15,IF(E42=$O$16,Настройки!$C$16,IF(E42=$O$17,Настройки!$C$17,IF(E42=$O$18,Настройки!$C$18,0))))))))))))))))),IF(E42=$O$2,Настройки!$C$2,IF(E42=$O$3,Настройки!$C$3,IF(E42=$O$4,Настройки!$C$4,IF(E42=$O$5,Настройки!$C$5,IF(E42=$O$6,Настройки!$C$6,IF(E42=$O$7,Настройки!$C$7,IF(E42=$O$8,Настройки!$C$8,IF(E42=$O$9,Настройки!$C$9,IF(E42=$O$10,Настройки!$C$10,IF(E42=$O$11,Настройки!$C$11,IF(E42=$O$12,Настройки!$C$12,IF(E42=$O$13,Настройки!$C$13,IF(E42=$O$14,Настройки!$C$14,IF(E42=$O$15,Настройки!$C$15,IF(E42=$O$16,Настройки!$C$16,IF(E42=$O$17,Настройки!$C$17,IF(E42=$O$18,Настройки!$C$18,0)))))))))))))))))),2)-Настройки!$F$4,IF('Расчет усталости'!H42='Расчет усталости'!$O$21,0,IF(G42=$O$20,IF(E42=$O$2,Настройки!$C$2,IF(E42=$O$3,Настройки!$C$3,IF(E42=$O$4,Настройки!$C$4,IF(E42=$O$5,Настройки!$C$5,IF(E42=$O$6,Настройки!$C$6,IF(E42=$O$7,Настройки!$C$7,IF(E42=$O$8,Настройки!$C$8,IF(E42=$O$9,Настройки!$C$9,IF(E42=$O$10,Настройки!$C$10,IF(E42=$O$11,Настройки!$C$11,IF(E42=$O$12,Настройки!$C$12,IF(E42=$O$13,Настройки!$C$13,IF(E42=$O$14,Настройки!$C$14,IF(E42=$O$15,Настройки!$C$15,IF(E42=$O$16,Настройки!$C$16,IF(E42=$O$17,Настройки!$C$17,IF(E42=$O$18,Настройки!$C$18,0)))))))))))))))))*Настройки!$F$2+IF(E42=$O$2,Настройки!$C$2,IF(E42=$O$3,Настройки!$C$3,IF(E42=$O$4,Настройки!$C$4,IF(E42=$O$5,Настройки!$C$5,IF(E42=$O$6,Настройки!$C$6,IF(E42=$O$7,Настройки!$C$7,IF(E42=$O$8,Настройки!$C$8,IF(E42=$O$9,Настройки!$C$9,IF(E42=$O$10,Настройки!$C$10,IF(E42=$O$11,Настройки!$C$11,IF(E42=$O$12,Настройки!$C$12,IF(E42=$O$13,Настройки!$C$13,IF(E42=$O$14,Настройки!$C$14,IF(E42=$O$15,Настройки!$C$15,IF(E42=$O$16,Настройки!$C$16,IF(E42=$O$17,Настройки!$C$17,IF(E42=$O$18,Настройки!$C$18,0))))))))))))))))),IF(E42=$O$2,Настройки!$C$2,IF(E42=$O$3,Настройки!$C$3,IF(E42=$O$4,Настройки!$C$4,IF(E42=$O$5,Настройки!$C$5,IF(E42=$O$6,Настройки!$C$6,IF(E42=$O$7,Настройки!$C$7,IF(E42=$O$8,Настройки!$C$8,IF(E42=$O$9,Настройки!$C$9,IF(E42=$O$10,Настройки!$C$10,IF(E42=$O$11,Настройки!$C$11,IF(E42=$O$12,Настройки!$C$12,IF(E42=$O$13,Настройки!$C$13,IF(E42=$O$14,Настройки!$C$14,IF(E42=$O$15,Настройки!$C$15,IF(E42=$O$16,Настройки!$C$16,IF(E42=$O$17,Настройки!$C$17,IF(E42=$O$18,Настройки!$C$18,0))))))))))))))))))))),2) -> 0 | K42: =IF(SUM($I$2:I42)-SUM($C$2:C42)<0,0,ROUND(SUM($I$2:I42)-SUM($C$2:C42),2)) -> 1.05 | L42: =IF(SUM($J$2:J42)-SUM($C$2:C42)<0,0,ROUND(SUM($J$2:J42)-SUM($C$2:C42),2)) -> 1.37
A43: Сб | B43: 7 | C43: =Настройки!$F$3 -> 0.1 | D43: 28 | E43: ЧЕМ | F43: =COUNTIF($E$2:E43,"ЧЕМ") -> 12 | I43: =ROUND(IF(AND(M43=$O$22,H43=$O$21),0-Настройки!$F$4,IF('Расчет усталости'!M43='Расчет усталости'!$O$22,IF(E43=$O$2,Настройки!$C$2,IF(E43=$O$3,Настройки!$C$3,IF(E43=$O$4,Настройки!$C$4,IF(E43=$O$5,Настройки!$C$5,IF(E43=$O$6,Настройки!$C$6,IF(E43=$O$7,Настройки!$C$7,IF(E43=$O$8,Настройки!$C$8,IF(E43=$O$9,Настройки!$C$9,IF(E43=$O$10,Настройки!$C$10,IF(E43=$O$11,Настройки!$C$11,IF(E43=$O$12,Настройки!$C$12,IF(E43=$O$13,Настройки!$C$13,IF(E43=$O$14,Настройки!$C$14,IF(E43=$O$15,Настройки!$C$15,IF(E43=$O$16,Настройки!$C$16,IF(E43=$O$17,Настройки!$C$17,IF(E43=$O$18,Настройки!$C$18,0)))))))))))))))))-Настройки!$F$4,IF('Расчет усталости'!H43='Расчет усталости'!$O$21,0,IF(E43=$O$2,Настройки!$C$2,IF(E43=$O$3,Настройки!$C$3,IF(E43=$O$4,Настройки!$C$4,IF(E43=$O$5,Настройки!$C$5,IF(E43=$O$6,Настройки!$C$6,IF(E43=$O$7,Настройки!$C$7,IF(E43=$O$8,Настройки!$C$8,IF(E43=$O$9,Настройки!$C$9,IF(E43=$O$10,Настройки!$C$10,IF(E43=$O$11,Настройки!$C$11,IF(E43=$O$12,Настройки!$C$12,IF(E43=$O$13,Настройки!$C$13,IF(E43=$O$14,Настройки!$C$14,IF(E43=$O$15,Настройки!$C$15,IF(E43=$O$16,Настройки!$C$16,IF(E43=$O$17,Настройки!$C$17,IF(E43=$O$18,Настройки!$C$18,0)))))))))))))))))))),2) -> 0.3 | J43: =ROUND(IF(AND(M43=$O$22,H43=$O$21),0-Настройки!$F$4,IF('Расчет усталости'!M43='Расчет усталости'!$O$22,ROUND(IF(G43=$O$20,IF(E43=$O$2,Настройки!$C$2,IF(E43=$O$3,Настройки!$C$3,IF(E43=$O$4,Настройки!$C$4,IF(E43=$O$5,Настройки!$C$5,IF(E43=$O$6,Настройки!$C$6,IF(E43=$O$7,Настройки!$C$7,IF(E43=$O$8,Настройки!$C$8,IF(E43=$O$9,Настройки!$C$9,IF(E43=$O$10,Настройки!$C$10,IF(E43=$O$11,Настройки!$C$11,IF(E43=$O$12,Настройки!$C$12,IF(E43=$O$13,Настройки!$C$13,IF(E43=$O$14,Настройки!$C$14,IF(E43=$O$15,Настройки!$C$15,IF(E43=$O$16,Настройки!$C$16,IF(E43=$O$17,Настройки!$C$17,IF(E43=$O$18,Настройки!$C$18,0)))))))))))))))))*Настройки!$F$2+IF(E43=$O$2,Настройки!$C$2,IF(E43=$O$3,Настройки!$C$3,IF(E43=$O$4,Настройки!$C$4,IF(E43=$O$5,Настройки!$C$5,IF(E43=$O$6,Настройки!$C$6,IF(E43=$O$7,Настройки!$C$7,IF(E43=$O$8,Настройки!$C$8,IF(E43=$O$9,Настройки!$C$9,IF(E43=$O$10,Настройки!$C$10,IF(E43=$O$11,Настройки!$C$11,IF(E43=$O$12,Настройки!$C$12,IF(E43=$O$13,Настройки!$C$13,IF(E43=$O$14,Настройки!$C$14,IF(E43=$O$15,Настройки!$C$15,IF(E43=$O$16,Настройки!$C$16,IF(E43=$O$17,Настройки!$C$17,IF(E43=$O$18,Настройки!$C$18,0))))))))))))))))),IF(E43=$O$2,Настройки!$C$2,IF(E43=$O$3,Настройки!$C$3,IF(E43=$O$4,Настройки!$C$4,IF(E43=$O$5,Настройки!$C$5,IF(E43=$O$6,Настройки!$C$6,IF(E43=$O$7,Настройки!$C$7,IF(E43=$O$8,Настройки!$C$8,IF(E43=$O$9,Настройки!$C$9,IF(E43=$O$10,Настройки!$C$10,IF(E43=$O$11,Настройки!$C$11,IF(E43=$O$12,Настройки!$C$12,IF(E43=$O$13,Настройки!$C$13,IF(E43=$O$14,Настройки!$C$14,IF(E43=$O$15,Настройки!$C$15,IF(E43=$O$16,Настройки!$C$16,IF(E43=$O$17,Настройки!$C$17,IF(E43=$O$18,Настройки!$C$18,0)))))))))))))))))),2)-Настройки!$F$4,IF('Расчет усталости'!H43='Расчет усталости'!$O$21,0,IF(G43=$O$20,IF(E43=$O$2,Настройки!$C$2,IF(E43=$O$3,Настройки!$C$3,IF(E43=$O$4,Настройки!$C$4,IF(E43=$O$5,Настройки!$C$5,IF(E43=$O$6,Настройки!$C$6,IF(E43=$O$7,Настройки!$C$7,IF(E43=$O$8,Настройки!$C$8,IF(E43=$O$9,Настройки!$C$9,IF(E43=$O$10,Настройки!$C$10,IF(E43=$O$11,Настройки!$C$11,IF(E43=$O$12,Настройки!$C$12,IF(E43=$O$13,Настройки!$C$13,IF(E43=$O$14,Настройки!$C$14,IF(E43=$O$15,Настройки!$C$15,IF(E43=$O$16,Настройки!$C$16,IF(E43=$O$17,Настройки!$C$17,IF(E43=$O$18,Настройки!$C$18,0)))))))))))))))))*Настройки!$F$2+IF(E43=$O$2,Настройки!$C$2,IF(E43=$O$3,Настройки!$C$3,IF(E43=$O$4,Настройки!$C$4,IF(E43=$O$5,Настройки!$C$5,IF(E43=$O$6,Настройки!$C$6,IF(E43=$O$7,Настройки!$C$7,IF(E43=$O$8,Настройки!$C$8,IF(E43=$O$9,Настройки!$C$9,IF(E43=$O$10,Настройки!$C$10,IF(E43=$O$11,Настройки!$C$11,IF(E43=$O$12,Настройки!$C$12,IF(E43=$O$13,Настройки!$C$13,IF(E43=$O$14,Настройки!$C$14,IF(E43=$O$15,Настройки!$C$15,IF(E43=$O$16,Настройки!$C$16,IF(E43=$O$17,Настройки!$C$17,IF(E43=$O$18,Настройки!$C$18,0))))))))))))))))),IF(E43=$O$2,Настройки!$C$2,IF(E43=$O$3,Настройки!$C$3,IF(E43=$O$4,Настройки!$C$4,IF(E43=$O$5,Настройки!$C$5,IF(E43=$O$6,Настройки!$C$6,IF(E43=$O$7,Настройки!$C$7,IF(E43=$O$8,Настройки!$C$8,IF(E43=$O$9,Настройки!$C$9,IF(E43=$O$10,Настройки!$C$10,IF(E43=$O$11,Настройки!$C$11,IF(E43=$O$12,Настройки!$C$12,IF(E43=$O$13,Настройки!$C$13,IF(E43=$O$14,Настройки!$C$14,IF(E43=$O$15,Настройки!$C$15,IF(E43=$O$16,Настройки!$C$16,IF(E43=$O$17,Настройки!$C$17,IF(E43=$O$18,Настройки!$C$18,0))))))))))))))))))))),2) -> 0.3 | K43: =IF(SUM($I$2:I43)-SUM($C$2:C43)<0,0,ROUND(SUM($I$2:I43)-SUM($C$2:C43),2)) -> 1.25 | L43: =IF(SUM($J$2:J43)-SUM($C$2:C43)<0,0,ROUND(SUM($J$2:J43)-SUM($C$2:C43),2)) -> 1.57
A44: Пн | B44: 8 | C44: =Настройки!$F$3 -> 0.1 | F44: =COUNTIF($E$2:E44,"ЧЕМ") -> 12 | I44: =ROUND(IF(AND(M44=$O$22,H44=$O$21),0-Настройки!$F$4,IF('Расчет усталости'!M44='Расчет усталости'!$O$22,IF(E44=$O$2,Настройки!$C$2,IF(E44=$O$3,Настройки!$C$3,IF(E44=$O$4,Настройки!$C$4,IF(E44=$O$5,Настройки!$C$5,IF(E44=$O$6,Настройки!$C$6,IF(E44=$O$7,Настройки!$C$7,IF(E44=$O$8,Настройки!$C$8,IF(E44=$O$9,Настройки!$C$9,IF(E44=$O$10,Настройки!$C$10,IF(E44=$O$11,Настройки!$C$11,IF(E44=$O$12,Настройки!$C$12,IF(E44=$O$13,Настройки!$C$13,IF(E44=$O$14,Настройки!$C$14,IF(E44=$O$15,Настройки!$C$15,IF(E44=$O$16,Настройки!$C$16,IF(E44=$O$17,Настройки!$C$17,IF(E44=$O$18,Настройки!$C$18,0)))))))))))))))))-Настройки!$F$4,IF('Расчет усталости'!H44='Расчет усталости'!$O$21,0,IF(E44=$O$2,Настройки!$C$2,IF(E44=$O$3,Настройки!$C$3,IF(E44=$O$4,Настройки!$C$4,IF(E44=$O$5,Настройки!$C$5,IF(E44=$O$6,Настройки!$C$6,IF(E44=$O$7,Настройки!$C$7,IF(E44=$O$8,Настройки!$C$8,IF(E44=$O$9,Настройки!$C$9,IF(E44=$O$10,Настройки!$C$10,IF(E44=$O$11,Настройки!$C$11,IF(E44=$O$12,Настройки!$C$12,IF(E44=$O$13,Настройки!$C$13,IF(E44=$O$14,Настройки!$C$14,IF(E44=$O$15,Настройки!$C$15,IF(E44=$O$16,Настройки!$C$16,IF(E44=$O$17,Настройки!$C$17,IF(E44=$O$18,Настройки!$C$18,0)))))))))))))))))))),2) -> 0 | J44: =ROUND(IF(AND(M44=$O$22,H44=$O$21),0-Настройки!$F$4,IF('Расчет усталости'!M44='Расчет усталости'!$O$22,ROUND(IF(G44=$O$20,IF(E44=$O$2,Настройки!$C$2,IF(E44=$O$3,Настройки!$C$3,IF(E44=$O$4,Настройки!$C$4,IF(E44=$O$5,Настройки!$C$5,IF(E44=$O$6,Настройки!$C$6,IF(E44=$O$7,Настройки!$C$7,IF(E44=$O$8,Настройки!$C$8,IF(E44=$O$9,Настройки!$C$9,IF(E44=$O$10,Настройки!$C$10,IF(E44=$O$11,Настройки!$C$11,IF(E44=$O$12,Настройки!$C$12,IF(E44=$O$13,Настройки!$C$13,IF(E44=$O$14,Настройки!$C$14,IF(E44=$O$15,Настройки!$C$15,IF(E44=$O$16,Настройки!$C$16,IF(E44=$O$17,Настройки!$C$17,IF(E44=$O$18,Настройки!$C$18,0)))))))))))))))))*Настройки!$F$2+IF(E44=$O$2,Настройки!$C$2,IF(E44=$O$3,Настройки!$C$3,IF(E44=$O$4,Настройки!$C$4,IF(E44=$O$5,Настройки!$C$5,IF(E44=$O$6,Настройки!$C$6,IF(E44=$O$7,Настройки!$C$7,IF(E44=$O$8,Настройки!$C$8,IF(E44=$O$9,Настройки!$C$9,IF(E44=$O$10,Настройки!$C$10,IF(E44=$O$11,Настройки!$C$11,IF(E44=$O$12,Настройки!$C$12,IF(E44=$O$13,Настройки!$C$13,IF(E44=$O$14,Настройки!$C$14,IF(E44=$O$15,Настройки!$C$15,IF(E44=$O$16,Настройки!$C$16,IF(E44=$O$17,Настройки!$C$17,IF(E44=$O$18,Настройки!$C$18,0))))))))))))))))),IF(E44=$O$2,Настройки!$C$2,IF(E44=$O$3,Настройки!$C$3,IF(E44=$O$4,Настройки!$C$4,IF(E44=$O$5,Настройки!$C$5,IF(E44=$O$6,Настройки!$C$6,IF(E44=$O$7,Настройки!$C$7,IF(E44=$O$8,Настройки!$C$8,IF(E44=$O$9,Настройки!$C$9,IF(E44=$O$10,Настройки!$C$10,IF(E44=$O$11,Настройки!$C$11,IF(E44=$O$12,Настройки!$C$12,IF(E44=$O$13,Настройки!$C$13,IF(E44=$O$14,Настройки!$C$14,IF(E44=$O$15,Настройки!$C$15,IF(E44=$O$16,Настройки!$C$16,IF(E44=$O$17,Настройки!$C$17,IF(E44=$O$18,Настройки!$C$18,0)))))))))))))))))),2)-Настройки!$F$4,IF('Расчет усталости'!H44='Расчет усталости'!$O$21,0,IF(G44=$O$20,IF(E44=$O$2,Настройки!$C$2,IF(E44=$O$3,Настройки!$C$3,IF(E44=$O$4,Настройки!$C$4,IF(E44=$O$5,Настройки!$C$5,IF(E44=$O$6,Настройки!$C$6,IF(E44=$O$7,Настройки!$C$7,IF(E44=$O$8,Настройки!$C$8,IF(E44=$O$9,Настройки!$C$9,IF(E44=$O$10,Настройки!$C$10,IF(E44=$O$11,Настройки!$C$11,IF(E44=$O$12,Настройки!$C$12,IF(E44=$O$13,Настройки!$C$13,IF(E44=$O$14,Настройки!$C$14,IF(E44=$O$15,Настройки!$C$15,IF(E44=$O$16,Настройки!$C$16,IF(E44=$O$17,Настройки!$C$17,IF(E44=$O$18,Настройки!$C$18,0)))))))))))))))))*Настройки!$F$2+IF(E44=$O$2,Настройки!$C$2,IF(E44=$O$3,Настройки!$C$3,IF(E44=$O$4,Настройки!$C$4,IF(E44=$O$5,Настройки!$C$5,IF(E44=$O$6,Настройки!$C$6,IF(E44=$O$7,Настройки!$C$7,IF(E44=$O$8,Настройки!$C$8,IF(E44=$O$9,Настройки!$C$9,IF(E44=$O$10,Настройки!$C$10,IF(E44=$O$11,Настройки!$C$11,IF(E44=$O$12,Настройки!$C$12,IF(E44=$O$13,Настройки!$C$13,IF(E44=$O$14,Настройки!$C$14,IF(E44=$O$15,Настройки!$C$15,IF(E44=$O$16,Настройки!$C$16,IF(E44=$O$17,Настройки!$C$17,IF(E44=$O$18,Настройки!$C$18,0))))))))))))))))),IF(E44=$O$2,Настройки!$C$2,IF(E44=$O$3,Настройки!$C$3,IF(E44=$O$4,Настройки!$C$4,IF(E44=$O$5,Настройки!$C$5,IF(E44=$O$6,Настройки!$C$6,IF(E44=$O$7,Настройки!$C$7,IF(E44=$O$8,Настройки!$C$8,IF(E44=$O$9,Настройки!$C$9,IF(E44=$O$10,Настройки!$C$10,IF(E44=$O$11,Настройки!$C$11,IF(E44=$O$12,Настройки!$C$12,IF(E44=$O$13,Настройки!$C$13,IF(E44=$O$14,Настройки!$C$14,IF(E44=$O$15,Настройки!$C$15,IF(E44=$O$16,Настройки!$C$16,IF(E44=$O$17,Настройки!$C$17,IF(E44=$O$18,Настройки!$C$18,0))))))))))))))))))))),2) -> 0 | K44: =IF(SUM($I$2:I44)-SUM($C$2:C44)<0,0,ROUND(SUM($I$2:I44)-SUM($C$2:C44),2)) -> 1.15 | L44: =IF(SUM($J$2:J44)-SUM($C$2:C44)<0,0,ROUND(SUM($J$2:J44)-SUM($C$2:C44),2)) -> 1.47
A45: Вт | B45: 8 | C45: =Настройки!$F$3 -> 0.1 | D45: 29 | E45: Т | F45: =COUNTIF($E$2:E45,"ЧЕМ") -> 12 | G45: Г | I45: =ROUND(IF(AND(M45=$O$22,H45=$O$21),0-Настройки!$F$4,IF('Расчет усталости'!M45='Расчет усталости'!$O$22,IF(E45=$O$2,Настройки!$C$2,IF(E45=$O$3,Настройки!$C$3,IF(E45=$O$4,Настройки!$C$4,IF(E45=$O$5,Настройки!$C$5,IF(E45=$O$6,Настройки!$C$6,IF(E45=$O$7,Настройки!$C$7,IF(E45=$O$8,Настройки!$C$8,IF(E45=$O$9,Настройки!$C$9,IF(E45=$O$10,Настройки!$C$10,IF(E45=$O$11,Настройки!$C$11,IF(E45=$O$12,Настройки!$C$12,IF(E45=$O$13,Настройки!$C$13,IF(E45=$O$14,Настройки!$C$14,IF(E45=$O$15,Настройки!$C$15,IF(E45=$O$16,Настройки!$C$16,IF(E45=$O$17,Настройки!$C$17,IF(E45=$O$18,Настройки!$C$18,0)))))))))))))))))-Настройки!$F$4,IF('Расчет усталости'!H45='Расчет усталости'!$O$21,0,IF(E45=$O$2,Настройки!$C$2,IF(E45=$O$3,Настройки!$C$3,IF(E45=$O$4,Настройки!$C$4,IF(E45=$O$5,Настройки!$C$5,IF(E45=$O$6,Настройки!$C$6,IF(E45=$O$7,Настройки!$C$7,IF(E45=$O$8,Настройки!$C$8,IF(E45=$O$9,Настройки!$C$9,IF(E45=$O$10,Настройки!$C$10,IF(E45=$O$11,Настройки!$C$11,IF(E45=$O$12,Настройки!$C$12,IF(E45=$O$13,Настройки!$C$13,IF(E45=$O$14,Настройки!$C$14,IF(E45=$O$15,Настройки!$C$15,IF(E45=$O$16,Настройки!$C$16,IF(E45=$O$17,Настройки!$C$17,IF(E45=$O$18,Настройки!$C$18,0)))))))))))))))))))),2) -> 0.15 | J45: =ROUND(IF(AND(M45=$O$22,H45=$O$21),0-Настройки!$F$4,IF('Расчет усталости'!M45='Расчет усталости'!$O$22,ROUND(IF(G45=$O$20,IF(E45=$O$2,Настройки!$C$2,IF(E45=$O$3,Настройки!$C$3,IF(E45=$O$4,Настройки!$C$4,IF(E45=$O$5,Настройки!$C$5,IF(E45=$O$6,Настройки!$C$6,IF(E45=$O$7,Настройки!$C$7,IF(E45=$O$8,Настройки!$C$8,IF(E45=$O$9,Настройки!$C$9,IF(E45=$O$10,Настройки!$C$10,IF(E45=$O$11,Настройки!$C$11,IF(E45=$O$12,Настройки!$C$12,IF(E45=$O$13,Настройки!$C$13,IF(E45=$O$14,Настройки!$C$14,IF(E45=$O$15,Настройки!$C$15,IF(E45=$O$16,Настройки!$C$16,IF(E45=$O$17,Настройки!$C$17,IF(E45=$O$18,Настройки!$C$18,0)))))))))))))))))*Настройки!$F$2+IF(E45=$O$2,Настройки!$C$2,IF(E45=$O$3,Настройки!$C$3,IF(E45=$O$4,Настройки!$C$4,IF(E45=$O$5,Настройки!$C$5,IF(E45=$O$6,Настройки!$C$6,IF(E45=$O$7,Настройки!$C$7,IF(E45=$O$8,Настройки!$C$8,IF(E45=$O$9,Настройки!$C$9,IF(E45=$O$10,Настройки!$C$10,IF(E45=$O$11,Настройки!$C$11,IF(E45=$O$12,Настройки!$C$12,IF(E45=$O$13,Настройки!$C$13,IF(E45=$O$14,Настройки!$C$14,IF(E45=$O$15,Настройки!$C$15,IF(E45=$O$16,Настройки!$C$16,IF(E45=$O$17,Настройки!$C$17,IF(E45=$O$18,Настройки!$C$18,0))))))))))))))))),IF(E45=$O$2,Настройки!$C$2,IF(E45=$O$3,Настройки!$C$3,IF(E45=$O$4,Настройки!$C$4,IF(E45=$O$5,Настройки!$C$5,IF(E45=$O$6,Настройки!$C$6,IF(E45=$O$7,Настройки!$C$7,IF(E45=$O$8,Настройки!$C$8,IF(E45=$O$9,Настройки!$C$9,IF(E45=$O$10,Настройки!$C$10,IF(E45=$O$11,Настройки!$C$11,IF(E45=$O$12,Настройки!$C$12,IF(E45=$O$13,Настройки!$C$13,IF(E45=$O$14,Настройки!$C$14,IF(E45=$O$15,Настройки!$C$15,IF(E45=$O$16,Настройки!$C$16,IF(E45=$O$17,Настройки!$C$17,IF(E45=$O$18,Настройки!$C$18,0)))))))))))))))))),2)-Настройки!$F$4,IF('Расчет усталости'!H45='Расчет усталости'!$O$21,0,IF(G45=$O$20,IF(E45=$O$2,Настройки!$C$2,IF(E45=$O$3,Настройки!$C$3,IF(E45=$O$4,Настройки!$C$4,IF(E45=$O$5,Настройки!$C$5,IF(E45=$O$6,Настройки!$C$6,IF(E45=$O$7,Настройки!$C$7,IF(E45=$O$8,Настройки!$C$8,IF(E45=$O$9,Настройки!$C$9,IF(E45=$O$10,Настройки!$C$10,IF(E45=$O$11,Настройки!$C$11,IF(E45=$O$12,Настройки!$C$12,IF(E45=$O$13,Настройки!$C$13,IF(E45=$O$14,Настройки!$C$14,IF(E45=$O$15,Настройки!$C$15,IF(E45=$O$16,Настройки!$C$16,IF(E45=$O$17,Настройки!$C$17,IF(E45=$O$18,Настройки!$C$18,0)))))))))))))))))*Настройки!$F$2+IF(E45=$O$2,Настройки!$C$2,IF(E45=$O$3,Настройки!$C$3,IF(E45=$O$4,Настройки!$C$4,IF(E45=$O$5,Настройки!$C$5,IF(E45=$O$6,Настройки!$C$6,IF(E45=$O$7,Настройки!$C$7,IF(E45=$O$8,Настройки!$C$8,IF(E45=$O$9,Настройки!$C$9,IF(E45=$O$10,Настройки!$C$10,IF(E45=$O$11,Настройки!$C$11,IF(E45=$O$12,Настройки!$C$12,IF(E45=$O$13,Настройки!$C$13,IF(E45=$O$14,Настройки!$C$14,IF(E45=$O$15,Настройки!$C$15,IF(E45=$O$16,Настройки!$C$16,IF(E45=$O$17,Настройки!$C$17,IF(E45=$O$18,Настройки!$C$18,0))))))))))))))))),IF(E45=$O$2,Настройки!$C$2,IF(E45=$O$3,Настройки!$C$3,IF(E45=$O$4,Настройки!$C$4,IF(E45=$O$5,Настройки!$C$5,IF(E45=$O$6,Настройки!$C$6,IF(E45=$O$7,Настройки!$C$7,IF(E45=$O$8,Настройки!$C$8,IF(E45=$O$9,Настройки!$C$9,IF(E45=$O$10,Настройки!$C$10,IF(E45=$O$11,Настройки!$C$11,IF(E45=$O$12,Настройки!$C$12,IF(E45=$O$13,Настройки!$C$13,IF(E45=$O$14,Настройки!$C$14,IF(E45=$O$15,Настройки!$C$15,IF(E45=$O$16,Настройки!$C$16,IF(E45=$O$17,Настройки!$C$17,IF(E45=$O$18,Настройки!$C$18,0))))))))))))))))))))),2) -> 0.17 | K45: =IF(SUM($I$2:I45)-SUM($C$2:C45)<0,0,ROUND(SUM($I$2:I45)-SUM($C$2:C45),2)) -> 1.2 | L45: =IF(SUM($J$2:J45)-SUM($C$2:C45)<0,0,ROUND(SUM($J$2:J45)-SUM($C$2:C45),2)) -> 1.54
A46: Ср | B46: 8 | C46: =Настройки!$F$3 -> 0.1 | D46: 30 | E46: Т | F46: =COUNTIF($E$2:E46,"ЧЕМ") -> 12 | G46: Г | I46: =ROUND(IF(AND(M46=$O$22,H46=$O$21),0-Настройки!$F$4,IF('Расчет усталости'!M46='Расчет усталости'!$O$22,IF(E46=$O$2,Настройки!$C$2,IF(E46=$O$3,Настройки!$C$3,IF(E46=$O$4,Настройки!$C$4,IF(E46=$O$5,Настройки!$C$5,IF(E46=$O$6,Настройки!$C$6,IF(E46=$O$7,Настройки!$C$7,IF(E46=$O$8,Настройки!$C$8,IF(E46=$O$9,Настройки!$C$9,IF(E46=$O$10,Настройки!$C$10,IF(E46=$O$11,Настройки!$C$11,IF(E46=$O$12,Настройки!$C$12,IF(E46=$O$13,Настройки!$C$13,IF(E46=$O$14,Настройки!$C$14,IF(E46=$O$15,Настройки!$C$15,IF(E46=$O$16,Настройки!$C$16,IF(E46=$O$17,Настройки!$C$17,IF(E46=$O$18,Настройки!$C$18,0)))))))))))))))))-Настройки!$F$4,IF('Расчет усталости'!H46='Расчет усталости'!$O$21,0,IF(E46=$O$2,Настройки!$C$2,IF(E46=$O$3,Настройки!$C$3,IF(E46=$O$4,Настройки!$C$4,IF(E46=$O$5,Настройки!$C$5,IF(E46=$O$6,Настройки!$C$6,IF(E46=$O$7,Настройки!$C$7,IF(E46=$O$8,Настройки!$C$8,IF(E46=$O$9,Настройки!$C$9,IF(E46=$O$10,Настройки!$C$10,IF(E46=$O$11,Настройки!$C$11,IF(E46=$O$12,Настройки!$C$12,IF(E46=$O$13,Настройки!$C$13,IF(E46=$O$14,Настройки!$C$14,IF(E46=$O$15,Настройки!$C$15,IF(E46=$O$16,Настройки!$C$16,IF(E46=$O$17,Настройки!$C$17,IF(E46=$O$18,Настройки!$C$18,0)))))))))))))))))))),2) -> 0.15 | J46: =ROUND(IF(AND(M46=$O$22,H46=$O$21),0-Настройки!$F$4,IF('Расчет усталости'!M46='Расчет усталости'!$O$22,ROUND(IF(G46=$O$20,IF(E46=$O$2,Настройки!$C$2,IF(E46=$O$3,Настройки!$C$3,IF(E46=$O$4,Настройки!$C$4,IF(E46=$O$5,Настройки!$C$5,IF(E46=$O$6,Настройки!$C$6,IF(E46=$O$7,Настройки!$C$7,IF(E46=$O$8,Настройки!$C$8,IF(E46=$O$9,Настройки!$C$9,IF(E46=$O$10,Настройки!$C$10,IF(E46=$O$11,Настройки!$C$11,IF(E46=$O$12,Настройки!$C$12,IF(E46=$O$13,Настройки!$C$13,IF(E46=$O$14,Настройки!$C$14,IF(E46=$O$15,Настройки!$C$15,IF(E46=$O$16,Настройки!$C$16,IF(E46=$O$17,Настройки!$C$17,IF(E46=$O$18,Настройки!$C$18,0)))))))))))))))))*Настройки!$F$2+IF(E46=$O$2,Настройки!$C$2,IF(E46=$O$3,Настройки!$C$3,IF(E46=$O$4,Настройки!$C$4,IF(E46=$O$5,Настройки!$C$5,IF(E46=$O$6,Настройки!$C$6,IF(E46=$O$7,Настройки!$C$7,IF(E46=$O$8,Настройки!$C$8,IF(E46=$O$9,Настройки!$C$9,IF(E46=$O$10,Настройки!$C$10,IF(E46=$O$11,Настройки!$C$11,IF(E46=$O$12,Настройки!$C$12,IF(E46=$O$13,Настройки!$C$13,IF(E46=$O$14,Настройки!$C$14,IF(E46=$O$15,Настройки!$C$15,IF(E46=$O$16,Настройки!$C$16,IF(E46=$O$17,Настройки!$C$17,IF(E46=$O$18,Настройки!$C$18,0))))))))))))))))),IF(E46=$O$2,Настройки!$C$2,IF(E46=$O$3,Настройки!$C$3,IF(E46=$O$4,Настройки!$C$4,IF(E46=$O$5,Настройки!$C$5,IF(E46=$O$6,Настройки!$C$6,IF(E46=$O$7,Настройки!$C$7,IF(E46=$O$8,Настройки!$C$8,IF(E46=$O$9,Настройки!$C$9,IF(E46=$O$10,Настройки!$C$10,IF(E46=$O$11,Настройки!$C$11,IF(E46=$O$12,Настройки!$C$12,IF(E46=$O$13,Настройки!$C$13,IF(E46=$O$14,Настройки!$C$14,IF(E46=$O$15,Настройки!$C$15,IF(E46=$O$16,Настройки!$C$16,IF(E46=$O$17,Настройки!$C$17,IF(E46=$O$18,Настройки!$C$18,0)))))))))))))))))),2)-Настройки!$F$4,IF('Расчет усталости'!H46='Расчет усталости'!$O$21,0,IF(G46=$O$20,IF(E46=$O$2,Настройки!$C$2,IF(E46=$O$3,Настройки!$C$3,IF(E46=$O$4,Настройки!$C$4,IF(E46=$O$5,Настройки!$C$5,IF(E46=$O$6,Настройки!$C$6,IF(E46=$O$7,Настройки!$C$7,IF(E46=$O$8,Настройки!$C$8,IF(E46=$O$9,Настройки!$C$9,IF(E46=$O$10,Настройки!$C$10,IF(E46=$O$11,Настройки!$C$11,IF(E46=$O$12,Настройки!$C$12,IF(E46=$O$13,Настройки!$C$13,IF(E46=$O$14,Настройки!$C$14,IF(E46=$O$15,Настройки!$C$15,IF(E46=$O$16,Настройки!$C$16,IF(E46=$O$17,Настройки!$C$17,IF(E46=$O$18,Настройки!$C$18,0)))))))))))))))))*Настройки!$F$2+IF(E46=$O$2,Настройки!$C$2,IF(E46=$O$3,Настройки!$C$3,IF(E46=$O$4,Настройки!$C$4,IF(E46=$O$5,Настройки!$C$5,IF(E46=$O$6,Настройки!$C$6,IF(E46=$O$7,Настройки!$C$7,IF(E46=$O$8,Настройки!$C$8,IF(E46=$O$9,Настройки!$C$9,IF(E46=$O$10,Настройки!$C$10,IF(E46=$O$11,Настройки!$C$11,IF(E46=$O$12,Настройки!$C$12,IF(E46=$O$13,Настройки!$C$13,IF(E46=$O$14,Настройки!$C$14,IF(E46=$O$15,Настройки!$C$15,IF(E46=$O$16,Настройки!$C$16,IF(E46=$O$17,Настройки!$C$17,IF(E46=$O$18,Настройки!$C$18,0))))))))))))))))),IF(E46=$O$2,Настройки!$C$2,IF(E46=$O$3,Настройки!$C$3,IF(E46=$O$4,Настройки!$C$4,IF(E46=$O$5,Настройки!$C$5,IF(E46=$O$6,Настройки!$C$6,IF(E46=$O$7,Настройки!$C$7,IF(E46=$O$8,Настройки!$C$8,IF(E46=$O$9,Настройки!$C$9,IF(E46=$O$10,Настройки!$C$10,IF(E46=$O$11,Настройки!$C$11,IF(E46=$O$12,Настройки!$C$12,IF(E46=$O$13,Настройки!$C$13,IF(E46=$O$14,Настройки!$C$14,IF(E46=$O$15,Настройки!$C$15,IF(E46=$O$16,Настройки!$C$16,IF(E46=$O$17,Настройки!$C$17,IF(E46=$O$18,Настройки!$C$18,0))))))))))))))))))))),2) -> 0.17 | K46: =IF(SUM($I$2:I46)-SUM($C$2:C46)<0,0,ROUND(SUM($I$2:I46)-SUM($C$2:C46),2)) -> 1.25 | L46: =IF(SUM($J$2:J46)-SUM($C$2:C46)<0,0,ROUND(SUM($J$2:J46)-SUM($C$2:C46),2)) -> 1.61
A47: Чт | B47: 8 | C47: =Настройки!$F$3 -> 0.1 | D47: 31 | E47: КТ | F47: =COUNTIF($E$2:E47,"ЧЕМ") -> 12 | G47: Г | I47: =ROUND(IF(AND(M47=$O$22,H47=$O$21),0-Настройки!$F$4,IF('Расчет усталости'!M47='Расчет усталости'!$O$22,IF(E47=$O$2,Настройки!$C$2,IF(E47=$O$3,Настройки!$C$3,IF(E47=$O$4,Настройки!$C$4,IF(E47=$O$5,Настройки!$C$5,IF(E47=$O$6,Настройки!$C$6,IF(E47=$O$7,Настройки!$C$7,IF(E47=$O$8,Настройки!$C$8,IF(E47=$O$9,Настройки!$C$9,IF(E47=$O$10,Настройки!$C$10,IF(E47=$O$11,Настройки!$C$11,IF(E47=$O$12,Настройки!$C$12,IF(E47=$O$13,Настройки!$C$13,IF(E47=$O$14,Настройки!$C$14,IF(E47=$O$15,Настройки!$C$15,IF(E47=$O$16,Настройки!$C$16,IF(E47=$O$17,Настройки!$C$17,IF(E47=$O$18,Настройки!$C$18,0)))))))))))))))))-Настройки!$F$4,IF('Расчет усталости'!H47='Расчет усталости'!$O$21,0,IF(E47=$O$2,Настройки!$C$2,IF(E47=$O$3,Настройки!$C$3,IF(E47=$O$4,Настройки!$C$4,IF(E47=$O$5,Настройки!$C$5,IF(E47=$O$6,Настройки!$C$6,IF(E47=$O$7,Настройки!$C$7,IF(E47=$O$8,Настройки!$C$8,IF(E47=$O$9,Настройки!$C$9,IF(E47=$O$10,Настройки!$C$10,IF(E47=$O$11,Настройки!$C$11,IF(E47=$O$12,Настройки!$C$12,IF(E47=$O$13,Настройки!$C$13,IF(E47=$O$14,Настройки!$C$14,IF(E47=$O$15,Настройки!$C$15,IF(E47=$O$16,Настройки!$C$16,IF(E47=$O$17,Настройки!$C$17,IF(E47=$O$18,Настройки!$C$18,0)))))))))))))))))))),2) -> 0.15 | J47: =ROUND(IF(AND(M47=$O$22,H47=$O$21),0-Настройки!$F$4,IF('Расчет усталости'!M47='Расчет усталости'!$O$22,ROUND(IF(G47=$O$20,IF(E47=$O$2,Настройки!$C$2,IF(E47=$O$3,Настройки!$C$3,IF(E47=$O$4,Настройки!$C$4,IF(E47=$O$5,Настройки!$C$5,IF(E47=$O$6,Настройки!$C$6,IF(E47=$O$7,Настройки!$C$7,IF(E47=$O$8,Настройки!$C$8,IF(E47=$O$9,Настройки!$C$9,IF(E47=$O$10,Настройки!$C$10,IF(E47=$O$11,Настройки!$C$11,IF(E47=$O$12,Настройки!$C$12,IF(E47=$O$13,Настройки!$C$13,IF(E47=$O$14,Настройки!$C$14,IF(E47=$O$15,Настройки!$C$15,IF(E47=$O$16,Настройки!$C$16,IF(E47=$O$17,Настройки!$C$17,IF(E47=$O$18,Настройки!$C$18,0)))))))))))))))))*Настройки!$F$2+IF(E47=$O$2,Настройки!$C$2,IF(E47=$O$3,Настройки!$C$3,IF(E47=$O$4,Настройки!$C$4,IF(E47=$O$5,Настройки!$C$5,IF(E47=$O$6,Настройки!$C$6,IF(E47=$O$7,Настройки!$C$7,IF(E47=$O$8,Настройки!$C$8,IF(E47=$O$9,Настройки!$C$9,IF(E47=$O$10,Настройки!$C$10,IF(E47=$O$11,Настройки!$C$11,IF(E47=$O$12,Настройки!$C$12,IF(E47=$O$13,Настройки!$C$13,IF(E47=$O$14,Настройки!$C$14,IF(E47=$O$15,Настройки!$C$15,IF(E47=$O$16,Настройки!$C$16,IF(E47=$O$17,Настройки!$C$17,IF(E47=$O$18,Настройки!$C$18,0))))))))))))))))),IF(E47=$O$2,Настройки!$C$2,IF(E47=$O$3,Настройки!$C$3,IF(E47=$O$4,Настройки!$C$4,IF(E47=$O$5,Настройки!$C$5,IF(E47=$O$6,Настройки!$C$6,IF(E47=$O$7,Настройки!$C$7,IF(E47=$O$8,Настройки!$C$8,IF(E47=$O$9,Настройки!$C$9,IF(E47=$O$10,Настройки!$C$10,IF(E47=$O$11,Настройки!$C$11,IF(E47=$O$12,Настройки!$C$12,IF(E47=$O$13,Настройки!$C$13,IF(E47=$O$14,Настройки!$C$14,IF(E47=$O$15,Настройки!$C$15,IF(E47=$O$16,Настройки!$C$16,IF(E47=$O$17,Настройки!$C$17,IF(E47=$O$18,Настройки!$C$18,0)))))))))))))))))),2)-Настройки!$F$4,IF('Расчет усталости'!H47='Расчет усталости'!$O$21,0,IF(G47=$O$20,IF(E47=$O$2,Настройки!$C$2,IF(E47=$O$3,Настройки!$C$3,IF(E47=$O$4,Настройки!$C$4,IF(E47=$O$5,Настройки!$C$5,IF(E47=$O$6,Настройки!$C$6,IF(E47=$O$7,Настройки!$C$7,IF(E47=$O$8,Настройки!$C$8,IF(E47=$O$9,Настройки!$C$9,IF(E47=$O$10,Настройки!$C$10,IF(E47=$O$11,Настройки!$C$11,IF(E47=$O$12,Настройки!$C$12,IF(E47=$O$13,Настройки!$C$13,IF(E47=$O$14,Настройки!$C$14,IF(E47=$O$15,Настройки!$C$15,IF(E47=$O$16,Настройки!$C$16,IF(E47=$O$17,Настройки!$C$17,IF(E47=$O$18,Настройки!$C$18,0)))))))))))))))))*Настройки!$F$2+IF(E47=$O$2,Настройки!$C$2,IF(E47=$O$3,Настройки!$C$3,IF(E47=$O$4,Настройки!$C$4,IF(E47=$O$5,Настройки!$C$5,IF(E47=$O$6,Настройки!$C$6,IF(E47=$O$7,Настройки!$C$7,IF(E47=$O$8,Настройки!$C$8,IF(E47=$O$9,Настройки!$C$9,IF(E47=$O$10,Настройки!$C$10,IF(E47=$O$11,Настройки!$C$11,IF(E47=$O$12,Настройки!$C$12,IF(E47=$O$13,Настройки!$C$13,IF(E47=$O$14,Настройки!$C$14,IF(E47=$O$15,Настройки!$C$15,IF(E47=$O$16,Настройки!$C$16,IF(E47=$O$17,Настройки!$C$17,IF(E47=$O$18,Настройки!$C$18,0))))))))))))))))),IF(E47=$O$2,Настройки!$C$2,IF(E47=$O$3,Настройки!$C$3,IF(E47=$O$4,Настройки!$C$4,IF(E47=$O$5,Настройки!$C$5,IF(E47=$O$6,Настройки!$C$6,IF(E47=$O$7,Настройки!$C$7,IF(E47=$O$8,Настройки!$C$8,IF(E47=$O$9,Настройки!$C$9,IF(E47=$O$10,Настройки!$C$10,IF(E47=$O$11,Настройки!$C$11,IF(E47=$O$12,Настройки!$C$12,IF(E47=$O$13,Настройки!$C$13,IF(E47=$O$14,Настройки!$C$14,IF(E47=$O$15,Настройки!$C$15,IF(E47=$O$16,Настройки!$C$16,IF(E47=$O$17,Настройки!$C$17,IF(E47=$O$18,Настройки!$C$18,0))))))))))))))))))))),2) -> 0.17 | K47: =IF(SUM($I$2:I47)-SUM($C$2:C47)<0,0,ROUND(SUM($I$2:I47)-SUM($C$2:C47),2)) -> 1.3 | L47: =IF(SUM($J$2:J47)-SUM($C$2:C47)<0,0,ROUND(SUM($J$2:J47)-SUM($C$2:C47),2)) -> 1.68
A48: Пт | B48: 8 | C48: =Настройки!$F$3 -> 0.1 | F48: =COUNTIF($E$2:E48,"ЧЕМ") -> 12 | I48: =ROUND(IF(AND(M48=$O$22,H48=$O$21),0-Настройки!$F$4,IF('Расчет усталости'!M48='Расчет усталости'!$O$22,IF(E48=$O$2,Настройки!$C$2,IF(E48=$O$3,Настройки!$C$3,IF(E48=$O$4,Настройки!$C$4,IF(E48=$O$5,Настройки!$C$5,IF(E48=$O$6,Настройки!$C$6,IF(E48=$O$7,Настройки!$C$7,IF(E48=$O$8,Настройки!$C$8,IF(E48=$O$9,Настройки!$C$9,IF(E48=$O$10,Настройки!$C$10,IF(E48=$O$11,Настройки!$C$11,IF(E48=$O$12,Настройки!$C$12,IF(E48=$O$13,Настройки!$C$13,IF(E48=$O$14,Настройки!$C$14,IF(E48=$O$15,Настройки!$C$15,IF(E48=$O$16,Настройки!$C$16,IF(E48=$O$17,Настройки!$C$17,IF(E48=$O$18,Настройки!$C$18,0)))))))))))))))))-Настройки!$F$4,IF('Расчет усталости'!H48='Расчет усталости'!$O$21,0,IF(E48=$O$2,Настройки!$C$2,IF(E48=$O$3,Настройки!$C$3,IF(E48=$O$4,Настройки!$C$4,IF(E48=$O$5,Настройки!$C$5,IF(E48=$O$6,Настройки!$C$6,IF(E48=$O$7,Настройки!$C$7,IF(E48=$O$8,Настройки!$C$8,IF(E48=$O$9,Настройки!$C$9,IF(E48=$O$10,Настройки!$C$10,IF(E48=$O$11,Настройки!$C$11,IF(E48=$O$12,Настройки!$C$12,IF(E48=$O$13,Настройки!$C$13,IF(E48=$O$14,Настройки!$C$14,IF(E48=$O$15,Настройки!$C$15,IF(E48=$O$16,Настройки!$C$16,IF(E48=$O$17,Настройки!$C$17,IF(E48=$O$18,Настройки!$C$18,0)))))))))))))))))))),2) -> 0 | J48: =ROUND(IF(AND(M48=$O$22,H48=$O$21),0-Настройки!$F$4,IF('Расчет усталости'!M48='Расчет усталости'!$O$22,ROUND(IF(G48=$O$20,IF(E48=$O$2,Настройки!$C$2,IF(E48=$O$3,Настройки!$C$3,IF(E48=$O$4,Настройки!$C$4,IF(E48=$O$5,Настройки!$C$5,IF(E48=$O$6,Настройки!$C$6,IF(E48=$O$7,Настройки!$C$7,IF(E48=$O$8,Настройки!$C$8,IF(E48=$O$9,Настройки!$C$9,IF(E48=$O$10,Настройки!$C$10,IF(E48=$O$11,Настройки!$C$11,IF(E48=$O$12,Настройки!$C$12,IF(E48=$O$13,Настройки!$C$13,IF(E48=$O$14,Настройки!$C$14,IF(E48=$O$15,Настройки!$C$15,IF(E48=$O$16,Настройки!$C$16,IF(E48=$O$17,Настройки!$C$17,IF(E48=$O$18,Настройки!$C$18,0)))))))))))))))))*Настройки!$F$2+IF(E48=$O$2,Настройки!$C$2,IF(E48=$O$3,Настройки!$C$3,IF(E48=$O$4,Настройки!$C$4,IF(E48=$O$5,Настройки!$C$5,IF(E48=$O$6,Настройки!$C$6,IF(E48=$O$7,Настройки!$C$7,IF(E48=$O$8,Настройки!$C$8,IF(E48=$O$9,Настройки!$C$9,IF(E48=$O$10,Настройки!$C$10,IF(E48=$O$11,Настройки!$C$11,IF(E48=$O$12,Настройки!$C$12,IF(E48=$O$13,Настройки!$C$13,IF(E48=$O$14,Настройки!$C$14,IF(E48=$O$15,Настройки!$C$15,IF(E48=$O$16,Настройки!$C$16,IF(E48=$O$17,Настройки!$C$17,IF(E48=$O$18,Настройки!$C$18,0))))))))))))))))),IF(E48=$O$2,Настройки!$C$2,IF(E48=$O$3,Настройки!$C$3,IF(E48=$O$4,Настройки!$C$4,IF(E48=$O$5,Настройки!$C$5,IF(E48=$O$6,Настройки!$C$6,IF(E48=$O$7,Настройки!$C$7,IF(E48=$O$8,Настройки!$C$8,IF(E48=$O$9,Настройки!$C$9,IF(E48=$O$10,Настройки!$C$10,IF(E48=$O$11,Настройки!$C$11,IF(E48=$O$12,Настройки!$C$12,IF(E48=$O$13,Настройки!$C$13,IF(E48=$O$14,Настройки!$C$14,IF(E48=$O$15,Настройки!$C$15,IF(E48=$O$16,Настройки!$C$16,IF(E48=$O$17,Настройки!$C$17,IF(E48=$O$18,Настройки!$C$18,0)))))))))))))))))),2)-Настройки!$F$4,IF('Расчет усталости'!H48='Расчет усталости'!$O$21,0,IF(G48=$O$20,IF(E48=$O$2,Настройки!$C$2,IF(E48=$O$3,Настройки!$C$3,IF(E48=$O$4,Настройки!$C$4,IF(E48=$O$5,Настройки!$C$5,IF(E48=$O$6,Настройки!$C$6,IF(E48=$O$7,Настройки!$C$7,IF(E48=$O$8,Настройки!$C$8,IF(E48=$O$9,Настройки!$C$9,IF(E48=$O$10,Настройки!$C$10,IF(E48=$O$11,Настройки!$C$11,IF(E48=$O$12,Настройки!$C$12,IF(E48=$O$13,Настройки!$C$13,IF(E48=$O$14,Настройки!$C$14,IF(E48=$O$15,Настройки!$C$15,IF(E48=$O$16,Настройки!$C$16,IF(E48=$O$17,Настройки!$C$17,IF(E48=$O$18,Настройки!$C$18,0)))))))))))))))))*Настройки!$F$2+IF(E48=$O$2,Настройки!$C$2,IF(E48=$O$3,Настройки!$C$3,IF(E48=$O$4,Настройки!$C$4,IF(E48=$O$5,Настройки!$C$5,IF(E48=$O$6,Настройки!$C$6,IF(E48=$O$7,Настройки!$C$7,IF(E48=$O$8,Настройки!$C$8,IF(E48=$O$9,Настройки!$C$9,IF(E48=$O$10,Настройки!$C$10,IF(E48=$O$11,Настройки!$C$11,IF(E48=$O$12,Настройки!$C$12,IF(E48=$O$13,Настройки!$C$13,IF(E48=$O$14,Настройки!$C$14,IF(E48=$O$15,Настройки!$C$15,IF(E48=$O$16,Настройки!$C$16,IF(E48=$O$17,Настройки!$C$17,IF(E48=$O$18,Настройки!$C$18,0))))))))))))))))),IF(E48=$O$2,Настройки!$C$2,IF(E48=$O$3,Настройки!$C$3,IF(E48=$O$4,Настройки!$C$4,IF(E48=$O$5,Настройки!$C$5,IF(E48=$O$6,Настройки!$C$6,IF(E48=$O$7,Настройки!$C$7,IF(E48=$O$8,Настройки!$C$8,IF(E48=$O$9,Настройки!$C$9,IF(E48=$O$10,Настройки!$C$10,IF(E48=$O$11,Настройки!$C$11,IF(E48=$O$12,Настройки!$C$12,IF(E48=$O$13,Настройки!$C$13,IF(E48=$O$14,Настройки!$C$14,IF(E48=$O$15,Настройки!$C$15,IF(E48=$O$16,Настройки!$C$16,IF(E48=$O$17,Настройки!$C$17,IF(E48=$O$18,Настройки!$C$18,0))))))))))))))))))))),2) -> 0 | K48: =IF(SUM($I$2:I48)-SUM($C$2:C48)<0,0,ROUND(SUM($I$2:I48)-SUM($C$2:C48),2)) -> 1.2 | L48: =IF(SUM($J$2:J48)-SUM($C$2:C48)<0,0,ROUND(SUM($J$2:J48)-SUM($C$2:C48),2)) -> 1.58
A49: Сб | B49: 8 | C49: =Настройки!$F$3 -> 0.1 | D49: 32 | E49: ЧЕМ | F49: =COUNTIF($E$2:E49,"ЧЕМ") -> 13 | G49: Г | I49: =ROUND(IF(AND(M49=$O$22,H49=$O$21),0-Настройки!$F$4,IF('Расчет усталости'!M49='Расчет усталости'!$O$22,IF(E49=$O$2,Настройки!$C$2,IF(E49=$O$3,Настройки!$C$3,IF(E49=$O$4,Настройки!$C$4,IF(E49=$O$5,Настройки!$C$5,IF(E49=$O$6,Настройки!$C$6,IF(E49=$O$7,Настройки!$C$7,IF(E49=$O$8,Настройки!$C$8,IF(E49=$O$9,Настройки!$C$9,IF(E49=$O$10,Настройки!$C$10,IF(E49=$O$11,Настройки!$C$11,IF(E49=$O$12,Настройки!$C$12,IF(E49=$O$13,Настройки!$C$13,IF(E49=$O$14,Настройки!$C$14,IF(E49=$O$15,Настройки!$C$15,IF(E49=$O$16,Настройки!$C$16,IF(E49=$O$17,Настройки!$C$17,IF(E49=$O$18,Настройки!$C$18,0)))))))))))))))))-Настройки!$F$4,IF('Расчет усталости'!H49='Расчет усталости'!$O$21,0,IF(E49=$O$2,Настройки!$C$2,IF(E49=$O$3,Настройки!$C$3,IF(E49=$O$4,Настройки!$C$4,IF(E49=$O$5,Настройки!$C$5,IF(E49=$O$6,Настройки!$C$6,IF(E49=$O$7,Настройки!$C$7,IF(E49=$O$8,Настройки!$C$8,IF(E49=$O$9,Настройки!$C$9,IF(E49=$O$10,Настройки!$C$10,IF(E49=$O$11,Настройки!$C$11,IF(E49=$O$12,Настройки!$C$12,IF(E49=$O$13,Настройки!$C$13,IF(E49=$O$14,Настройки!$C$14,IF(E49=$O$15,Настройки!$C$15,IF(E49=$O$16,Настройки!$C$16,IF(E49=$O$17,Настройки!$C$17,IF(E49=$O$18,Настройки!$C$18,0)))))))))))))))))))),2) -> 0.3 | J49: =ROUND(IF(AND(M49=$O$22,H49=$O$21),0-Настройки!$F$4,IF('Расчет усталости'!M49='Расчет усталости'!$O$22,ROUND(IF(G49=$O$20,IF(E49=$O$2,Настройки!$C$2,IF(E49=$O$3,Настройки!$C$3,IF(E49=$O$4,Настройки!$C$4,IF(E49=$O$5,Настройки!$C$5,IF(E49=$O$6,Настройки!$C$6,IF(E49=$O$7,Настройки!$C$7,IF(E49=$O$8,Настройки!$C$8,IF(E49=$O$9,Настройки!$C$9,IF(E49=$O$10,Настройки!$C$10,IF(E49=$O$11,Настройки!$C$11,IF(E49=$O$12,Настройки!$C$12,IF(E49=$O$13,Настройки!$C$13,IF(E49=$O$14,Настройки!$C$14,IF(E49=$O$15,Настройки!$C$15,IF(E49=$O$16,Настройки!$C$16,IF(E49=$O$17,Настройки!$C$17,IF(E49=$O$18,Настройки!$C$18,0)))))))))))))))))*Настройки!$F$2+IF(E49=$O$2,Настройки!$C$2,IF(E49=$O$3,Настройки!$C$3,IF(E49=$O$4,Настройки!$C$4,IF(E49=$O$5,Настройки!$C$5,IF(E49=$O$6,Настройки!$C$6,IF(E49=$O$7,Настройки!$C$7,IF(E49=$O$8,Настройки!$C$8,IF(E49=$O$9,Настройки!$C$9,IF(E49=$O$10,Настройки!$C$10,IF(E49=$O$11,Настройки!$C$11,IF(E49=$O$12,Настройки!$C$12,IF(E49=$O$13,Настройки!$C$13,IF(E49=$O$14,Настройки!$C$14,IF(E49=$O$15,Настройки!$C$15,IF(E49=$O$16,Настройки!$C$16,IF(E49=$O$17,Настройки!$C$17,IF(E49=$O$18,Настройки!$C$18,0))))))))))))))))),IF(E49=$O$2,Настройки!$C$2,IF(E49=$O$3,Настройки!$C$3,IF(E49=$O$4,Настройки!$C$4,IF(E49=$O$5,Настройки!$C$5,IF(E49=$O$6,Настройки!$C$6,IF(E49=$O$7,Настройки!$C$7,IF(E49=$O$8,Настройки!$C$8,IF(E49=$O$9,Настройки!$C$9,IF(E49=$O$10,Настройки!$C$10,IF(E49=$O$11,Настройки!$C$11,IF(E49=$O$12,Настройки!$C$12,IF(E49=$O$13,Настройки!$C$13,IF(E49=$O$14,Настройки!$C$14,IF(E49=$O$15,Настройки!$C$15,IF(E49=$O$16,Настройки!$C$16,IF(E49=$O$17,Настройки!$C$17,IF(E49=$O$18,Настройки!$C$18,0)))))))))))))))))),2)-Настройки!$F$4,IF('Расчет усталости'!H49='Расчет усталости'!$O$21,0,IF(G49=$O$20,IF(E49=$O$2,Настройки!$C$2,IF(E49=$O$3,Настройки!$C$3,IF(E49=$O$4,Настройки!$C$4,IF(E49=$O$5,Настройки!$C$5,IF(E49=$O$6,Настройки!$C$6,IF(E49=$O$7,Настройки!$C$7,IF(E49=$O$8,Настройки!$C$8,IF(E49=$O$9,Настройки!$C$9,IF(E49=$O$10,Настройки!$C$10,IF(E49=$O$11,Настройки!$C$11,IF(E49=$O$12,Настройки!$C$12,IF(E49=$O$13,Настройки!$C$13,IF(E49=$O$14,Настройки!$C$14,IF(E49=$O$15,Настройки!$C$15,IF(E49=$O$16,Настройки!$C$16,IF(E49=$O$17,Настройки!$C$17,IF(E49=$O$18,Настройки!$C$18,0)))))))))))))))))*Настройки!$F$2+IF(E49=$O$2,Настройки!$C$2,IF(E49=$O$3,Настройки!$C$3,IF(E49=$O$4,Настройки!$C$4,IF(E49=$O$5,Настройки!$C$5,IF(E49=$O$6,Настройки!$C$6,IF(E49=$O$7,Настройки!$C$7,IF(E49=$O$8,Настройки!$C$8,IF(E49=$O$9,Настройки!$C$9,IF(E49=$O$10,Настройки!$C$10,IF(E49=$O$11,Настройки!$C$11,IF(E49=$O$12,Настройки!$C$12,IF(E49=$O$13,Настройки!$C$13,IF(E49=$O$14,Настройки!$C$14,IF(E49=$O$15,Настройки!$C$15,IF(E49=$O$16,Настройки!$C$16,IF(E49=$O$17,Настройки!$C$17,IF(E49=$O$18,Настройки!$C$18,0))))))))))))))))),IF(E49=$O$2,Настройки!$C$2,IF(E49=$O$3,Настройки!$C$3,IF(E49=$O$4,Настройки!$C$4,IF(E49=$O$5,Настройки!$C$5,IF(E49=$O$6,Настройки!$C$6,IF(E49=$O$7,Настройки!$C$7,IF(E49=$O$8,Настройки!$C$8,IF(E49=$O$9,Настройки!$C$9,IF(E49=$O$10,Настройки!$C$10,IF(E49=$O$11,Настройки!$C$11,IF(E49=$O$12,Настройки!$C$12,IF(E49=$O$13,Настройки!$C$13,IF(E49=$O$14,Настройки!$C$14,IF(E49=$O$15,Настройки!$C$15,IF(E49=$O$16,Настройки!$C$16,IF(E49=$O$17,Настройки!$C$17,IF(E49=$O$18,Настройки!$C$18,0))))))))))))))))))))),2) -> 0.33 | K49: =IF(SUM($I$2:I49)-SUM($C$2:C49)<0,0,ROUND(SUM($I$2:I49)-SUM($C$2:C49),2)) -> 1.4 | L49: =IF(SUM($J$2:J49)-SUM($C$2:C49)<0,0,ROUND(SUM($J$2:J49)-SUM($C$2:C49),2)) -> 1.81
A50: Пн | B50: 9 | C50: =Настройки!$F$3 -> 0.1 | F50: =COUNTIF($E$2:E50,"ЧЕМ") -> 13 | I50: =ROUND(IF(AND(M50=$O$22,H50=$O$21),0-Настройки!$F$4,IF('Расчет усталости'!M50='Расчет усталости'!$O$22,IF(E50=$O$2,Настройки!$C$2,IF(E50=$O$3,Настройки!$C$3,IF(E50=$O$4,Настройки!$C$4,IF(E50=$O$5,Настройки!$C$5,IF(E50=$O$6,Настройки!$C$6,IF(E50=$O$7,Настройки!$C$7,IF(E50=$O$8,Настройки!$C$8,IF(E50=$O$9,Настройки!$C$9,IF(E50=$O$10,Настройки!$C$10,IF(E50=$O$11,Настройки!$C$11,IF(E50=$O$12,Настройки!$C$12,IF(E50=$O$13,Настройки!$C$13,IF(E50=$O$14,Настройки!$C$14,IF(E50=$O$15,Настройки!$C$15,IF(E50=$O$16,Настройки!$C$16,IF(E50=$O$17,Настройки!$C$17,IF(E50=$O$18,Настройки!$C$18,0)))))))))))))))))-Настройки!$F$4,IF('Расчет усталости'!H50='Расчет усталости'!$O$21,0,IF(E50=$O$2,Настройки!$C$2,IF(E50=$O$3,Настройки!$C$3,IF(E50=$O$4,Настройки!$C$4,IF(E50=$O$5,Настройки!$C$5,IF(E50=$O$6,Настройки!$C$6,IF(E50=$O$7,Настройки!$C$7,IF(E50=$O$8,Настройки!$C$8,IF(E50=$O$9,Настройки!$C$9,IF(E50=$O$10,Настройки!$C$10,IF(E50=$O$11,Настройки!$C$11,IF(E50=$O$12,Настройки!$C$12,IF(E50=$O$13,Настройки!$C$13,IF(E50=$O$14,Настройки!$C$14,IF(E50=$O$15,Настройки!$C$15,IF(E50=$O$16,Настройки!$C$16,IF(E50=$O$17,Настройки!$C$17,IF(E50=$O$18,Настройки!$C$18,0)))))))))))))))))))),2) -> -0.25 | J50: =ROUND(IF(AND(M50=$O$22,H50=$O$21),0-Настройки!$F$4,IF('Расчет усталости'!M50='Расчет усталости'!$O$22,ROUND(IF(G50=$O$20,IF(E50=$O$2,Настройки!$C$2,IF(E50=$O$3,Настройки!$C$3,IF(E50=$O$4,Настройки!$C$4,IF(E50=$O$5,Настройки!$C$5,IF(E50=$O$6,Настройки!$C$6,IF(E50=$O$7,Настройки!$C$7,IF(E50=$O$8,Настройки!$C$8,IF(E50=$O$9,Настройки!$C$9,IF(E50=$O$10,Настройки!$C$10,IF(E50=$O$11,Настройки!$C$11,IF(E50=$O$12,Настройки!$C$12,IF(E50=$O$13,Настройки!$C$13,IF(E50=$O$14,Настройки!$C$14,IF(E50=$O$15,Настройки!$C$15,IF(E50=$O$16,Настройки!$C$16,IF(E50=$O$17,Настройки!$C$17,IF(E50=$O$18,Настройки!$C$18,0)))))))))))))))))*Настройки!$F$2+IF(E50=$O$2,Настройки!$C$2,IF(E50=$O$3,Настройки!$C$3,IF(E50=$O$4,Настройки!$C$4,IF(E50=$O$5,Настройки!$C$5,IF(E50=$O$6,Настройки!$C$6,IF(E50=$O$7,Настройки!$C$7,IF(E50=$O$8,Настройки!$C$8,IF(E50=$O$9,Настройки!$C$9,IF(E50=$O$10,Настройки!$C$10,IF(E50=$O$11,Настройки!$C$11,IF(E50=$O$12,Настройки!$C$12,IF(E50=$O$13,Настройки!$C$13,IF(E50=$O$14,Настройки!$C$14,IF(E50=$O$15,Настройки!$C$15,IF(E50=$O$16,Настройки!$C$16,IF(E50=$O$17,Настройки!$C$17,IF(E50=$O$18,Настройки!$C$18,0))))))))))))))))),IF(E50=$O$2,Настройки!$C$2,IF(E50=$O$3,Настройки!$C$3,IF(E50=$O$4,Настройки!$C$4,IF(E50=$O$5,Настройки!$C$5,IF(E50=$O$6,Настройки!$C$6,IF(E50=$O$7,Настройки!$C$7,IF(E50=$O$8,Настройки!$C$8,IF(E50=$O$9,Настройки!$C$9,IF(E50=$O$10,Настройки!$C$10,IF(E50=$O$11,Настройки!$C$11,IF(E50=$O$12,Настройки!$C$12,IF(E50=$O$13,Настройки!$C$13,IF(E50=$O$14,Настройки!$C$14,IF(E50=$O$15,Настройки!$C$15,IF(E50=$O$16,Настройки!$C$16,IF(E50=$O$17,Настройки!$C$17,IF(E50=$O$18,Настройки!$C$18,0)))))))))))))))))),2)-Настройки!$F$4,IF('Расчет усталости'!H50='Расчет усталости'!$O$21,0,IF(G50=$O$20,IF(E50=$O$2,Настройки!$C$2,IF(E50=$O$3,Настройки!$C$3,IF(E50=$O$4,Настройки!$C$4,IF(E50=$O$5,Настройки!$C$5,IF(E50=$O$6,Настройки!$C$6,IF(E50=$O$7,Настройки!$C$7,IF(E50=$O$8,Настройки!$C$8,IF(E50=$O$9,Настройки!$C$9,IF(E50=$O$10,Настройки!$C$10,IF(E50=$O$11,Настройки!$C$11,IF(E50=$O$12,Настройки!$C$12,IF(E50=$O$13,Настройки!$C$13,IF(E50=$O$14,Настройки!$C$14,IF(E50=$O$15,Настройки!$C$15,IF(E50=$O$16,Настройки!$C$16,IF(E50=$O$17,Настройки!$C$17,IF(E50=$O$18,Настройки!$C$18,0)))))))))))))))))*Настройки!$F$2+IF(E50=$O$2,Настройки!$C$2,IF(E50=$O$3,Настройки!$C$3,IF(E50=$O$4,Настройки!$C$4,IF(E50=$O$5,Настройки!$C$5,IF(E50=$O$6,Настройки!$C$6,IF(E50=$O$7,Настройки!$C$7,IF(E50=$O$8,Настройки!$C$8,IF(E50=$O$9,Настройки!$C$9,IF(E50=$O$10,Настройки!$C$10,IF(E50=$O$11,Настройки!$C$11,IF(E50=$O$12,Настройки!$C$12,IF(E50=$O$13,Настройки!$C$13,IF(E50=$O$14,Настройки!$C$14,IF(E50=$O$15,Настройки!$C$15,IF(E50=$O$16,Настройки!$C$16,IF(E50=$O$17,Настройки!$C$17,IF(E50=$O$18,Настройки!$C$18,0))))))))))))))))),IF(E50=$O$2,Настройки!$C$2,IF(E50=$O$3,Настройки!$C$3,IF(E50=$O$4,Настройки!$C$4,IF(E50=$O$5,Настройки!$C$5,IF(E50=$O$6,Настройки!$C$6,IF(E50=$O$7,Настройки!$C$7,IF(E50=$O$8,Настройки!$C$8,IF(E50=$O$9,Настройки!$C$9,IF(E50=$O$10,Настройки!$C$10,IF(E50=$O$11,Настройки!$C$11,IF(E50=$O$12,Настройки!$C$12,IF(E50=$O$13,Настройки!$C$13,IF(E50=$O$14,Настройки!$C$14,IF(E50=$O$15,Настройки!$C$15,IF(E50=$O$16,Настройки!$C$16,IF(E50=$O$17,Настройки!$C$17,IF(E50=$O$18,Настройки!$C$18,0))))))))))))))))))))),2) -> -0.25 | K50: =IF(SUM($I$2:I50)-SUM($C$2:C50)<0,0,ROUND(SUM($I$2:I50)-SUM($C$2:C50),2)) -> 1.05 | L50: =IF(SUM($J$2:J50)-SUM($C$2:C50)<0,0,ROUND(SUM($J$2:J50)-SUM($C$2:C50),2)) -> 1.46 | M50: В
A51: Вт | B51: 9 | C51: =Настройки!$F$3 -> 0.1 | D51: 33 | E51: КТ | F51: =COUNTIF($E$2:E51,"ЧЕМ") -> 13 | I51: =ROUND(IF(AND(M51=$O$22,H51=$O$21),0-Настройки!$F$4,IF('Расчет усталости'!M51='Расчет усталости'!$O$22,IF(E51=$O$2,Настройки!$C$2,IF(E51=$O$3,Настройки!$C$3,IF(E51=$O$4,Настройки!$C$4,IF(E51=$O$5,Настройки!$C$5,IF(E51=$O$6,Настройки!$C$6,IF(E51=$O$7,Настройки!$C$7,IF(E51=$O$8,Настройки!$C$8,IF(E51=$O$9,Настройки!$C$9,IF(E51=$O$10,Настройки!$C$10,IF(E51=$O$11,Настройки!$C$11,IF(E51=$O$12,Настройки!$C$12,IF(E51=$O$13,Настройки!$C$13,IF(E51=$O$14,Настройки!$C$14,IF(E51=$O$15,Настройки!$C$15,IF(E51=$O$16,Настройки!$C$16,IF(E51=$O$17,Настройки!$C$17,IF(E51=$O$18,Настройки!$C$18,0)))))))))))))))))-Настройки!$F$4,IF('Расчет усталости'!H51='Расчет усталости'!$O$21,0,IF(E51=$O$2,Настройки!$C$2,IF(E51=$O$3,Настройки!$C$3,IF(E51=$O$4,Настройки!$C$4,IF(E51=$O$5,Настройки!$C$5,IF(E51=$O$6,Настройки!$C$6,IF(E51=$O$7,Настройки!$C$7,IF(E51=$O$8,Настройки!$C$8,IF(E51=$O$9,Настройки!$C$9,IF(E51=$O$10,Настройки!$C$10,IF(E51=$O$11,Настройки!$C$11,IF(E51=$O$12,Настройки!$C$12,IF(E51=$O$13,Настройки!$C$13,IF(E51=$O$14,Настройки!$C$14,IF(E51=$O$15,Настройки!$C$15,IF(E51=$O$16,Настройки!$C$16,IF(E51=$O$17,Настройки!$C$17,IF(E51=$O$18,Настройки!$C$18,0)))))))))))))))))))),2) -> 0.15 | J51: =ROUND(IF(AND(M51=$O$22,H51=$O$21),0-Настройки!$F$4,IF('Расчет усталости'!M51='Расчет усталости'!$O$22,ROUND(IF(G51=$O$20,IF(E51=$O$2,Настройки!$C$2,IF(E51=$O$3,Настройки!$C$3,IF(E51=$O$4,Настройки!$C$4,IF(E51=$O$5,Настройки!$C$5,IF(E51=$O$6,Настройки!$C$6,IF(E51=$O$7,Настройки!$C$7,IF(E51=$O$8,Настройки!$C$8,IF(E51=$O$9,Настройки!$C$9,IF(E51=$O$10,Настройки!$C$10,IF(E51=$O$11,Настройки!$C$11,IF(E51=$O$12,Настройки!$C$12,IF(E51=$O$13,Настройки!$C$13,IF(E51=$O$14,Настройки!$C$14,IF(E51=$O$15,Настройки!$C$15,IF(E51=$O$16,Настройки!$C$16,IF(E51=$O$17,Настройки!$C$17,IF(E51=$O$18,Настройки!$C$18,0)))))))))))))))))*Настройки!$F$2+IF(E51=$O$2,Настройки!$C$2,IF(E51=$O$3,Настройки!$C$3,IF(E51=$O$4,Настройки!$C$4,IF(E51=$O$5,Настройки!$C$5,IF(E51=$O$6,Настройки!$C$6,IF(E51=$O$7,Настройки!$C$7,IF(E51=$O$8,Настройки!$C$8,IF(E51=$O$9,Настройки!$C$9,IF(E51=$O$10,Настройки!$C$10,IF(E51=$O$11,Настройки!$C$11,IF(E51=$O$12,Настройки!$C$12,IF(E51=$O$13,Настройки!$C$13,IF(E51=$O$14,Настройки!$C$14,IF(E51=$O$15,Настройки!$C$15,IF(E51=$O$16,Настройки!$C$16,IF(E51=$O$17,Настройки!$C$17,IF(E51=$O$18,Настройки!$C$18,0))))))))))))))))),IF(E51=$O$2,Настройки!$C$2,IF(E51=$O$3,Настройки!$C$3,IF(E51=$O$4,Настройки!$C$4,IF(E51=$O$5,Настройки!$C$5,IF(E51=$O$6,Настройки!$C$6,IF(E51=$O$7,Настройки!$C$7,IF(E51=$O$8,Настройки!$C$8,IF(E51=$O$9,Настройки!$C$9,IF(E51=$O$10,Настройки!$C$10,IF(E51=$O$11,Настройки!$C$11,IF(E51=$O$12,Настройки!$C$12,IF(E51=$O$13,Настройки!$C$13,IF(E51=$O$14,Настройки!$C$14,IF(E51=$O$15,Настройки!$C$15,IF(E51=$O$16,Настройки!$C$16,IF(E51=$O$17,Настройки!$C$17,IF(E51=$O$18,Настройки!$C$18,0)))))))))))))))))),2)-Настройки!$F$4,IF('Расчет усталости'!H51='Расчет усталости'!$O$21,0,IF(G51=$O$20,IF(E51=$O$2,Настройки!$C$2,IF(E51=$O$3,Настройки!$C$3,IF(E51=$O$4,Настройки!$C$4,IF(E51=$O$5,Настройки!$C$5,IF(E51=$O$6,Настройки!$C$6,IF(E51=$O$7,Настройки!$C$7,IF(E51=$O$8,Настройки!$C$8,IF(E51=$O$9,Настройки!$C$9,IF(E51=$O$10,Настройки!$C$10,IF(E51=$O$11,Настройки!$C$11,IF(E51=$O$12,Настройки!$C$12,IF(E51=$O$13,Настройки!$C$13,IF(E51=$O$14,Настройки!$C$14,IF(E51=$O$15,Настройки!$C$15,IF(E51=$O$16,Настройки!$C$16,IF(E51=$O$17,Настройки!$C$17,IF(E51=$O$18,Настройки!$C$18,0)))))))))))))))))*Настройки!$F$2+IF(E51=$O$2,Настройки!$C$2,IF(E51=$O$3,Настройки!$C$3,IF(E51=$O$4,Настройки!$C$4,IF(E51=$O$5,Настройки!$C$5,IF(E51=$O$6,Настройки!$C$6,IF(E51=$O$7,Настройки!$C$7,IF(E51=$O$8,Настройки!$C$8,IF(E51=$O$9,Настройки!$C$9,IF(E51=$O$10,Настройки!$C$10,IF(E51=$O$11,Настройки!$C$11,IF(E51=$O$12,Настройки!$C$12,IF(E51=$O$13,Настройки!$C$13,IF(E51=$O$14,Настройки!$C$14,IF(E51=$O$15,Настройки!$C$15,IF(E51=$O$16,Настройки!$C$16,IF(E51=$O$17,Настройки!$C$17,IF(E51=$O$18,Настройки!$C$18,0))))))))))))))))),IF(E51=$O$2,Настройки!$C$2,IF(E51=$O$3,Настройки!$C$3,IF(E51=$O$4,Настройки!$C$4,IF(E51=$O$5,Настройки!$C$5,IF(E51=$O$6,Настройки!$C$6,IF(E51=$O$7,Настройки!$C$7,IF(E51=$O$8,Настройки!$C$8,IF(E51=$O$9,Настройки!$C$9,IF(E51=$O$10,Настройки!$C$10,IF(E51=$O$11,Настройки!$C$11,IF(E51=$O$12,Настройки!$C$12,IF(E51=$O$13,Настройки!$C$13,IF(E51=$O$14,Настройки!$C$14,IF(E51=$O$15,Настройки!$C$15,IF(E51=$O$16,Настройки!$C$16,IF(E51=$O$17,Настройки!$C$17,IF(E51=$O$18,Настройки!$C$18,0))))))))))))))))))))),2) -> 0.15 | K51: =IF(SUM($I$2:I51)-SUM($C$2:C51)<0,0,ROUND(SUM($I$2:I51)-SUM($C$2:C51),2)) -> 1.1 | L51: =IF(SUM($J$2:J51)-SUM($C$2:C51)<0,0,ROUND(SUM($J$2:J51)-SUM($C$2:C51),2)) -> 1.51
A52: Ср | B52: 9 | C52: =Настройки!$F$3 -> 0.1 | D52: 34 | E52: ЧЕМ | F52: =COUNTIF($E$2:E52,"ЧЕМ") -> 14 | I52: =ROUND(IF(AND(M52=$O$22,H52=$O$21),0-Настройки!$F$4,IF('Расчет усталости'!M52='Расчет усталости'!$O$22,IF(E52=$O$2,Настройки!$C$2,IF(E52=$O$3,Настройки!$C$3,IF(E52=$O$4,Настройки!$C$4,IF(E52=$O$5,Настройки!$C$5,IF(E52=$O$6,Настройки!$C$6,IF(E52=$O$7,Настройки!$C$7,IF(E52=$O$8,Настройки!$C$8,IF(E52=$O$9,Настройки!$C$9,IF(E52=$O$10,Настройки!$C$10,IF(E52=$O$11,Настройки!$C$11,IF(E52=$O$12,Настройки!$C$12,IF(E52=$O$13,Настройки!$C$13,IF(E52=$O$14,Настройки!$C$14,IF(E52=$O$15,Настройки!$C$15,IF(E52=$O$16,Настройки!$C$16,IF(E52=$O$17,Настройки!$C$17,IF(E52=$O$18,Настройки!$C$18,0)))))))))))))))))-Настройки!$F$4,IF('Расчет усталости'!H52='Расчет усталости'!$O$21,0,IF(E52=$O$2,Настройки!$C$2,IF(E52=$O$3,Настройки!$C$3,IF(E52=$O$4,Настройки!$C$4,IF(E52=$O$5,Настройки!$C$5,IF(E52=$O$6,Настройки!$C$6,IF(E52=$O$7,Настройки!$C$7,IF(E52=$O$8,Настройки!$C$8,IF(E52=$O$9,Настройки!$C$9,IF(E52=$O$10,Настройки!$C$10,IF(E52=$O$11,Настройки!$C$11,IF(E52=$O$12,Настройки!$C$12,IF(E52=$O$13,Настройки!$C$13,IF(E52=$O$14,Настройки!$C$14,IF(E52=$O$15,Настройки!$C$15,IF(E52=$O$16,Настройки!$C$16,IF(E52=$O$17,Настройки!$C$17,IF(E52=$O$18,Настройки!$C$18,0)))))))))))))))))))),2) -> 0.3 | J52: =ROUND(IF(AND(M52=$O$22,H52=$O$21),0-Настройки!$F$4,IF('Расчет усталости'!M52='Расчет усталости'!$O$22,ROUND(IF(G52=$O$20,IF(E52=$O$2,Настройки!$C$2,IF(E52=$O$3,Настройки!$C$3,IF(E52=$O$4,Настройки!$C$4,IF(E52=$O$5,Настройки!$C$5,IF(E52=$O$6,Настройки!$C$6,IF(E52=$O$7,Настройки!$C$7,IF(E52=$O$8,Настройки!$C$8,IF(E52=$O$9,Настройки!$C$9,IF(E52=$O$10,Настройки!$C$10,IF(E52=$O$11,Настройки!$C$11,IF(E52=$O$12,Настройки!$C$12,IF(E52=$O$13,Настройки!$C$13,IF(E52=$O$14,Настройки!$C$14,IF(E52=$O$15,Настройки!$C$15,IF(E52=$O$16,Настройки!$C$16,IF(E52=$O$17,Настройки!$C$17,IF(E52=$O$18,Настройки!$C$18,0)))))))))))))))))*Настройки!$F$2+IF(E52=$O$2,Настройки!$C$2,IF(E52=$O$3,Настройки!$C$3,IF(E52=$O$4,Настройки!$C$4,IF(E52=$O$5,Настройки!$C$5,IF(E52=$O$6,Настройки!$C$6,IF(E52=$O$7,Настройки!$C$7,IF(E52=$O$8,Настройки!$C$8,IF(E52=$O$9,Настройки!$C$9,IF(E52=$O$10,Настройки!$C$10,IF(E52=$O$11,Настройки!$C$11,IF(E52=$O$12,Настройки!$C$12,IF(E52=$O$13,Настройки!$C$13,IF(E52=$O$14,Настройки!$C$14,IF(E52=$O$15,Настройки!$C$15,IF(E52=$O$16,Настройки!$C$16,IF(E52=$O$17,Настройки!$C$17,IF(E52=$O$18,Настройки!$C$18,0))))))))))))))))),IF(E52=$O$2,Настройки!$C$2,IF(E52=$O$3,Настройки!$C$3,IF(E52=$O$4,Настройки!$C$4,IF(E52=$O$5,Настройки!$C$5,IF(E52=$O$6,Настройки!$C$6,IF(E52=$O$7,Настройки!$C$7,IF(E52=$O$8,Настройки!$C$8,IF(E52=$O$9,Настройки!$C$9,IF(E52=$O$10,Настройки!$C$10,IF(E52=$O$11,Настройки!$C$11,IF(E52=$O$12,Настройки!$C$12,IF(E52=$O$13,Настройки!$C$13,IF(E52=$O$14,Настройки!$C$14,IF(E52=$O$15,Настройки!$C$15,IF(E52=$O$16,Настройки!$C$16,IF(E52=$O$17,Настройки!$C$17,IF(E52=$O$18,Настройки!$C$18,0)))))))))))))))))),2)-Настройки!$F$4,IF('Расчет усталости'!H52='Расчет усталости'!$O$21,0,IF(G52=$O$20,IF(E52=$O$2,Настройки!$C$2,IF(E52=$O$3,Настройки!$C$3,IF(E52=$O$4,Настройки!$C$4,IF(E52=$O$5,Настройки!$C$5,IF(E52=$O$6,Настройки!$C$6,IF(E52=$O$7,Настройки!$C$7,IF(E52=$O$8,Настройки!$C$8,IF(E52=$O$9,Настройки!$C$9,IF(E52=$O$10,Настройки!$C$10,IF(E52=$O$11,Настройки!$C$11,IF(E52=$O$12,Настройки!$C$12,IF(E52=$O$13,Настройки!$C$13,IF(E52=$O$14,Настройки!$C$14,IF(E52=$O$15,Настройки!$C$15,IF(E52=$O$16,Настройки!$C$16,IF(E52=$O$17,Настройки!$C$17,IF(E52=$O$18,Настройки!$C$18,0)))))))))))))))))*Настройки!$F$2+IF(E52=$O$2,Настройки!$C$2,IF(E52=$O$3,Настройки!$C$3,IF(E52=$O$4,Настройки!$C$4,IF(E52=$O$5,Настройки!$C$5,IF(E52=$O$6,Настройки!$C$6,IF(E52=$O$7,Настройки!$C$7,IF(E52=$O$8,Настройки!$C$8,IF(E52=$O$9,Настройки!$C$9,IF(E52=$O$10,Настройки!$C$10,IF(E52=$O$11,Настройки!$C$11,IF(E52=$O$12,Настройки!$C$12,IF(E52=$O$13,Настройки!$C$13,IF(E52=$O$14,Настройки!$C$14,IF(E52=$O$15,Настройки!$C$15,IF(E52=$O$16,Настройки!$C$16,IF(E52=$O$17,Настройки!$C$17,IF(E52=$O$18,Настройки!$C$18,0))))))))))))))))),IF(E52=$O$2,Настройки!$C$2,IF(E52=$O$3,Настройки!$C$3,IF(E52=$O$4,Настройки!$C$4,IF(E52=$O$5,Настройки!$C$5,IF(E52=$O$6,Настройки!$C$6,IF(E52=$O$7,Настройки!$C$7,IF(E52=$O$8,Настройки!$C$8,IF(E52=$O$9,Настройки!$C$9,IF(E52=$O$10,Настройки!$C$10,IF(E52=$O$11,Настройки!$C$11,IF(E52=$O$12,Настройки!$C$12,IF(E52=$O$13,Настройки!$C$13,IF(E52=$O$14,Настройки!$C$14,IF(E52=$O$15,Настройки!$C$15,IF(E52=$O$16,Настройки!$C$16,IF(E52=$O$17,Настройки!$C$17,IF(E52=$O$18,Настройки!$C$18,0))))))))))))))))))))),2) -> 0.3 | K52: =IF(SUM($I$2:I52)-SUM($C$2:C52)<0,0,ROUND(SUM($I$2:I52)-SUM($C$2:C52),2)) -> 1.3 | L52: =IF(SUM($J$2:J52)-SUM($C$2:C52)<0,0,ROUND(SUM($J$2:J52)-SUM($C$2:C52),2)) -> 1.71
A53: Чт | B53: 9 | C53: =Настройки!$F$3 -> 0.1 | D53: 35 | E53: КТ | F53: =COUNTIF($E$2:E53,"ЧЕМ") -> 14 | G53: Г | I53: =ROUND(IF(AND(M53=$O$22,H53=$O$21),0-Настройки!$F$4,IF('Расчет усталости'!M53='Расчет усталости'!$O$22,IF(E53=$O$2,Настройки!$C$2,IF(E53=$O$3,Настройки!$C$3,IF(E53=$O$4,Настройки!$C$4,IF(E53=$O$5,Настройки!$C$5,IF(E53=$O$6,Настройки!$C$6,IF(E53=$O$7,Настройки!$C$7,IF(E53=$O$8,Настройки!$C$8,IF(E53=$O$9,Настройки!$C$9,IF(E53=$O$10,Настройки!$C$10,IF(E53=$O$11,Настройки!$C$11,IF(E53=$O$12,Настройки!$C$12,IF(E53=$O$13,Настройки!$C$13,IF(E53=$O$14,Настройки!$C$14,IF(E53=$O$15,Настройки!$C$15,IF(E53=$O$16,Настройки!$C$16,IF(E53=$O$17,Настройки!$C$17,IF(E53=$O$18,Настройки!$C$18,0)))))))))))))))))-Настройки!$F$4,IF('Расчет усталости'!H53='Расчет усталости'!$O$21,0,IF(E53=$O$2,Настройки!$C$2,IF(E53=$O$3,Настройки!$C$3,IF(E53=$O$4,Настройки!$C$4,IF(E53=$O$5,Настройки!$C$5,IF(E53=$O$6,Настройки!$C$6,IF(E53=$O$7,Настройки!$C$7,IF(E53=$O$8,Настройки!$C$8,IF(E53=$O$9,Настройки!$C$9,IF(E53=$O$10,Настройки!$C$10,IF(E53=$O$11,Настройки!$C$11,IF(E53=$O$12,Настройки!$C$12,IF(E53=$O$13,Настройки!$C$13,IF(E53=$O$14,Настройки!$C$14,IF(E53=$O$15,Настройки!$C$15,IF(E53=$O$16,Настройки!$C$16,IF(E53=$O$17,Настройки!$C$17,IF(E53=$O$18,Настройки!$C$18,0)))))))))))))))))))),2) -> 0.15 | J53: =ROUND(IF(AND(M53=$O$22,H53=$O$21),0-Настройки!$F$4,IF('Расчет усталости'!M53='Расчет усталости'!$O$22,ROUND(IF(G53=$O$20,IF(E53=$O$2,Настройки!$C$2,IF(E53=$O$3,Настройки!$C$3,IF(E53=$O$4,Настройки!$C$4,IF(E53=$O$5,Настройки!$C$5,IF(E53=$O$6,Настройки!$C$6,IF(E53=$O$7,Настройки!$C$7,IF(E53=$O$8,Настройки!$C$8,IF(E53=$O$9,Настройки!$C$9,IF(E53=$O$10,Настройки!$C$10,IF(E53=$O$11,Настройки!$C$11,IF(E53=$O$12,Настройки!$C$12,IF(E53=$O$13,Настройки!$C$13,IF(E53=$O$14,Настройки!$C$14,IF(E53=$O$15,Настройки!$C$15,IF(E53=$O$16,Настройки!$C$16,IF(E53=$O$17,Настройки!$C$17,IF(E53=$O$18,Настройки!$C$18,0)))))))))))))))))*Настройки!$F$2+IF(E53=$O$2,Настройки!$C$2,IF(E53=$O$3,Настройки!$C$3,IF(E53=$O$4,Настройки!$C$4,IF(E53=$O$5,Настройки!$C$5,IF(E53=$O$6,Настройки!$C$6,IF(E53=$O$7,Настройки!$C$7,IF(E53=$O$8,Настройки!$C$8,IF(E53=$O$9,Настройки!$C$9,IF(E53=$O$10,Настройки!$C$10,IF(E53=$O$11,Настройки!$C$11,IF(E53=$O$12,Настройки!$C$12,IF(E53=$O$13,Настройки!$C$13,IF(E53=$O$14,Настройки!$C$14,IF(E53=$O$15,Настройки!$C$15,IF(E53=$O$16,Настройки!$C$16,IF(E53=$O$17,Настройки!$C$17,IF(E53=$O$18,Настройки!$C$18,0))))))))))))))))),IF(E53=$O$2,Настройки!$C$2,IF(E53=$O$3,Настройки!$C$3,IF(E53=$O$4,Настройки!$C$4,IF(E53=$O$5,Настройки!$C$5,IF(E53=$O$6,Настройки!$C$6,IF(E53=$O$7,Настройки!$C$7,IF(E53=$O$8,Настройки!$C$8,IF(E53=$O$9,Настройки!$C$9,IF(E53=$O$10,Настройки!$C$10,IF(E53=$O$11,Настройки!$C$11,IF(E53=$O$12,Настройки!$C$12,IF(E53=$O$13,Настройки!$C$13,IF(E53=$O$14,Настройки!$C$14,IF(E53=$O$15,Настройки!$C$15,IF(E53=$O$16,Настройки!$C$16,IF(E53=$O$17,Настройки!$C$17,IF(E53=$O$18,Настройки!$C$18,0)))))))))))))))))),2)-Настройки!$F$4,IF('Расчет усталости'!H53='Расчет усталости'!$O$21,0,IF(G53=$O$20,IF(E53=$O$2,Настройки!$C$2,IF(E53=$O$3,Настройки!$C$3,IF(E53=$O$4,Настройки!$C$4,IF(E53=$O$5,Настройки!$C$5,IF(E53=$O$6,Настройки!$C$6,IF(E53=$O$7,Настройки!$C$7,IF(E53=$O$8,Настройки!$C$8,IF(E53=$O$9,Настройки!$C$9,IF(E53=$O$10,Настройки!$C$10,IF(E53=$O$11,Настройки!$C$11,IF(E53=$O$12,Настройки!$C$12,IF(E53=$O$13,Настройки!$C$13,IF(E53=$O$14,Настройки!$C$14,IF(E53=$O$15,Настройки!$C$15,IF(E53=$O$16,Настройки!$C$16,IF(E53=$O$17,Настройки!$C$17,IF(E53=$O$18,Настройки!$C$18,0)))))))))))))))))*Настройки!$F$2+IF(E53=$O$2,Настройки!$C$2,IF(E53=$O$3,Настройки!$C$3,IF(E53=$O$4,Настройки!$C$4,IF(E53=$O$5,Настройки!$C$5,IF(E53=$O$6,Настройки!$C$6,IF(E53=$O$7,Настройки!$C$7,IF(E53=$O$8,Настройки!$C$8,IF(E53=$O$9,Настройки!$C$9,IF(E53=$O$10,Настройки!$C$10,IF(E53=$O$11,Настройки!$C$11,IF(E53=$O$12,Настройки!$C$12,IF(E53=$O$13,Настройки!$C$13,IF(E53=$O$14,Настройки!$C$14,IF(E53=$O$15,Настройки!$C$15,IF(E53=$O$16,Настройки!$C$16,IF(E53=$O$17,Настройки!$C$17,IF(E53=$O$18,Настройки!$C$18,0))))))))))))))))),IF(E53=$O$2,Настройки!$C$2,IF(E53=$O$3,Настройки!$C$3,IF(E53=$O$4,Настройки!$C$4,IF(E53=$O$5,Настройки!$C$5,IF(E53=$O$6,Настройки!$C$6,IF(E53=$O$7,Настройки!$C$7,IF(E53=$O$8,Настройки!$C$8,IF(E53=$O$9,Настройки!$C$9,IF(E53=$O$10,Настройки!$C$10,IF(E53=$O$11,Настройки!$C$11,IF(E53=$O$12,Настройки!$C$12,IF(E53=$O$13,Настройки!$C$13,IF(E53=$O$14,Настройки!$C$14,IF(E53=$O$15,Настройки!$C$15,IF(E53=$O$16,Настройки!$C$16,IF(E53=$O$17,Настройки!$C$17,IF(E53=$O$18,Настройки!$C$18,0))))))))))))))))))))),2) -> 0.17 | K53: =IF(SUM($I$2:I53)-SUM($C$2:C53)<0,0,ROUND(SUM($I$2:I53)-SUM($C$2:C53),2)) -> 1.35 | L53: =IF(SUM($J$2:J53)-SUM($C$2:C53)<0,0,ROUND(SUM($J$2:J53)-SUM($C$2:C53),2)) -> 1.78
A54: Пт | B54: 9 | C54: =Настройки!$F$3 -> 0.1 | F54: =COUNTIF($E$2:E54,"ЧЕМ") -> 14 | I54: =ROUND(IF(AND(M54=$O$22,H54=$O$21),0-Настройки!$F$4,IF('Расчет усталости'!M54='Расчет усталости'!$O$22,IF(E54=$O$2,Настройки!$C$2,IF(E54=$O$3,Настройки!$C$3,IF(E54=$O$4,Настройки!$C$4,IF(E54=$O$5,Настройки!$C$5,IF(E54=$O$6,Настройки!$C$6,IF(E54=$O$7,Настройки!$C$7,IF(E54=$O$8,Настройки!$C$8,IF(E54=$O$9,Настройки!$C$9,IF(E54=$O$10,Настройки!$C$10,IF(E54=$O$11,Настройки!$C$11,IF(E54=$O$12,Настройки!$C$12,IF(E54=$O$13,Настройки!$C$13,IF(E54=$O$14,Настройки!$C$14,IF(E54=$O$15,Настройки!$C$15,IF(E54=$O$16,Настройки!$C$16,IF(E54=$O$17,Настройки!$C$17,IF(E54=$O$18,Настройки!$C$18,0)))))))))))))))))-Настройки!$F$4,IF('Расчет усталости'!H54='Расчет усталости'!$O$21,0,IF(E54=$O$2,Настройки!$C$2,IF(E54=$O$3,Настройки!$C$3,IF(E54=$O$4,Настройки!$C$4,IF(E54=$O$5,Настройки!$C$5,IF(E54=$O$6,Настройки!$C$6,IF(E54=$O$7,Настройки!$C$7,IF(E54=$O$8,Настройки!$C$8,IF(E54=$O$9,Настройки!$C$9,IF(E54=$O$10,Настройки!$C$10,IF(E54=$O$11,Настройки!$C$11,IF(E54=$O$12,Настройки!$C$12,IF(E54=$O$13,Настройки!$C$13,IF(E54=$O$14,Настройки!$C$14,IF(E54=$O$15,Настройки!$C$15,IF(E54=$O$16,Настройки!$C$16,IF(E54=$O$17,Настройки!$C$17,IF(E54=$O$18,Настройки!$C$18,0)))))))))))))))))))),2) -> 0 | J54: =ROUND(IF(AND(M54=$O$22,H54=$O$21),0-Настройки!$F$4,IF('Расчет усталости'!M54='Расчет усталости'!$O$22,ROUND(IF(G54=$O$20,IF(E54=$O$2,Настройки!$C$2,IF(E54=$O$3,Настройки!$C$3,IF(E54=$O$4,Настройки!$C$4,IF(E54=$O$5,Настройки!$C$5,IF(E54=$O$6,Настройки!$C$6,IF(E54=$O$7,Настройки!$C$7,IF(E54=$O$8,Настройки!$C$8,IF(E54=$O$9,Настройки!$C$9,IF(E54=$O$10,Настройки!$C$10,IF(E54=$O$11,Настройки!$C$11,IF(E54=$O$12,Настройки!$C$12,IF(E54=$O$13,Настройки!$C$13,IF(E54=$O$14,Настройки!$C$14,IF(E54=$O$15,Настройки!$C$15,IF(E54=$O$16,Настройки!$C$16,IF(E54=$O$17,Настройки!$C$17,IF(E54=$O$18,Настройки!$C$18,0)))))))))))))))))*Настройки!$F$2+IF(E54=$O$2,Настройки!$C$2,IF(E54=$O$3,Настройки!$C$3,IF(E54=$O$4,Настройки!$C$4,IF(E54=$O$5,Настройки!$C$5,IF(E54=$O$6,Настройки!$C$6,IF(E54=$O$7,Настройки!$C$7,IF(E54=$O$8,Настройки!$C$8,IF(E54=$O$9,Настройки!$C$9,IF(E54=$O$10,Настройки!$C$10,IF(E54=$O$11,Настройки!$C$11,IF(E54=$O$12,Настройки!$C$12,IF(E54=$O$13,Настройки!$C$13,IF(E54=$O$14,Настройки!$C$14,IF(E54=$O$15,Настройки!$C$15,IF(E54=$O$16,Настройки!$C$16,IF(E54=$O$17,Настройки!$C$17,IF(E54=$O$18,Настройки!$C$18,0))))))))))))))))),IF(E54=$O$2,Настройки!$C$2,IF(E54=$O$3,Настройки!$C$3,IF(E54=$O$4,Настройки!$C$4,IF(E54=$O$5,Настройки!$C$5,IF(E54=$O$6,Настройки!$C$6,IF(E54=$O$7,Настройки!$C$7,IF(E54=$O$8,Настройки!$C$8,IF(E54=$O$9,Настройки!$C$9,IF(E54=$O$10,Настройки!$C$10,IF(E54=$O$11,Настройки!$C$11,IF(E54=$O$12,Настройки!$C$12,IF(E54=$O$13,Настройки!$C$13,IF(E54=$O$14,Настройки!$C$14,IF(E54=$O$15,Настройки!$C$15,IF(E54=$O$16,Настройки!$C$16,IF(E54=$O$17,Настройки!$C$17,IF(E54=$O$18,Настройки!$C$18,0)))))))))))))))))),2)-Настройки!$F$4,IF('Расчет усталости'!H54='Расчет усталости'!$O$21,0,IF(G54=$O$20,IF(E54=$O$2,Настройки!$C$2,IF(E54=$O$3,Настройки!$C$3,IF(E54=$O$4,Настройки!$C$4,IF(E54=$O$5,Настройки!$C$5,IF(E54=$O$6,Настройки!$C$6,IF(E54=$O$7,Настройки!$C$7,IF(E54=$O$8,Настройки!$C$8,IF(E54=$O$9,Настройки!$C$9,IF(E54=$O$10,Настройки!$C$10,IF(E54=$O$11,Настройки!$C$11,IF(E54=$O$12,Настройки!$C$12,IF(E54=$O$13,Настройки!$C$13,IF(E54=$O$14,Настройки!$C$14,IF(E54=$O$15,Настройки!$C$15,IF(E54=$O$16,Настройки!$C$16,IF(E54=$O$17,Настройки!$C$17,IF(E54=$O$18,Настройки!$C$18,0)))))))))))))))))*Настройки!$F$2+IF(E54=$O$2,Настройки!$C$2,IF(E54=$O$3,Настройки!$C$3,IF(E54=$O$4,Настройки!$C$4,IF(E54=$O$5,Настройки!$C$5,IF(E54=$O$6,Настройки!$C$6,IF(E54=$O$7,Настройки!$C$7,IF(E54=$O$8,Настройки!$C$8,IF(E54=$O$9,Настройки!$C$9,IF(E54=$O$10,Настройки!$C$10,IF(E54=$O$11,Настройки!$C$11,IF(E54=$O$12,Настройки!$C$12,IF(E54=$O$13,Настройки!$C$13,IF(E54=$O$14,Настройки!$C$14,IF(E54=$O$15,Настройки!$C$15,IF(E54=$O$16,Настройки!$C$16,IF(E54=$O$17,Настройки!$C$17,IF(E54=$O$18,Настройки!$C$18,0))))))))))))))))),IF(E54=$O$2,Настройки!$C$2,IF(E54=$O$3,Настройки!$C$3,IF(E54=$O$4,Настройки!$C$4,IF(E54=$O$5,Настройки!$C$5,IF(E54=$O$6,Настройки!$C$6,IF(E54=$O$7,Настройки!$C$7,IF(E54=$O$8,Настройки!$C$8,IF(E54=$O$9,Настройки!$C$9,IF(E54=$O$10,Настройки!$C$10,IF(E54=$O$11,Настройки!$C$11,IF(E54=$O$12,Настройки!$C$12,IF(E54=$O$13,Настройки!$C$13,IF(E54=$O$14,Настройки!$C$14,IF(E54=$O$15,Настройки!$C$15,IF(E54=$O$16,Настройки!$C$16,IF(E54=$O$17,Настройки!$C$17,IF(E54=$O$18,Настройки!$C$18,0))))))))))))))))))))),2) -> 0 | K54: =IF(SUM($I$2:I54)-SUM($C$2:C54)<0,0,ROUND(SUM($I$2:I54)-SUM($C$2:C54),2)) -> 1.25 | L54: =IF(SUM($J$2:J54)-SUM($C$2:C54)<0,0,ROUND(SUM($J$2:J54)-SUM($C$2:C54),2)) -> 1.68
A55: Сб | B55: 9 | C55: =Настройки!$F$3 -> 0.1 | D55: 36 | E55: ЧЕМ | F55: =COUNTIF($E$2:E55,"ЧЕМ") -> 15 | G55: Г | I55: =ROUND(IF(AND(M55=$O$22,H55=$O$21),0-Настройки!$F$4,IF('Расчет усталости'!M55='Расчет усталости'!$O$22,IF(E55=$O$2,Настройки!$C$2,IF(E55=$O$3,Настройки!$C$3,IF(E55=$O$4,Настройки!$C$4,IF(E55=$O$5,Настройки!$C$5,IF(E55=$O$6,Настройки!$C$6,IF(E55=$O$7,Настройки!$C$7,IF(E55=$O$8,Настройки!$C$8,IF(E55=$O$9,Настройки!$C$9,IF(E55=$O$10,Настройки!$C$10,IF(E55=$O$11,Настройки!$C$11,IF(E55=$O$12,Настройки!$C$12,IF(E55=$O$13,Настройки!$C$13,IF(E55=$O$14,Настройки!$C$14,IF(E55=$O$15,Настройки!$C$15,IF(E55=$O$16,Настройки!$C$16,IF(E55=$O$17,Настройки!$C$17,IF(E55=$O$18,Настройки!$C$18,0)))))))))))))))))-Настройки!$F$4,IF('Расчет усталости'!H55='Расчет усталости'!$O$21,0,IF(E55=$O$2,Настройки!$C$2,IF(E55=$O$3,Настройки!$C$3,IF(E55=$O$4,Настройки!$C$4,IF(E55=$O$5,Настройки!$C$5,IF(E55=$O$6,Настройки!$C$6,IF(E55=$O$7,Настройки!$C$7,IF(E55=$O$8,Настройки!$C$8,IF(E55=$O$9,Настройки!$C$9,IF(E55=$O$10,Настройки!$C$10,IF(E55=$O$11,Настройки!$C$11,IF(E55=$O$12,Настройки!$C$12,IF(E55=$O$13,Настройки!$C$13,IF(E55=$O$14,Настройки!$C$14,IF(E55=$O$15,Настройки!$C$15,IF(E55=$O$16,Настройки!$C$16,IF(E55=$O$17,Настройки!$C$17,IF(E55=$O$18,Настройки!$C$18,0)))))))))))))))))))),2) -> 0.3 | J55: =ROUND(IF(AND(M55=$O$22,H55=$O$21),0-Настройки!$F$4,IF('Расчет усталости'!M55='Расчет усталости'!$O$22,ROUND(IF(G55=$O$20,IF(E55=$O$2,Настройки!$C$2,IF(E55=$O$3,Настройки!$C$3,IF(E55=$O$4,Настройки!$C$4,IF(E55=$O$5,Настройки!$C$5,IF(E55=$O$6,Настройки!$C$6,IF(E55=$O$7,Настройки!$C$7,IF(E55=$O$8,Настройки!$C$8,IF(E55=$O$9,Настройки!$C$9,IF(E55=$O$10,Настройки!$C$10,IF(E55=$O$11,Настройки!$C$11,IF(E55=$O$12,Настройки!$C$12,IF(E55=$O$13,Настройки!$C$13,IF(E55=$O$14,Настройки!$C$14,IF(E55=$O$15,Настройки!$C$15,IF(E55=$O$16,Настройки!$C$16,IF(E55=$O$17,Настройки!$C$17,IF(E55=$O$18,Настройки!$C$18,0)))))))))))))))))*Настройки!$F$2+IF(E55=$O$2,Настройки!$C$2,IF(E55=$O$3,Настройки!$C$3,IF(E55=$O$4,Настройки!$C$4,IF(E55=$O$5,Настройки!$C$5,IF(E55=$O$6,Настройки!$C$6,IF(E55=$O$7,Настройки!$C$7,IF(E55=$O$8,Настройки!$C$8,IF(E55=$O$9,Настройки!$C$9,IF(E55=$O$10,Настройки!$C$10,IF(E55=$O$11,Настройки!$C$11,IF(E55=$O$12,Настройки!$C$12,IF(E55=$O$13,Настройки!$C$13,IF(E55=$O$14,Настройки!$C$14,IF(E55=$O$15,Настройки!$C$15,IF(E55=$O$16,Настройки!$C$16,IF(E55=$O$17,Настройки!$C$17,IF(E55=$O$18,Настройки!$C$18,0))))))))))))))))),IF(E55=$O$2,Настройки!$C$2,IF(E55=$O$3,Настройки!$C$3,IF(E55=$O$4,Настройки!$C$4,IF(E55=$O$5,Настройки!$C$5,IF(E55=$O$6,Настройки!$C$6,IF(E55=$O$7,Настройки!$C$7,IF(E55=$O$8,Настройки!$C$8,IF(E55=$O$9,Настройки!$C$9,IF(E55=$O$10,Настройки!$C$10,IF(E55=$O$11,Настройки!$C$11,IF(E55=$O$12,Настройки!$C$12,IF(E55=$O$13,Настройки!$C$13,IF(E55=$O$14,Настройки!$C$14,IF(E55=$O$15,Настройки!$C$15,IF(E55=$O$16,Настройки!$C$16,IF(E55=$O$17,Настройки!$C$17,IF(E55=$O$18,Настройки!$C$18,0)))))))))))))))))),2)-Настройки!$F$4,IF('Расчет усталости'!H55='Расчет усталости'!$O$21,0,IF(G55=$O$20,IF(E55=$O$2,Настройки!$C$2,IF(E55=$O$3,Настройки!$C$3,IF(E55=$O$4,Настройки!$C$4,IF(E55=$O$5,Настройки!$C$5,IF(E55=$O$6,Настройки!$C$6,IF(E55=$O$7,Настройки!$C$7,IF(E55=$O$8,Настройки!$C$8,IF(E55=$O$9,Настройки!$C$9,IF(E55=$O$10,Настройки!$C$10,IF(E55=$O$11,Настройки!$C$11,IF(E55=$O$12,Настройки!$C$12,IF(E55=$O$13,Настройки!$C$13,IF(E55=$O$14,Настройки!$C$14,IF(E55=$O$15,Настройки!$C$15,IF(E55=$O$16,Настройки!$C$16,IF(E55=$O$17,Настройки!$C$17,IF(E55=$O$18,Настройки!$C$18,0)))))))))))))))))*Настройки!$F$2+IF(E55=$O$2,Настройки!$C$2,IF(E55=$O$3,Настройки!$C$3,IF(E55=$O$4,Настройки!$C$4,IF(E55=$O$5,Настройки!$C$5,IF(E55=$O$6,Настройки!$C$6,IF(E55=$O$7,Настройки!$C$7,IF(E55=$O$8,Настройки!$C$8,IF(E55=$O$9,Настройки!$C$9,IF(E55=$O$10,Настройки!$C$10,IF(E55=$O$11,Настройки!$C$11,IF(E55=$O$12,Настройки!$C$12,IF(E55=$O$13,Настройки!$C$13,IF(E55=$O$14,Настройки!$C$14,IF(E55=$O$15,Настройки!$C$15,IF(E55=$O$16,Настройки!$C$16,IF(E55=$O$17,Настройки!$C$17,IF(E55=$O$18,Настройки!$C$18,0))))))))))))))))),IF(E55=$O$2,Настройки!$C$2,IF(E55=$O$3,Настройки!$C$3,IF(E55=$O$4,Настройки!$C$4,IF(E55=$O$5,Настройки!$C$5,IF(E55=$O$6,Настройки!$C$6,IF(E55=$O$7,Настройки!$C$7,IF(E55=$O$8,Настройки!$C$8,IF(E55=$O$9,Настройки!$C$9,IF(E55=$O$10,Настройки!$C$10,IF(E55=$O$11,Настройки!$C$11,IF(E55=$O$12,Настройки!$C$12,IF(E55=$O$13,Настройки!$C$13,IF(E55=$O$14,Настройки!$C$14,IF(E55=$O$15,Настройки!$C$15,IF(E55=$O$16,Настройки!$C$16,IF(E55=$O$17,Настройки!$C$17,IF(E55=$O$18,Настройки!$C$18,0))))))))))))))))))))),2) -> 0.33 | K55: =IF(SUM($I$2:I55)-SUM($C$2:C55)<0,0,ROUND(SUM($I$2:I55)-SUM($C$2:C55),2)) -> 1.45 | L55: =IF(SUM($J$2:J55)-SUM($C$2:C55)<0,0,ROUND(SUM($J$2:J55)-SUM($C$2:C55),2)) -> 1.91
A56: Пн | B56: 10 | C56: =Настройки!$F$3 -> 0.1 | F56: =COUNTIF($E$2:E56,"ЧЕМ") -> 15 | I56: =ROUND(IF(AND(M56=$O$22,H56=$O$21),0-Настройки!$F$4,IF('Расчет усталости'!M56='Расчет усталости'!$O$22,IF(E56=$O$2,Настройки!$C$2,IF(E56=$O$3,Настройки!$C$3,IF(E56=$O$4,Настройки!$C$4,IF(E56=$O$5,Настройки!$C$5,IF(E56=$O$6,Настройки!$C$6,IF(E56=$O$7,Настройки!$C$7,IF(E56=$O$8,Настройки!$C$8,IF(E56=$O$9,Настройки!$C$9,IF(E56=$O$10,Настройки!$C$10,IF(E56=$O$11,Настройки!$C$11,IF(E56=$O$12,Настройки!$C$12,IF(E56=$O$13,Настройки!$C$13,IF(E56=$O$14,Настройки!$C$14,IF(E56=$O$15,Настройки!$C$15,IF(E56=$O$16,Настройки!$C$16,IF(E56=$O$17,Настройки!$C$17,IF(E56=$O$18,Настройки!$C$18,0)))))))))))))))))-Настройки!$F$4,IF('Расчет усталости'!H56='Расчет усталости'!$O$21,0,IF(E56=$O$2,Настройки!$C$2,IF(E56=$O$3,Настройки!$C$3,IF(E56=$O$4,Настройки!$C$4,IF(E56=$O$5,Настройки!$C$5,IF(E56=$O$6,Настройки!$C$6,IF(E56=$O$7,Настройки!$C$7,IF(E56=$O$8,Настройки!$C$8,IF(E56=$O$9,Настройки!$C$9,IF(E56=$O$10,Настройки!$C$10,IF(E56=$O$11,Настройки!$C$11,IF(E56=$O$12,Настройки!$C$12,IF(E56=$O$13,Настройки!$C$13,IF(E56=$O$14,Настройки!$C$14,IF(E56=$O$15,Настройки!$C$15,IF(E56=$O$16,Настройки!$C$16,IF(E56=$O$17,Настройки!$C$17,IF(E56=$O$18,Настройки!$C$18,0)))))))))))))))))))),2) -> 0 | J56: =ROUND(IF(AND(M56=$O$22,H56=$O$21),0-Настройки!$F$4,IF('Расчет усталости'!M56='Расчет усталости'!$O$22,ROUND(IF(G56=$O$20,IF(E56=$O$2,Настройки!$C$2,IF(E56=$O$3,Настройки!$C$3,IF(E56=$O$4,Настройки!$C$4,IF(E56=$O$5,Настройки!$C$5,IF(E56=$O$6,Настройки!$C$6,IF(E56=$O$7,Настройки!$C$7,IF(E56=$O$8,Настройки!$C$8,IF(E56=$O$9,Настройки!$C$9,IF(E56=$O$10,Настройки!$C$10,IF(E56=$O$11,Настройки!$C$11,IF(E56=$O$12,Настройки!$C$12,IF(E56=$O$13,Настройки!$C$13,IF(E56=$O$14,Настройки!$C$14,IF(E56=$O$15,Настройки!$C$15,IF(E56=$O$16,Настройки!$C$16,IF(E56=$O$17,Настройки!$C$17,IF(E56=$O$18,Настройки!$C$18,0)))))))))))))))))*Настройки!$F$2+IF(E56=$O$2,Настройки!$C$2,IF(E56=$O$3,Настройки!$C$3,IF(E56=$O$4,Настройки!$C$4,IF(E56=$O$5,Настройки!$C$5,IF(E56=$O$6,Настройки!$C$6,IF(E56=$O$7,Настройки!$C$7,IF(E56=$O$8,Настройки!$C$8,IF(E56=$O$9,Настройки!$C$9,IF(E56=$O$10,Настройки!$C$10,IF(E56=$O$11,Настройки!$C$11,IF(E56=$O$12,Настройки!$C$12,IF(E56=$O$13,Настройки!$C$13,IF(E56=$O$14,Настройки!$C$14,IF(E56=$O$15,Настройки!$C$15,IF(E56=$O$16,Настройки!$C$16,IF(E56=$O$17,Настройки!$C$17,IF(E56=$O$18,Настройки!$C$18,0))))))))))))))))),IF(E56=$O$2,Настройки!$C$2,IF(E56=$O$3,Настройки!$C$3,IF(E56=$O$4,Настройки!$C$4,IF(E56=$O$5,Настройки!$C$5,IF(E56=$O$6,Настройки!$C$6,IF(E56=$O$7,Настройки!$C$7,IF(E56=$O$8,Настройки!$C$8,IF(E56=$O$9,Настройки!$C$9,IF(E56=$O$10,Настройки!$C$10,IF(E56=$O$11,Настройки!$C$11,IF(E56=$O$12,Настройки!$C$12,IF(E56=$O$13,Настройки!$C$13,IF(E56=$O$14,Настройки!$C$14,IF(E56=$O$15,Настройки!$C$15,IF(E56=$O$16,Настройки!$C$16,IF(E56=$O$17,Настройки!$C$17,IF(E56=$O$18,Настройки!$C$18,0)))))))))))))))))),2)-Настройки!$F$4,IF('Расчет усталости'!H56='Расчет усталости'!$O$21,0,IF(G56=$O$20,IF(E56=$O$2,Настройки!$C$2,IF(E56=$O$3,Настройки!$C$3,IF(E56=$O$4,Настройки!$C$4,IF(E56=$O$5,Настройки!$C$5,IF(E56=$O$6,Настройки!$C$6,IF(E56=$O$7,Настройки!$C$7,IF(E56=$O$8,Настройки!$C$8,IF(E56=$O$9,Настройки!$C$9,IF(E56=$O$10,Настройки!$C$10,IF(E56=$O$11,Настройки!$C$11,IF(E56=$O$12,Настройки!$C$12,IF(E56=$O$13,Настройки!$C$13,IF(E56=$O$14,Настройки!$C$14,IF(E56=$O$15,Настройки!$C$15,IF(E56=$O$16,Настройки!$C$16,IF(E56=$O$17,Настройки!$C$17,IF(E56=$O$18,Настройки!$C$18,0)))))))))))))))))*Настройки!$F$2+IF(E56=$O$2,Настройки!$C$2,IF(E56=$O$3,Настройки!$C$3,IF(E56=$O$4,Настройки!$C$4,IF(E56=$O$5,Настройки!$C$5,IF(E56=$O$6,Настройки!$C$6,IF(E56=$O$7,Настройки!$C$7,IF(E56=$O$8,Настройки!$C$8,IF(E56=$O$9,Настройки!$C$9,IF(E56=$O$10,Настройки!$C$10,IF(E56=$O$11,Настройки!$C$11,IF(E56=$O$12,Настройки!$C$12,IF(E56=$O$13,Настройки!$C$13,IF(E56=$O$14,Настройки!$C$14,IF(E56=$O$15,Настройки!$C$15,IF(E56=$O$16,Настройки!$C$16,IF(E56=$O$17,Настройки!$C$17,IF(E56=$O$18,Настройки!$C$18,0))))))))))))))))),IF(E56=$O$2,Настройки!$C$2,IF(E56=$O$3,Настройки!$C$3,IF(E56=$O$4,Настройки!$C$4,IF(E56=$O$5,Настройки!$C$5,IF(E56=$O$6,Настройки!$C$6,IF(E56=$O$7,Настройки!$C$7,IF(E56=$O$8,Настройки!$C$8,IF(E56=$O$9,Настройки!$C$9,IF(E56=$O$10,Настройки!$C$10,IF(E56=$O$11,Настройки!$C$11,IF(E56=$O$12,Настройки!$C$12,IF(E56=$O$13,Настройки!$C$13,IF(E56=$O$14,Настройки!$C$14,IF(E56=$O$15,Настройки!$C$15,IF(E56=$O$16,Настройки!$C$16,IF(E56=$O$17,Настройки!$C$17,IF(E56=$O$18,Настройки!$C$18,0))))))))))))))))))))),2) -> 0 | K56: =IF(SUM($I$2:I56)-SUM($C$2:C56)<0,0,ROUND(SUM($I$2:I56)-SUM($C$2:C56),2)) -> 1.35 | L56: =IF(SUM($J$2:J56)-SUM($C$2:C56)<0,0,ROUND(SUM($J$2:J56)-SUM($C$2:C56),2)) -> 1.81
A57: Вт | B57: 10 | C57: =Настройки!$F$3 -> 0.1 | D57: 37 | E57: Т | F57: =COUNTIF($E$2:E57,"ЧЕМ") -> 15 | G57: Г | I57: =ROUND(IF(AND(M57=$O$22,H57=$O$21),0-Настройки!$F$4,IF('Расчет усталости'!M57='Расчет усталости'!$O$22,IF(E57=$O$2,Настройки!$C$2,IF(E57=$O$3,Настройки!$C$3,IF(E57=$O$4,Настройки!$C$4,IF(E57=$O$5,Настройки!$C$5,IF(E57=$O$6,Настройки!$C$6,IF(E57=$O$7,Настройки!$C$7,IF(E57=$O$8,Настройки!$C$8,IF(E57=$O$9,Настройки!$C$9,IF(E57=$O$10,Настройки!$C$10,IF(E57=$O$11,Настройки!$C$11,IF(E57=$O$12,Настройки!$C$12,IF(E57=$O$13,Настройки!$C$13,IF(E57=$O$14,Настройки!$C$14,IF(E57=$O$15,Настройки!$C$15,IF(E57=$O$16,Настройки!$C$16,IF(E57=$O$17,Настройки!$C$17,IF(E57=$O$18,Настройки!$C$18,0)))))))))))))))))-Настройки!$F$4,IF('Расчет усталости'!H57='Расчет усталости'!$O$21,0,IF(E57=$O$2,Настройки!$C$2,IF(E57=$O$3,Настройки!$C$3,IF(E57=$O$4,Настройки!$C$4,IF(E57=$O$5,Настройки!$C$5,IF(E57=$O$6,Настройки!$C$6,IF(E57=$O$7,Настройки!$C$7,IF(E57=$O$8,Настройки!$C$8,IF(E57=$O$9,Настройки!$C$9,IF(E57=$O$10,Настройки!$C$10,IF(E57=$O$11,Настройки!$C$11,IF(E57=$O$12,Настройки!$C$12,IF(E57=$O$13,Настройки!$C$13,IF(E57=$O$14,Настройки!$C$14,IF(E57=$O$15,Настройки!$C$15,IF(E57=$O$16,Настройки!$C$16,IF(E57=$O$17,Настройки!$C$17,IF(E57=$O$18,Настройки!$C$18,0)))))))))))))))))))),2) -> 0.15 | J57: =ROUND(IF(AND(M57=$O$22,H57=$O$21),0-Настройки!$F$4,IF('Расчет усталости'!M57='Расчет усталости'!$O$22,ROUND(IF(G57=$O$20,IF(E57=$O$2,Настройки!$C$2,IF(E57=$O$3,Настройки!$C$3,IF(E57=$O$4,Настройки!$C$4,IF(E57=$O$5,Настройки!$C$5,IF(E57=$O$6,Настройки!$C$6,IF(E57=$O$7,Настройки!$C$7,IF(E57=$O$8,Настройки!$C$8,IF(E57=$O$9,Настройки!$C$9,IF(E57=$O$10,Настройки!$C$10,IF(E57=$O$11,Настройки!$C$11,IF(E57=$O$12,Настройки!$C$12,IF(E57=$O$13,Настройки!$C$13,IF(E57=$O$14,Настройки!$C$14,IF(E57=$O$15,Настройки!$C$15,IF(E57=$O$16,Настройки!$C$16,IF(E57=$O$17,Настройки!$C$17,IF(E57=$O$18,Настройки!$C$18,0)))))))))))))))))*Настройки!$F$2+IF(E57=$O$2,Настройки!$C$2,IF(E57=$O$3,Настройки!$C$3,IF(E57=$O$4,Настройки!$C$4,IF(E57=$O$5,Настройки!$C$5,IF(E57=$O$6,Настройки!$C$6,IF(E57=$O$7,Настройки!$C$7,IF(E57=$O$8,Настройки!$C$8,IF(E57=$O$9,Настройки!$C$9,IF(E57=$O$10,Настройки!$C$10,IF(E57=$O$11,Настройки!$C$11,IF(E57=$O$12,Настройки!$C$12,IF(E57=$O$13,Настройки!$C$13,IF(E57=$O$14,Настройки!$C$14,IF(E57=$O$15,Настройки!$C$15,IF(E57=$O$16,Настройки!$C$16,IF(E57=$O$17,Настройки!$C$17,IF(E57=$O$18,Настройки!$C$18,0))))))))))))))))),IF(E57=$O$2,Настройки!$C$2,IF(E57=$O$3,Настройки!$C$3,IF(E57=$O$4,Настройки!$C$4,IF(E57=$O$5,Настройки!$C$5,IF(E57=$O$6,Настройки!$C$6,IF(E57=$O$7,Настройки!$C$7,IF(E57=$O$8,Настройки!$C$8,IF(E57=$O$9,Настройки!$C$9,IF(E57=$O$10,Настройки!$C$10,IF(E57=$O$11,Настройки!$C$11,IF(E57=$O$12,Настройки!$C$12,IF(E57=$O$13,Настройки!$C$13,IF(E57=$O$14,Настройки!$C$14,IF(E57=$O$15,Настройки!$C$15,IF(E57=$O$16,Настройки!$C$16,IF(E57=$O$17,Настройки!$C$17,IF(E57=$O$18,Настройки!$C$18,0)))))))))))))))))),2)-Настройки!$F$4,IF('Расчет усталости'!H57='Расчет усталости'!$O$21,0,IF(G57=$O$20,IF(E57=$O$2,Настройки!$C$2,IF(E57=$O$3,Настройки!$C$3,IF(E57=$O$4,Настройки!$C$4,IF(E57=$O$5,Настройки!$C$5,IF(E57=$O$6,Настройки!$C$6,IF(E57=$O$7,Настройки!$C$7,IF(E57=$O$8,Настройки!$C$8,IF(E57=$O$9,Настройки!$C$9,IF(E57=$O$10,Настройки!$C$10,IF(E57=$O$11,Настройки!$C$11,IF(E57=$O$12,Настройки!$C$12,IF(E57=$O$13,Настройки!$C$13,IF(E57=$O$14,Настройки!$C$14,IF(E57=$O$15,Настройки!$C$15,IF(E57=$O$16,Настройки!$C$16,IF(E57=$O$17,Настройки!$C$17,IF(E57=$O$18,Настройки!$C$18,0)))))))))))))))))*Настройки!$F$2+IF(E57=$O$2,Настройки!$C$2,IF(E57=$O$3,Настройки!$C$3,IF(E57=$O$4,Настройки!$C$4,IF(E57=$O$5,Настройки!$C$5,IF(E57=$O$6,Настройки!$C$6,IF(E57=$O$7,Настройки!$C$7,IF(E57=$O$8,Настройки!$C$8,IF(E57=$O$9,Настройки!$C$9,IF(E57=$O$10,Настройки!$C$10,IF(E57=$O$11,Настройки!$C$11,IF(E57=$O$12,Настройки!$C$12,IF(E57=$O$13,Настройки!$C$13,IF(E57=$O$14,Настройки!$C$14,IF(E57=$O$15,Настройки!$C$15,IF(E57=$O$16,Настройки!$C$16,IF(E57=$O$17,Настройки!$C$17,IF(E57=$O$18,Настройки!$C$18,0))))))))))))))))),IF(E57=$O$2,Настройки!$C$2,IF(E57=$O$3,Настройки!$C$3,IF(E57=$O$4,Настройки!$C$4,IF(E57=$O$5,Настройки!$C$5,IF(E57=$O$6,Настройки!$C$6,IF(E57=$O$7,Настройки!$C$7,IF(E57=$O$8,Настройки!$C$8,IF(E57=$O$9,Настройки!$C$9,IF(E57=$O$10,Настройки!$C$10,IF(E57=$O$11,Настройки!$C$11,IF(E57=$O$12,Настройки!$C$12,IF(E57=$O$13,Настройки!$C$13,IF(E57=$O$14,Настройки!$C$14,IF(E57=$O$15,Настройки!$C$15,IF(E57=$O$16,Настройки!$C$16,IF(E57=$O$17,Настройки!$C$17,IF(E57=$O$18,Настройки!$C$18,0))))))))))))))))))))),2) -> 0.17 | K57: =IF(SUM($I$2:I57)-SUM($C$2:C57)<0,0,ROUND(SUM($I$2:I57)-SUM($C$2:C57),2)) -> 1.4 | L57: =IF(SUM($J$2:J57)-SUM($C$2:C57)<0,0,ROUND(SUM($J$2:J57)-SUM($C$2:C57),2)) -> 1.88
A58: Ср | B58: 10 | C58: =Настройки!$F$3 -> 0.1 | D58: 38 | E58: ЧЕМ | F58: =COUNTIF($E$2:E58,"ЧЕМ") -> 16 | I58: =ROUND(IF(AND(M58=$O$22,H58=$O$21),0-Настройки!$F$4,IF('Расчет усталости'!M58='Расчет усталости'!$O$22,IF(E58=$O$2,Настройки!$C$2,IF(E58=$O$3,Настройки!$C$3,IF(E58=$O$4,Настройки!$C$4,IF(E58=$O$5,Настройки!$C$5,IF(E58=$O$6,Настройки!$C$6,IF(E58=$O$7,Настройки!$C$7,IF(E58=$O$8,Настройки!$C$8,IF(E58=$O$9,Настройки!$C$9,IF(E58=$O$10,Настройки!$C$10,IF(E58=$O$11,Настройки!$C$11,IF(E58=$O$12,Настройки!$C$12,IF(E58=$O$13,Настройки!$C$13,IF(E58=$O$14,Настройки!$C$14,IF(E58=$O$15,Настройки!$C$15,IF(E58=$O$16,Настройки!$C$16,IF(E58=$O$17,Настройки!$C$17,IF(E58=$O$18,Настройки!$C$18,0)))))))))))))))))-Настройки!$F$4,IF('Расчет усталости'!H58='Расчет усталости'!$O$21,0,IF(E58=$O$2,Настройки!$C$2,IF(E58=$O$3,Настройки!$C$3,IF(E58=$O$4,Настройки!$C$4,IF(E58=$O$5,Настройки!$C$5,IF(E58=$O$6,Настройки!$C$6,IF(E58=$O$7,Настройки!$C$7,IF(E58=$O$8,Настройки!$C$8,IF(E58=$O$9,Настройки!$C$9,IF(E58=$O$10,Настройки!$C$10,IF(E58=$O$11,Настройки!$C$11,IF(E58=$O$12,Настройки!$C$12,IF(E58=$O$13,Настройки!$C$13,IF(E58=$O$14,Настройки!$C$14,IF(E58=$O$15,Настройки!$C$15,IF(E58=$O$16,Настройки!$C$16,IF(E58=$O$17,Настройки!$C$17,IF(E58=$O$18,Настройки!$C$18,0)))))))))))))))))))),2) -> 0.3 | J58: =ROUND(IF(AND(M58=$O$22,H58=$O$21),0-Настройки!$F$4,IF('Расчет усталости'!M58='Расчет усталости'!$O$22,ROUND(IF(G58=$O$20,IF(E58=$O$2,Настройки!$C$2,IF(E58=$O$3,Настройки!$C$3,IF(E58=$O$4,Настройки!$C$4,IF(E58=$O$5,Настройки!$C$5,IF(E58=$O$6,Настройки!$C$6,IF(E58=$O$7,Настройки!$C$7,IF(E58=$O$8,Настройки!$C$8,IF(E58=$O$9,Настройки!$C$9,IF(E58=$O$10,Настройки!$C$10,IF(E58=$O$11,Настройки!$C$11,IF(E58=$O$12,Настройки!$C$12,IF(E58=$O$13,Настройки!$C$13,IF(E58=$O$14,Настройки!$C$14,IF(E58=$O$15,Настройки!$C$15,IF(E58=$O$16,Настройки!$C$16,IF(E58=$O$17,Настройки!$C$17,IF(E58=$O$18,Настройки!$C$18,0)))))))))))))))))*Настройки!$F$2+IF(E58=$O$2,Настройки!$C$2,IF(E58=$O$3,Настройки!$C$3,IF(E58=$O$4,Настройки!$C$4,IF(E58=$O$5,Настройки!$C$5,IF(E58=$O$6,Настройки!$C$6,IF(E58=$O$7,Настройки!$C$7,IF(E58=$O$8,Настройки!$C$8,IF(E58=$O$9,Настройки!$C$9,IF(E58=$O$10,Настройки!$C$10,IF(E58=$O$11,Настройки!$C$11,IF(E58=$O$12,Настройки!$C$12,IF(E58=$O$13,Настройки!$C$13,IF(E58=$O$14,Настройки!$C$14,IF(E58=$O$15,Настройки!$C$15,IF(E58=$O$16,Настройки!$C$16,IF(E58=$O$17,Настройки!$C$17,IF(E58=$O$18,Настройки!$C$18,0))))))))))))))))),IF(E58=$O$2,Настройки!$C$2,IF(E58=$O$3,Настройки!$C$3,IF(E58=$O$4,Настройки!$C$4,IF(E58=$O$5,Настройки!$C$5,IF(E58=$O$6,Настройки!$C$6,IF(E58=$O$7,Настройки!$C$7,IF(E58=$O$8,Настройки!$C$8,IF(E58=$O$9,Настройки!$C$9,IF(E58=$O$10,Настройки!$C$10,IF(E58=$O$11,Настройки!$C$11,IF(E58=$O$12,Настройки!$C$12,IF(E58=$O$13,Настройки!$C$13,IF(E58=$O$14,Настройки!$C$14,IF(E58=$O$15,Настройки!$C$15,IF(E58=$O$16,Настройки!$C$16,IF(E58=$O$17,Настройки!$C$17,IF(E58=$O$18,Настройки!$C$18,0)))))))))))))))))),2)-Настройки!$F$4,IF('Расчет усталости'!H58='Расчет усталости'!$O$21,0,IF(G58=$O$20,IF(E58=$O$2,Настройки!$C$2,IF(E58=$O$3,Настройки!$C$3,IF(E58=$O$4,Настройки!$C$4,IF(E58=$O$5,Настройки!$C$5,IF(E58=$O$6,Настройки!$C$6,IF(E58=$O$7,Настройки!$C$7,IF(E58=$O$8,Настройки!$C$8,IF(E58=$O$9,Настройки!$C$9,IF(E58=$O$10,Настройки!$C$10,IF(E58=$O$11,Настройки!$C$11,IF(E58=$O$12,Настройки!$C$12,IF(E58=$O$13,Настройки!$C$13,IF(E58=$O$14,Настройки!$C$14,IF(E58=$O$15,Настройки!$C$15,IF(E58=$O$16,Настройки!$C$16,IF(E58=$O$17,Настройки!$C$17,IF(E58=$O$18,Настройки!$C$18,0)))))))))))))))))*Настройки!$F$2+IF(E58=$O$2,Настройки!$C$2,IF(E58=$O$3,Настройки!$C$3,IF(E58=$O$4,Настройки!$C$4,IF(E58=$O$5,Настройки!$C$5,IF(E58=$O$6,Настройки!$C$6,IF(E58=$O$7,Настройки!$C$7,IF(E58=$O$8,Настройки!$C$8,IF(E58=$O$9,Настройки!$C$9,IF(E58=$O$10,Настройки!$C$10,IF(E58=$O$11,Настройки!$C$11,IF(E58=$O$12,Настройки!$C$12,IF(E58=$O$13,Настройки!$C$13,IF(E58=$O$14,Настройки!$C$14,IF(E58=$O$15,Настройки!$C$15,IF(E58=$O$16,Настройки!$C$16,IF(E58=$O$17,Настройки!$C$17,IF(E58=$O$18,Настройки!$C$18,0))))))))))))))))),IF(E58=$O$2,Настройки!$C$2,IF(E58=$O$3,Настройки!$C$3,IF(E58=$O$4,Настройки!$C$4,IF(E58=$O$5,Настройки!$C$5,IF(E58=$O$6,Настройки!$C$6,IF(E58=$O$7,Настройки!$C$7,IF(E58=$O$8,Настройки!$C$8,IF(E58=$O$9,Настройки!$C$9,IF(E58=$O$10,Настройки!$C$10,IF(E58=$O$11,Настройки!$C$11,IF(E58=$O$12,Настройки!$C$12,IF(E58=$O$13,Настройки!$C$13,IF(E58=$O$14,Настройки!$C$14,IF(E58=$O$15,Настройки!$C$15,IF(E58=$O$16,Настройки!$C$16,IF(E58=$O$17,Настройки!$C$17,IF(E58=$O$18,Настройки!$C$18,0))))))))))))))))))))),2) -> 0.3 | K58: =IF(SUM($I$2:I58)-SUM($C$2:C58)<0,0,ROUND(SUM($I$2:I58)-SUM($C$2:C58),2)) -> 1.6 | L58: =IF(SUM($J$2:J58)-SUM($C$2:C58)<0,0,ROUND(SUM($J$2:J58)-SUM($C$2:C58),2)) -> 2.08
A59: Чт | B59: 10 | C59: =Настройки!$F$3 -> 0.1 | D59: 39 | E59: КТ | F59: =COUNTIF($E$2:E59,"ЧЕМ") -> 16 | I59: =ROUND(IF(AND(M59=$O$22,H59=$O$21),0-Настройки!$F$4,IF('Расчет усталости'!M59='Расчет усталости'!$O$22,IF(E59=$O$2,Настройки!$C$2,IF(E59=$O$3,Настройки!$C$3,IF(E59=$O$4,Настройки!$C$4,IF(E59=$O$5,Настройки!$C$5,IF(E59=$O$6,Настройки!$C$6,IF(E59=$O$7,Настройки!$C$7,IF(E59=$O$8,Настройки!$C$8,IF(E59=$O$9,Настройки!$C$9,IF(E59=$O$10,Настройки!$C$10,IF(E59=$O$11,Настройки!$C$11,IF(E59=$O$12,Настройки!$C$12,IF(E59=$O$13,Настройки!$C$13,IF(E59=$O$14,Настройки!$C$14,IF(E59=$O$15,Настройки!$C$15,IF(E59=$O$16,Настройки!$C$16,IF(E59=$O$17,Настройки!$C$17,IF(E59=$O$18,Настройки!$C$18,0)))))))))))))))))-Настройки!$F$4,IF('Расчет усталости'!H59='Расчет усталости'!$O$21,0,IF(E59=$O$2,Настройки!$C$2,IF(E59=$O$3,Настройки!$C$3,IF(E59=$O$4,Настройки!$C$4,IF(E59=$O$5,Настройки!$C$5,IF(E59=$O$6,Настройки!$C$6,IF(E59=$O$7,Настройки!$C$7,IF(E59=$O$8,Настройки!$C$8,IF(E59=$O$9,Настройки!$C$9,IF(E59=$O$10,Настройки!$C$10,IF(E59=$O$11,Настройки!$C$11,IF(E59=$O$12,Настройки!$C$12,IF(E59=$O$13,Настройки!$C$13,IF(E59=$O$14,Настройки!$C$14,IF(E59=$O$15,Настройки!$C$15,IF(E59=$O$16,Настройки!$C$16,IF(E59=$O$17,Настройки!$C$17,IF(E59=$O$18,Настройки!$C$18,0)))))))))))))))))))),2) -> 0.15 | J59: =ROUND(IF(AND(M59=$O$22,H59=$O$21),0-Настройки!$F$4,IF('Расчет усталости'!M59='Расчет усталости'!$O$22,ROUND(IF(G59=$O$20,IF(E59=$O$2,Настройки!$C$2,IF(E59=$O$3,Настройки!$C$3,IF(E59=$O$4,Настройки!$C$4,IF(E59=$O$5,Настройки!$C$5,IF(E59=$O$6,Настройки!$C$6,IF(E59=$O$7,Настройки!$C$7,IF(E59=$O$8,Настройки!$C$8,IF(E59=$O$9,Настройки!$C$9,IF(E59=$O$10,Настройки!$C$10,IF(E59=$O$11,Настройки!$C$11,IF(E59=$O$12,Настройки!$C$12,IF(E59=$O$13,Настройки!$C$13,IF(E59=$O$14,Настройки!$C$14,IF(E59=$O$15,Настройки!$C$15,IF(E59=$O$16,Настройки!$C$16,IF(E59=$O$17,Настройки!$C$17,IF(E59=$O$18,Настройки!$C$18,0)))))))))))))))))*Настройки!$F$2+IF(E59=$O$2,Настройки!$C$2,IF(E59=$O$3,Настройки!$C$3,IF(E59=$O$4,Настройки!$C$4,IF(E59=$O$5,Настройки!$C$5,IF(E59=$O$6,Настройки!$C$6,IF(E59=$O$7,Настройки!$C$7,IF(E59=$O$8,Настройки!$C$8,IF(E59=$O$9,Настройки!$C$9,IF(E59=$O$10,Настройки!$C$10,IF(E59=$O$11,Настройки!$C$11,IF(E59=$O$12,Настройки!$C$12,IF(E59=$O$13,Настройки!$C$13,IF(E59=$O$14,Настройки!$C$14,IF(E59=$O$15,Настройки!$C$15,IF(E59=$O$16,Настройки!$C$16,IF(E59=$O$17,Настройки!$C$17,IF(E59=$O$18,Настройки!$C$18,0))))))))))))))))),IF(E59=$O$2,Настройки!$C$2,IF(E59=$O$3,Настройки!$C$3,IF(E59=$O$4,Настройки!$C$4,IF(E59=$O$5,Настройки!$C$5,IF(E59=$O$6,Настройки!$C$6,IF(E59=$O$7,Настройки!$C$7,IF(E59=$O$8,Настройки!$C$8,IF(E59=$O$9,Настройки!$C$9,IF(E59=$O$10,Настройки!$C$10,IF(E59=$O$11,Настройки!$C$11,IF(E59=$O$12,Настройки!$C$12,IF(E59=$O$13,Настройки!$C$13,IF(E59=$O$14,Настройки!$C$14,IF(E59=$O$15,Настройки!$C$15,IF(E59=$O$16,Настройки!$C$16,IF(E59=$O$17,Настройки!$C$17,IF(E59=$O$18,Настройки!$C$18,0)))))))))))))))))),2)-Настройки!$F$4,IF('Расчет усталости'!H59='Расчет усталости'!$O$21,0,IF(G59=$O$20,IF(E59=$O$2,Настройки!$C$2,IF(E59=$O$3,Настройки!$C$3,IF(E59=$O$4,Настройки!$C$4,IF(E59=$O$5,Настройки!$C$5,IF(E59=$O$6,Настройки!$C$6,IF(E59=$O$7,Настройки!$C$7,IF(E59=$O$8,Настройки!$C$8,IF(E59=$O$9,Настройки!$C$9,IF(E59=$O$10,Настройки!$C$10,IF(E59=$O$11,Настройки!$C$11,IF(E59=$O$12,Настройки!$C$12,IF(E59=$O$13,Настройки!$C$13,IF(E59=$O$14,Настройки!$C$14,IF(E59=$O$15,Настройки!$C$15,IF(E59=$O$16,Настройки!$C$16,IF(E59=$O$17,Настройки!$C$17,IF(E59=$O$18,Настройки!$C$18,0)))))))))))))))))*Настройки!$F$2+IF(E59=$O$2,Настройки!$C$2,IF(E59=$O$3,Настройки!$C$3,IF(E59=$O$4,Настройки!$C$4,IF(E59=$O$5,Настройки!$C$5,IF(E59=$O$6,Настройки!$C$6,IF(E59=$O$7,Настройки!$C$7,IF(E59=$O$8,Настройки!$C$8,IF(E59=$O$9,Настройки!$C$9,IF(E59=$O$10,Настройки!$C$10,IF(E59=$O$11,Настройки!$C$11,IF(E59=$O$12,Настройки!$C$12,IF(E59=$O$13,Настройки!$C$13,IF(E59=$O$14,Настройки!$C$14,IF(E59=$O$15,Настройки!$C$15,IF(E59=$O$16,Настройки!$C$16,IF(E59=$O$17,Настройки!$C$17,IF(E59=$O$18,Настройки!$C$18,0))))))))))))))))),IF(E59=$O$2,Настройки!$C$2,IF(E59=$O$3,Настройки!$C$3,IF(E59=$O$4,Настройки!$C$4,IF(E59=$O$5,Настройки!$C$5,IF(E59=$O$6,Настройки!$C$6,IF(E59=$O$7,Настройки!$C$7,IF(E59=$O$8,Настройки!$C$8,IF(E59=$O$9,Настройки!$C$9,IF(E59=$O$10,Настройки!$C$10,IF(E59=$O$11,Настройки!$C$11,IF(E59=$O$12,Настройки!$C$12,IF(E59=$O$13,Настройки!$C$13,IF(E59=$O$14,Настройки!$C$14,IF(E59=$O$15,Настройки!$C$15,IF(E59=$O$16,Настройки!$C$16,IF(E59=$O$17,Настройки!$C$17,IF(E59=$O$18,Настройки!$C$18,0))))))))))))))))))))),2) -> 0.15 | K59: =IF(SUM($I$2:I59)-SUM($C$2:C59)<0,0,ROUND(SUM($I$2:I59)-SUM($C$2:C59),2)) -> 1.65 | L59: =IF(SUM($J$2:J59)-SUM($C$2:C59)<0,0,ROUND(SUM($J$2:J59)-SUM($C$2:C59),2)) -> 2.13
A60: Пт | B60: 10 | C60: =Настройки!$F$3 -> 0.1 | F60: =COUNTIF($E$2:E60,"ЧЕМ") -> 16 | I60: =ROUND(IF(AND(M60=$O$22,H60=$O$21),0-Настройки!$F$4,IF('Расчет усталости'!M60='Расчет усталости'!$O$22,IF(E60=$O$2,Настройки!$C$2,IF(E60=$O$3,Настройки!$C$3,IF(E60=$O$4,Настройки!$C$4,IF(E60=$O$5,Настройки!$C$5,IF(E60=$O$6,Настройки!$C$6,IF(E60=$O$7,Настройки!$C$7,IF(E60=$O$8,Настройки!$C$8,IF(E60=$O$9,Настройки!$C$9,IF(E60=$O$10,Настройки!$C$10,IF(E60=$O$11,Настройки!$C$11,IF(E60=$O$12,Настройки!$C$12,IF(E60=$O$13,Настройки!$C$13,IF(E60=$O$14,Настройки!$C$14,IF(E60=$O$15,Настройки!$C$15,IF(E60=$O$16,Настройки!$C$16,IF(E60=$O$17,Настройки!$C$17,IF(E60=$O$18,Настройки!$C$18,0)))))))))))))))))-Настройки!$F$4,IF('Расчет усталости'!H60='Расчет усталости'!$O$21,0,IF(E60=$O$2,Настройки!$C$2,IF(E60=$O$3,Настройки!$C$3,IF(E60=$O$4,Настройки!$C$4,IF(E60=$O$5,Настройки!$C$5,IF(E60=$O$6,Настройки!$C$6,IF(E60=$O$7,Настройки!$C$7,IF(E60=$O$8,Настройки!$C$8,IF(E60=$O$9,Настройки!$C$9,IF(E60=$O$10,Настройки!$C$10,IF(E60=$O$11,Настройки!$C$11,IF(E60=$O$12,Настройки!$C$12,IF(E60=$O$13,Настройки!$C$13,IF(E60=$O$14,Настройки!$C$14,IF(E60=$O$15,Настройки!$C$15,IF(E60=$O$16,Настройки!$C$16,IF(E60=$O$17,Настройки!$C$17,IF(E60=$O$18,Настройки!$C$18,0)))))))))))))))))))),2) -> 0 | J60: =ROUND(IF(AND(M60=$O$22,H60=$O$21),0-Настройки!$F$4,IF('Расчет усталости'!M60='Расчет усталости'!$O$22,ROUND(IF(G60=$O$20,IF(E60=$O$2,Настройки!$C$2,IF(E60=$O$3,Настройки!$C$3,IF(E60=$O$4,Настройки!$C$4,IF(E60=$O$5,Настройки!$C$5,IF(E60=$O$6,Настройки!$C$6,IF(E60=$O$7,Настройки!$C$7,IF(E60=$O$8,Настройки!$C$8,IF(E60=$O$9,Настройки!$C$9,IF(E60=$O$10,Настройки!$C$10,IF(E60=$O$11,Настройки!$C$11,IF(E60=$O$12,Настройки!$C$12,IF(E60=$O$13,Настройки!$C$13,IF(E60=$O$14,Настройки!$C$14,IF(E60=$O$15,Настройки!$C$15,IF(E60=$O$16,Настройки!$C$16,IF(E60=$O$17,Настройки!$C$17,IF(E60=$O$18,Настройки!$C$18,0)))))))))))))))))*Настройки!$F$2+IF(E60=$O$2,Настройки!$C$2,IF(E60=$O$3,Настройки!$C$3,IF(E60=$O$4,Настройки!$C$4,IF(E60=$O$5,Настройки!$C$5,IF(E60=$O$6,Настройки!$C$6,IF(E60=$O$7,Настройки!$C$7,IF(E60=$O$8,Настройки!$C$8,IF(E60=$O$9,Настройки!$C$9,IF(E60=$O$10,Настройки!$C$10,IF(E60=$O$11,Настройки!$C$11,IF(E60=$O$12,Настройки!$C$12,IF(E60=$O$13,Настройки!$C$13,IF(E60=$O$14,Настройки!$C$14,IF(E60=$O$15,Настройки!$C$15,IF(E60=$O$16,Настройки!$C$16,IF(E60=$O$17,Настройки!$C$17,IF(E60=$O$18,Настройки!$C$18,0))))))))))))))))),IF(E60=$O$2,Настройки!$C$2,IF(E60=$O$3,Настройки!$C$3,IF(E60=$O$4,Настройки!$C$4,IF(E60=$O$5,Настройки!$C$5,IF(E60=$O$6,Настройки!$C$6,IF(E60=$O$7,Настройки!$C$7,IF(E60=$O$8,Настройки!$C$8,IF(E60=$O$9,Настройки!$C$9,IF(E60=$O$10,Настройки!$C$10,IF(E60=$O$11,Настройки!$C$11,IF(E60=$O$12,Настройки!$C$12,IF(E60=$O$13,Настройки!$C$13,IF(E60=$O$14,Настройки!$C$14,IF(E60=$O$15,Настройки!$C$15,IF(E60=$O$16,Настройки!$C$16,IF(E60=$O$17,Настройки!$C$17,IF(E60=$O$18,Настройки!$C$18,0)))))))))))))))))),2)-Настройки!$F$4,IF('Расчет усталости'!H60='Расчет усталости'!$O$21,0,IF(G60=$O$20,IF(E60=$O$2,Настройки!$C$2,IF(E60=$O$3,Настройки!$C$3,IF(E60=$O$4,Настройки!$C$4,IF(E60=$O$5,Настройки!$C$5,IF(E60=$O$6,Настройки!$C$6,IF(E60=$O$7,Настройки!$C$7,IF(E60=$O$8,Настройки!$C$8,IF(E60=$O$9,Настройки!$C$9,IF(E60=$O$10,Настройки!$C$10,IF(E60=$O$11,Настройки!$C$11,IF(E60=$O$12,Настройки!$C$12,IF(E60=$O$13,Настройки!$C$13,IF(E60=$O$14,Настройки!$C$14,IF(E60=$O$15,Настройки!$C$15,IF(E60=$O$16,Настройки!$C$16,IF(E60=$O$17,Настройки!$C$17,IF(E60=$O$18,Настройки!$C$18,0)))))))))))))))))*Настройки!$F$2+IF(E60=$O$2,Настройки!$C$2,IF(E60=$O$3,Настройки!$C$3,IF(E60=$O$4,Настройки!$C$4,IF(E60=$O$5,Настройки!$C$5,IF(E60=$O$6,Настройки!$C$6,IF(E60=$O$7,Настройки!$C$7,IF(E60=$O$8,Настройки!$C$8,IF(E60=$O$9,Настройки!$C$9,IF(E60=$O$10,Настройки!$C$10,IF(E60=$O$11,Настройки!$C$11,IF(E60=$O$12,Настройки!$C$12,IF(E60=$O$13,Настройки!$C$13,IF(E60=$O$14,Настройки!$C$14,IF(E60=$O$15,Настройки!$C$15,IF(E60=$O$16,Настройки!$C$16,IF(E60=$O$17,Настройки!$C$17,IF(E60=$O$18,Настройки!$C$18,0))))))))))))))))),IF(E60=$O$2,Настройки!$C$2,IF(E60=$O$3,Настройки!$C$3,IF(E60=$O$4,Настройки!$C$4,IF(E60=$O$5,Настройки!$C$5,IF(E60=$O$6,Настройки!$C$6,IF(E60=$O$7,Настройки!$C$7,IF(E60=$O$8,Настройки!$C$8,IF(E60=$O$9,Настройки!$C$9,IF(E60=$O$10,Настройки!$C$10,IF(E60=$O$11,Настройки!$C$11,IF(E60=$O$12,Настройки!$C$12,IF(E60=$O$13,Настройки!$C$13,IF(E60=$O$14,Настройки!$C$14,IF(E60=$O$15,Настройки!$C$15,IF(E60=$O$16,Настройки!$C$16,IF(E60=$O$17,Настройки!$C$17,IF(E60=$O$18,Настройки!$C$18,0))))))))))))))))))))),2) -> 0 | K60: =IF(SUM($I$2:I60)-SUM($C$2:C60)<0,0,ROUND(SUM($I$2:I60)-SUM($C$2:C60),2)) -> 1.55 | L60: =IF(SUM($J$2:J60)-SUM($C$2:C60)<0,0,ROUND(SUM($J$2:J60)-SUM($C$2:C60),2)) -> 2.03
A61: Сб | B61: 10 | C61: =Настройки!$F$3 -> 0.1 | D61: 40 | E61: ЧЕМ | F61: =COUNTIF($E$2:E61,"ЧЕМ") -> 17 | G61: Г | I61: =ROUND(IF(AND(M61=$O$22,H61=$O$21),0-Настройки!$F$4,IF('Расчет усталости'!M61='Расчет усталости'!$O$22,IF(E61=$O$2,Настройки!$C$2,IF(E61=$O$3,Настройки!$C$3,IF(E61=$O$4,Настройки!$C$4,IF(E61=$O$5,Настройки!$C$5,IF(E61=$O$6,Настройки!$C$6,IF(E61=$O$7,Настройки!$C$7,IF(E61=$O$8,Настройки!$C$8,IF(E61=$O$9,Настройки!$C$9,IF(E61=$O$10,Настройки!$C$10,IF(E61=$O$11,Настройки!$C$11,IF(E61=$O$12,Настройки!$C$12,IF(E61=$O$13,Настройки!$C$13,IF(E61=$O$14,Настройки!$C$14,IF(E61=$O$15,Настройки!$C$15,IF(E61=$O$16,Настройки!$C$16,IF(E61=$O$17,Настройки!$C$17,IF(E61=$O$18,Настройки!$C$18,0)))))))))))))))))-Настройки!$F$4,IF('Расчет усталости'!H61='Расчет усталости'!$O$21,0,IF(E61=$O$2,Настройки!$C$2,IF(E61=$O$3,Настройки!$C$3,IF(E61=$O$4,Настройки!$C$4,IF(E61=$O$5,Настройки!$C$5,IF(E61=$O$6,Настройки!$C$6,IF(E61=$O$7,Настройки!$C$7,IF(E61=$O$8,Настройки!$C$8,IF(E61=$O$9,Настройки!$C$9,IF(E61=$O$10,Настройки!$C$10,IF(E61=$O$11,Настройки!$C$11,IF(E61=$O$12,Настройки!$C$12,IF(E61=$O$13,Настройки!$C$13,IF(E61=$O$14,Настройки!$C$14,IF(E61=$O$15,Настройки!$C$15,IF(E61=$O$16,Настройки!$C$16,IF(E61=$O$17,Настройки!$C$17,IF(E61=$O$18,Настройки!$C$18,0)))))))))))))))))))),2) -> 0.3 | J61: =ROUND(IF(AND(M61=$O$22,H61=$O$21),0-Настройки!$F$4,IF('Расчет усталости'!M61='Расчет усталости'!$O$22,ROUND(IF(G61=$O$20,IF(E61=$O$2,Настройки!$C$2,IF(E61=$O$3,Настройки!$C$3,IF(E61=$O$4,Настройки!$C$4,IF(E61=$O$5,Настройки!$C$5,IF(E61=$O$6,Настройки!$C$6,IF(E61=$O$7,Настройки!$C$7,IF(E61=$O$8,Настройки!$C$8,IF(E61=$O$9,Настройки!$C$9,IF(E61=$O$10,Настройки!$C$10,IF(E61=$O$11,Настройки!$C$11,IF(E61=$O$12,Настройки!$C$12,IF(E61=$O$13,Настройки!$C$13,IF(E61=$O$14,Настройки!$C$14,IF(E61=$O$15,Настройки!$C$15,IF(E61=$O$16,Настройки!$C$16,IF(E61=$O$17,Настройки!$C$17,IF(E61=$O$18,Настройки!$C$18,0)))))))))))))))))*Настройки!$F$2+IF(E61=$O$2,Настройки!$C$2,IF(E61=$O$3,Настройки!$C$3,IF(E61=$O$4,Настройки!$C$4,IF(E61=$O$5,Настройки!$C$5,IF(E61=$O$6,Настройки!$C$6,IF(E61=$O$7,Настройки!$C$7,IF(E61=$O$8,Настройки!$C$8,IF(E61=$O$9,Настройки!$C$9,IF(E61=$O$10,Настройки!$C$10,IF(E61=$O$11,Настройки!$C$11,IF(E61=$O$12,Настройки!$C$12,IF(E61=$O$13,Настройки!$C$13,IF(E61=$O$14,Настройки!$C$14,IF(E61=$O$15,Настройки!$C$15,IF(E61=$O$16,Настройки!$C$16,IF(E61=$O$17,Настройки!$C$17,IF(E61=$O$18,Настройки!$C$18,0))))))))))))))))),IF(E61=$O$2,Настройки!$C$2,IF(E61=$O$3,Настройки!$C$3,IF(E61=$O$4,Настройки!$C$4,IF(E61=$O$5,Настройки!$C$5,IF(E61=$O$6,Настройки!$C$6,IF(E61=$O$7,Настройки!$C$7,IF(E61=$O$8,Настройки!$C$8,IF(E61=$O$9,Настройки!$C$9,IF(E61=$O$10,Настройки!$C$10,IF(E61=$O$11,Настройки!$C$11,IF(E61=$O$12,Настройки!$C$12,IF(E61=$O$13,Настройки!$C$13,IF(E61=$O$14,Настройки!$C$14,IF(E61=$O$15,Настройки!$C$15,IF(E61=$O$16,Настройки!$C$16,IF(E61=$O$17,Настройки!$C$17,IF(E61=$O$18,Настройки!$C$18,0)))))))))))))))))),2)-Настройки!$F$4,IF('Расчет усталости'!H61='Расчет усталости'!$O$21,0,IF(G61=$O$20,IF(E61=$O$2,Настройки!$C$2,IF(E61=$O$3,Настройки!$C$3,IF(E61=$O$4,Настройки!$C$4,IF(E61=$O$5,Настройки!$C$5,IF(E61=$O$6,Настройки!$C$6,IF(E61=$O$7,Настройки!$C$7,IF(E61=$O$8,Настройки!$C$8,IF(E61=$O$9,Настройки!$C$9,IF(E61=$O$10,Настройки!$C$10,IF(E61=$O$11,Настройки!$C$11,IF(E61=$O$12,Настройки!$C$12,IF(E61=$O$13,Настройки!$C$13,IF(E61=$O$14,Настройки!$C$14,IF(E61=$O$15,Настройки!$C$15,IF(E61=$O$16,Настройки!$C$16,IF(E61=$O$17,Настройки!$C$17,IF(E61=$O$18,Настройки!$C$18,0)))))))))))))))))*Настройки!$F$2+IF(E61=$O$2,Настройки!$C$2,IF(E61=$O$3,Настройки!$C$3,IF(E61=$O$4,Настройки!$C$4,IF(E61=$O$5,Настройки!$C$5,IF(E61=$O$6,Настройки!$C$6,IF(E61=$O$7,Настройки!$C$7,IF(E61=$O$8,Настройки!$C$8,IF(E61=$O$9,Настройки!$C$9,IF(E61=$O$10,Настройки!$C$10,IF(E61=$O$11,Настройки!$C$11,IF(E61=$O$12,Настройки!$C$12,IF(E61=$O$13,Настройки!$C$13,IF(E61=$O$14,Настройки!$C$14,IF(E61=$O$15,Настройки!$C$15,IF(E61=$O$16,Настройки!$C$16,IF(E61=$O$17,Настройки!$C$17,IF(E61=$O$18,Настройки!$C$18,0))))))))))))))))),IF(E61=$O$2,Настройки!$C$2,IF(E61=$O$3,Настройки!$C$3,IF(E61=$O$4,Настройки!$C$4,IF(E61=$O$5,Настройки!$C$5,IF(E61=$O$6,Настройки!$C$6,IF(E61=$O$7,Настройки!$C$7,IF(E61=$O$8,Настройки!$C$8,IF(E61=$O$9,Настройки!$C$9,IF(E61=$O$10,Настройки!$C$10,IF(E61=$O$11,Настройки!$C$11,IF(E61=$O$12,Настройки!$C$12,IF(E61=$O$13,Настройки!$C$13,IF(E61=$O$14,Настройки!$C$14,IF(E61=$O$15,Настройки!$C$15,IF(E61=$O$16,Настройки!$C$16,IF(E61=$O$17,Настройки!$C$17,IF(E61=$O$18,Настройки!$C$18,0))))))))))))))))))))),2) -> 0.33 | K61: =IF(SUM($I$2:I61)-SUM($C$2:C61)<0,0,ROUND(SUM($I$2:I61)-SUM($C$2:C61),2)) -> 1.75 | L61: =IF(SUM($J$2:J61)-SUM($C$2:C61)<0,0,ROUND(SUM($J$2:J61)-SUM($C$2:C61),2)) -> 2.26
A62: Пн | B62: 11 | C62: =Настройки!$F$3 -> 0.1 | F62: =COUNTIF($E$2:E62,"ЧЕМ") -> 17 | I62: =ROUND(IF(AND(M62=$O$22,H62=$O$21),0-Настройки!$F$4,IF('Расчет усталости'!M62='Расчет усталости'!$O$22,IF(E62=$O$2,Настройки!$C$2,IF(E62=$O$3,Настройки!$C$3,IF(E62=$O$4,Настройки!$C$4,IF(E62=$O$5,Настройки!$C$5,IF(E62=$O$6,Настройки!$C$6,IF(E62=$O$7,Настройки!$C$7,IF(E62=$O$8,Настройки!$C$8,IF(E62=$O$9,Настройки!$C$9,IF(E62=$O$10,Настройки!$C$10,IF(E62=$O$11,Настройки!$C$11,IF(E62=$O$12,Настройки!$C$12,IF(E62=$O$13,Настройки!$C$13,IF(E62=$O$14,Настройки!$C$14,IF(E62=$O$15,Настройки!$C$15,IF(E62=$O$16,Настройки!$C$16,IF(E62=$O$17,Настройки!$C$17,IF(E62=$O$18,Настройки!$C$18,0)))))))))))))))))-Настройки!$F$4,IF('Расчет усталости'!H62='Расчет усталости'!$O$21,0,IF(E62=$O$2,Настройки!$C$2,IF(E62=$O$3,Настройки!$C$3,IF(E62=$O$4,Настройки!$C$4,IF(E62=$O$5,Настройки!$C$5,IF(E62=$O$6,Настройки!$C$6,IF(E62=$O$7,Настройки!$C$7,IF(E62=$O$8,Настройки!$C$8,IF(E62=$O$9,Настройки!$C$9,IF(E62=$O$10,Настройки!$C$10,IF(E62=$O$11,Настройки!$C$11,IF(E62=$O$12,Настройки!$C$12,IF(E62=$O$13,Настройки!$C$13,IF(E62=$O$14,Настройки!$C$14,IF(E62=$O$15,Настройки!$C$15,IF(E62=$O$16,Настройки!$C$16,IF(E62=$O$17,Настройки!$C$17,IF(E62=$O$18,Настройки!$C$18,0)))))))))))))))))))),2) -> -0.25 | J62: =ROUND(IF(AND(M62=$O$22,H62=$O$21),0-Настройки!$F$4,IF('Расчет усталости'!M62='Расчет усталости'!$O$22,ROUND(IF(G62=$O$20,IF(E62=$O$2,Настройки!$C$2,IF(E62=$O$3,Настройки!$C$3,IF(E62=$O$4,Настройки!$C$4,IF(E62=$O$5,Настройки!$C$5,IF(E62=$O$6,Настройки!$C$6,IF(E62=$O$7,Настройки!$C$7,IF(E62=$O$8,Настройки!$C$8,IF(E62=$O$9,Настройки!$C$9,IF(E62=$O$10,Настройки!$C$10,IF(E62=$O$11,Настройки!$C$11,IF(E62=$O$12,Настройки!$C$12,IF(E62=$O$13,Настройки!$C$13,IF(E62=$O$14,Настройки!$C$14,IF(E62=$O$15,Настройки!$C$15,IF(E62=$O$16,Настройки!$C$16,IF(E62=$O$17,Настройки!$C$17,IF(E62=$O$18,Настройки!$C$18,0)))))))))))))))))*Настройки!$F$2+IF(E62=$O$2,Настройки!$C$2,IF(E62=$O$3,Настройки!$C$3,IF(E62=$O$4,Настройки!$C$4,IF(E62=$O$5,Настройки!$C$5,IF(E62=$O$6,Настройки!$C$6,IF(E62=$O$7,Настройки!$C$7,IF(E62=$O$8,Настройки!$C$8,IF(E62=$O$9,Настройки!$C$9,IF(E62=$O$10,Настройки!$C$10,IF(E62=$O$11,Настройки!$C$11,IF(E62=$O$12,Настройки!$C$12,IF(E62=$O$13,Настройки!$C$13,IF(E62=$O$14,Настройки!$C$14,IF(E62=$O$15,Настройки!$C$15,IF(E62=$O$16,Настройки!$C$16,IF(E62=$O$17,Настройки!$C$17,IF(E62=$O$18,Настройки!$C$18,0))))))))))))))))),IF(E62=$O$2,Настройки!$C$2,IF(E62=$O$3,Настройки!$C$3,IF(E62=$O$4,Настройки!$C$4,IF(E62=$O$5,Настройки!$C$5,IF(E62=$O$6,Настройки!$C$6,IF(E62=$O$7,Настройки!$C$7,IF(E62=$O$8,Настройки!$C$8,IF(E62=$O$9,Настройки!$C$9,IF(E62=$O$10,Настройки!$C$10,IF(E62=$O$11,Настройки!$C$11,IF(E62=$O$12,Настройки!$C$12,IF(E62=$O$13,Настройки!$C$13,IF(E62=$O$14,Настройки!$C$14,IF(E62=$O$15,Настройки!$C$15,IF(E62=$O$16,Настройки!$C$16,IF(E62=$O$17,Настройки!$C$17,IF(E62=$O$18,Настройки!$C$18,0)))))))))))))))))),2)-Настройки!$F$4,IF('Расчет усталости'!H62='Расчет усталости'!$O$21,0,IF(G62=$O$20,IF(E62=$O$2,Настройки!$C$2,IF(E62=$O$3,Настройки!$C$3,IF(E62=$O$4,Настройки!$C$4,IF(E62=$O$5,Настройки!$C$5,IF(E62=$O$6,Настройки!$C$6,IF(E62=$O$7,Настройки!$C$7,IF(E62=$O$8,Настройки!$C$8,IF(E62=$O$9,Настройки!$C$9,IF(E62=$O$10,Настройки!$C$10,IF(E62=$O$11,Настройки!$C$11,IF(E62=$O$12,Настройки!$C$12,IF(E62=$O$13,Настройки!$C$13,IF(E62=$O$14,Настройки!$C$14,IF(E62=$O$15,Настройки!$C$15,IF(E62=$O$16,Настройки!$C$16,IF(E62=$O$17,Настройки!$C$17,IF(E62=$O$18,Настройки!$C$18,0)))))))))))))))))*Настройки!$F$2+IF(E62=$O$2,Настройки!$C$2,IF(E62=$O$3,Настройки!$C$3,IF(E62=$O$4,Настройки!$C$4,IF(E62=$O$5,Настройки!$C$5,IF(E62=$O$6,Настройки!$C$6,IF(E62=$O$7,Настройки!$C$7,IF(E62=$O$8,Настройки!$C$8,IF(E62=$O$9,Настройки!$C$9,IF(E62=$O$10,Настройки!$C$10,IF(E62=$O$11,Настройки!$C$11,IF(E62=$O$12,Настройки!$C$12,IF(E62=$O$13,Настройки!$C$13,IF(E62=$O$14,Настройки!$C$14,IF(E62=$O$15,Настройки!$C$15,IF(E62=$O$16,Настройки!$C$16,IF(E62=$O$17,Настройки!$C$17,IF(E62=$O$18,Настройки!$C$18,0))))))))))))))))),IF(E62=$O$2,Настройки!$C$2,IF(E62=$O$3,Настройки!$C$3,IF(E62=$O$4,Настройки!$C$4,IF(E62=$O$5,Настройки!$C$5,IF(E62=$O$6,Настройки!$C$6,IF(E62=$O$7,Настройки!$C$7,IF(E62=$O$8,Настройки!$C$8,IF(E62=$O$9,Настройки!$C$9,IF(E62=$O$10,Настройки!$C$10,IF(E62=$O$11,Настройки!$C$11,IF(E62=$O$12,Настройки!$C$12,IF(E62=$O$13,Настройки!$C$13,IF(E62=$O$14,Настройки!$C$14,IF(E62=$O$15,Настройки!$C$15,IF(E62=$O$16,Настройки!$C$16,IF(E62=$O$17,Настройки!$C$17,IF(E62=$O$18,Настройки!$C$18,0))))))))))))))))))))),2) -> -0.25 | K62: =IF(SUM($I$2:I62)-SUM($C$2:C62)<0,0,ROUND(SUM($I$2:I62)-SUM($C$2:C62),2)) -> 1.4 | L62: =IF(SUM($J$2:J62)-SUM($C$2:C62)<0,0,ROUND(SUM($J$2:J62)-SUM($C$2:C62),2)) -> 1.91 | M62: В
A63: Вт | B63: 11 | C63: =Настройки!$F$3 -> 0.1 | D63: 41 | E63: КТ | F63: =COUNTIF($E$2:E63,"ЧЕМ") -> 17 | G63: Г | I63: =ROUND(IF(AND(M63=$O$22,H63=$O$21),0-Настройки!$F$4,IF('Расчет усталости'!M63='Расчет усталости'!$O$22,IF(E63=$O$2,Настройки!$C$2,IF(E63=$O$3,Настройки!$C$3,IF(E63=$O$4,Настройки!$C$4,IF(E63=$O$5,Настройки!$C$5,IF(E63=$O$6,Настройки!$C$6,IF(E63=$O$7,Настройки!$C$7,IF(E63=$O$8,Настройки!$C$8,IF(E63=$O$9,Настройки!$C$9,IF(E63=$O$10,Настройки!$C$10,IF(E63=$O$11,Настройки!$C$11,IF(E63=$O$12,Настройки!$C$12,IF(E63=$O$13,Настройки!$C$13,IF(E63=$O$14,Настройки!$C$14,IF(E63=$O$15,Настройки!$C$15,IF(E63=$O$16,Настройки!$C$16,IF(E63=$O$17,Настройки!$C$17,IF(E63=$O$18,Настройки!$C$18,0)))))))))))))))))-Настройки!$F$4,IF('Расчет усталости'!H63='Расчет усталости'!$O$21,0,IF(E63=$O$2,Настройки!$C$2,IF(E63=$O$3,Настройки!$C$3,IF(E63=$O$4,Настройки!$C$4,IF(E63=$O$5,Настройки!$C$5,IF(E63=$O$6,Настройки!$C$6,IF(E63=$O$7,Настройки!$C$7,IF(E63=$O$8,Настройки!$C$8,IF(E63=$O$9,Настройки!$C$9,IF(E63=$O$10,Настройки!$C$10,IF(E63=$O$11,Настройки!$C$11,IF(E63=$O$12,Настройки!$C$12,IF(E63=$O$13,Настройки!$C$13,IF(E63=$O$14,Настройки!$C$14,IF(E63=$O$15,Настройки!$C$15,IF(E63=$O$16,Настройки!$C$16,IF(E63=$O$17,Настройки!$C$17,IF(E63=$O$18,Настройки!$C$18,0)))))))))))))))))))),2) -> 0.15 | J63: =ROUND(IF(AND(M63=$O$22,H63=$O$21),0-Настройки!$F$4,IF('Расчет усталости'!M63='Расчет усталости'!$O$22,ROUND(IF(G63=$O$20,IF(E63=$O$2,Настройки!$C$2,IF(E63=$O$3,Настройки!$C$3,IF(E63=$O$4,Настройки!$C$4,IF(E63=$O$5,Настройки!$C$5,IF(E63=$O$6,Настройки!$C$6,IF(E63=$O$7,Настройки!$C$7,IF(E63=$O$8,Настройки!$C$8,IF(E63=$O$9,Настройки!$C$9,IF(E63=$O$10,Настройки!$C$10,IF(E63=$O$11,Настройки!$C$11,IF(E63=$O$12,Настройки!$C$12,IF(E63=$O$13,Настройки!$C$13,IF(E63=$O$14,Настройки!$C$14,IF(E63=$O$15,Настройки!$C$15,IF(E63=$O$16,Настройки!$C$16,IF(E63=$O$17,Настройки!$C$17,IF(E63=$O$18,Настройки!$C$18,0)))))))))))))))))*Настройки!$F$2+IF(E63=$O$2,Настройки!$C$2,IF(E63=$O$3,Настройки!$C$3,IF(E63=$O$4,Настройки!$C$4,IF(E63=$O$5,Настройки!$C$5,IF(E63=$O$6,Настройки!$C$6,IF(E63=$O$7,Настройки!$C$7,IF(E63=$O$8,Настройки!$C$8,IF(E63=$O$9,Настройки!$C$9,IF(E63=$O$10,Настройки!$C$10,IF(E63=$O$11,Настройки!$C$11,IF(E63=$O$12,Настройки!$C$12,IF(E63=$O$13,Настройки!$C$13,IF(E63=$O$14,Настройки!$C$14,IF(E63=$O$15,Настройки!$C$15,IF(E63=$O$16,Настройки!$C$16,IF(E63=$O$17,Настройки!$C$17,IF(E63=$O$18,Настройки!$C$18,0))))))))))))))))),IF(E63=$O$2,Настройки!$C$2,IF(E63=$O$3,Настройки!$C$3,IF(E63=$O$4,Настройки!$C$4,IF(E63=$O$5,Настройки!$C$5,IF(E63=$O$6,Настройки!$C$6,IF(E63=$O$7,Настройки!$C$7,IF(E63=$O$8,Настройки!$C$8,IF(E63=$O$9,Настройки!$C$9,IF(E63=$O$10,Настройки!$C$10,IF(E63=$O$11,Настройки!$C$11,IF(E63=$O$12,Настройки!$C$12,IF(E63=$O$13,Настройки!$C$13,IF(E63=$O$14,Настройки!$C$14,IF(E63=$O$15,Настройки!$C$15,IF(E63=$O$16,Настройки!$C$16,IF(E63=$O$17,Настройки!$C$17,IF(E63=$O$18,Настройки!$C$18,0)))))))))))))))))),2)-Настройки!$F$4,IF('Расчет усталости'!H63='Расчет усталости'!$O$21,0,IF(G63=$O$20,IF(E63=$O$2,Настройки!$C$2,IF(E63=$O$3,Настройки!$C$3,IF(E63=$O$4,Настройки!$C$4,IF(E63=$O$5,Настройки!$C$5,IF(E63=$O$6,Настройки!$C$6,IF(E63=$O$7,Настройки!$C$7,IF(E63=$O$8,Настройки!$C$8,IF(E63=$O$9,Настройки!$C$9,IF(E63=$O$10,Настройки!$C$10,IF(E63=$O$11,Настройки!$C$11,IF(E63=$O$12,Настройки!$C$12,IF(E63=$O$13,Настройки!$C$13,IF(E63=$O$14,Настройки!$C$14,IF(E63=$O$15,Настройки!$C$15,IF(E63=$O$16,Настройки!$C$16,IF(E63=$O$17,Настройки!$C$17,IF(E63=$O$18,Настройки!$C$18,0)))))))))))))))))*Настройки!$F$2+IF(E63=$O$2,Настройки!$C$2,IF(E63=$O$3,Настройки!$C$3,IF(E63=$O$4,Настройки!$C$4,IF(E63=$O$5,Настройки!$C$5,IF(E63=$O$6,Настройки!$C$6,IF(E63=$O$7,Настройки!$C$7,IF(E63=$O$8,Настройки!$C$8,IF(E63=$O$9,Настройки!$C$9,IF(E63=$O$10,Настройки!$C$10,IF(E63=$O$11,Настройки!$C$11,IF(E63=$O$12,Настройки!$C$12,IF(E63=$O$13,Настройки!$C$13,IF(E63=$O$14,Настройки!$C$14,IF(E63=$O$15,Настройки!$C$15,IF(E63=$O$16,Настройки!$C$16,IF(E63=$O$17,Настройки!$C$17,IF(E63=$O$18,Настройки!$C$18,0))))))))))))))))),IF(E63=$O$2,Настройки!$C$2,IF(E63=$O$3,Настройки!$C$3,IF(E63=$O$4,Настройки!$C$4,IF(E63=$O$5,Настройки!$C$5,IF(E63=$O$6,Настройки!$C$6,IF(E63=$O$7,Настройки!$C$7,IF(E63=$O$8,Настройки!$C$8,IF(E63=$O$9,Настройки!$C$9,IF(E63=$O$10,Настройки!$C$10,IF(E63=$O$11,Настройки!$C$11,IF(E63=$O$12,Настройки!$C$12,IF(E63=$O$13,Настройки!$C$13,IF(E63=$O$14,Настройки!$C$14,IF(E63=$O$15,Настройки!$C$15,IF(E63=$O$16,Настройки!$C$16,IF(E63=$O$17,Настройки!$C$17,IF(E63=$O$18,Настройки!$C$18,0))))))))))))))))))))),2) -> 0.17 | K63: =IF(SUM($I$2:I63)-SUM($C$2:C63)<0,0,ROUND(SUM($I$2:I63)-SUM($C$2:C63),2)) -> 1.45 | L63: =IF(SUM($J$2:J63)-SUM($C$2:C63)<0,0,ROUND(SUM($J$2:J63)-SUM($C$2:C63),2)) -> 1.98
